Workbook

Sheet Main Menu
A1: California Department of Insurance
A2: 300 South Spring Street
A3: Los Angeles, CA 90013
A4: www.insurance.ca.gov
A7: All Grants & Annuities Societies Operating in the State of California
A8: and Other Interested Persons
A11: Reserve Basis of Annuities
B14: For Single Life, Click Here!
B16: For Joint Life, Male and Female, Click Here!
A18: Effective January 1, 2017 the minimum reserve basis for life annuities issued by Grants and Annuities Societies
A19: shall be the 2012 Individual Annuity Reserving Table at 4.00% interest.
A21: Age is based on age nearest birthday.

Sheet Single Life
A1: California Department of Insurance - Effective 1/1/2017 | F1: Back to Main Page | L1: A
L2: S
A3: Gift Annuities - Single Life | F3: INPUT | L3: Q
B4: Gender of Annuitant | C4: =IF(F4="M","Male","Female") -> Male | E4: Gender: | F4: M | G4: M | L4: M
G5: F
B6: Age of Annuitant | C6: =+F6 -> 1 | E6: Age - nearest birthday: | F6: 1 | H6: =IF(C6>100,"Error - Input age between 5 - 100!",IF(C6<5,"Error - Input age between 5 - 100!"," ")) -> Error - Input age between 5 - 100!
B8: Frequency of Payments (m) | C8: =IF($F$8 = "A", "1", IF($F$8 = "S", "2", IF($F$8 = "Q", "4", IF($F$8 ="M", "12")))) -> 1 | E8: Frequency of Payments (A,S,Q,M) | F8: A
B9: Single Life minimum reserve factor | C9: =IF(AND($C$4="Male",$C$8="1"),VLOOKUP($C$6,'2012Amale'!A14:C134,2,TRUE),IF(AND($C$4="Male",$C$8<>"1"),VLOOKUP($C$6,'2012Amale'!A14:C134,3,TRUE),IF(AND($C$4="Female",$C$8="1"),VLOOKUP($C$6,'2012female'!A15:C135,2,TRUE),IF(AND($C$4="Female",$C$8<>"1"),VLOOKUP($C$6,'2012female'!A15:C135,3,TRUE))))) -> 24.05310432
E10: Contribution Year > 2012 | F10: 2012

Sheet Joint Life
A1: California Department of Insurance - Effective 1/1/2017 | F1: Back to Main Page | M1: A
M2: S
A3: Gift Annuities - Join Life | F3: INPUT | M3: Q
B4: Gender of Annuitant | C4: =IF(F4="M","Male","Female") -> Male | D4: =IF(G4="M","Male","Female") -> Male | E4: Gender: | F4: M | G4: M | H4: M | M4: M
H5: F
B6: Age of Annuitant | C6: =F6 -> 1 | D6: =G6 -> 1 | E6: Age - nearest birthday: | F6: 1 | G6: 1 | I6: =IF(C6>100,"Error - Input age between 5 - 100!",IF(C6<5,"Error - Input age between 5 - 100!"," ")) -> Error - Input age between 5 - 100!
B8: Frequency of Payments (m) | C8: =IF($F$8 = "A", "1", IF($F$8 = "S", "2", IF($F$8 = "Q", "4", IF($F$8 ="M", "12")))) -> 1 | E8: Frequency of Payments (A,S,Q,M) | F8: A
B9: Single Life minimum reserve factor | C9: =IF($C$8=1,B18,D18) -> 24.39336477
E10: Contribution Year > 2012 | F10: 2012
B11: 1 | C11: 2 | D11: 3 | E11: 4 | F11: 5 | G11: 6 | H11: 7 | I11: 8 | J11: 9 | K11: 10 | L11: 11 | M11: 12 | N11: 13 | O11: 14 | P11: 15 | Q11: 16 | R11: 17 | S11: 18 | T11: 19 | U11: 20 | V11: 21 | W11: 22 | X11: 23 | Y11: 24 | Z11: 25 | AA11: 26 | AB11: 27 | AC11: 28 | AD11: 29 | AE11: 30 | AF11: 31 | AG11: 32 | AH11: 33 | AI11: 34 | AJ11: 35 | AK11: 36 | AL11: 37 | AM11: 38 | AN11: 39 | AO11: 40 | AP11: 41 | AQ11: 42 | AR11: 43 | AS11: 44 | AT11: 45 | AU11: 46 | AV11: 47 | AW11: 48 | AX11: 49 | AY11: 50 | AZ11: 51 | BA11: 52 | BB11: 53 | BC11: 54 | BD11: 55 | BE11: 56 | BF11: 57 | BG11: 58 | BH11: 59 | BI11: 60 | BJ11: 61 | BK11: 62 | BL11: 63 | BM11: 64 | BN11: 65 | BO11: 66 | BP11: 67 | BQ11: 68 | BR11: 69 | BS11: 70 | BT11: 71 | BU11: 72 | BV11: 73 | BW11: 74 | BX11: 75 | BY11: 76 | BZ11: 77 | CA11: 78 | CB11: 79 | CC11: 80 | CD11: 81 | CE11: 82 | CF11: 83 | CG11: 84 | CH11: 85 | CI11: 86 | CJ11: 87 | CK11: 88 | CL11: 89 | CM11: 90 | CN11: 91 | CO11: 92 | CP11: 93 | CQ11: 94 | CR11: 95 | CS11: 96 | CT11: 97 | CU11: 98 | CV11: 99 | CW11: 100 | CX11: 101 | CY11: 102 | CZ11: 103 | DA11: 104 | DB11: 105 | DC11: 106 | DD11: 107 | DE11: 108 | DF11: 109 | DG11: 110 | DH11: 111 | DI11: 112 | DJ11: 113 | DK11: 114 | DL11: 115 | DM11: 116 | DN11: 117 | DO11: 118 | DP11: 119 | DQ11: 120
A12: kpx Male | B12: =IF(120-$C$6<B11,0,IF($F$4="M",VLOOKUP($C$6,'2012Jmale'!$A$14:$DW$134,MATCH($C$6+'2012Jmale'!M6,'2012Jmale'!$G$6:$IM$6),FALSE),VLOOKUP($C$6,'2012Jfemale'!$A$14:$DW$134,MATCH($C$6+'2012Jfemale'!M6,'2012Jfemale'!$G$6:$IM$6),FALSE))) -> 0.999599 | C12: =IF(120-$C$6<C11,0,IF($F$4="M",VLOOKUP($C$6,'2012Jmale'!$A$14:$DW$134,MATCH($C$6+'2012Jmale'!N6,'2012Jmale'!$G$6:$IM$6),FALSE),VLOOKUP($C$6,'2012Jfemale'!$A$14:$DW$134,MATCH($C$6+'2012Jfemale'!N6,'2012Jfemale'!$G$6:$IM$6),FALSE))) -> 0.9993271091 | D12: =IF(120-$C$6<D11,0,IF($F$4="M",VLOOKUP($C$6,'2012Jmale'!$A$14:$DW$134,MATCH($C$6+'2012Jmale'!O6,'2012Jmale'!$G$6:$IM$6),FALSE),VLOOKUP($C$6,'2012Jfemale'!$A$14:$DW$134,MATCH($C$6+'2012Jfemale'!O6,'2012Jfemale'!$G$6:$IM$6),FALSE))) -> 0.9991032598 | E12: =IF(120-$C$6<E11,0,IF($F$4="M",VLOOKUP($C$6,'2012Jmale'!$A$14:$DW$134,MATCH($C$6+'2012Jmale'!P6,'2012Jmale'!$G$6:$IM$6),FALSE),VLOOKUP($C$6,'2012Jfemale'!$A$14:$DW$134,MATCH($C$6+'2012Jfemale'!P6,'2012Jfemale'!$G$6:$IM$6),FALSE))) -> 0.9989344113 | F12: =IF(120-$C$6<F11,0,IF($F$4="M",VLOOKUP($C$6,'2012Jmale'!$A$14:$DW$134,MATCH($C$6+'2012Jmale'!Q6,'2012Jmale'!$G$6:$IM$6),FALSE),VLOOKUP($C$6,'2012Jfemale'!$A$14:$DW$134,MATCH($C$6+'2012Jfemale'!Q6,'2012Jfemale'!$G$6:$IM$6),FALSE))) -> 0.9987735829 | G12: =IF(120-$C$6<G11,0,IF($F$4="M",VLOOKUP($C$6,'2012Jmale'!$A$14:$DW$134,MATCH($C$6+'2012Jmale'!R6,'2012Jmale'!$G$6:$IM$6),FALSE),VLOOKUP($C$6,'2012Jfemale'!$A$14:$DW$134,MATCH($C$6+'2012Jfemale'!R6,'2012Jfemale'!$G$6:$IM$6),FALSE))) -> 0.9986167755 | H12: =IF(120-$C$6<H11,0,IF($F$4="M",VLOOKUP($C$6,'2012Jmale'!$A$14:$DW$134,MATCH($C$6+'2012Jmale'!S6,'2012Jmale'!$G$6:$IM$6),FALSE),VLOOKUP($C$6,'2012Jfemale'!$A$14:$DW$134,MATCH($C$6+'2012Jfemale'!S6,'2012Jfemale'!$G$6:$IM$6),FALSE))) -> 0.9984669829 | I12: =IF(120-$C$6<I11,0,IF($F$4="M",VLOOKUP($C$6,'2012Jmale'!$A$14:$DW$134,MATCH($C$6+'2012Jmale'!T6,'2012Jmale'!$G$6:$IM$6),FALSE),VLOOKUP($C$6,'2012Jfemale'!$A$14:$DW$134,MATCH($C$6+'2012Jfemale'!T6,'2012Jfemale'!$G$6:$IM$6),FALSE))) -> 0.9983341868 | J12: =IF(120-$C$6<J11,0,IF($F$4="M",VLOOKUP($C$6,'2012Jmale'!$A$14:$DW$134,MATCH($C$6+'2012Jmale'!U6,'2012Jmale'!$G$6:$IM$6),FALSE),VLOOKUP($C$6,'2012Jfemale'!$A$14:$DW$134,MATCH($C$6+'2012Jfemale'!U6,'2012Jfemale'!$G$6:$IM$6),FALSE))) -> 0.9982153851 | K12: =IF(120-$C$6<K11,0,IF($F$4="M",VLOOKUP($C$6,'2012Jmale'!$A$14:$DW$134,MATCH($C$6+'2012Jmale'!V6,'2012Jmale'!$G$6:$IM$6),FALSE),VLOOKUP($C$6,'2012Jfemale'!$A$14:$DW$134,MATCH($C$6+'2012Jfemale'!V6,'2012Jfemale'!$G$6:$IM$6),FALSE))) -> 0.9981125689 | L12: =IF(120-$C$6<L11,0,IF($F$4="M",VLOOKUP($C$6,'2012Jmale'!$A$14:$DW$134,MATCH($C$6+'2012Jmale'!W6,'2012Jmale'!$G$6:$IM$6),FALSE),VLOOKUP($C$6,'2012Jfemale'!$A$14:$DW$134,MATCH($C$6+'2012Jfemale'!W6,'2012Jfemale'!$G$6:$IM$6),FALSE))) -> 0.9980127576 | M12: =IF(120-$C$6<M11,0,IF($F$4="M",VLOOKUP($C$6,'2012Jmale'!$A$14:$DW$134,MATCH($C$6+'2012Jmale'!X6,'2012Jmale'!$G$6:$IM$6),FALSE),VLOOKUP($C$6,'2012Jfemale'!$A$14:$DW$134,MATCH($C$6+'2012Jfemale'!X6,'2012Jfemale'!$G$6:$IM$6),FALSE))) -> 0.9978949921 | N12: =IF(120-$C$6<N11,0,IF($F$4="M",VLOOKUP($C$6,'2012Jmale'!$A$14:$DW$134,MATCH($C$6+'2012Jmale'!Y6,'2012Jmale'!$G$6:$IM$6),FALSE),VLOOKUP($C$6,'2012Jfemale'!$A$14:$DW$134,MATCH($C$6+'2012Jfemale'!Y6,'2012Jfemale'!$G$6:$IM$6),FALSE))) -> 0.9977453079 | O12: =IF(120-$C$6<O11,0,IF($F$4="M",VLOOKUP($C$6,'2012Jmale'!$A$14:$DW$134,MATCH($C$6+'2012Jmale'!Z6,'2012Jmale'!$G$6:$IM$6),FALSE),VLOOKUP($C$6,'2012Jfemale'!$A$14:$DW$134,MATCH($C$6+'2012Jfemale'!Z6,'2012Jfemale'!$G$6:$IM$6),FALSE))) -> 0.9975587295 | P12: =IF(120-$C$6<P11,0,IF($F$4="M",VLOOKUP($C$6,'2012Jmale'!$A$14:$DW$134,MATCH($C$6+'2012Jmale'!AA6,'2012Jmale'!$G$6:$IM$6),FALSE),VLOOKUP($C$6,'2012Jfemale'!$A$14:$DW$134,MATCH($C$6+'2012Jfemale'!AA6,'2012Jfemale'!$G$6:$IM$6),FALSE))) -> 0.997338269 | Q12: =IF(120-$C$6<Q11,0,IF($F$4="M",VLOOKUP($C$6,'2012Jmale'!$A$14:$DW$134,MATCH($C$6+'2012Jmale'!AB6,'2012Jmale'!$G$6:$IM$6),FALSE),VLOOKUP($C$6,'2012Jfemale'!$A$14:$DW$134,MATCH($C$6+'2012Jfemale'!AB6,'2012Jfemale'!$G$6:$IM$6),FALSE))) -> 0.9970869398 | R12: =IF(120-$C$6<R11,0,IF($F$4="M",VLOOKUP($C$6,'2012Jmale'!$A$14:$DW$134,MATCH($C$6+'2012Jmale'!AC6,'2012Jmale'!$G$6:$IM$6),FALSE),VLOOKUP($C$6,'2012Jfemale'!$A$14:$DW$134,MATCH($C$6+'2012Jfemale'!AC6,'2012Jfemale'!$G$6:$IM$6),FALSE))) -> 0.9968087525 | S12: =IF(120-$C$6<S11,0,IF($F$4="M",VLOOKUP($C$6,'2012Jmale'!$A$14:$DW$134,MATCH($C$6+'2012Jmale'!AD6,'2012Jmale'!$G$6:$IM$6),FALSE),VLOOKUP($C$6,'2012Jfemale'!$A$14:$DW$134,MATCH($C$6+'2012Jfemale'!AD6,'2012Jfemale'!$G$6:$IM$6),FALSE))) -> 0.9965067195 | T12: =IF(120-$C$6<T11,0,IF($F$4="M",VLOOKUP($C$6,'2012Jmale'!$A$14:$DW$134,MATCH($C$6+'2012Jmale'!AE6,'2012Jmale'!$G$6:$IM$6),FALSE),VLOOKUP($C$6,'2012Jfemale'!$A$14:$DW$134,MATCH($C$6+'2012Jfemale'!AE6,'2012Jfemale'!$G$6:$IM$6),FALSE))) -> 0.9961848478 | U12: =IF(120-$C$6<U11,0,IF($F$4="M",VLOOKUP($C$6,'2012Jmale'!$A$14:$DW$134,MATCH($C$6+'2012Jmale'!AF6,'2012Jmale'!$G$6:$IM$6),FALSE),VLOOKUP($C$6,'2012Jfemale'!$A$14:$DW$134,MATCH($C$6+'2012Jfemale'!AF6,'2012Jfemale'!$G$6:$IM$6),FALSE))) -> 0.9958441526 | V12: =IF(120-$C$6<V11,0,IF($F$4="M",VLOOKUP($C$6,'2012Jmale'!$A$14:$DW$134,MATCH($C$6+'2012Jmale'!AG6,'2012Jmale'!$G$6:$IM$6),FALSE),VLOOKUP($C$6,'2012Jfemale'!$A$14:$DW$134,MATCH($C$6+'2012Jfemale'!AG6,'2012Jfemale'!$G$6:$IM$6),FALSE))) -> 0.995483657 | W12: =IF(120-$C$6<W11,0,IF($F$4="M",VLOOKUP($C$6,'2012Jmale'!$A$14:$DW$134,MATCH($C$6+'2012Jmale'!AH6,'2012Jmale'!$G$6:$IM$6),FALSE),VLOOKUP($C$6,'2012Jfemale'!$A$14:$DW$134,MATCH($C$6+'2012Jfemale'!AH6,'2012Jfemale'!$G$6:$IM$6),FALSE))) -> 0.9951023868 | X12: =IF(120-$C$6<X11,0,IF($F$4="M",VLOOKUP($C$6,'2012Jmale'!$A$14:$DW$134,MATCH($C$6+'2012Jmale'!AI6,'2012Jmale'!$G$6:$IM$6),FALSE),VLOOKUP($C$6,'2012Jfemale'!$A$14:$DW$134,MATCH($C$6+'2012Jfemale'!AI6,'2012Jfemale'!$G$6:$IM$6),FALSE))) -> 0.9946933997 | Y12: =IF(120-$C$6<Y11,0,IF($F$4="M",VLOOKUP($C$6,'2012Jmale'!$A$14:$DW$134,MATCH($C$6+'2012Jmale'!AJ6,'2012Jmale'!$G$6:$IM$6),FALSE),VLOOKUP($C$6,'2012Jfemale'!$A$14:$DW$134,MATCH($C$6+'2012Jfemale'!AJ6,'2012Jfemale'!$G$6:$IM$6),FALSE))) -> 0.9942557346 | Z12: =IF(120-$C$6<Z11,0,IF($F$4="M",VLOOKUP($C$6,'2012Jmale'!$A$14:$DW$134,MATCH($C$6+'2012Jmale'!AK6,'2012Jmale'!$G$6:$IM$6),FALSE),VLOOKUP($C$6,'2012Jfemale'!$A$14:$DW$134,MATCH($C$6+'2012Jfemale'!AK6,'2012Jfemale'!$G$6:$IM$6),FALSE))) -> 0.9937854516 | AA12: =IF(120-$C$6<AA11,0,IF($F$4="M",VLOOKUP($C$6,'2012Jmale'!$A$14:$DW$134,MATCH($C$6+'2012Jmale'!AL6,'2012Jmale'!$G$6:$IM$6),FALSE),VLOOKUP($C$6,'2012Jfemale'!$A$14:$DW$134,MATCH($C$6+'2012Jfemale'!AL6,'2012Jfemale'!$G$6:$IM$6),FALSE))) -> 0.9932796148 | AB12: =IF(120-$C$6<AB11,0,IF($F$4="M",VLOOKUP($C$6,'2012Jmale'!$A$14:$DW$134,MATCH($C$6+'2012Jmale'!AM6,'2012Jmale'!$G$6:$IM$6),FALSE),VLOOKUP($C$6,'2012Jfemale'!$A$14:$DW$134,MATCH($C$6+'2012Jfemale'!AM6,'2012Jfemale'!$G$6:$IM$6),FALSE))) -> 0.9927531766 | AC12: =IF(120-$C$6<AC11,0,IF($F$4="M",VLOOKUP($C$6,'2012Jmale'!$A$14:$DW$134,MATCH($C$6+'2012Jmale'!AN6,'2012Jmale'!$G$6:$IM$6),FALSE),VLOOKUP($C$6,'2012Jfemale'!$A$14:$DW$134,MATCH($C$6+'2012Jfemale'!AN6,'2012Jfemale'!$G$6:$IM$6),FALSE))) -> 0.9922160972 | AD12: =IF(120-$C$6<AD11,0,IF($F$4="M",VLOOKUP($C$6,'2012Jmale'!$A$14:$DW$134,MATCH($C$6+'2012Jmale'!AO6,'2012Jmale'!$G$6:$IM$6),FALSE),VLOOKUP($C$6,'2012Jfemale'!$A$14:$DW$134,MATCH($C$6+'2012Jfemale'!AO6,'2012Jfemale'!$G$6:$IM$6),FALSE))) -> 0.9916713705 | AE12: =IF(120-$C$6<AE11,0,IF($F$4="M",VLOOKUP($C$6,'2012Jmale'!$A$14:$DW$134,MATCH($C$6+'2012Jmale'!AP6,'2012Jmale'!$G$6:$IM$6),FALSE),VLOOKUP($C$6,'2012Jfemale'!$A$14:$DW$134,MATCH($C$6+'2012Jfemale'!AP6,'2012Jfemale'!$G$6:$IM$6),FALSE))) -> 0.9911219846 | AF12: =IF(120-$C$6<AF11,0,IF($F$4="M",VLOOKUP($C$6,'2012Jmale'!$A$14:$DW$134,MATCH($C$6+'2012Jmale'!AQ6,'2012Jmale'!$G$6:$IM$6),FALSE),VLOOKUP($C$6,'2012Jfemale'!$A$14:$DW$134,MATCH($C$6+'2012Jfemale'!AQ6,'2012Jfemale'!$G$6:$IM$6),FALSE))) -> 0.9905709208 | AG12: =IF(120-$C$6<AG11,0,IF($F$4="M",VLOOKUP($C$6,'2012Jmale'!$A$14:$DW$134,MATCH($C$6+'2012Jmale'!AR6,'2012Jmale'!$G$6:$IM$6),FALSE),VLOOKUP($C$6,'2012Jfemale'!$A$14:$DW$134,MATCH($C$6+'2012Jfemale'!AR6,'2012Jfemale'!$G$6:$IM$6),FALSE))) -> 0.9900241256 | AH12: =IF(120-$C$6<AH11,0,IF($F$4="M",VLOOKUP($C$6,'2012Jmale'!$A$14:$DW$134,MATCH($C$6+'2012Jmale'!AS6,'2012Jmale'!$G$6:$IM$6),FALSE),VLOOKUP($C$6,'2012Jfemale'!$A$14:$DW$134,MATCH($C$6+'2012Jfemale'!AS6,'2012Jfemale'!$G$6:$IM$6),FALSE))) -> 0.9894815924 | AI12: =IF(120-$C$6<AI11,0,IF($F$4="M",VLOOKUP($C$6,'2012Jmale'!$A$14:$DW$134,MATCH($C$6+'2012Jmale'!AT6,'2012Jmale'!$G$6:$IM$6),FALSE),VLOOKUP($C$6,'2012Jfemale'!$A$14:$DW$134,MATCH($C$6+'2012Jfemale'!AT6,'2012Jfemale'!$G$6:$IM$6),FALSE))) -> 0.9889443039 | AJ12: =IF(120-$C$6<AJ11,0,IF($F$4="M",VLOOKUP($C$6,'2012Jmale'!$A$14:$DW$134,MATCH($C$6+'2012Jmale'!AU6,'2012Jmale'!$G$6:$IM$6),FALSE),VLOOKUP($C$6,'2012Jfemale'!$A$14:$DW$134,MATCH($C$6+'2012Jfemale'!AU6,'2012Jfemale'!$G$6:$IM$6),FALSE))) -> 0.9884132408 | AK12: =IF(120-$C$6<AK11,0,IF($F$4="M",VLOOKUP($C$6,'2012Jmale'!$A$14:$DW$134,MATCH($C$6+'2012Jmale'!AV6,'2012Jmale'!$G$6:$IM$6),FALSE),VLOOKUP($C$6,'2012Jfemale'!$A$14:$DW$134,MATCH($C$6+'2012Jfemale'!AV6,'2012Jfemale'!$G$6:$IM$6),FALSE))) -> 0.9878874049 | AL12: =IF(120-$C$6<AL11,0,IF($F$4="M",VLOOKUP($C$6,'2012Jmale'!$A$14:$DW$134,MATCH($C$6+'2012Jmale'!AW6,'2012Jmale'!$G$6:$IM$6),FALSE),VLOOKUP($C$6,'2012Jfemale'!$A$14:$DW$134,MATCH($C$6+'2012Jfemale'!AW6,'2012Jfemale'!$G$6:$IM$6),FALSE))) -> 0.9873677762 | AM12: =IF(120-$C$6<AM11,0,IF($F$4="M",VLOOKUP($C$6,'2012Jmale'!$A$14:$DW$134,MATCH($C$6+'2012Jmale'!AX6,'2012Jmale'!$G$6:$IM$6),FALSE),VLOOKUP($C$6,'2012Jfemale'!$A$14:$DW$134,MATCH($C$6+'2012Jfemale'!AX6,'2012Jfemale'!$G$6:$IM$6),FALSE))) -> 0.9868533576 | AN12: =IF(120-$C$6<AN11,0,IF($F$4="M",VLOOKUP($C$6,'2012Jmale'!$A$14:$DW$134,MATCH($C$6+'2012Jmale'!AY6,'2012Jmale'!$G$6:$IM$6),FALSE),VLOOKUP($C$6,'2012Jfemale'!$A$14:$DW$134,MATCH($C$6+'2012Jfemale'!AY6,'2012Jfemale'!$G$6:$IM$6),FALSE))) -> 0.9863145356 | AO12: =IF(120-$C$6<AO11,0,IF($F$4="M",VLOOKUP($C$6,'2012Jmale'!$A$14:$DW$134,MATCH($C$6+'2012Jmale'!AZ6,'2012Jmale'!$G$6:$IM$6),FALSE),VLOOKUP($C$6,'2012Jfemale'!$A$14:$DW$134,MATCH($C$6+'2012Jfemale'!AZ6,'2012Jfemale'!$G$6:$IM$6),FALSE))) -> 0.9857424732 | AP12: =IF(120-$C$6<AP11,0,IF($F$4="M",VLOOKUP($C$6,'2012Jmale'!$A$14:$DW$134,MATCH($C$6+'2012Jmale'!BA6,'2012Jmale'!$G$6:$IM$6),FALSE),VLOOKUP($C$6,'2012Jfemale'!$A$14:$DW$134,MATCH($C$6+'2012Jfemale'!BA6,'2012Jfemale'!$G$6:$IM$6),FALSE))) -> 0.9851322986 | AQ12: =IF(120-$C$6<AQ11,0,IF($F$4="M",VLOOKUP($C$6,'2012Jmale'!$A$14:$DW$134,MATCH($C$6+'2012Jmale'!BB6,'2012Jmale'!$G$6:$IM$6),FALSE),VLOOKUP($C$6,'2012Jfemale'!$A$14:$DW$134,MATCH($C$6+'2012Jfemale'!BB6,'2012Jfemale'!$G$6:$IM$6),FALSE))) -> 0.984480141 | AR12: =IF(120-$C$6<AR11,0,IF($F$4="M",VLOOKUP($C$6,'2012Jmale'!$A$14:$DW$134,MATCH($C$6+'2012Jmale'!BC6,'2012Jmale'!$G$6:$IM$6),FALSE),VLOOKUP($C$6,'2012Jfemale'!$A$14:$DW$134,MATCH($C$6+'2012Jfemale'!BC6,'2012Jfemale'!$G$6:$IM$6),FALSE))) -> 0.9837900204 | AS12: =IF(120-$C$6<AS11,0,IF($F$4="M",VLOOKUP($C$6,'2012Jmale'!$A$14:$DW$134,MATCH($C$6+'2012Jmale'!BD6,'2012Jmale'!$G$6:$IM$6),FALSE),VLOOKUP($C$6,'2012Jfemale'!$A$14:$DW$134,MATCH($C$6+'2012Jfemale'!BD6,'2012Jfemale'!$G$6:$IM$6),FALSE))) -> 0.983061032 | AT12: =IF(120-$C$6<AT11,0,IF($F$4="M",VLOOKUP($C$6,'2012Jmale'!$A$14:$DW$134,MATCH($C$6+'2012Jmale'!BE6,'2012Jmale'!$G$6:$IM$6),FALSE),VLOOKUP($C$6,'2012Jfemale'!$A$14:$DW$134,MATCH($C$6+'2012Jfemale'!BE6,'2012Jfemale'!$G$6:$IM$6),FALSE))) -> 0.9822912952 | AU12: =IF(120-$C$6<AU11,0,IF($F$4="M",VLOOKUP($C$6,'2012Jmale'!$A$14:$DW$134,MATCH($C$6+'2012Jmale'!BF6,'2012Jmale'!$G$6:$IM$6),FALSE),VLOOKUP($C$6,'2012Jfemale'!$A$14:$DW$134,MATCH($C$6+'2012Jfemale'!BF6,'2012Jfemale'!$G$6:$IM$6),FALSE))) -> 0.9814681351 | AV12: =IF(120-$C$6<AV11,0,IF($F$4="M",VLOOKUP($C$6,'2012Jmale'!$A$14:$DW$134,MATCH($C$6+'2012Jmale'!BG6,'2012Jmale'!$G$6:$IM$6),FALSE),VLOOKUP($C$6,'2012Jfemale'!$A$14:$DW$134,MATCH($C$6+'2012Jfemale'!BG6,'2012Jfemale'!$G$6:$IM$6),FALSE))) -> 0.9805691103 | AW12: =IF(120-$C$6<AW11,0,IF($F$4="M",VLOOKUP($C$6,'2012Jmale'!$A$14:$DW$134,MATCH($C$6+'2012Jmale'!BH6,'2012Jmale'!$G$6:$IM$6),FALSE),VLOOKUP($C$6,'2012Jfemale'!$A$14:$DW$134,MATCH($C$6+'2012Jfemale'!BH6,'2012Jfemale'!$G$6:$IM$6),FALSE))) -> 0.9795748133 | AX12: =IF(120-$C$6<AX11,0,IF($F$4="M",VLOOKUP($C$6,'2012Jmale'!$A$14:$DW$134,MATCH($C$6+'2012Jmale'!BI6,'2012Jmale'!$G$6:$IM$6),FALSE),VLOOKUP($C$6,'2012Jfemale'!$A$14:$DW$134,MATCH($C$6+'2012Jfemale'!BI6,'2012Jfemale'!$G$6:$IM$6),FALSE))) -> 0.9784688733 | AY12: =IF(120-$C$6<AY11,0,IF($F$4="M",VLOOKUP($C$6,'2012Jmale'!$A$14:$DW$134,MATCH($C$6+'2012Jmale'!BJ6,'2012Jmale'!$G$6:$IM$6),FALSE),VLOOKUP($C$6,'2012Jfemale'!$A$14:$DW$134,MATCH($C$6+'2012Jfemale'!BJ6,'2012Jfemale'!$G$6:$IM$6),FALSE))) -> 0.9772389379 | AZ12: =IF(120-$C$6<AZ11,0,IF($F$4="M",VLOOKUP($C$6,'2012Jmale'!$A$14:$DW$134,MATCH($C$6+'2012Jmale'!BK6,'2012Jmale'!$G$6:$IM$6),FALSE),VLOOKUP($C$6,'2012Jfemale'!$A$14:$DW$134,MATCH($C$6+'2012Jfemale'!BK6,'2012Jfemale'!$G$6:$IM$6),FALSE))) -> 0.9759450736 | BA12: =IF(120-$C$6<BA11,0,IF($F$4="M",VLOOKUP($C$6,'2012Jmale'!$A$14:$DW$134,MATCH($C$6+'2012Jmale'!BL6,'2012Jmale'!$G$6:$IM$6),FALSE),VLOOKUP($C$6,'2012Jfemale'!$A$14:$DW$134,MATCH($C$6+'2012Jfemale'!BL6,'2012Jfemale'!$G$6:$IM$6),FALSE))) -> 0.9745319051 | BB12: =IF(120-$C$6<BB11,0,IF($F$4="M",VLOOKUP($C$6,'2012Jmale'!$A$14:$DW$134,MATCH($C$6+'2012Jmale'!BM6,'2012Jmale'!$G$6:$IM$6),FALSE),VLOOKUP($C$6,'2012Jfemale'!$A$14:$DW$134,MATCH($C$6+'2012Jfemale'!BM6,'2012Jfemale'!$G$6:$IM$6),FALSE))) -> 0.9730866743 | BC12: =IF(120-$C$6<BC11,0,IF($F$4="M",VLOOKUP($C$6,'2012Jmale'!$A$14:$DW$134,MATCH($C$6+'2012Jmale'!BN6,'2012Jmale'!$G$6:$IM$6),FALSE),VLOOKUP($C$6,'2012Jfemale'!$A$14:$DW$134,MATCH($C$6+'2012Jfemale'!BN6,'2012Jfemale'!$G$6:$IM$6),FALSE))) -> 0.9715414126 | BD12: =IF(120-$C$6<BD11,0,IF($F$4="M",VLOOKUP($C$6,'2012Jmale'!$A$14:$DW$134,MATCH($C$6+'2012Jmale'!BO6,'2012Jmale'!$G$6:$IM$6),FALSE),VLOOKUP($C$6,'2012Jfemale'!$A$14:$DW$134,MATCH($C$6+'2012Jfemale'!BO6,'2012Jfemale'!$G$6:$IM$6),FALSE))) -> 0.9699820887 | BE12: =IF(120-$C$6<BE11,0,IF($F$4="M",VLOOKUP($C$6,'2012Jmale'!$A$14:$DW$134,MATCH($C$6+'2012Jmale'!BP6,'2012Jmale'!$G$6:$IM$6),FALSE),VLOOKUP($C$6,'2012Jfemale'!$A$14:$DW$134,MATCH($C$6+'2012Jfemale'!BP6,'2012Jfemale'!$G$6:$IM$6),FALSE))) -> 0.9683156594 | BF12: =IF(120-$C$6<BF11,0,IF($F$4="M",VLOOKUP($C$6,'2012Jmale'!$A$14:$DW$134,MATCH($C$6+'2012Jmale'!BQ6,'2012Jmale'!$G$6:$IM$6),FALSE),VLOOKUP($C$6,'2012Jfemale'!$A$14:$DW$134,MATCH($C$6+'2012Jfemale'!BQ6,'2012Jfemale'!$G$6:$IM$6),FALSE))) -> 0.9666249803 | BG12: =IF(120-$C$6<BG11,0,IF($F$4="M",VLOOKUP($C$6,'2012Jmale'!$A$14:$DW$134,MATCH($C$6+'2012Jmale'!BR6,'2012Jmale'!$G$6:$IM$6),FALSE),VLOOKUP($C$6,'2012Jfemale'!$A$14:$DW$134,MATCH($C$6+'2012Jfemale'!BR6,'2012Jfemale'!$G$6:$IM$6),FALSE))) -> 0.9648019256 | BH12: =IF(120-$C$6<BH11,0,IF($F$4="M",VLOOKUP($C$6,'2012Jmale'!$A$14:$DW$134,MATCH($C$6+'2012Jmale'!BS6,'2012Jmale'!$G$6:$IM$6),FALSE),VLOOKUP($C$6,'2012Jfemale'!$A$14:$DW$134,MATCH($C$6+'2012Jfemale'!BS6,'2012Jfemale'!$G$6:$IM$6),FALSE))) -> 0.9629427523 | BI12: =IF(120-$C$6<BI11,0,IF($F$4="M",VLOOKUP($C$6,'2012Jmale'!$A$14:$DW$134,MATCH($C$6+'2012Jmale'!BT6,'2012Jmale'!$G$6:$IM$6),FALSE),VLOOKUP($C$6,'2012Jfemale'!$A$14:$DW$134,MATCH($C$6+'2012Jfemale'!BT6,'2012Jfemale'!$G$6:$IM$6),FALSE))) -> 0.9609311649 | BJ12: =IF(120-$C$6<BJ11,0,IF($F$4="M",VLOOKUP($C$6,'2012Jmale'!$A$14:$DW$134,MATCH($C$6+'2012Jmale'!BU6,'2012Jmale'!$G$6:$IM$6),FALSE),VLOOKUP($C$6,'2012Jfemale'!$A$14:$DW$134,MATCH($C$6+'2012Jfemale'!BU6,'2012Jfemale'!$G$6:$IM$6),FALSE))) -> 0.9587527339 | BK12: =IF(120-$C$6<BK11,0,IF($F$4="M",VLOOKUP($C$6,'2012Jmale'!$A$14:$DW$134,MATCH($C$6+'2012Jmale'!BV6,'2012Jmale'!$G$6:$IM$6),FALSE),VLOOKUP($C$6,'2012Jfemale'!$A$14:$DW$134,MATCH($C$6+'2012Jfemale'!BV6,'2012Jfemale'!$G$6:$IM$6),FALSE))) -> 0.9563999547 | BL12: =IF(120-$C$6<BL11,0,IF($F$4="M",VLOOKUP($C$6,'2012Jmale'!$A$14:$DW$134,MATCH($C$6+'2012Jmale'!BW6,'2012Jmale'!$G$6:$IM$6),FALSE),VLOOKUP($C$6,'2012Jfemale'!$A$14:$DW$134,MATCH($C$6+'2012Jfemale'!BW6,'2012Jfemale'!$G$6:$IM$6),FALSE))) -> 0.9538674076 | BM12: =IF(120-$C$6<BM11,0,IF($F$4="M",VLOOKUP($C$6,'2012Jmale'!$A$14:$DW$134,MATCH($C$6+'2012Jmale'!BX6,'2012Jmale'!$G$6:$IM$6),FALSE),VLOOKUP($C$6,'2012Jfemale'!$A$14:$DW$134,MATCH($C$6+'2012Jfemale'!BX6,'2012Jfemale'!$G$6:$IM$6),FALSE))) -> 0.9511441162 | BN12: =IF(120-$C$6<BN11,0,IF($F$4="M",VLOOKUP($C$6,'2012Jmale'!$A$14:$DW$134,MATCH($C$6+'2012Jmale'!BY6,'2012Jmale'!$G$6:$IM$6),FALSE),VLOOKUP($C$6,'2012Jfemale'!$A$14:$DW$134,MATCH($C$6+'2012Jfemale'!BY6,'2012Jfemale'!$G$6:$IM$6),FALSE))) -> 0.9482136412 | BO12: =IF(120-$C$6<BO11,0,IF($F$4="M",VLOOKUP($C$6,'2012Jmale'!$A$14:$DW$134,MATCH($C$6+'2012Jmale'!BZ6,'2012Jmale'!$G$6:$IM$6),FALSE),VLOOKUP($C$6,'2012Jfemale'!$A$14:$DW$134,MATCH($C$6+'2012Jfemale'!BZ6,'2012Jfemale'!$G$6:$IM$6),FALSE))) -> 0.9451784093 | BP12: =IF(120-$C$6<BP11,0,IF($F$4="M",VLOOKUP($C$6,'2012Jmale'!$A$14:$DW$134,MATCH($C$6+'2012Jmale'!CA6,'2012Jmale'!$G$6:$IM$6),FALSE),VLOOKUP($C$6,'2012Jfemale'!$A$14:$DW$134,MATCH($C$6+'2012Jfemale'!CA6,'2012Jfemale'!$G$6:$IM$6),FALSE))) -> 0.9420148972 | BQ12: =IF(120-$C$6<BQ11,0,IF($F$4="M",VLOOKUP($C$6,'2012Jmale'!$A$14:$DW$134,MATCH($C$6+'2012Jmale'!CB6,'2012Jmale'!$G$6:$IM$6),FALSE),VLOOKUP($C$6,'2012Jfemale'!$A$14:$DW$134,MATCH($C$6+'2012Jfemale'!CB6,'2012Jfemale'!$G$6:$IM$6),FALSE))) -> 0.9386924106 | BR12: =IF(120-$C$6<BR11,0,IF($F$4="M",VLOOKUP($C$6,'2012Jmale'!$A$14:$DW$134,MATCH($C$6+'2012Jmale'!CC6,'2012Jmale'!$G$6:$IM$6),FALSE),VLOOKUP($C$6,'2012Jfemale'!$A$14:$DW$134,MATCH($C$6+'2012Jfemale'!CC6,'2012Jfemale'!$G$6:$IM$6),FALSE))) -> 0.9351779462 | BS12: =IF(120-$C$6<BS11,0,IF($F$4="M",VLOOKUP($C$6,'2012Jmale'!$A$14:$DW$134,MATCH($C$6+'2012Jmale'!CD6,'2012Jmale'!$G$6:$IM$6),FALSE),VLOOKUP($C$6,'2012Jfemale'!$A$14:$DW$134,MATCH($C$6+'2012Jfemale'!CD6,'2012Jfemale'!$G$6:$IM$6),FALSE))) -> 0.9314344289 | BT12: =IF(120-$C$6<BT11,0,IF($F$4="M",VLOOKUP($C$6,'2012Jmale'!$A$14:$DW$134,MATCH($C$6+'2012Jmale'!CE6,'2012Jmale'!$G$6:$IM$6),FALSE),VLOOKUP($C$6,'2012Jfemale'!$A$14:$DW$134,MATCH($C$6+'2012Jfemale'!CE6,'2012Jfemale'!$G$6:$IM$6),FALSE))) -> 0.9274190151 | BU12: =IF(120-$C$6<BU11,0,IF($F$4="M",VLOOKUP($C$6,'2012Jmale'!$A$14:$DW$134,MATCH($C$6+'2012Jmale'!CF6,'2012Jmale'!$G$6:$IM$6),FALSE),VLOOKUP($C$6,'2012Jfemale'!$A$14:$DW$134,MATCH($C$6+'2012Jfemale'!CF6,'2012Jfemale'!$G$6:$IM$6),FALSE))) -> 0.9230824038 | BV12: =IF(120-$C$6<BV11,0,IF($F$4="M",VLOOKUP($C$6,'2012Jmale'!$A$14:$DW$134,MATCH($C$6+'2012Jmale'!CG6,'2012Jmale'!$G$6:$IM$6),FALSE),VLOOKUP($C$6,'2012Jfemale'!$A$14:$DW$134,MATCH($C$6+'2012Jfemale'!CG6,'2012Jfemale'!$G$6:$IM$6),FALSE))) -> 0.9183719143 | BW12: =IF(120-$C$6<BW11,0,IF($F$4="M",VLOOKUP($C$6,'2012Jmale'!$A$14:$DW$134,MATCH($C$6+'2012Jmale'!CH6,'2012Jmale'!$G$6:$IM$6),FALSE),VLOOKUP($C$6,'2012Jfemale'!$A$14:$DW$134,MATCH($C$6+'2012Jfemale'!CH6,'2012Jfemale'!$G$6:$IM$6),FALSE))) -> 0.9132345418 | BX12: =IF(120-$C$6<BX11,0,IF($F$4="M",VLOOKUP($C$6,'2012Jmale'!$A$14:$DW$134,MATCH($C$6+'2012Jmale'!CI6,'2012Jmale'!$G$6:$IM$6),FALSE),VLOOKUP($C$6,'2012Jfemale'!$A$14:$DW$134,MATCH($C$6+'2012Jfemale'!CI6,'2012Jfemale'!$G$6:$IM$6),FALSE))) -> 0.9076190626 | BY12: =IF(120-$C$6<BY11,0,IF($F$4="M",VLOOKUP($C$6,'2012Jmale'!$A$14:$DW$134,MATCH($C$6+'2012Jmale'!CJ6,'2012Jmale'!$G$6:$IM$6),FALSE),VLOOKUP($C$6,'2012Jfemale'!$A$14:$DW$134,MATCH($C$6+'2012Jfemale'!CJ6,'2012Jfemale'!$G$6:$IM$6),FALSE))) -> 0.9014744815 | BZ12: =IF(120-$C$6<BZ11,0,IF($F$4="M",VLOOKUP($C$6,'2012Jmale'!$A$14:$DW$134,MATCH($C$6+'2012Jmale'!CK6,'2012Jmale'!$G$6:$IM$6),FALSE),VLOOKUP($C$6,'2012Jfemale'!$A$14:$DW$134,MATCH($C$6+'2012Jfemale'!CK6,'2012Jfemale'!$G$6:$IM$6),FALSE))) -> 0.894745876 | CA12: =IF(120-$C$6<CA11,0,IF($F$4="M",VLOOKUP($C$6,'2012Jmale'!$A$14:$DW$134,MATCH($C$6+'2012Jmale'!CL6,'2012Jmale'!$G$6:$IM$6),FALSE),VLOOKUP($C$6,'2012Jfemale'!$A$14:$DW$134,MATCH($C$6+'2012Jfemale'!CL6,'2012Jfemale'!$G$6:$IM$6),FALSE))) -> 0.8873758542 | CB12: =IF(120-$C$6<CB11,0,IF($F$4="M",VLOOKUP($C$6,'2012Jmale'!$A$14:$DW$134,MATCH($C$6+'2012Jmale'!CM6,'2012Jmale'!$G$6:$IM$6),FALSE),VLOOKUP($C$6,'2012Jfemale'!$A$14:$DW$134,MATCH($C$6+'2012Jfemale'!CM6,'2012Jfemale'!$G$6:$IM$6),FALSE))) -> 0.8793033961 | CC12: =IF(120-$C$6<CC11,0,IF($F$4="M",VLOOKUP($C$6,'2012Jmale'!$A$14:$DW$134,MATCH($C$6+'2012Jmale'!CN6,'2012Jmale'!$G$6:$IM$6),FALSE),VLOOKUP($C$6,'2012Jfemale'!$A$14:$DW$134,MATCH($C$6+'2012Jfemale'!CN6,'2012Jfemale'!$G$6:$IM$6),FALSE))) -> 0.8704488109 | CD12: =IF(120-$C$6<CD11,0,IF($F$4="M",VLOOKUP($C$6,'2012Jmale'!$A$14:$DW$134,MATCH($C$6+'2012Jmale'!CO6,'2012Jmale'!$G$6:$IM$6),FALSE),VLOOKUP($C$6,'2012Jfemale'!$A$14:$DW$134,MATCH($C$6+'2012Jfemale'!CO6,'2012Jfemale'!$G$6:$IM$6),FALSE))) -> 0.8598728578 | CE12: =IF(120-$C$6<CE11,0,IF($F$4="M",VLOOKUP($C$6,'2012Jmale'!$A$14:$DW$134,MATCH($C$6+'2012Jmale'!CP6,'2012Jmale'!$G$6:$IM$6),FALSE),VLOOKUP($C$6,'2012Jfemale'!$A$14:$DW$134,MATCH($C$6+'2012Jfemale'!CP6,'2012Jfemale'!$G$6:$IM$6),FALSE))) -> 0.8472817396 | CF12: =IF(120-$C$6<CF11,0,IF($F$4="M",VLOOKUP($C$6,'2012Jmale'!$A$14:$DW$134,MATCH($C$6+'2012Jmale'!CQ6,'2012Jmale'!$G$6:$IM$6),FALSE),VLOOKUP($C$6,'2012Jfemale'!$A$14:$DW$134,MATCH($C$6+'2012Jfemale'!CQ6,'2012Jfemale'!$G$6:$IM$6),FALSE))) -> 0.8335354406 | CG12: =IF(120-$C$6<CG11,0,IF($F$4="M",VLOOKUP($C$6,'2012Jmale'!$A$14:$DW$134,MATCH($C$6+'2012Jmale'!CR6,'2012Jmale'!$G$6:$IM$6),FALSE),VLOOKUP($C$6,'2012Jfemale'!$A$14:$DW$134,MATCH($C$6+'2012Jfemale'!CR6,'2012Jfemale'!$G$6:$IM$6),FALSE))) -> 0.817244824 | CH12: =IF(120-$C$6<CH11,0,IF($F$4="M",VLOOKUP($C$6,'2012Jmale'!$A$14:$DW$134,MATCH($C$6+'2012Jmale'!CS6,'2012Jmale'!$G$6:$IM$6),FALSE),VLOOKUP($C$6,'2012Jfemale'!$A$14:$DW$134,MATCH($C$6+'2012Jfemale'!CS6,'2012Jfemale'!$G$6:$IM$6),FALSE))) -> 0.7979276081 | CI12: =IF(120-$C$6<CI11,0,IF($F$4="M",VLOOKUP($C$6,'2012Jmale'!$A$14:$DW$134,MATCH($C$6+'2012Jmale'!CT6,'2012Jmale'!$G$6:$IM$6),FALSE),VLOOKUP($C$6,'2012Jfemale'!$A$14:$DW$134,MATCH($C$6+'2012Jfemale'!CT6,'2012Jfemale'!$G$6:$IM$6),FALSE))) -> 0.7750007541 | CJ12: =IF(120-$C$6<CJ11,0,IF($F$4="M",VLOOKUP($C$6,'2012Jmale'!$A$14:$DW$134,MATCH($C$6+'2012Jmale'!CU6,'2012Jmale'!$G$6:$IM$6),FALSE),VLOOKUP($C$6,'2012Jfemale'!$A$14:$DW$134,MATCH($C$6+'2012Jfemale'!CU6,'2012Jfemale'!$G$6:$IM$6),FALSE))) -> 0.7478121776 | CK12: =IF(120-$C$6<CK11,0,IF($F$4="M",VLOOKUP($C$6,'2012Jmale'!$A$14:$DW$134,MATCH($C$6+'2012Jmale'!CV6,'2012Jmale'!$G$6:$IM$6),FALSE),VLOOKUP($C$6,'2012Jfemale'!$A$14:$DW$134,MATCH($C$6+'2012Jfemale'!CV6,'2012Jfemale'!$G$6:$IM$6),FALSE))) -> 0.718391751 | CL12: =IF(120-$C$6<CL11,0,IF($F$4="M",VLOOKUP($C$6,'2012Jmale'!$A$14:$DW$134,MATCH($C$6+'2012Jmale'!CW6,'2012Jmale'!$G$6:$IM$6),FALSE),VLOOKUP($C$6,'2012Jfemale'!$A$14:$DW$134,MATCH($C$6+'2012Jfemale'!CW6,'2012Jfemale'!$G$6:$IM$6),FALSE))) -> 0.6837983146 | CM12: =IF(120-$C$6<CM11,0,IF($F$4="M",VLOOKUP($C$6,'2012Jmale'!$A$14:$DW$134,MATCH($C$6+'2012Jmale'!CX6,'2012Jmale'!$G$6:$IM$6),FALSE),VLOOKUP($C$6,'2012Jfemale'!$A$14:$DW$134,MATCH($C$6+'2012Jfemale'!CX6,'2012Jfemale'!$G$6:$IM$6),FALSE))) -> 0.6435472106 | CN12: =IF(120-$C$6<CN11,0,IF($F$4="M",VLOOKUP($C$6,'2012Jmale'!$A$14:$DW$134,MATCH($C$6+'2012Jmale'!CY6,'2012Jmale'!$G$6:$IM$6),FALSE),VLOOKUP($C$6,'2012Jfemale'!$A$14:$DW$134,MATCH($C$6+'2012Jfemale'!CY6,'2012Jfemale'!$G$6:$IM$6),FALSE))) -> 0.6014418472 | CO12: =IF(120-$C$6<CO11,0,IF($F$4="M",VLOOKUP($C$6,'2012Jmale'!$A$14:$DW$134,MATCH($C$6+'2012Jmale'!CZ6,'2012Jmale'!$G$6:$IM$6),FALSE),VLOOKUP($C$6,'2012Jfemale'!$A$14:$DW$134,MATCH($C$6+'2012Jfemale'!CZ6,'2012Jfemale'!$G$6:$IM$6),FALSE))) -> 0.5537318713 | CP12: =IF(120-$C$6<CP11,0,IF($F$4="M",VLOOKUP($C$6,'2012Jmale'!$A$14:$DW$134,MATCH($C$6+'2012Jmale'!DA6,'2012Jmale'!$G$6:$IM$6),FALSE),VLOOKUP($C$6,'2012Jfemale'!$A$14:$DW$134,MATCH($C$6+'2012Jfemale'!DA6,'2012Jfemale'!$G$6:$IM$6),FALSE))) -> 0.5006001908 | CQ12: =IF(120-$C$6<CQ11,0,IF($F$4="M",VLOOKUP($C$6,'2012Jmale'!$A$14:$DW$134,MATCH($C$6+'2012Jmale'!DB6,'2012Jmale'!$G$6:$IM$6),FALSE),VLOOKUP($C$6,'2012Jfemale'!$A$14:$DW$134,MATCH($C$6+'2012Jfemale'!DB6,'2012Jfemale'!$G$6:$IM$6),FALSE))) -> 0.4477743556 | CR12: =IF(120-$C$6<CR11,0,IF($F$4="M",VLOOKUP($C$6,'2012Jmale'!$A$14:$DW$134,MATCH($C$6+'2012Jmale'!DC6,'2012Jmale'!$G$6:$IM$6),FALSE),VLOOKUP($C$6,'2012Jfemale'!$A$14:$DW$134,MATCH($C$6+'2012Jfemale'!DC6,'2012Jfemale'!$G$6:$IM$6),FALSE))) -> 0.3908604439 | CS12: =IF(120-$C$6<CS11,0,IF($F$4="M",VLOOKUP($C$6,'2012Jmale'!$A$14:$DW$134,MATCH($C$6+'2012Jmale'!DD6,'2012Jmale'!$G$6:$IM$6),FALSE),VLOOKUP($C$6,'2012Jfemale'!$A$14:$DW$134,MATCH($C$6+'2012Jfemale'!DD6,'2012Jfemale'!$G$6:$IM$6),FALSE))) -> 0.3381576034 | CT12: =IF(120-$C$6<CT11,0,IF($F$4="M",VLOOKUP($C$6,'2012Jmale'!$A$14:$DW$134,MATCH($C$6+'2012Jmale'!DE6,'2012Jmale'!$G$6:$IM$6),FALSE),VLOOKUP($C$6,'2012Jfemale'!$A$14:$DW$134,MATCH($C$6+'2012Jfemale'!DE6,'2012Jfemale'!$G$6:$IM$6),FALSE))) -> 0.2837338424 | CU12: =IF(120-$C$6<CU11,0,IF($F$4="M",VLOOKUP($C$6,'2012Jmale'!$A$14:$DW$134,MATCH($C$6+'2012Jmale'!DF6,'2012Jmale'!$G$6:$IM$6),FALSE),VLOOKUP($C$6,'2012Jfemale'!$A$14:$DW$134,MATCH($C$6+'2012Jfemale'!DF6,'2012Jfemale'!$G$6:$IM$6),FALSE))) -> 0.2344416131 | CV12: =IF(120-$C$6<CV11,0,IF($F$4="M",VLOOKUP($C$6,'2012Jmale'!$A$14:$DW$134,MATCH($C$6+'2012Jmale'!DG6,'2012Jmale'!$G$6:$IM$6),FALSE),VLOOKUP($C$6,'2012Jfemale'!$A$14:$DW$134,MATCH($C$6+'2012Jfemale'!DG6,'2012Jfemale'!$G$6:$IM$6),FALSE))) -> 0.186196108 | CW12: =IF(120-$C$6<CW11,0,IF($F$4="M",VLOOKUP($C$6,'2012Jmale'!$A$14:$DW$134,MATCH($C$6+'2012Jmale'!DH6,'2012Jmale'!$G$6:$IM$6),FALSE),VLOOKUP($C$6,'2012Jfemale'!$A$14:$DW$134,MATCH($C$6+'2012Jfemale'!DH6,'2012Jfemale'!$G$6:$IM$6),FALSE))) -> 0.1451746849 | CX12: =IF(120-$C$6<CX11,0,IF($F$4="M",VLOOKUP($C$6,'2012Jmale'!$A$14:$DW$134,MATCH($C$6+'2012Jmale'!DI6,'2012Jmale'!$G$6:$IM$6),FALSE),VLOOKUP($C$6,'2012Jfemale'!$A$14:$DW$134,MATCH($C$6+'2012Jfemale'!DI6,'2012Jfemale'!$G$6:$IM$6),FALSE))) -> 0.1107106502 | CY12: =IF(120-$C$6<CY11,0,IF($F$4="M",VLOOKUP($C$6,'2012Jmale'!$A$14:$DW$134,MATCH($C$6+'2012Jmale'!DJ6,'2012Jmale'!$G$6:$IM$6),FALSE),VLOOKUP($C$6,'2012Jfemale'!$A$14:$DW$134,MATCH($C$6+'2012Jfemale'!DJ6,'2012Jfemale'!$G$6:$IM$6),FALSE))) -> 0.07950397497 | CZ12: =IF(120-$C$6<CZ11,0,IF($F$4="M",VLOOKUP($C$6,'2012Jmale'!$A$14:$DW$134,MATCH($C$6+'2012Jmale'!DK6,'2012Jmale'!$G$6:$IM$6),FALSE),VLOOKUP($C$6,'2012Jfemale'!$A$14:$DW$134,MATCH($C$6+'2012Jfemale'!DK6,'2012Jfemale'!$G$6:$IM$6),FALSE))) -> 0.05552859727 | DA12: =IF(120-$C$6<DA11,0,IF($F$4="M",VLOOKUP($C$6,'2012Jmale'!$A$14:$DW$134,MATCH($C$6+'2012Jmale'!DL6,'2012Jmale'!$G$6:$IM$6),FALSE),VLOOKUP($C$6,'2012Jfemale'!$A$14:$DW$134,MATCH($C$6+'2012Jfemale'!DL6,'2012Jfemale'!$G$6:$IM$6),FALSE))) -> 0.03574892222 | DB12: =IF(120-$C$6<DB11,0,IF($F$4="M",VLOOKUP($C$6,'2012Jmale'!$A$14:$DW$134,MATCH($C$6+'2012Jmale'!DM6,'2012Jmale'!$G$6:$IM$6),FALSE),VLOOKUP($C$6,'2012Jfemale'!$A$14:$DW$134,MATCH($C$6+'2012Jfemale'!DM6,'2012Jfemale'!$G$6:$IM$6),FALSE))) -> 0.02216433178 | DC12: =IF(120-$C$6<DC11,0,IF($F$4="M",VLOOKUP($C$6,'2012Jmale'!$A$14:$DW$134,MATCH($C$6+'2012Jmale'!DN6,'2012Jmale'!$G$6:$IM$6),FALSE),VLOOKUP($C$6,'2012Jfemale'!$A$14:$DW$134,MATCH($C$6+'2012Jfemale'!DN6,'2012Jfemale'!$G$6:$IM$6),FALSE))) -> 0.01329859907 | DD12: =IF(120-$C$6<DD11,0,IF($F$4="M",VLOOKUP($C$6,'2012Jmale'!$A$14:$DW$134,MATCH($C$6+'2012Jmale'!DO6,'2012Jmale'!$G$6:$IM$6),FALSE),VLOOKUP($C$6,'2012Jfemale'!$A$14:$DW$134,MATCH($C$6+'2012Jfemale'!DO6,'2012Jfemale'!$G$6:$IM$6),FALSE))) -> 0.00797915944 | DE12: =IF(120-$C$6<DE11,0,IF($F$4="M",VLOOKUP($C$6,'2012Jmale'!$A$14:$DW$134,MATCH($C$6+'2012Jmale'!DP6,'2012Jmale'!$G$6:$IM$6),FALSE),VLOOKUP($C$6,'2012Jfemale'!$A$14:$DW$134,MATCH($C$6+'2012Jfemale'!DP6,'2012Jfemale'!$G$6:$IM$6),FALSE))) -> 0.004787495664 | DF12: =IF(120-$C$6<DF11,0,IF($F$4="M",VLOOKUP($C$6,'2012Jmale'!$A$14:$DW$134,MATCH($C$6+'2012Jmale'!DQ6,'2012Jmale'!$G$6:$IM$6),FALSE),VLOOKUP($C$6,'2012Jfemale'!$A$14:$DW$134,MATCH($C$6+'2012Jfemale'!DQ6,'2012Jfemale'!$G$6:$IM$6),FALSE))) -> 0.002872497398 | DG12: =IF(120-$C$6<DG11,0,IF($F$4="M",VLOOKUP($C$6,'2012Jmale'!$A$14:$DW$134,MATCH($C$6+'2012Jmale'!DR6,'2012Jmale'!$G$6:$IM$6),FALSE),VLOOKUP($C$6,'2012Jfemale'!$A$14:$DW$134,MATCH($C$6+'2012Jfemale'!DR6,'2012Jfemale'!$G$6:$IM$6),FALSE))) -> 0.001723498439 | DH12: =IF(120-$C$6<DH11,0,IF($F$4="M",VLOOKUP($C$6,'2012Jmale'!$A$14:$DW$134,MATCH($C$6+'2012Jmale'!DS6,'2012Jmale'!$G$6:$IM$6),FALSE),VLOOKUP($C$6,'2012Jfemale'!$A$14:$DW$134,MATCH($C$6+'2012Jfemale'!DS6,'2012Jfemale'!$G$6:$IM$6),FALSE))) -> 0.001034099063 | DI12: =IF(120-$C$6<DI11,0,IF($F$4="M",VLOOKUP($C$6,'2012Jmale'!$A$14:$DW$134,MATCH($C$6+'2012Jmale'!DT6,'2012Jmale'!$G$6:$IM$6),FALSE),VLOOKUP($C$6,'2012Jfemale'!$A$14:$DW$134,MATCH($C$6+'2012Jfemale'!DT6,'2012Jfemale'!$G$6:$IM$6),FALSE))) -> 0.0006204594381 | DJ12: =IF(120-$C$6<DJ11,0,IF($F$4="M",VLOOKUP($C$6,'2012Jmale'!$A$14:$DW$134,MATCH($C$6+'2012Jmale'!DU6,'2012Jmale'!$G$6:$IM$6),FALSE),VLOOKUP($C$6,'2012Jfemale'!$A$14:$DW$134,MATCH($C$6+'2012Jfemale'!DU6,'2012Jfemale'!$G$6:$IM$6),FALSE))) -> 0.0003722756628 | DK12: =IF(120-$C$6<DK11,0,IF($F$4="M",VLOOKUP($C$6,'2012Jmale'!$A$14:$DW$134,MATCH($C$6+'2012Jmale'!DV6,'2012Jmale'!$G$6:$IM$6),FALSE),VLOOKUP($C$6,'2012Jfemale'!$A$14:$DW$134,MATCH($C$6+'2012Jfemale'!DV6,'2012Jfemale'!$G$6:$IM$6),FALSE))) -> 0.0002233653977 | DL12: =IF(120-$C$6<DL11,0,IF($F$4="M",VLOOKUP($C$6,'2012Jmale'!$A$14:$DW$134,MATCH($C$6+'2012Jmale'!DW6,'2012Jmale'!$G$6:$IM$6),FALSE),VLOOKUP($C$6,'2012Jfemale'!$A$14:$DW$134,MATCH($C$6+'2012Jfemale'!DW6,'2012Jfemale'!$G$6:$IM$6),FALSE))) -> 0.0001340192386 | DM12: =IF(120-$C$6<DM11,0,IF($F$4="M",VLOOKUP($C$6,'2012Jmale'!$A$14:$DW$134,MATCH($C$6+'2012Jmale'!DX6,'2012Jmale'!$G$6:$IM$6),FALSE),VLOOKUP($C$6,'2012Jfemale'!$A$14:$DW$134,MATCH($C$6+'2012Jfemale'!DX6,'2012Jfemale'!$G$6:$IM$6),FALSE))) -> 8.041154317e-05 | DN12: =IF(120-$C$6<DN11,0,IF($F$4="M",VLOOKUP($C$6,'2012Jmale'!$A$14:$DW$134,MATCH($C$6+'2012Jmale'!DY6,'2012Jmale'!$G$6:$IM$6),FALSE),VLOOKUP($C$6,'2012Jfemale'!$A$14:$DW$134,MATCH($C$6+'2012Jfemale'!DY6,'2012Jfemale'!$G$6:$IM$6),FALSE))) -> 4.82469259e-05 | DO12: =IF(120-$C$6<DO11,0,IF($F$4="M",VLOOKUP($C$6,'2012Jmale'!$A$14:$DW$134,MATCH($C$6+'2012Jmale'!DZ6,'2012Jmale'!$G$6:$IM$6),FALSE),VLOOKUP($C$6,'2012Jfemale'!$A$14:$DW$134,MATCH($C$6+'2012Jfemale'!DZ6,'2012Jfemale'!$G$6:$IM$6),FALSE))) -> 2.894815554e-05 | DP12: =IF(120-$C$6<DP11,0,IF($F$4="M",VLOOKUP($C$6,'2012Jmale'!$A$14:$DW$134,MATCH($C$6+'2012Jmale'!EA6,'2012Jmale'!$G$6:$IM$6),FALSE),VLOOKUP($C$6,'2012Jfemale'!$A$14:$DW$134,MATCH($C$6+'2012Jfemale'!EA6,'2012Jfemale'!$G$6:$IM$6),FALSE))) -> 1.736889333e-05 | DQ12: =IF(120-$C$6<DQ11,0,IF($F$4="M",VLOOKUP($C$6,'2012Jmale'!$A$14:$DW$134,MATCH($C$6+'2012Jmale'!EB6,'2012Jmale'!$G$6:$IM$6),FALSE),VLOOKUP($C$6,'2012Jfemale'!$A$14:$DW$134,MATCH($C$6+'2012Jfemale'!EB6,'2012Jfemale'!$G$6:$IM$6),FALSE))) -> 0
A13: kpy | B13: =IF(120-$D$6<B11,0,IF($G$4="M",VLOOKUP($D$6,'2012Jmale'!$A$14:$DW$134,MATCH($D$6+'2012Jmale'!M6,'2012Jmale'!$G$6:$IM$6),FALSE),VLOOKUP($D$6,'2012Jfemale'!$A$14:$DW$134,MATCH($D$6+'2012Jfemale'!M6,'2012Jfemale'!$G$6:$IM$6),FALSE))) -> 0.999599 | C13: =IF(120-$D$6<C11,0,IF($G$4="M",VLOOKUP($D$6,'2012Jmale'!$A$14:$DW$134,MATCH($D$6+'2012Jmale'!N6,'2012Jmale'!$G$6:$IM$6),FALSE),VLOOKUP($D$6,'2012Jfemale'!$A$14:$DW$134,MATCH($D$6+'2012Jfemale'!N6,'2012Jfemale'!$G$6:$IM$6),FALSE))) -> 0.9993271091 | D13: =IF(120-$D$6<D11,0,IF($G$4="M",VLOOKUP($D$6,'2012Jmale'!$A$14:$DW$134,MATCH($D$6+'2012Jmale'!O6,'2012Jmale'!$G$6:$IM$6),FALSE),VLOOKUP($D$6,'2012Jfemale'!$A$14:$DW$134,MATCH($D$6+'2012Jfemale'!O6,'2012Jfemale'!$G$6:$IM$6),FALSE))) -> 0.9991032598 | E13: =IF(120-$D$6<E11,0,IF($G$4="M",VLOOKUP($D$6,'2012Jmale'!$A$14:$DW$134,MATCH($D$6+'2012Jmale'!P6,'2012Jmale'!$G$6:$IM$6),FALSE),VLOOKUP($D$6,'2012Jfemale'!$A$14:$DW$134,MATCH($D$6+'2012Jfemale'!P6,'2012Jfemale'!$G$6:$IM$6),FALSE))) -> 0.9989344113 | F13: =IF(120-$D$6<F11,0,IF($G$4="M",VLOOKUP($D$6,'2012Jmale'!$A$14:$DW$134,MATCH($D$6+'2012Jmale'!Q6,'2012Jmale'!$G$6:$IM$6),FALSE),VLOOKUP($D$6,'2012Jfemale'!$A$14:$DW$134,MATCH($D$6+'2012Jfemale'!Q6,'2012Jfemale'!$G$6:$IM$6),FALSE))) -> 0.9987735829 | G13: =IF(120-$D$6<G11,0,IF($G$4="M",VLOOKUP($D$6,'2012Jmale'!$A$14:$DW$134,MATCH($D$6+'2012Jmale'!R6,'2012Jmale'!$G$6:$IM$6),FALSE),VLOOKUP($D$6,'2012Jfemale'!$A$14:$DW$134,MATCH($D$6+'2012Jfemale'!R6,'2012Jfemale'!$G$6:$IM$6),FALSE))) -> 0.9986167755 | H13: =IF(120-$D$6<H11,0,IF($G$4="M",VLOOKUP($D$6,'2012Jmale'!$A$14:$DW$134,MATCH($D$6+'2012Jmale'!S6,'2012Jmale'!$G$6:$IM$6),FALSE),VLOOKUP($D$6,'2012Jfemale'!$A$14:$DW$134,MATCH($D$6+'2012Jfemale'!S6,'2012Jfemale'!$G$6:$IM$6),FALSE))) -> 0.9984669829 | I13: =IF(120-$D$6<I11,0,IF($G$4="M",VLOOKUP($D$6,'2012Jmale'!$A$14:$DW$134,MATCH($D$6+'2012Jmale'!T6,'2012Jmale'!$G$6:$IM$6),FALSE),VLOOKUP($D$6,'2012Jfemale'!$A$14:$DW$134,MATCH($D$6+'2012Jfemale'!T6,'2012Jfemale'!$G$6:$IM$6),FALSE))) -> 0.9983341868 | J13: =IF(120-$D$6<J11,0,IF($G$4="M",VLOOKUP($D$6,'2012Jmale'!$A$14:$DW$134,MATCH($D$6+'2012Jmale'!U6,'2012Jmale'!$G$6:$IM$6),FALSE),VLOOKUP($D$6,'2012Jfemale'!$A$14:$DW$134,MATCH($D$6+'2012Jfemale'!U6,'2012Jfemale'!$G$6:$IM$6),FALSE))) -> 0.9982153851 | K13: =IF(120-$D$6<K11,0,IF($G$4="M",VLOOKUP($D$6,'2012Jmale'!$A$14:$DW$134,MATCH($D$6+'2012Jmale'!V6,'2012Jmale'!$G$6:$IM$6),FALSE),VLOOKUP($D$6,'2012Jfemale'!$A$14:$DW$134,MATCH($D$6+'2012Jfemale'!V6,'2012Jfemale'!$G$6:$IM$6),FALSE))) -> 0.9981125689 | L13: =IF(120-$D$6<L11,0,IF($G$4="M",VLOOKUP($D$6,'2012Jmale'!$A$14:$DW$134,MATCH($D$6+'2012Jmale'!W6,'2012Jmale'!$G$6:$IM$6),FALSE),VLOOKUP($D$6,'2012Jfemale'!$A$14:$DW$134,MATCH($D$6+'2012Jfemale'!W6,'2012Jfemale'!$G$6:$IM$6),FALSE))) -> 0.9980127576 | M13: =IF(120-$D$6<M11,0,IF($G$4="M",VLOOKUP($D$6,'2012Jmale'!$A$14:$DW$134,MATCH($D$6+'2012Jmale'!X6,'2012Jmale'!$G$6:$IM$6),FALSE),VLOOKUP($D$6,'2012Jfemale'!$A$14:$DW$134,MATCH($D$6+'2012Jfemale'!X6,'2012Jfemale'!$G$6:$IM$6),FALSE))) -> 0.9978949921 | N13: =IF(120-$D$6<N11,0,IF($G$4="M",VLOOKUP($D$6,'2012Jmale'!$A$14:$DW$134,MATCH($D$6+'2012Jmale'!Y6,'2012Jmale'!$G$6:$IM$6),FALSE),VLOOKUP($D$6,'2012Jfemale'!$A$14:$DW$134,MATCH($D$6+'2012Jfemale'!Y6,'2012Jfemale'!$G$6:$IM$6),FALSE))) -> 0.9977453079 | O13: =IF(120-$D$6<O11,0,IF($G$4="M",VLOOKUP($D$6,'2012Jmale'!$A$14:$DW$134,MATCH($D$6+'2012Jmale'!Z6,'2012Jmale'!$G$6:$IM$6),FALSE),VLOOKUP($D$6,'2012Jfemale'!$A$14:$DW$134,MATCH($D$6+'2012Jfemale'!Z6,'2012Jfemale'!$G$6:$IM$6),FALSE))) -> 0.9975587295 | P13: =IF(120-$D$6<P11,0,IF($G$4="M",VLOOKUP($D$6,'2012Jmale'!$A$14:$DW$134,MATCH($D$6+'2012Jmale'!AA6,'2012Jmale'!$G$6:$IM$6),FALSE),VLOOKUP($D$6,'2012Jfemale'!$A$14:$DW$134,MATCH($D$6+'2012Jfemale'!AA6,'2012Jfemale'!$G$6:$IM$6),FALSE))) -> 0.997338269 | Q13: =IF(120-$D$6<Q11,0,IF($G$4="M",VLOOKUP($D$6,'2012Jmale'!$A$14:$DW$134,MATCH($D$6+'2012Jmale'!AB6,'2012Jmale'!$G$6:$IM$6),FALSE),VLOOKUP($D$6,'2012Jfemale'!$A$14:$DW$134,MATCH($D$6+'2012Jfemale'!AB6,'2012Jfemale'!$G$6:$IM$6),FALSE))) -> 0.9970869398 | R13: =IF(120-$D$6<R11,0,IF($G$4="M",VLOOKUP($D$6,'2012Jmale'!$A$14:$DW$134,MATCH($D$6+'2012Jmale'!AC6,'2012Jmale'!$G$6:$IM$6),FALSE),VLOOKUP($D$6,'2012Jfemale'!$A$14:$DW$134,MATCH($D$6+'2012Jfemale'!AC6,'2012Jfemale'!$G$6:$IM$6),FALSE))) -> 0.9968087525 | S13: =IF(120-$D$6<S11,0,IF($G$4="M",VLOOKUP($D$6,'2012Jmale'!$A$14:$DW$134,MATCH($D$6+'2012Jmale'!AD6,'2012Jmale'!$G$6:$IM$6),FALSE),VLOOKUP($D$6,'2012Jfemale'!$A$14:$DW$134,MATCH($D$6+'2012Jfemale'!AD6,'2012Jfemale'!$G$6:$IM$6),FALSE))) -> 0.9965067195 | T13: =IF(120-$D$6<T11,0,IF($G$4="M",VLOOKUP($D$6,'2012Jmale'!$A$14:$DW$134,MATCH($D$6+'2012Jmale'!AE6,'2012Jmale'!$G$6:$IM$6),FALSE),VLOOKUP($D$6,'2012Jfemale'!$A$14:$DW$134,MATCH($D$6+'2012Jfemale'!AE6,'2012Jfemale'!$G$6:$IM$6),FALSE))) -> 0.9961848478 | U13: =IF(120-$D$6<U11,0,IF($G$4="M",VLOOKUP($D$6,'2012Jmale'!$A$14:$DW$134,MATCH($D$6+'2012Jmale'!AF6,'2012Jmale'!$G$6:$IM$6),FALSE),VLOOKUP($D$6,'2012Jfemale'!$A$14:$DW$134,MATCH($D$6+'2012Jfemale'!AF6,'2012Jfemale'!$G$6:$IM$6),FALSE))) -> 0.9958441526 | V13: =IF(120-$D$6<V11,0,IF($G$4="M",VLOOKUP($D$6,'2012Jmale'!$A$14:$DW$134,MATCH($D$6+'2012Jmale'!AG6,'2012Jmale'!$G$6:$IM$6),FALSE),VLOOKUP($D$6,'2012Jfemale'!$A$14:$DW$134,MATCH($D$6+'2012Jfemale'!AG6,'2012Jfemale'!$G$6:$IM$6),FALSE))) -> 0.995483657 | W13: =IF(120-$D$6<W11,0,IF($G$4="M",VLOOKUP($D$6,'2012Jmale'!$A$14:$DW$134,MATCH($D$6+'2012Jmale'!AH6,'2012Jmale'!$G$6:$IM$6),FALSE),VLOOKUP($D$6,'2012Jfemale'!$A$14:$DW$134,MATCH($D$6+'2012Jfemale'!AH6,'2012Jfemale'!$G$6:$IM$6),FALSE))) -> 0.9951023868 | X13: =IF(120-$D$6<X11,0,IF($G$4="M",VLOOKUP($D$6,'2012Jmale'!$A$14:$DW$134,MATCH($D$6+'2012Jmale'!AI6,'2012Jmale'!$G$6:$IM$6),FALSE),VLOOKUP($D$6,'2012Jfemale'!$A$14:$DW$134,MATCH($D$6+'2012Jfemale'!AI6,'2012Jfemale'!$G$6:$IM$6),FALSE))) -> 0.9946933997 | Y13: =IF(120-$D$6<Y11,0,IF($G$4="M",VLOOKUP($D$6,'2012Jmale'!$A$14:$DW$134,MATCH($D$6+'2012Jmale'!AJ6,'2012Jmale'!$G$6:$IM$6),FALSE),VLOOKUP($D$6,'2012Jfemale'!$A$14:$DW$134,MATCH($D$6+'2012Jfemale'!AJ6,'2012Jfemale'!$G$6:$IM$6),FALSE))) -> 0.9942557346 | Z13: =IF(120-$D$6<Z11,0,IF($G$4="M",VLOOKUP($D$6,'2012Jmale'!$A$14:$DW$134,MATCH($D$6+'2012Jmale'!AK6,'2012Jmale'!$G$6:$IM$6),FALSE),VLOOKUP($D$6,'2012Jfemale'!$A$14:$DW$134,MATCH($D$6+'2012Jfemale'!AK6,'2012Jfemale'!$G$6:$IM$6),FALSE))) -> 0.9937854516 | AA13: =IF(120-$D$6<AA11,0,IF($G$4="M",VLOOKUP($D$6,'2012Jmale'!$A$14:$DW$134,MATCH($D$6+'2012Jmale'!AL6,'2012Jmale'!$G$6:$IM$6),FALSE),VLOOKUP($D$6,'2012Jfemale'!$A$14:$DW$134,MATCH($D$6+'2012Jfemale'!AL6,'2012Jfemale'!$G$6:$IM$6),FALSE))) -> 0.9932796148 | AB13: =IF(120-$D$6<AB11,0,IF($G$4="M",VLOOKUP($D$6,'2012Jmale'!$A$14:$DW$134,MATCH($D$6+'2012Jmale'!AM6,'2012Jmale'!$G$6:$IM$6),FALSE),VLOOKUP($D$6,'2012Jfemale'!$A$14:$DW$134,MATCH($D$6+'2012Jfemale'!AM6,'2012Jfemale'!$G$6:$IM$6),FALSE))) -> 0.9927531766 | AC13: =IF(120-$D$6<AC11,0,IF($G$4="M",VLOOKUP($D$6,'2012Jmale'!$A$14:$DW$134,MATCH($D$6+'2012Jmale'!AN6,'2012Jmale'!$G$6:$IM$6),FALSE),VLOOKUP($D$6,'2012Jfemale'!$A$14:$DW$134,MATCH($D$6+'2012Jfemale'!AN6,'2012Jfemale'!$G$6:$IM$6),FALSE))) -> 0.9922160972 | AD13: =IF(120-$D$6<AD11,0,IF($G$4="M",VLOOKUP($D$6,'2012Jmale'!$A$14:$DW$134,MATCH($D$6+'2012Jmale'!AO6,'2012Jmale'!$G$6:$IM$6),FALSE),VLOOKUP($D$6,'2012Jfemale'!$A$14:$DW$134,MATCH($D$6+'2012Jfemale'!AO6,'2012Jfemale'!$G$6:$IM$6),FALSE))) -> 0.9916713705 | AE13: =IF(120-$D$6<AE11,0,IF($G$4="M",VLOOKUP($D$6,'2012Jmale'!$A$14:$DW$134,MATCH($D$6+'2012Jmale'!AP6,'2012Jmale'!$G$6:$IM$6),FALSE),VLOOKUP($D$6,'2012Jfemale'!$A$14:$DW$134,MATCH($D$6+'2012Jfemale'!AP6,'2012Jfemale'!$G$6:$IM$6),FALSE))) -> 0.9911219846 | AF13: =IF(120-$D$6<AF11,0,IF($G$4="M",VLOOKUP($D$6,'2012Jmale'!$A$14:$DW$134,MATCH($D$6+'2012Jmale'!AQ6,'2012Jmale'!$G$6:$IM$6),FALSE),VLOOKUP($D$6,'2012Jfemale'!$A$14:$DW$134,MATCH($D$6+'2012Jfemale'!AQ6,'2012Jfemale'!$G$6:$IM$6),FALSE))) -> 0.9905709208 | AG13: =IF(120-$D$6<AG11,0,IF($G$4="M",VLOOKUP($D$6,'2012Jmale'!$A$14:$DW$134,MATCH($D$6+'2012Jmale'!AR6,'2012Jmale'!$G$6:$IM$6),FALSE),VLOOKUP($D$6,'2012Jfemale'!$A$14:$DW$134,MATCH($D$6+'2012Jfemale'!AR6,'2012Jfemale'!$G$6:$IM$6),FALSE))) -> 0.9900241256 | AH13: =IF(120-$D$6<AH11,0,IF($G$4="M",VLOOKUP($D$6,'2012Jmale'!$A$14:$DW$134,MATCH($D$6+'2012Jmale'!AS6,'2012Jmale'!$G$6:$IM$6),FALSE),VLOOKUP($D$6,'2012Jfemale'!$A$14:$DW$134,MATCH($D$6+'2012Jfemale'!AS6,'2012Jfemale'!$G$6:$IM$6),FALSE))) -> 0.9894815924 | AI13: =IF(120-$D$6<AI11,0,IF($G$4="M",VLOOKUP($D$6,'2012Jmale'!$A$14:$DW$134,MATCH($D$6+'2012Jmale'!AT6,'2012Jmale'!$G$6:$IM$6),FALSE),VLOOKUP($D$6,'2012Jfemale'!$A$14:$DW$134,MATCH($D$6+'2012Jfemale'!AT6,'2012Jfemale'!$G$6:$IM$6),FALSE))) -> 0.9889443039 | AJ13: =IF(120-$D$6<AJ11,0,IF($G$4="M",VLOOKUP($D$6,'2012Jmale'!$A$14:$DW$134,MATCH($D$6+'2012Jmale'!AU6,'2012Jmale'!$G$6:$IM$6),FALSE),VLOOKUP($D$6,'2012Jfemale'!$A$14:$DW$134,MATCH($D$6+'2012Jfemale'!AU6,'2012Jfemale'!$G$6:$IM$6),FALSE))) -> 0.9884132408 | AK13: =IF(120-$D$6<AK11,0,IF($G$4="M",VLOOKUP($D$6,'2012Jmale'!$A$14:$DW$134,MATCH($D$6+'2012Jmale'!AV6,'2012Jmale'!$G$6:$IM$6),FALSE),VLOOKUP($D$6,'2012Jfemale'!$A$14:$DW$134,MATCH($D$6+'2012Jfemale'!AV6,'2012Jfemale'!$G$6:$IM$6),FALSE))) -> 0.9878874049 | AL13: =IF(120-$D$6<AL11,0,IF($G$4="M",VLOOKUP($D$6,'2012Jmale'!$A$14:$DW$134,MATCH($D$6+'2012Jmale'!AW6,'2012Jmale'!$G$6:$IM$6),FALSE),VLOOKUP($D$6,'2012Jfemale'!$A$14:$DW$134,MATCH($D$6+'2012Jfemale'!AW6,'2012Jfemale'!$G$6:$IM$6),FALSE))) -> 0.9873677762 | AM13: =IF(120-$D$6<AM11,0,IF($G$4="M",VLOOKUP($D$6,'2012Jmale'!$A$14:$DW$134,MATCH($D$6+'2012Jmale'!AX6,'2012Jmale'!$G$6:$IM$6),FALSE),VLOOKUP($D$6,'2012Jfemale'!$A$14:$DW$134,MATCH($D$6+'2012Jfemale'!AX6,'2012Jfemale'!$G$6:$IM$6),FALSE))) -> 0.9868533576 | AN13: =IF(120-$D$6<AN11,0,IF($G$4="M",VLOOKUP($D$6,'2012Jmale'!$A$14:$DW$134,MATCH($D$6+'2012Jmale'!AY6,'2012Jmale'!$G$6:$IM$6),FALSE),VLOOKUP($D$6,'2012Jfemale'!$A$14:$DW$134,MATCH($D$6+'2012Jfemale'!AY6,'2012Jfemale'!$G$6:$IM$6),FALSE))) -> 0.9863145356 | AO13: =IF(120-$D$6<AO11,0,IF($G$4="M",VLOOKUP($D$6,'2012Jmale'!$A$14:$DW$134,MATCH($D$6+'2012Jmale'!AZ6,'2012Jmale'!$G$6:$IM$6),FALSE),VLOOKUP($D$6,'2012Jfemale'!$A$14:$DW$134,MATCH($D$6+'2012Jfemale'!AZ6,'2012Jfemale'!$G$6:$IM$6),FALSE))) -> 0.9857424732 | AP13: =IF(120-$D$6<AP11,0,IF($G$4="M",VLOOKUP($D$6,'2012Jmale'!$A$14:$DW$134,MATCH($D$6+'2012Jmale'!BA6,'2012Jmale'!$G$6:$IM$6),FALSE),VLOOKUP($D$6,'2012Jfemale'!$A$14:$DW$134,MATCH($D$6+'2012Jfemale'!BA6,'2012Jfemale'!$G$6:$IM$6),FALSE))) -> 0.9851322986 | AQ13: =IF(120-$D$6<AQ11,0,IF($G$4="M",VLOOKUP($D$6,'2012Jmale'!$A$14:$DW$134,MATCH($D$6+'2012Jmale'!BB6,'2012Jmale'!$G$6:$IM$6),FALSE),VLOOKUP($D$6,'2012Jfemale'!$A$14:$DW$134,MATCH($D$6+'2012Jfemale'!BB6,'2012Jfemale'!$G$6:$IM$6),FALSE))) -> 0.984480141 | AR13: =IF(120-$D$6<AR11,0,IF($G$4="M",VLOOKUP($D$6,'2012Jmale'!$A$14:$DW$134,MATCH($D$6+'2012Jmale'!BC6,'2012Jmale'!$G$6:$IM$6),FALSE),VLOOKUP($D$6,'2012Jfemale'!$A$14:$DW$134,MATCH($D$6+'2012Jfemale'!BC6,'2012Jfemale'!$G$6:$IM$6),FALSE))) -> 0.9837900204 | AS13: =IF(120-$D$6<AS11,0,IF($G$4="M",VLOOKUP($D$6,'2012Jmale'!$A$14:$DW$134,MATCH($D$6+'2012Jmale'!BD6,'2012Jmale'!$G$6:$IM$6),FALSE),VLOOKUP($D$6,'2012Jfemale'!$A$14:$DW$134,MATCH($D$6+'2012Jfemale'!BD6,'2012Jfemale'!$G$6:$IM$6),FALSE))) -> 0.983061032 | AT13: =IF(120-$D$6<AT11,0,IF($G$4="M",VLOOKUP($D$6,'2012Jmale'!$A$14:$DW$134,MATCH($D$6+'2012Jmale'!BE6,'2012Jmale'!$G$6:$IM$6),FALSE),VLOOKUP($D$6,'2012Jfemale'!$A$14:$DW$134,MATCH($D$6+'2012Jfemale'!BE6,'2012Jfemale'!$G$6:$IM$6),FALSE))) -> 0.9822912952 | AU13: =IF(120-$D$6<AU11,0,IF($G$4="M",VLOOKUP($D$6,'2012Jmale'!$A$14:$DW$134,MATCH($D$6+'2012Jmale'!BF6,'2012Jmale'!$G$6:$IM$6),FALSE),VLOOKUP($D$6,'2012Jfemale'!$A$14:$DW$134,MATCH($D$6+'2012Jfemale'!BF6,'2012Jfemale'!$G$6:$IM$6),FALSE))) -> 0.9814681351 | AV13: =IF(120-$D$6<AV11,0,IF($G$4="M",VLOOKUP($D$6,'2012Jmale'!$A$14:$DW$134,MATCH($D$6+'2012Jmale'!BG6,'2012Jmale'!$G$6:$IM$6),FALSE),VLOOKUP($D$6,'2012Jfemale'!$A$14:$DW$134,MATCH($D$6+'2012Jfemale'!BG6,'2012Jfemale'!$G$6:$IM$6),FALSE))) -> 0.9805691103 | AW13: =IF(120-$D$6<AW11,0,IF($G$4="M",VLOOKUP($D$6,'2012Jmale'!$A$14:$DW$134,MATCH($D$6+'2012Jmale'!BH6,'2012Jmale'!$G$6:$IM$6),FALSE),VLOOKUP($D$6,'2012Jfemale'!$A$14:$DW$134,MATCH($D$6+'2012Jfemale'!BH6,'2012Jfemale'!$G$6:$IM$6),FALSE))) -> 0.9795748133 | AX13: =IF(120-$D$6<AX11,0,IF($G$4="M",VLOOKUP($D$6,'2012Jmale'!$A$14:$DW$134,MATCH($D$6+'2012Jmale'!BI6,'2012Jmale'!$G$6:$IM$6),FALSE),VLOOKUP($D$6,'2012Jfemale'!$A$14:$DW$134,MATCH($D$6+'2012Jfemale'!BI6,'2012Jfemale'!$G$6:$IM$6),FALSE))) -> 0.9784688733 | AY13: =IF(120-$D$6<AY11,0,IF($G$4="M",VLOOKUP($D$6,'2012Jmale'!$A$14:$DW$134,MATCH($D$6+'2012Jmale'!BJ6,'2012Jmale'!$G$6:$IM$6),FALSE),VLOOKUP($D$6,'2012Jfemale'!$A$14:$DW$134,MATCH($D$6+'2012Jfemale'!BJ6,'2012Jfemale'!$G$6:$IM$6),FALSE))) -> 0.9772389379 | AZ13: =IF(120-$D$6<AZ11,0,IF($G$4="M",VLOOKUP($D$6,'2012Jmale'!$A$14:$DW$134,MATCH($D$6+'2012Jmale'!BK6,'2012Jmale'!$G$6:$IM$6),FALSE),VLOOKUP($D$6,'2012Jfemale'!$A$14:$DW$134,MATCH($D$6+'2012Jfemale'!BK6,'2012Jfemale'!$G$6:$IM$6),FALSE))) -> 0.9759450736 | BA13: =IF(120-$D$6<BA11,0,IF($G$4="M",VLOOKUP($D$6,'2012Jmale'!$A$14:$DW$134,MATCH($D$6+'2012Jmale'!BL6,'2012Jmale'!$G$6:$IM$6),FALSE),VLOOKUP($D$6,'2012Jfemale'!$A$14:$DW$134,MATCH($D$6+'2012Jfemale'!BL6,'2012Jfemale'!$G$6:$IM$6),FALSE))) -> 0.9745319051 | BB13: =IF(120-$D$6<BB11,0,IF($G$4="M",VLOOKUP($D$6,'2012Jmale'!$A$14:$DW$134,MATCH($D$6+'2012Jmale'!BM6,'2012Jmale'!$G$6:$IM$6),FALSE),VLOOKUP($D$6,'2012Jfemale'!$A$14:$DW$134,MATCH($D$6+'2012Jfemale'!BM6,'2012Jfemale'!$G$6:$IM$6),FALSE))) -> 0.9730866743 | BC13: =IF(120-$D$6<BC11,0,IF($G$4="M",VLOOKUP($D$6,'2012Jmale'!$A$14:$DW$134,MATCH($D$6+'2012Jmale'!BN6,'2012Jmale'!$G$6:$IM$6),FALSE),VLOOKUP($D$6,'2012Jfemale'!$A$14:$DW$134,MATCH($D$6+'2012Jfemale'!BN6,'2012Jfemale'!$G$6:$IM$6),FALSE))) -> 0.9715414126 | BD13: =IF(120-$D$6<BD11,0,IF($G$4="M",VLOOKUP($D$6,'2012Jmale'!$A$14:$DW$134,MATCH($D$6+'2012Jmale'!BO6,'2012Jmale'!$G$6:$IM$6),FALSE),VLOOKUP($D$6,'2012Jfemale'!$A$14:$DW$134,MATCH($D$6+'2012Jfemale'!BO6,'2012Jfemale'!$G$6:$IM$6),FALSE))) -> 0.9699820887 | BE13: =IF(120-$D$6<BE11,0,IF($G$4="M",VLOOKUP($D$6,'2012Jmale'!$A$14:$DW$134,MATCH($D$6+'2012Jmale'!BP6,'2012Jmale'!$G$6:$IM$6),FALSE),VLOOKUP($D$6,'2012Jfemale'!$A$14:$DW$134,MATCH($D$6+'2012Jfemale'!BP6,'2012Jfemale'!$G$6:$IM$6),FALSE))) -> 0.9683156594 | BF13: =IF(120-$D$6<BF11,0,IF($G$4="M",VLOOKUP($D$6,'2012Jmale'!$A$14:$DW$134,MATCH($D$6+'2012Jmale'!BQ6,'2012Jmale'!$G$6:$IM$6),FALSE),VLOOKUP($D$6,'2012Jfemale'!$A$14:$DW$134,MATCH($D$6+'2012Jfemale'!BQ6,'2012Jfemale'!$G$6:$IM$6),FALSE))) -> 0.9666249803 | BG13: =IF(120-$D$6<BG11,0,IF($G$4="M",VLOOKUP($D$6,'2012Jmale'!$A$14:$DW$134,MATCH($D$6+'2012Jmale'!BR6,'2012Jmale'!$G$6:$IM$6),FALSE),VLOOKUP($D$6,'2012Jfemale'!$A$14:$DW$134,MATCH($D$6+'2012Jfemale'!BR6,'2012Jfemale'!$G$6:$IM$6),FALSE))) -> 0.9648019256 | BH13: =IF(120-$D$6<BH11,0,IF($G$4="M",VLOOKUP($D$6,'2012Jmale'!$A$14:$DW$134,MATCH($D$6+'2012Jmale'!BS6,'2012Jmale'!$G$6:$IM$6),FALSE),VLOOKUP($D$6,'2012Jfemale'!$A$14:$DW$134,MATCH($D$6+'2012Jfemale'!BS6,'2012Jfemale'!$G$6:$IM$6),FALSE))) -> 0.9629427523 | BI13: =IF(120-$D$6<BI11,0,IF($G$4="M",VLOOKUP($D$6,'2012Jmale'!$A$14:$DW$134,MATCH($D$6+'2012Jmale'!BT6,'2012Jmale'!$G$6:$IM$6),FALSE),VLOOKUP($D$6,'2012Jfemale'!$A$14:$DW$134,MATCH($D$6+'2012Jfemale'!BT6,'2012Jfemale'!$G$6:$IM$6),FALSE))) -> 0.9609311649 | BJ13: =IF(120-$D$6<BJ11,0,IF($G$4="M",VLOOKUP($D$6,'2012Jmale'!$A$14:$DW$134,MATCH($D$6+'2012Jmale'!BU6,'2012Jmale'!$G$6:$IM$6),FALSE),VLOOKUP($D$6,'2012Jfemale'!$A$14:$DW$134,MATCH($D$6+'2012Jfemale'!BU6,'2012Jfemale'!$G$6:$IM$6),FALSE))) -> 0.9587527339 | BK13: =IF(120-$D$6<BK11,0,IF($G$4="M",VLOOKUP($D$6,'2012Jmale'!$A$14:$DW$134,MATCH($D$6+'2012Jmale'!BV6,'2012Jmale'!$G$6:$IM$6),FALSE),VLOOKUP($D$6,'2012Jfemale'!$A$14:$DW$134,MATCH($D$6+'2012Jfemale'!BV6,'2012Jfemale'!$G$6:$IM$6),FALSE))) -> 0.9563999547 | BL13: =IF(120-$D$6<BL11,0,IF($G$4="M",VLOOKUP($D$6,'2012Jmale'!$A$14:$DW$134,MATCH($D$6+'2012Jmale'!BW6,'2012Jmale'!$G$6:$IM$6),FALSE),VLOOKUP($D$6,'2012Jfemale'!$A$14:$DW$134,MATCH($D$6+'2012Jfemale'!BW6,'2012Jfemale'!$G$6:$IM$6),FALSE))) -> 0.9538674076 | BM13: =IF(120-$D$6<BM11,0,IF($G$4="M",VLOOKUP($D$6,'2012Jmale'!$A$14:$DW$134,MATCH($D$6+'2012Jmale'!BX6,'2012Jmale'!$G$6:$IM$6),FALSE),VLOOKUP($D$6,'2012Jfemale'!$A$14:$DW$134,MATCH($D$6+'2012Jfemale'!BX6,'2012Jfemale'!$G$6:$IM$6),FALSE))) -> 0.9511441162 | BN13: =IF(120-$D$6<BN11,0,IF($G$4="M",VLOOKUP($D$6,'2012Jmale'!$A$14:$DW$134,MATCH($D$6+'2012Jmale'!BY6,'2012Jmale'!$G$6:$IM$6),FALSE),VLOOKUP($D$6,'2012Jfemale'!$A$14:$DW$134,MATCH($D$6+'2012Jfemale'!BY6,'2012Jfemale'!$G$6:$IM$6),FALSE))) -> 0.9482136412 | BO13: =IF(120-$D$6<BO11,0,IF($G$4="M",VLOOKUP($D$6,'2012Jmale'!$A$14:$DW$134,MATCH($D$6+'2012Jmale'!BZ6,'2012Jmale'!$G$6:$IM$6),FALSE),VLOOKUP($D$6,'2012Jfemale'!$A$14:$DW$134,MATCH($D$6+'2012Jfemale'!BZ6,'2012Jfemale'!$G$6:$IM$6),FALSE))) -> 0.9451784093 | BP13: =IF(120-$D$6<BP11,0,IF($G$4="M",VLOOKUP($D$6,'2012Jmale'!$A$14:$DW$134,MATCH($D$6+'2012Jmale'!CA6,'2012Jmale'!$G$6:$IM$6),FALSE),VLOOKUP($D$6,'2012Jfemale'!$A$14:$DW$134,MATCH($D$6+'2012Jfemale'!CA6,'2012Jfemale'!$G$6:$IM$6),FALSE))) -> 0.9420148972 | BQ13: =IF(120-$D$6<BQ11,0,IF($G$4="M",VLOOKUP($D$6,'2012Jmale'!$A$14:$DW$134,MATCH($D$6+'2012Jmale'!CB6,'2012Jmale'!$G$6:$IM$6),FALSE),VLOOKUP($D$6,'2012Jfemale'!$A$14:$DW$134,MATCH($D$6+'2012Jfemale'!CB6,'2012Jfemale'!$G$6:$IM$6),FALSE))) -> 0.9386924106 | BR13: =IF(120-$D$6<BR11,0,IF($G$4="M",VLOOKUP($D$6,'2012Jmale'!$A$14:$DW$134,MATCH($D$6+'2012Jmale'!CC6,'2012Jmale'!$G$6:$IM$6),FALSE),VLOOKUP($D$6,'2012Jfemale'!$A$14:$DW$134,MATCH($D$6+'2012Jfemale'!CC6,'2012Jfemale'!$G$6:$IM$6),FALSE))) -> 0.9351779462 | BS13: =IF(120-$D$6<BS11,0,IF($G$4="M",VLOOKUP($D$6,'2012Jmale'!$A$14:$DW$134,MATCH($D$6+'2012Jmale'!CD6,'2012Jmale'!$G$6:$IM$6),FALSE),VLOOKUP($D$6,'2012Jfemale'!$A$14:$DW$134,MATCH($D$6+'2012Jfemale'!CD6,'2012Jfemale'!$G$6:$IM$6),FALSE))) -> 0.9314344289 | BT13: =IF(120-$D$6<BT11,0,IF($G$4="M",VLOOKUP($D$6,'2012Jmale'!$A$14:$DW$134,MATCH($D$6+'2012Jmale'!CE6,'2012Jmale'!$G$6:$IM$6),FALSE),VLOOKUP($D$6,'2012Jfemale'!$A$14:$DW$134,MATCH($D$6+'2012Jfemale'!CE6,'2012Jfemale'!$G$6:$IM$6),FALSE))) -> 0.9274190151 | BU13: =IF(120-$D$6<BU11,0,IF($G$4="M",VLOOKUP($D$6,'2012Jmale'!$A$14:$DW$134,MATCH($D$6+'2012Jmale'!CF6,'2012Jmale'!$G$6:$IM$6),FALSE),VLOOKUP($D$6,'2012Jfemale'!$A$14:$DW$134,MATCH($D$6+'2012Jfemale'!CF6,'2012Jfemale'!$G$6:$IM$6),FALSE))) -> 0.9230824038 | BV13: =IF(120-$D$6<BV11,0,IF($G$4="M",VLOOKUP($D$6,'2012Jmale'!$A$14:$DW$134,MATCH($D$6+'2012Jmale'!CG6,'2012Jmale'!$G$6:$IM$6),FALSE),VLOOKUP($D$6,'2012Jfemale'!$A$14:$DW$134,MATCH($D$6+'2012Jfemale'!CG6,'2012Jfemale'!$G$6:$IM$6),FALSE))) -> 0.9183719143 | BW13: =IF(120-$D$6<BW11,0,IF($G$4="M",VLOOKUP($D$6,'2012Jmale'!$A$14:$DW$134,MATCH($D$6+'2012Jmale'!CH6,'2012Jmale'!$G$6:$IM$6),FALSE),VLOOKUP($D$6,'2012Jfemale'!$A$14:$DW$134,MATCH($D$6+'2012Jfemale'!CH6,'2012Jfemale'!$G$6:$IM$6),FALSE))) -> 0.9132345418 | BX13: =IF(120-$D$6<BX11,0,IF($G$4="M",VLOOKUP($D$6,'2012Jmale'!$A$14:$DW$134,MATCH($D$6+'2012Jmale'!CI6,'2012Jmale'!$G$6:$IM$6),FALSE),VLOOKUP($D$6,'2012Jfemale'!$A$14:$DW$134,MATCH($D$6+'2012Jfemale'!CI6,'2012Jfemale'!$G$6:$IM$6),FALSE))) -> 0.9076190626 | BY13: =IF(120-$D$6<BY11,0,IF($G$4="M",VLOOKUP($D$6,'2012Jmale'!$A$14:$DW$134,MATCH($D$6+'2012Jmale'!CJ6,'2012Jmale'!$G$6:$IM$6),FALSE),VLOOKUP($D$6,'2012Jfemale'!$A$14:$DW$134,MATCH($D$6+'2012Jfemale'!CJ6,'2012Jfemale'!$G$6:$IM$6),FALSE))) -> 0.9014744815 | BZ13: =IF(120-$D$6<BZ11,0,IF($G$4="M",VLOOKUP($D$6,'2012Jmale'!$A$14:$DW$134,MATCH($D$6+'2012Jmale'!CK6,'2012Jmale'!$G$6:$IM$6),FALSE),VLOOKUP($D$6,'2012Jfemale'!$A$14:$DW$134,MATCH($D$6+'2012Jfemale'!CK6,'2012Jfemale'!$G$6:$IM$6),FALSE))) -> 0.894745876 | CA13: =IF(120-$D$6<CA11,0,IF($G$4="M",VLOOKUP($D$6,'2012Jmale'!$A$14:$DW$134,MATCH($D$6+'2012Jmale'!CL6,'2012Jmale'!$G$6:$IM$6),FALSE),VLOOKUP($D$6,'2012Jfemale'!$A$14:$DW$134,MATCH($D$6+'2012Jfemale'!CL6,'2012Jfemale'!$G$6:$IM$6),FALSE))) -> 0.8873758542 | CB13: =IF(120-$D$6<CB11,0,IF($G$4="M",VLOOKUP($D$6,'2012Jmale'!$A$14:$DW$134,MATCH($D$6+'2012Jmale'!CM6,'2012Jmale'!$G$6:$IM$6),FALSE),VLOOKUP($D$6,'2012Jfemale'!$A$14:$DW$134,MATCH($D$6+'2012Jfemale'!CM6,'2012Jfemale'!$G$6:$IM$6),FALSE))) -> 0.8793033961 | CC13: =IF(120-$D$6<CC11,0,IF($G$4="M",VLOOKUP($D$6,'2012Jmale'!$A$14:$DW$134,MATCH($D$6+'2012Jmale'!CN6,'2012Jmale'!$G$6:$IM$6),FALSE),VLOOKUP($D$6,'2012Jfemale'!$A$14:$DW$134,MATCH($D$6+'2012Jfemale'!CN6,'2012Jfemale'!$G$6:$IM$6),FALSE))) -> 0.8704488109 | CD13: =IF(120-$D$6<CD11,0,IF($G$4="M",VLOOKUP($D$6,'2012Jmale'!$A$14:$DW$134,MATCH($D$6+'2012Jmale'!CO6,'2012Jmale'!$G$6:$IM$6),FALSE),VLOOKUP($D$6,'2012Jfemale'!$A$14:$DW$134,MATCH($D$6+'2012Jfemale'!CO6,'2012Jfemale'!$G$6:$IM$6),FALSE))) -> 0.8598728578 | CE13: =IF(120-$D$6<CE11,0,IF($G$4="M",VLOOKUP($D$6,'2012Jmale'!$A$14:$DW$134,MATCH($D$6+'2012Jmale'!CP6,'2012Jmale'!$G$6:$IM$6),FALSE),VLOOKUP($D$6,'2012Jfemale'!$A$14:$DW$134,MATCH($D$6+'2012Jfemale'!CP6,'2012Jfemale'!$G$6:$IM$6),FALSE))) -> 0.8472817396 | CF13: =IF(120-$D$6<CF11,0,IF($G$4="M",VLOOKUP($D$6,'2012Jmale'!$A$14:$DW$134,MATCH($D$6+'2012Jmale'!CQ6,'2012Jmale'!$G$6:$IM$6),FALSE),VLOOKUP($D$6,'2012Jfemale'!$A$14:$DW$134,MATCH($D$6+'2012Jfemale'!CQ6,'2012Jfemale'!$G$6:$IM$6),FALSE))) -> 0.8335354406 | CG13: =IF(120-$D$6<CG11,0,IF($G$4="M",VLOOKUP($D$6,'2012Jmale'!$A$14:$DW$134,MATCH($D$6+'2012Jmale'!CR6,'2012Jmale'!$G$6:$IM$6),FALSE),VLOOKUP($D$6,'2012Jfemale'!$A$14:$DW$134,MATCH($D$6+'2012Jfemale'!CR6,'2012Jfemale'!$G$6:$IM$6),FALSE))) -> 0.817244824 | CH13: =IF(120-$D$6<CH11,0,IF($G$4="M",VLOOKUP($D$6,'2012Jmale'!$A$14:$DW$134,MATCH($D$6+'2012Jmale'!CS6,'2012Jmale'!$G$6:$IM$6),FALSE),VLOOKUP($D$6,'2012Jfemale'!$A$14:$DW$134,MATCH($D$6+'2012Jfemale'!CS6,'2012Jfemale'!$G$6:$IM$6),FALSE))) -> 0.7979276081 | CI13: =IF(120-$D$6<CI11,0,IF($G$4="M",VLOOKUP($D$6,'2012Jmale'!$A$14:$DW$134,MATCH($D$6+'2012Jmale'!CT6,'2012Jmale'!$G$6:$IM$6),FALSE),VLOOKUP($D$6,'2012Jfemale'!$A$14:$DW$134,MATCH($D$6+'2012Jfemale'!CT6,'2012Jfemale'!$G$6:$IM$6),FALSE))) -> 0.7750007541 | CJ13: =IF(120-$D$6<CJ11,0,IF($G$4="M",VLOOKUP($D$6,'2012Jmale'!$A$14:$DW$134,MATCH($D$6+'2012Jmale'!CU6,'2012Jmale'!$G$6:$IM$6),FALSE),VLOOKUP($D$6,'2012Jfemale'!$A$14:$DW$134,MATCH($D$6+'2012Jfemale'!CU6,'2012Jfemale'!$G$6:$IM$6),FALSE))) -> 0.7478121776 | CK13: =IF(120-$D$6<CK11,0,IF($G$4="M",VLOOKUP($D$6,'2012Jmale'!$A$14:$DW$134,MATCH($D$6+'2012Jmale'!CV6,'2012Jmale'!$G$6:$IM$6),FALSE),VLOOKUP($D$6,'2012Jfemale'!$A$14:$DW$134,MATCH($D$6+'2012Jfemale'!CV6,'2012Jfemale'!$G$6:$IM$6),FALSE))) -> 0.718391751 | CL13: =IF(120-$D$6<CL11,0,IF($G$4="M",VLOOKUP($D$6,'2012Jmale'!$A$14:$DW$134,MATCH($D$6+'2012Jmale'!CW6,'2012Jmale'!$G$6:$IM$6),FALSE),VLOOKUP($D$6,'2012Jfemale'!$A$14:$DW$134,MATCH($D$6+'2012Jfemale'!CW6,'2012Jfemale'!$G$6:$IM$6),FALSE))) -> 0.6837983146 | CM13: =IF(120-$D$6<CM11,0,IF($G$4="M",VLOOKUP($D$6,'2012Jmale'!$A$14:$DW$134,MATCH($D$6+'2012Jmale'!CX6,'2012Jmale'!$G$6:$IM$6),FALSE),VLOOKUP($D$6,'2012Jfemale'!$A$14:$DW$134,MATCH($D$6+'2012Jfemale'!CX6,'2012Jfemale'!$G$6:$IM$6),FALSE))) -> 0.6435472106 | CN13: =IF(120-$D$6<CN11,0,IF($G$4="M",VLOOKUP($D$6,'2012Jmale'!$A$14:$DW$134,MATCH($D$6+'2012Jmale'!CY6,'2012Jmale'!$G$6:$IM$6),FALSE),VLOOKUP($D$6,'2012Jfemale'!$A$14:$DW$134,MATCH($D$6+'2012Jfemale'!CY6,'2012Jfemale'!$G$6:$IM$6),FALSE))) -> 0.6014418472 | CO13: =IF(120-$D$6<CO11,0,IF($G$4="M",VLOOKUP($D$6,'2012Jmale'!$A$14:$DW$134,MATCH($D$6+'2012Jmale'!CZ6,'2012Jmale'!$G$6:$IM$6),FALSE),VLOOKUP($D$6,'2012Jfemale'!$A$14:$DW$134,MATCH($D$6+'2012Jfemale'!CZ6,'2012Jfemale'!$G$6:$IM$6),FALSE))) -> 0.5537318713 | CP13: =IF(120-$D$6<CP11,0,IF($G$4="M",VLOOKUP($D$6,'2012Jmale'!$A$14:$DW$134,MATCH($D$6+'2012Jmale'!DA6,'2012Jmale'!$G$6:$IM$6),FALSE),VLOOKUP($D$6,'2012Jfemale'!$A$14:$DW$134,MATCH($D$6+'2012Jfemale'!DA6,'2012Jfemale'!$G$6:$IM$6),FALSE))) -> 0.5006001908 | CQ13: =IF(120-$D$6<CQ11,0,IF($G$4="M",VLOOKUP($D$6,'2012Jmale'!$A$14:$DW$134,MATCH($D$6+'2012Jmale'!DB6,'2012Jmale'!$G$6:$IM$6),FALSE),VLOOKUP($D$6,'2012Jfemale'!$A$14:$DW$134,MATCH($D$6+'2012Jfemale'!DB6,'2012Jfemale'!$G$6:$IM$6),FALSE))) -> 0.4477743556 | CR13: =IF(120-$D$6<CR11,0,IF($G$4="M",VLOOKUP($D$6,'2012Jmale'!$A$14:$DW$134,MATCH($D$6+'2012Jmale'!DC6,'2012Jmale'!$G$6:$IM$6),FALSE),VLOOKUP($D$6,'2012Jfemale'!$A$14:$DW$134,MATCH($D$6+'2012Jfemale'!DC6,'2012Jfemale'!$G$6:$IM$6),FALSE))) -> 0.3908604439 | CS13: =IF(120-$D$6<CS11,0,IF($G$4="M",VLOOKUP($D$6,'2012Jmale'!$A$14:$DW$134,MATCH($D$6+'2012Jmale'!DD6,'2012Jmale'!$G$6:$IM$6),FALSE),VLOOKUP($D$6,'2012Jfemale'!$A$14:$DW$134,MATCH($D$6+'2012Jfemale'!DD6,'2012Jfemale'!$G$6:$IM$6),FALSE))) -> 0.3381576034 | CT13: =IF(120-$D$6<CT11,0,IF($G$4="M",VLOOKUP($D$6,'2012Jmale'!$A$14:$DW$134,MATCH($D$6+'2012Jmale'!DE6,'2012Jmale'!$G$6:$IM$6),FALSE),VLOOKUP($D$6,'2012Jfemale'!$A$14:$DW$134,MATCH($D$6+'2012Jfemale'!DE6,'2012Jfemale'!$G$6:$IM$6),FALSE))) -> 0.2837338424 | CU13: =IF(120-$D$6<CU11,0,IF($G$4="M",VLOOKUP($D$6,'2012Jmale'!$A$14:$DW$134,MATCH($D$6+'2012Jmale'!DF6,'2012Jmale'!$G$6:$IM$6),FALSE),VLOOKUP($D$6,'2012Jfemale'!$A$14:$DW$134,MATCH($D$6+'2012Jfemale'!DF6,'2012Jfemale'!$G$6:$IM$6),FALSE))) -> 0.2344416131 | CV13: =IF(120-$D$6<CV11,0,IF($G$4="M",VLOOKUP($D$6,'2012Jmale'!$A$14:$DW$134,MATCH($D$6+'2012Jmale'!DG6,'2012Jmale'!$G$6:$IM$6),FALSE),VLOOKUP($D$6,'2012Jfemale'!$A$14:$DW$134,MATCH($D$6+'2012Jfemale'!DG6,'2012Jfemale'!$G$6:$IM$6),FALSE))) -> 0.186196108 | CW13: =IF(120-$D$6<CW11,0,IF($G$4="M",VLOOKUP($D$6,'2012Jmale'!$A$14:$DW$134,MATCH($D$6+'2012Jmale'!DH6,'2012Jmale'!$G$6:$IM$6),FALSE),VLOOKUP($D$6,'2012Jfemale'!$A$14:$DW$134,MATCH($D$6+'2012Jfemale'!DH6,'2012Jfemale'!$G$6:$IM$6),FALSE))) -> 0.1451746849 | CX13: =IF(120-$D$6<CX11,0,IF($G$4="M",VLOOKUP($D$6,'2012Jmale'!$A$14:$DW$134,MATCH($D$6+'2012Jmale'!DI6,'2012Jmale'!$G$6:$IM$6),FALSE),VLOOKUP($D$6,'2012Jfemale'!$A$14:$DW$134,MATCH($D$6+'2012Jfemale'!DI6,'2012Jfemale'!$G$6:$IM$6),FALSE))) -> 0.1107106502 | CY13: =IF(120-$D$6<CY11,0,IF($G$4="M",VLOOKUP($D$6,'2012Jmale'!$A$14:$DW$134,MATCH($D$6+'2012Jmale'!DJ6,'2012Jmale'!$G$6:$IM$6),FALSE),VLOOKUP($D$6,'2012Jfemale'!$A$14:$DW$134,MATCH($D$6+'2012Jfemale'!DJ6,'2012Jfemale'!$G$6:$IM$6),FALSE))) -> 0.07950397497 | CZ13: =IF(120-$D$6<CZ11,0,IF($G$4="M",VLOOKUP($D$6,'2012Jmale'!$A$14:$DW$134,MATCH($D$6+'2012Jmale'!DK6,'2012Jmale'!$G$6:$IM$6),FALSE),VLOOKUP($D$6,'2012Jfemale'!$A$14:$DW$134,MATCH($D$6+'2012Jfemale'!DK6,'2012Jfemale'!$G$6:$IM$6),FALSE))) -> 0.05552859727 | DA13: =IF(120-$D$6<DA11,0,IF($G$4="M",VLOOKUP($D$6,'2012Jmale'!$A$14:$DW$134,MATCH($D$6+'2012Jmale'!DL6,'2012Jmale'!$G$6:$IM$6),FALSE),VLOOKUP($D$6,'2012Jfemale'!$A$14:$DW$134,MATCH($D$6+'2012Jfemale'!DL6,'2012Jfemale'!$G$6:$IM$6),FALSE))) -> 0.03574892222 | DB13: =IF(120-$D$6<DB11,0,IF($G$4="M",VLOOKUP($D$6,'2012Jmale'!$A$14:$DW$134,MATCH($D$6+'2012Jmale'!DM6,'2012Jmale'!$G$6:$IM$6),FALSE),VLOOKUP($D$6,'2012Jfemale'!$A$14:$DW$134,MATCH($D$6+'2012Jfemale'!DM6,'2012Jfemale'!$G$6:$IM$6),FALSE))) -> 0.02216433178 | DC13: =IF(120-$D$6<DC11,0,IF($G$4="M",VLOOKUP($D$6,'2012Jmale'!$A$14:$DW$134,MATCH($D$6+'2012Jmale'!DN6,'2012Jmale'!$G$6:$IM$6),FALSE),VLOOKUP($D$6,'2012Jfemale'!$A$14:$DW$134,MATCH($D$6+'2012Jfemale'!DN6,'2012Jfemale'!$G$6:$IM$6),FALSE))) -> 0.01329859907 | DD13: =IF(120-$D$6<DD11,0,IF($G$4="M",VLOOKUP($D$6,'2012Jmale'!$A$14:$DW$134,MATCH($D$6+'2012Jmale'!DO6,'2012Jmale'!$G$6:$IM$6),FALSE),VLOOKUP($D$6,'2012Jfemale'!$A$14:$DW$134,MATCH($D$6+'2012Jfemale'!DO6,'2012Jfemale'!$G$6:$IM$6),FALSE))) -> 0.00797915944 | DE13: =IF(120-$D$6<DE11,0,IF($G$4="M",VLOOKUP($D$6,'2012Jmale'!$A$14:$DW$134,MATCH($D$6+'2012Jmale'!DP6,'2012Jmale'!$G$6:$IM$6),FALSE),VLOOKUP($D$6,'2012Jfemale'!$A$14:$DW$134,MATCH($D$6+'2012Jfemale'!DP6,'2012Jfemale'!$G$6:$IM$6),FALSE))) -> 0.004787495664 | DF13: =IF(120-$D$6<DF11,0,IF($G$4="M",VLOOKUP($D$6,'2012Jmale'!$A$14:$DW$134,MATCH($D$6+'2012Jmale'!DQ6,'2012Jmale'!$G$6:$IM$6),FALSE),VLOOKUP($D$6,'2012Jfemale'!$A$14:$DW$134,MATCH($D$6+'2012Jfemale'!DQ6,'2012Jfemale'!$G$6:$IM$6),FALSE))) -> 0.002872497398 | DG13: =IF(120-$D$6<DG11,0,IF($G$4="M",VLOOKUP($D$6,'2012Jmale'!$A$14:$DW$134,MATCH($D$6+'2012Jmale'!DR6,'2012Jmale'!$G$6:$IM$6),FALSE),VLOOKUP($D$6,'2012Jfemale'!$A$14:$DW$134,MATCH($D$6+'2012Jfemale'!DR6,'2012Jfemale'!$G$6:$IM$6),FALSE))) -> 0.001723498439 | DH13: =IF(120-$D$6<DH11,0,IF($G$4="M",VLOOKUP($D$6,'2012Jmale'!$A$14:$DW$134,MATCH($D$6+'2012Jmale'!DS6,'2012Jmale'!$G$6:$IM$6),FALSE),VLOOKUP($D$6,'2012Jfemale'!$A$14:$DW$134,MATCH($D$6+'2012Jfemale'!DS6,'2012Jfemale'!$G$6:$IM$6),FALSE))) -> 0.001034099063 | DI13: =IF(120-$D$6<DI11,0,IF($G$4="M",VLOOKUP($D$6,'2012Jmale'!$A$14:$DW$134,MATCH($D$6+'2012Jmale'!DT6,'2012Jmale'!$G$6:$IM$6),FALSE),VLOOKUP($D$6,'2012Jfemale'!$A$14:$DW$134,MATCH($D$6+'2012Jfemale'!DT6,'2012Jfemale'!$G$6:$IM$6),FALSE))) -> 0.0006204594381 | DJ13: =IF(120-$D$6<DJ11,0,IF($G$4="M",VLOOKUP($D$6,'2012Jmale'!$A$14:$DW$134,MATCH($D$6+'2012Jmale'!DU6,'2012Jmale'!$G$6:$IM$6),FALSE),VLOOKUP($D$6,'2012Jfemale'!$A$14:$DW$134,MATCH($D$6+'2012Jfemale'!DU6,'2012Jfemale'!$G$6:$IM$6),FALSE))) -> 0.0003722756628 | DK13: =IF(120-$D$6<DK11,0,IF($G$4="M",VLOOKUP($D$6,'2012Jmale'!$A$14:$DW$134,MATCH($D$6+'2012Jmale'!DV6,'2012Jmale'!$G$6:$IM$6),FALSE),VLOOKUP($D$6,'2012Jfemale'!$A$14:$DW$134,MATCH($D$6+'2012Jfemale'!DV6,'2012Jfemale'!$G$6:$IM$6),FALSE))) -> 0.0002233653977 | DL13: =IF(120-$D$6<DL11,0,IF($G$4="M",VLOOKUP($D$6,'2012Jmale'!$A$14:$DW$134,MATCH($D$6+'2012Jmale'!DW6,'2012Jmale'!$G$6:$IM$6),FALSE),VLOOKUP($D$6,'2012Jfemale'!$A$14:$DW$134,MATCH($D$6+'2012Jfemale'!DW6,'2012Jfemale'!$G$6:$IM$6),FALSE))) -> 0.0001340192386 | DM13: =IF(120-$D$6<DM11,0,IF($G$4="M",VLOOKUP($D$6,'2012Jmale'!$A$14:$DW$134,MATCH($D$6+'2012Jmale'!DX6,'2012Jmale'!$G$6:$IM$6),FALSE),VLOOKUP($D$6,'2012Jfemale'!$A$14:$DW$134,MATCH($D$6+'2012Jfemale'!DX6,'2012Jfemale'!$G$6:$IM$6),FALSE))) -> 8.041154317e-05 | DN13: =IF(120-$D$6<DN11,0,IF($G$4="M",VLOOKUP($D$6,'2012Jmale'!$A$14:$DW$134,MATCH($D$6+'2012Jmale'!DY6,'2012Jmale'!$G$6:$IM$6),FALSE),VLOOKUP($D$6,'2012Jfemale'!$A$14:$DW$134,MATCH($D$6+'2012Jfemale'!DY6,'2012Jfemale'!$G$6:$IM$6),FALSE))) -> 4.82469259e-05 | DO13: =IF(120-$D$6<DO11,0,IF($G$4="M",VLOOKUP($D$6,'2012Jmale'!$A$14:$DW$134,MATCH($D$6+'2012Jmale'!DZ6,'2012Jmale'!$G$6:$IM$6),FALSE),VLOOKUP($D$6,'2012Jfemale'!$A$14:$DW$134,MATCH($D$6+'2012Jfemale'!DZ6,'2012Jfemale'!$G$6:$IM$6),FALSE))) -> 2.894815554e-05 | DP13: =IF(120-$D$6<DP11,0,IF($G$4="M",VLOOKUP($D$6,'2012Jmale'!$A$14:$DW$134,MATCH($D$6+'2012Jmale'!EA6,'2012Jmale'!$G$6:$IM$6),FALSE),VLOOKUP($D$6,'2012Jfemale'!$A$14:$DW$134,MATCH($D$6+'2012Jfemale'!EA6,'2012Jfemale'!$G$6:$IM$6),FALSE))) -> 1.736889333e-05 | DQ13: =IF(120-$D$6<DQ11,0,IF($G$4="M",VLOOKUP($D$6,'2012Jmale'!$A$14:$DW$134,MATCH($D$6+'2012Jmale'!EB6,'2012Jmale'!$G$6:$IM$6),FALSE),VLOOKUP($D$6,'2012Jfemale'!$A$14:$DW$134,MATCH($D$6+'2012Jfemale'!EB6,'2012Jfemale'!$G$6:$IM$6),FALSE))) -> 0
A14: kpxy | B14: =1-((1-B12)*(1-B13)) -> 0.9999998392 | C14: =1-((1-C12)*(1-C13)) -> 0.9999995472 | D14: 0.9999991959 | E14: 0.9999988645 | F14: 0.9999984959 | G14: 0.9999980867 | H14: 0.9999976499 | I14: 0.9999972251 | J14: 0.9999968151 | K14: 0.9999964376 | L14: 0.9999960509 | M14: 0.9999955689 | N14: 0.9999949164 | O14: 0.9999940402 | P14: 0.9999929152 | Q14: 0.9999915141 | R14: 0.9999898159 | S14: 0.999987797 | T14: 0.9999854446 | U14: 0.9999827289 | V14: 0.9999796026 | W14: 0.9999760134 | X14: 0.99997184 | Y14: 0.9999670034 | Z14: 0.9999613794 | AA14: 0.9999548364 | AB14: 0.9999474836 | AC14: 0.9999394109 | AD14: 0.9999306339 | AE14: 0.9999211808 | AF14: 0.9999110925 | AG14: 0.9999004819 | AH14: 0.9998893631 | AI14: 0.9998777716 | AJ14: 0.999865747 | AK14: 0.999853285 | AL14: 0.9998404269 | AM14: 0.9998271658 | AN14: 0.9998127081 | AO14: 0.9997967229 | AP14: 0.9997789515 | AQ14: 0.999759134 | AR14: 0.9997372366 | AS14: 0.9997130714 | AT14: 0.9996864018 | AU14: 0.99965657 | AV14: 0.9996224405 | AW14: 0.9995828117 | AX14: 0.9995364106 | AY14: 0.9994819341 | AZ14: 0.9994213605 | BA14: 0.9993513761 | BB14: 0.9992756729 | BC14: 0.9991901088 | BD14: 0.999098925 | BE14: 0.9989961026 | BF14: 0.9988861081 | BG14: 0.9987610956 | BH14: 0.9986267604 | BI14: 0.9984736261 | BJ14: 0.998298663 | BK14: 0.9980990361 | BL14: 0.9978717839 | BM14: 0.9976131026 | BN14: 0.997318173 | BO14: =1-((1-BO12)*(1-BO13)) -> 0.9969945932 | BP14: 0.9966377278 | BQ14: 0.9962413795 | BR14: 0.9957981013 | BS14: 0.9952987625 | BT14: 0.9947320006 | BU14: 0.9940836834 | BV14: 0.9933368556 | BW14: 0.9924717553 | BX14: 0.9914657624 | BY14: 0.9902927222 | BZ14: 0.9889215694 | CA14: 0.9873158018 | CB14: 0.9854323298 | CC14: 0.9832164894 | CD14: 0.980364384 | CE14: 0.9766771329 | CF14: 0.9722895505 | CG14: 0.9666005456 | CH14: 0.9591667484 | CI14: 0.9493753393 | CJ14: 0.9364013023 | CK14: 0.9206967941 | CL14: 0.9000164941 | CM14: 0.8729414089 | CN14: 0.8411513989 | CO14: 0.8008447573 | CP14: 0.7505998305 | CQ14: 0.6950468377 | CR14: 0.6289490012 | CS14: 0.5619646421 | CT14: 0.4869627915 | CU14: 0.4139203563 | CV14: 0.3377232254 | CW14: 0.2692736806 | CX14: 0.2091644523 | CY14: 0.1526870679 | CZ14: 0.1079737694 | DA14: 0.07021985901 | DB14: 0.04383740595 | DC14: 0.0264203454 | DD14: 0.01589465189 | DE14: 0.009552071213 | DF14: 0.005736743556 | DG14: 0.003444026431 | DH14: 0.002067128766 | DI14: 0.001240533906 | DJ14: 0.0007444127365 | DK14: 0.0004466809033 | DL14: 0.0002680205161 | DM14: 0.0001608166203 | DN14: 9.649152404e-05 | DO14: 5.789547309e-05 | DP14: 3.473748497e-05 | DQ14: 0
A16: ax | B16: =IF($F$4="M",VLOOKUP('Joint Life'!$C$6,'2012Jmale'!A14:C134,2),VLOOKUP('Joint Life'!$C$6,'2012Jfemale'!A14:C134,2)) -> 24.05 | C16: ax(m) | D16: =IF($F$4="M",VLOOKUP('Joint Life'!$C$6,'2012Jmale'!A14:C134,3),VLOOKUP('Joint Life'!$C$6,'2012Jfemale'!A14:C134,3)) -> 24.05
A17: ay | B17: =IF($G$4="M",VLOOKUP('Joint Life'!$D$6,'2012Jmale'!A14:C134,2),VLOOKUP('Joint Life'!$D$6,'2012Jfemale'!A14:C134,2)) -> 24.05 | C17: ay(m) | D17: =IF($G$4="M",VLOOKUP('Joint Life'!$D$6,'2012Jmale'!A14:C134,3),VLOOKUP('Joint Life'!$D$6,'2012Jfemale'!A14:C134,3)) -> 24.05
A18: axy | B18: =NPV('2012Jmale'!$G$4,B14:DQ14) -> 24.39336477 | C18: axy(m) | D18: =B18+(C8-1)/(2*C8) -> 24.39336477

Sheet 2012Jmale (hidden)
A1: INPUTs
A2: Name of Mortality Table | G2: 2012IAR | K2: Year | L2: ='Joint Life'!F10 -> 2012
A3: Gender | G3: Male
A4: Interest Rate | G4: 0.04
A5: Frequency of Annuity per year (m times per year) | G5: ='Joint Life'!C8 -> 1
A6: Age N2 | G6: 0 | H6: 1 | I6: 2 | J6: 3 | K6: 4 | L6: 5 | M6: 6 | N6: 7 | O6: 8 | P6: 9 | Q6: 10 | R6: 11 | S6: 12 | T6: 13 | U6: 14 | V6: 15 | W6: 16 | X6: 17 | Y6: 18 | Z6: 19 | AA6: 20 | AB6: 21 | AC6: 22 | AD6: 23 | AE6: 24 | AF6: 25 | AG6: 26 | AH6: 27 | AI6: 28 | AJ6: 29 | AK6: 30 | AL6: 31 | AM6: 32 | AN6: 33 | AO6: 34 | AP6: 35 | AQ6: 36 | AR6: 37 | AS6: 38 | AT6: 39 | AU6: 40 | AV6: 41 | AW6: 42 | AX6: 43 | AY6: 44 | AZ6: 45 | BA6: 46 | BB6: 47 | BC6: 48 | BD6: 49 | BE6: 50 | BF6: 51 | BG6: 52 | BH6: 53 | BI6: 54 | BJ6: 55 | BK6: 56 | BL6: 57 | BM6: 58 | BN6: 59 | BO6: 60 | BP6: 61 | BQ6: 62 | BR6: 63 | BS6: 64 | BT6: 65 | BU6: 66 | BV6: 67 | BW6: 68 | BX6: 69 | BY6: 70 | BZ6: 71 | CA6: 72 | CB6: 73 | CC6: 74 | CD6: 75 | CE6: 76 | CF6: 77 | CG6: 78 | CH6: 79 | CI6: 80 | CJ6: 81 | CK6: 82 | CL6: 83 | CM6: 84 | CN6: 85 | CO6: 86 | CP6: 87 | CQ6: 88 | CR6: 89 | CS6: 90 | CT6: 91 | CU6: 92 | CV6: 93 | CW6: 94 | CX6: 95 | CY6: 96 | CZ6: 97 | DA6: 98 | DB6: 99 | DC6: 100 | DD6: 101 | DE6: 102 | DF6: 103 | DG6: 104 | DH6: 105 | DI6: 106 | DJ6: 107 | DK6: 108 | DL6: 109 | DM6: 110 | DN6: 111 | DO6: 112 | DP6: 113 | DQ6: 114 | DR6: 115 | DS6: 116 | DT6: 117 | DU6: 118 | DV6: 119 | DW6: 120 | DX6: 121 | DY6: 122 | DZ6: 123 | EA6: 124 | EB6: 125 | EC6: 126 | ED6: 127 | EE6: 128 | EF6: 129 | EG6: 130 | EH6: 131 | EI6: 132 | EJ6: 133 | EK6: 134 | EL6: 135 | EM6: 136 | EN6: 137 | EO6: 138 | EP6: 139 | EQ6: 140 | ER6: 141 | ES6: 142 | ET6: 143 | EU6: 144 | EV6: 145 | EW6: 146 | EX6: 147 | EY6: 148 | EZ6: 149 | FA6: 150 | FB6: 151 | FC6: 152 | FD6: 153 | FE6: 154 | FF6: 155 | FG6: 156 | FH6: 157 | FI6: 158 | FJ6: 159 | FK6: 160 | FL6: 161 | FM6: 162 | FN6: 163 | FO6: 164 | FP6: 165 | FQ6: 166 | FR6: 167 | FS6: 168 | FT6: 169 | FU6: 170 | FV6: 171 | FW6: 172 | FX6: 173 | FY6: 174 | FZ6: 175 | GA6: 176 | GB6: 177 | GC6: 178 | GD6: 179 | GE6: 180 | GF6: 181 | GG6: 182 | GH6: 183 | GI6: 184 | GJ6: 185 | GK6: 186 | GL6: 187 | GM6: 188 | GN6: 189 | GO6: 190 | GP6: 191 | GQ6: 192 | GR6: 193 | GS6: 194 | GT6: 195 | GU6: 196 | GV6: 197 | GW6: 198 | GX6: 199 | GY6: 200 | GZ6: 201 | HA6: 202 | HB6: 203 | HC6: 204 | HD6: 205 | HE6: 206 | HF6: 207 | HG6: 208 | HH6: 209 | HI6: 210 | HJ6: 211 | HK6: 212 | HL6: 213 | HM6: 214 | HN6: 215 | HO6: 216 | HP6: 217 | HQ6: 218 | HR6: 219 | HS6: 220 | HT6: 221 | HU6: 222 | HV6: 223 | HW6: 224 | HX6: 225 | HY6: 226 | HZ6: 227 | IA6: 228 | IB6: 229 | IC6: 230 | ID6: 231 | IE6: 232 | IF6: 233 | IG6: 234 | IH6: 235 | II6: 236 | IJ6: 237 | IK6: 238 | IL6: 239 | IM6: 240
A7: Probability of a person with age N2 DIE between age [N2,N2+1] = Qx | G7: 0.001605 | H7: 0.000401 | I7: 0.000275 | J7: 0.000229 | K7: 0.000174 | L7: 0.000168 | M7: 0.000165 | N7: 0.000159 | O7: 0.000143 | P7: 0.000129 | Q7: 0.000113 | R7: 0.000111 | S7: 0.000132 | T7: 0.000169 | U7: 0.000213 | V7: 0.000254 | W7: 0.000293 | X7: 0.000328 | Y7: 0.000359 | Z7: 0.000387 | AA7: 0.000414 | AB7: 0.000443 | AC7: 0.000473 | AD7: 0.000513 | AE7: 0.000554 | AF7: 0.000602 | AG7: 0.000655 | AH7: 0.000688 | AI7: 0.00071 | AJ7: 0.000727 | AK7: 0.000741 | AL7: 0.000751 | AM7: 0.000754 | AN7: 0.000756 | AO7: 0.000756 | AP7: 0.000756 | AQ7: 0.000756 | AR7: 0.000756 | AS7: 0.000756 | AT7: 0.0008 | AU7: 0.000859 | AV7: 0.000926 | AW7: 0.000999 | AX7: 0.001069 | AY7: 0.001142 | AZ7: 0.001219 | BA7: 0.001318 | BB7: 0.001454 | BC7: 0.001627 | BD7: 0.001829 | BE7: 0.002057 | BF7: 0.002302 | BG7: 0.002545 | BH7: 0.002779 | BI7: 0.003011 | BJ7: 0.003254 | BK7: 0.003529 | BL7: 0.003845 | BM7: 0.004213 | BN7: 0.004631 | BO7: 0.005096 | BP7: 0.005614 | BQ7: 0.006169 | BR7: 0.006759 | BS7: 0.007398 | BT7: 0.008106 | BU7: 0.008548 | BV7: 0.009076 | BW7: 0.009708 | BX7: 0.010463 | BY7: 0.011357 | BZ7: 0.012418 | CA7: 0.013675 | CB7: 0.01515 | CC7: 0.01686 | CD7: 0.018815 | CE7: 0.021031 | CF7: 0.02354 | CG7: 0.026375 | CH7: 0.029572 | CI7: 0.033234 | CJ7: 0.037533 | CK7: 0.042261 | CL7: 0.047441 | CM7: 0.053233 | CN7: 0.059855 | CO7: 0.067514 | CP7: 0.07634 | CQ7: 0.086388 | CR7: 0.097634 | CS7: 0.109993 | CT7: 0.123119 | CU7: 0.137168 | CV7: 0.152171 | CW7: 0.168194 | CX7: 0.18526 | CY7: 0.197322 | CZ7: 0.214751 | DA7: 0.232507 | DB7: 0.250397 | DC7: 0.268607 | DD7: 0.290016 | DE7: 0.311849 | DF7: 0.333962 | DG7: 0.356207 | DH7: 0.38 | DI7: 0.4 | DJ7: 0.4 | DK7: 0.4 | DL7: 0.4 | DM7: 0.4 | DN7: 0.4 | DO7: 0.4 | DP7: 0.4 | DQ7: 0.4 | DR7: 0.4 | DS7: 0.4 | DT7: 0.4 | DU7: 0.4 | DV7: 0.4 | DW7: 1
A8: G2x projection | G8: 0.01 | H8: 0.01 | I8: 0.01 | J8: 0.01 | K8: 0.01 | L8: 0.01 | M8: 0.01 | N8: 0.01 | O8: 0.01 | P8: 0.01 | Q8: 0.01 | R8: 0.01 | S8: 0.01 | T8: 0.01 | U8: 0.01 | V8: 0.01 | W8: 0.01 | X8: 0.01 | Y8: 0.01 | Z8: 0.01 | AA8: 0.01 | AB8: 0.01 | AC8: 0.01 | AD8: 0.01 | AE8: 0.01 | AF8: 0.01 | AG8: 0.01 | AH8: 0.01 | AI8: 0.01 | AJ8: 0.01 | AK8: 0.01 | AL8: 0.01 | AM8: 0.01 | AN8: 0.01 | AO8: 0.01 | AP8: 0.01 | AQ8: 0.01 | AR8: 0.01 | AS8: 0.01 | AT8: 0.01 | AU8: 0.01 | AV8: 0.01 | AW8: 0.01 | AX8: 0.01 | AY8: 0.01 | AZ8: 0.01 | BA8: 0.01 | BB8: 0.01 | BC8: 0.01 | BD8: 0.01 | BE8: 0.01 | BF8: 0.011 | BG8: 0.011 | BH8: 0.012 | BI8: 0.012 | BJ8: 0.013 | BK8: 0.013 | BL8: 0.014 | BM8: 0.014 | BN8: 0.015 | BO8: 0.015 | BP8: 0.015 | BQ8: 0.015 | BR8: 0.015 | BS8: 0.015 | BT8: 0.015 | BU8: 0.015 | BV8: 0.015 | BW8: 0.015 | BX8: 0.015 | BY8: 0.015 | BZ8: 0.015 | CA8: 0.015 | CB8: 0.015 | CC8: 0.015 | CD8: 0.015 | CE8: 0.015 | CF8: 0.015 | CG8: 0.015 | CH8: 0.015 | CI8: 0.015 | CJ8: 0.014 | CK8: 0.013 | CL8: 0.013 | CM8: 0.012 | CN8: 0.011 | CO8: 0.01 | CP8: 0.009 | CQ8: 0.009 | CR8: 0.008 | CS8: 0.007 | CT8: 0.007 | CU8: 0.006 | CV8: 0.005 | CW8: 0.005 | CX8: 0.004 | CY8: 0.004 | CZ8: 0.003 | DA8: 0.003 | DB8: 0.002 | DC8: 0.002 | DD8: 0.002 | DE8: 0.001 | DF8: 0.001 | DG8: 0 | DH8: 0 | DI8: 0 | DJ8: 0 | DK8: 0 | DL8: 0 | DM8: 0 | DN8: 0 | DO8: 0 | DP8: 0 | DQ8: 0 | DR8: 0 | DS8: 0 | DT8: 0 | DU8: 0 | DV8: 0 | DW8: 0
A9: Future projection applied to Qx | G9: =(G7*((1-G8)^($L$2-2012))) -> 0.001605 | H9: =ROUND(H7*((1-H8)^($L$2+COLUMN()-7-2012)),6) -> 0.000397 | I9: 0.00027 | J9: 0.000222 | K9: 0.000167 | L9: 0.00016 | M9: 0.000155 | N9: 0.000148 | O9: 0.000132 | P9: 0.000118 | Q9: 0.000102 | R9: 9.9e-05 | S9: 0.000117 | T9: 0.000148 | U9: 0.000185 | V9: 0.000218 | W9: 0.000249 | X9: 0.000276 | Y9: 0.0003 | Z9: 0.00032 | AA9: 0.000339 | AB9: 0.000359 | AC9: 0.000379 | AD9: 0.000407 | AE9: 0.000435 | AF9: 0.000468 | AG9: 0.000504 | AH9: 0.000524 | AI9: 0.000536 | AJ9: 0.000543 | AK9: 0.000548 | AL9: 0.00055 | AM9: 0.000547 | AN9: 0.000543 | AO9: 0.000537 | AP9: 0.000532 | AQ9: 0.000526 | AR9: 0.000521 | AS9: 0.000516 | AT9: 0.000541 | AU9: 0.000575 | AV9: 0.000613 | AW9: 0.000655 | AX9: 0.000694 | AY9: 0.000734 | AZ9: 0.000776 | BA9: 0.00083 | BB9: 0.000907 | BC9: 0.001004 | BD9: =ROUND(BD7*((1-BD8)^($L$2+COLUMN()-7-2012)),5) -> 0.00112 | BE9: =ROUND(BE7*((1-BE8)^($L$2+COLUMN()-7-2012)),5) -> 0.00124 | BF9: 0.00131 | BG9: 0.00143 | BH9: 0.00147 | BI9: 0.00157 | BJ9: 0.00158 | BK9: 0.0017 | BL9: 0.00172 | BM9: 0.00186 | BN9: 0.0019 | BO9: 0.00206 | BP9: 0.00223 | BQ9: 0.00242 | BR9: 0.00261 | BS9: 0.00281 | BT9: 0.00304 | BU9: 0.00315 | BV9: 0.0033 | BW9: 0.00347 | BX9: 0.00369 | BY9: 0.00394 | BZ9: 0.00425 | CA9: 0.00461 | CB9: 0.00503 | CC9: 0.00551 | CD9: 0.00606 | CE9: 0.00667 | CF9: 0.00735 | CG9: 0.00811 | CH9: 0.00896 | CI9: 0.00992 | CJ9: =ROUND(CJ7*((1-CJ8)^($L$2+COLUMN()-7-2012)),4) -> 0.012 | CK9: =ROUND(CK7*((1-CK8)^($L$2+COLUMN()-7-2012)),4) -> 0.0145 | CL9: 0.016 | CM9: 0.0193 | CN9: 0.0234 | CO9: 0.0284 | CP9: 0.0348 | CQ9: 0.039 | CR9: 0.0478 | CS9: 0.0585 | CT9: 0.065 | CU9: 0.0788 | CV9: =ROUND(CV7*((1-CV8)^($L$2+COLUMN()-7-2012)),4) -> 0.0955 | CW9: =ROUND(CW7*((1-CW8)^($L$2+COLUMN()-7-2012)),3) -> 0.105 | CX9: =ROUND(CX7*((1-CX8)^($L$2+COLUMN()-7-2012)),3) -> 0.127 | CY9: 0.134 | CZ9: 0.16 | DA9: 0.173 | DB9: 0.205 | DC9: 0.22 | DD9: 0.237 | DE9: 0.282 | DF9: 0.301 | DG9: 0.356 | DH9: 0.38 | DI9: 0.4 | DJ9: 0.4 | DK9: 0.4 | DL9: 0.4 | DM9: 0.4 | DN9: 0.4 | DO9: 0.4 | DP9: 0.4 | DQ9: 0.4 | DR9: 0.4 | DS9: 0.4 | DT9: 0.4 | DU9: 0.4 | DV9: 0.4 | DW9: 1
A10: Probability of a person with age N2 SURVIVE between age [N2,N2+1] = Px = 1 - Qx | G10: =1-G9 -> 0.998395 | H10: =1-H9 -> 0.999603 | I10: 0.99973 | J10: 0.999778 | K10: 0.999833 | L10: 0.99984 | M10: 0.999845 | N10: 0.999852 | O10: 0.999868 | P10: 0.999882 | Q10: 0.999898 | R10: 0.999901 | S10: 0.999883 | T10: 0.999852 | U10: 0.999815 | V10: 0.999782 | W10: 0.999751 | X10: 0.999724 | Y10: 0.9997 | Z10: 0.99968 | AA10: 0.999661 | AB10: 0.999641 | AC10: 0.999621 | AD10: 0.999593 | AE10: 0.999565 | AF10: 0.999532 | AG10: 0.999496 | AH10: 0.999476 | AI10: 0.999464 | AJ10: 0.999457 | AK10: 0.999452 | AL10: 0.99945 | AM10: 0.999453 | AN10: 0.999457 | AO10: 0.999463 | AP10: 0.999468 | AQ10: 0.999474 | AR10: 0.999479 | AS10: 0.999484 | AT10: 0.999459 | AU10: 0.999425 | AV10: 0.999387 | AW10: 0.999345 | AX10: 0.999306 | AY10: 0.999266 | AZ10: 0.999224 | BA10: 0.99917 | BB10: 0.999093 | BC10: 0.998996 | BD10: 0.99888 | BE10: 0.99876 | BF10: 0.99869 | BG10: 0.99857 | BH10: 0.99853 | BI10: 0.99843 | BJ10: 0.99842 | BK10: 0.9983 | BL10: 0.99828 | BM10: 0.99814 | BN10: 0.9981 | BO10: 0.99794 | BP10: 0.99777 | BQ10: 0.99758 | BR10: 0.99739 | BS10: 0.99719 | BT10: =1-BT9 -> 0.99696 | BU10: 0.99685 | BV10: 0.9967 | BW10: 0.99653 | BX10: 0.99631 | BY10: 0.99606 | BZ10: 0.99575 | CA10: 0.99539 | CB10: 0.99497 | CC10: 0.99449 | CD10: 0.99394 | CE10: 0.99333 | CF10: 0.99265 | CG10: 0.99189 | CH10: 0.99104 | CI10: 0.99008 | CJ10: 0.988 | CK10: 0.9855 | CL10: 0.984 | CM10: 0.9807 | CN10: 0.9766 | CO10: 0.9716 | CP10: 0.9652 | CQ10: 0.961 | CR10: 0.9522 | CS10: 0.9415 | CT10: 0.935 | CU10: 0.9212 | CV10: 0.9045 | CW10: 0.895 | CX10: 0.873 | CY10: 0.866 | CZ10: 0.84 | DA10: 0.827 | DB10: 0.795 | DC10: 0.78 | DD10: 0.763 | DE10: 0.718 | DF10: 0.699 | DG10: 0.644 | DH10: 0.62 | DI10: 0.6 | DJ10: 0.6 | DK10: 0.6 | DL10: 0.6 | DM10: 0.6 | DN10: 0.6 | DO10: 0.6 | DP10: 0.6 | DQ10: 0.6 | DR10: 0.6 | DS10: 0.6 | DT10: 0.6 | DU10: 0.6 | DV10: 0.6 | DW10: 0
G11: Probability of a person SURVIVE between [beginning of N1, end of N2]
A12: RESULTs
A13: Age N1 | B13: ax | C13: ax(m)
A14: 0 | B14: =ROUND(NPV($G$4,G14:DW14),2) -> 24.05 | C14: =B14+($G$5-1)/(2*$G$5) -> 24.05 | G14: =PRODUCT('2012IAR JMale Data'!$C5:C5) -> 0.998395 | H14: =PRODUCT('2012IAR JMale Data'!$C5:D5) -> 0.9979986372 | I14: =PRODUCT('2012IAR JMale Data'!$C5:E5) -> 0.9977291776 | J14: =PRODUCT('2012IAR JMale Data'!$C5:F5) -> 0.9975076817 | K14: =PRODUCT('2012IAR JMale Data'!$C5:G5) -> 0.9973410979 | L14: =PRODUCT('2012IAR JMale Data'!$C5:H5) -> 0.9971815233 | M14: =PRODUCT('2012IAR JMale Data'!$C5:I5) -> 0.9970269602 | N14: =PRODUCT('2012IAR JMale Data'!$C5:J5) -> 0.9968794002 | O14: =PRODUCT('2012IAR JMale Data'!$C5:K5) -> 0.9967478121 | P14: =PRODUCT('2012IAR JMale Data'!$C5:L5) -> 0.9966301959 | Q14: =PRODUCT('2012IAR JMale Data'!$C5:M5) -> 0.9965285396 | R14: =PRODUCT('2012IAR JMale Data'!$C5:N5) -> 0.9964298833 | S14: =PRODUCT('2012IAR JMale Data'!$C5:O5) -> 0.996313301 | T14: =PRODUCT('2012IAR JMale Data'!$C5:P5) -> 0.9961658466 | U14: =PRODUCT('2012IAR JMale Data'!$C5:Q5) -> 0.9959815559 | V14: =PRODUCT('2012IAR JMale Data'!$C5:R5) -> 0.9957644319 | W14: =PRODUCT('2012IAR JMale Data'!$C5:S5) -> 0.9955164866 | X14: =PRODUCT('2012IAR JMale Data'!$C5:T5) -> 0.995241724 | Y14: =PRODUCT('2012IAR JMale Data'!$C5:U5) -> 0.9949431515 | Z14: =PRODUCT('2012IAR JMale Data'!$C5:V5) -> 0.9946247697 | AA14: =PRODUCT('2012IAR JMale Data'!$C5:W5) -> 0.9942875919 | AB14: =PRODUCT('2012IAR JMale Data'!$C5:X5) -> 0.9939306427 | AC14: =PRODUCT('2012IAR JMale Data'!$C5:Y5) -> 0.993553943 | AD14: =PRODUCT('2012IAR JMale Data'!$C5:Z5) -> 0.9931495665 | AE14: =PRODUCT('2012IAR JMale Data'!$C5:AA5) -> 0.9927175464 | AF14: =PRODUCT('2012IAR JMale Data'!$C5:AB5) -> 0.9922529546 | AG14: =PRODUCT('2012IAR JMale Data'!$C5:AC5) -> 0.9917528591 | AH14: =PRODUCT('2012IAR JMale Data'!$C5:AD5) -> 0.9912331806 | AI14: =PRODUCT('2012IAR JMale Data'!$C5:AE5) -> 0.9907018797 | AJ14: =PRODUCT('2012IAR JMale Data'!$C5:AF5) -> 0.9901639285 | AK14: =PRODUCT('2012IAR JMale Data'!$C5:AG5) -> 0.9896213187 | AL14: =PRODUCT('2012IAR JMale Data'!$C5:AH5) -> 0.989077027 | AM14: =PRODUCT('2012IAR JMale Data'!$C5:AI5) -> 0.9885360018 | AN14: =PRODUCT('2012IAR JMale Data'!$C5:AJ5) -> 0.9879992268 | AO14: =PRODUCT('2012IAR JMale Data'!$C5:AK5) -> 0.9874686712 | AP14: =PRODUCT('2012IAR JMale Data'!$C5:AL5) -> 0.9869433379 | AQ14: =PRODUCT('2012IAR JMale Data'!$C5:AM5) -> 0.9864242057 | AR14: =PRODUCT('2012IAR JMale Data'!$C5:AN5) -> 0.9859102787 | AS14: =PRODUCT('2012IAR JMale Data'!$C5:AO5) -> 0.985401549 | AT14: =PRODUCT('2012IAR JMale Data'!$C5:AP5) -> 0.9848684467 | AU14: =PRODUCT('2012IAR JMale Data'!$C5:AQ5) -> 0.9843021474 | AV14: =PRODUCT('2012IAR JMale Data'!$C5:AR5) -> 0.9836987702 | AW14: =PRODUCT('2012IAR JMale Data'!$C5:AS5) -> 0.9830544475 | AX14: =PRODUCT('2012IAR JMale Data'!$C5:AT5) -> 0.9823722077 | AY14: =PRODUCT('2012IAR JMale Data'!$C5:AU5) -> 0.9816511465 | AZ14: =PRODUCT('2012IAR JMale Data'!$C5:AV5) -> 0.9808893852 | BA14: =PRODUCT('2012IAR JMale Data'!$C5:AW5) -> 0.980075247 | BB14: =PRODUCT('2012IAR JMale Data'!$C5:AX5) -> 0.9791863188 | BC14: =PRODUCT('2012IAR JMale Data'!$C5:AY5) -> 0.9782032157 | BD14: =PRODUCT('2012IAR JMale Data'!$C5:AZ5) -> 0.9771095845 | BE14: =PRODUCT('2012IAR JMale Data'!$C5:BA5) -> 0.9758940602 | BF14: =PRODUCT('2012IAR JMale Data'!$C5:BB5) -> 0.9746156389 | BG14: =PRODUCT('2012IAR JMale Data'!$C5:BC5) -> 0.9732199894 | BH14: =PRODUCT('2012IAR JMale Data'!$C5:BD5) -> 0.9717932488 | BI14: =PRODUCT('2012IAR JMale Data'!$C5:BE5) -> 0.9702685052 | BJ14: =PRODUCT('2012IAR JMale Data'!$C5:BF5) -> 0.9687315999 | BK14: =PRODUCT('2012IAR JMale Data'!$C5:BG5) -> 0.9670886311 | BL14: =PRODUCT('2012IAR JMale Data'!$C5:BH5) -> 0.9654242716 | BM14: =PRODUCT('2012IAR JMale Data'!$C5:BI5) -> 0.9636285825 | BN14: =PRODUCT('2012IAR JMale Data'!$C5:BJ5) -> 0.9617986518 | BO14: =PRODUCT('2012IAR JMale Data'!$C5:BK5) -> 0.9598192702 | BP14: =PRODUCT('2012IAR JMale Data'!$C5:BL5) -> 0.9576759937 | BQ14: =PRODUCT('2012IAR JMale Data'!$C5:BM5) -> 0.9553612908 | BR14: =PRODUCT('2012IAR JMale Data'!$C5:BN5) -> 0.9528697086 | BS14: =PRODUCT('2012IAR JMale Data'!$C5:BO5) -> 0.950190239 | BT14: =PRODUCT('2012IAR JMale Data'!$C5:BP5) -> 0.9473064116 | BU14: =PRODUCT('2012IAR JMale Data'!$C5:BQ5) -> 0.9443195545 | BV14: =PRODUCT('2012IAR JMale Data'!$C5:BR5) -> 0.9412061329 | BW14: =PRODUCT('2012IAR JMale Data'!$C5:BS5) -> 0.9379363828 | BX14: =PRODUCT('2012IAR JMale Data'!$C5:BT5) -> 0.9344772734 | BY14: =PRODUCT('2012IAR JMale Data'!$C5:BU5) -> 0.9307926295 | BZ14: =PRODUCT('2012IAR JMale Data'!$C5:BV5) -> 0.926840484 | CA14: =PRODUCT('2012IAR JMale Data'!$C5:BW5) -> 0.9225714568 | CB14: =PRODUCT('2012IAR JMale Data'!$C5:BX5) -> 0.9179346126 | CC14: =PRODUCT('2012IAR JMale Data'!$C5:BY5) -> 0.9128767929 | CD14: =PRODUCT('2012IAR JMale Data'!$C5:BZ5) -> 0.9073484111 | CE14: =PRODUCT('2012IAR JMale Data'!$C5:CA5) -> 0.9012982118 | CF14: =PRODUCT('2012IAR JMale Data'!$C5:CB5) -> 0.8946718674 | CG14: =PRODUCT('2012IAR JMale Data'!$C5:CC5) -> 0.8874124999 | CH14: =PRODUCT('2012IAR JMale Data'!$C5:CD5) -> 0.8794603965 | CI14: =PRODUCT('2012IAR JMale Data'!$C5:CE5) -> 0.8707370288 | CJ14: =PRODUCT('2012IAR JMale Data'!$C5:CF5) -> 0.8603055992 | CK14: =PRODUCT('2012IAR JMale Data'!$C5:CG5) -> 0.8478716023 | CL14: =PRODUCT('2012IAR JMale Data'!$C5:CH5) -> 0.8342946344 | CM14: =PRODUCT('2012IAR JMale Data'!$C5:CI5) -> 0.8181852393 | CN14: =PRODUCT('2012IAR JMale Data'!$C5:CJ5) -> 0.7990585229 | CO14: =PRODUCT('2012IAR JMale Data'!$C5:CK5) -> 0.7763285042 | CP14: =PRODUCT('2012IAR JMale Data'!$C5:CL5) -> 0.7493386674 | CQ14: =PRODUCT('2012IAR JMale Data'!$C5:CM5) -> 0.7201234515 | CR14: =PRODUCT('2012IAR JMale Data'!$C5:CN5) -> 0.6857245944 | CS14: =PRODUCT('2012IAR JMale Data'!$C5:CO5) -> 0.6456426204 | CT14: =PRODUCT('2012IAR JMale Data'!$C5:CP5) -> 0.603695865 | CU14: =PRODUCT('2012IAR JMale Data'!$C5:CQ5) -> 0.5560944461 | CV14: =PRODUCT('2012IAR JMale Data'!$C5:CR5) -> 0.503002441 | CW14: =PRODUCT('2012IAR JMale Data'!$C5:CS5) -> 0.4501881907 | CX14: =PRODUCT('2012IAR JMale Data'!$C5:CT5) -> 0.3931961665 | CY14: =PRODUCT('2012IAR JMale Data'!$C5:CU5) -> 0.3403903146 | CZ14: =PRODUCT('2012IAR JMale Data'!$C5:CV5) -> 0.2857712847 | DA14: =PRODUCT('2012IAR JMale Data'!$C5:CW5) -> 0.2362742693 | DB14: =PRODUCT('2012IAR JMale Data'!$C5:CX5) -> 0.1877489687 | DC14: =PRODUCT('2012IAR JMale Data'!$C5:CY5) -> 0.1464680397 | DD14: =PRODUCT('2012IAR JMale Data'!$C5:CZ5) -> 0.1117663923 | DE14: =PRODUCT('2012IAR JMale Data'!$C5:DA5) -> 0.08029364686 | DF14: =PRODUCT('2012IAR JMale Data'!$C5:DB5) -> 0.05610430251 | DG14: =PRODUCT('2012IAR JMale Data'!$C5:DC5) -> 0.03611955723 | DH14: =PRODUCT('2012IAR JMale Data'!$C5:DD5) -> 0.02239412548 | DI14: =PRODUCT('2012IAR JMale Data'!$C5:DE5) -> 0.01343647529 | DJ14: =PRODUCT('2012IAR JMale Data'!$C5:DF5) -> 0.008061885173 | DK14: =PRODUCT('2012IAR JMale Data'!$C5:DG5) -> 0.004837131104 | DL14: =PRODUCT('2012IAR JMale Data'!$C5:DH5) -> 0.002902278662 | DM14: =PRODUCT('2012IAR JMale Data'!$C5:DI5) -> 0.001741367197 | DN14: =PRODUCT('2012IAR JMale Data'!$C5:DJ5) -> 0.001044820318 | DO14: =PRODUCT('2012IAR JMale Data'!$C5:DK5) -> 0.000626892191 | DP14: =PRODUCT('2012IAR JMale Data'!$C5:DL5) -> 0.0003761353146 | DQ14: =PRODUCT('2012IAR JMale Data'!$C5:DM5) -> 0.0002256811888 | DR14: =PRODUCT('2012IAR JMale Data'!$C5:DN5) -> 0.0001354087133 | DS14: =PRODUCT('2012IAR JMale Data'!$C5:DO5) -> 8.124522796e-05 | DT14: =PRODUCT('2012IAR JMale Data'!$C5:DP5) -> 4.874713678e-05 | DU14: =PRODUCT('2012IAR JMale Data'!$C5:DQ5) -> 2.924828207e-05 | DV14: =PRODUCT('2012IAR JMale Data'!$C5:DR5) -> 1.754896924e-05 | DW14: =PRODUCT('2012IAR JMale Data'!$C5:DS5) -> 0
A15: 1 | B15: =ROUND(NPV($G$4,G15:DW15),2) -> 24.05 | C15: 24.05 | H15: =PRODUCT('2012IAR JMale Data'!$D6:D6) -> 0.999599 | I15: =PRODUCT('2012IAR JMale Data'!$D6:E6) -> 0.9993271091 | J15: =PRODUCT('2012IAR JMale Data'!$D6:F6) -> 0.9991032598 | K15: =PRODUCT('2012IAR JMale Data'!$D6:G6) -> 0.9989344113 | L15: =PRODUCT('2012IAR JMale Data'!$D6:H6) -> 0.9987735829 | M15: =PRODUCT('2012IAR JMale Data'!$D6:I6) -> 0.9986167755 | N15: =PRODUCT('2012IAR JMale Data'!$D6:J6) -> 0.9984669829 | O15: =PRODUCT('2012IAR JMale Data'!$D6:K6) -> 0.9983341868 | P15: =PRODUCT('2012IAR JMale Data'!$D6:L6) -> 0.9982153851 | Q15: =PRODUCT('2012IAR JMale Data'!$D6:M6) -> 0.9981125689 | R15: =PRODUCT('2012IAR JMale Data'!$D6:N6) -> 0.9980127576 | S15: =PRODUCT('2012IAR JMale Data'!$D6:O6) -> 0.9978949921 | T15: =PRODUCT('2012IAR JMale Data'!$D6:P6) -> 0.9977453079 | U15: =PRODUCT('2012IAR JMale Data'!$D6:Q6) -> 0.9975587295 | V15: =PRODUCT('2012IAR JMale Data'!$D6:R6) -> 0.997338269 | W15: =PRODUCT('2012IAR JMale Data'!$D6:S6) -> 0.9970869398 | X15: =PRODUCT('2012IAR JMale Data'!$D6:T6) -> 0.9968087525 | Y15: =PRODUCT('2012IAR JMale Data'!$D6:U6) -> 0.9965067195 | Z15: =PRODUCT('2012IAR JMale Data'!$D6:V6) -> 0.9961848478 | AA15: =PRODUCT('2012IAR JMale Data'!$D6:W6) -> 0.9958441526 | AB15: =PRODUCT('2012IAR JMale Data'!$D6:X6) -> 0.995483657 | AC15: =PRODUCT('2012IAR JMale Data'!$D6:Y6) -> 0.9951023868 | AD15: =PRODUCT('2012IAR JMale Data'!$D6:Z6) -> 0.9946933997 | AE15: =PRODUCT('2012IAR JMale Data'!$D6:AA6) -> 0.9942557346 | AF15: =PRODUCT('2012IAR JMale Data'!$D6:AB6) -> 0.9937854516 | AG15: =PRODUCT('2012IAR JMale Data'!$D6:AC6) -> 0.9932796148 | AH15: =PRODUCT('2012IAR JMale Data'!$D6:AD6) -> 0.9927531766 | AI15: =PRODUCT('2012IAR JMale Data'!$D6:AE6) -> 0.9922160972 | AJ15: =PRODUCT('2012IAR JMale Data'!$D6:AF6) -> 0.9916713705 | AK15: =PRODUCT('2012IAR JMale Data'!$D6:AG6) -> 0.9911219846 | AL15: =PRODUCT('2012IAR JMale Data'!$D6:AH6) -> 0.9905709208 | AM15: =PRODUCT('2012IAR JMale Data'!$D6:AI6) -> 0.9900241256 | AN15: =PRODUCT('2012IAR JMale Data'!$D6:AJ6) -> 0.9894815924 | AO15: =PRODUCT('2012IAR JMale Data'!$D6:AK6) -> 0.9889443039 | AP15: =PRODUCT('2012IAR JMale Data'!$D6:AL6) -> 0.9884132408 | AQ15: =PRODUCT('2012IAR JMale Data'!$D6:AM6) -> 0.9878874049 | AR15: =PRODUCT('2012IAR JMale Data'!$D6:AN6) -> 0.9873677762 | AS15: =PRODUCT('2012IAR JMale Data'!$D6:AO6) -> 0.9868533576 | AT15: =PRODUCT('2012IAR JMale Data'!$D6:AP6) -> 0.9863145356 | AU15: =PRODUCT('2012IAR JMale Data'!$D6:AQ6) -> 0.9857424732 | AV15: =PRODUCT('2012IAR JMale Data'!$D6:AR6) -> 0.9851322986 | AW15: =PRODUCT('2012IAR JMale Data'!$D6:AS6) -> 0.984480141 | AX15: =PRODUCT('2012IAR JMale Data'!$D6:AT6) -> 0.9837900204 | AY15: =PRODUCT('2012IAR JMale Data'!$D6:AU6) -> 0.983061032 | AZ15: =PRODUCT('2012IAR JMale Data'!$D6:AV6) -> 0.9822912952 | BA15: =PRODUCT('2012IAR JMale Data'!$D6:AW6) -> 0.9814681351 | BB15: =PRODUCT('2012IAR JMale Data'!$D6:AX6) -> 0.9805691103 | BC15: =PRODUCT('2012IAR JMale Data'!$D6:AY6) -> 0.9795748133 | BD15: =PRODUCT('2012IAR JMale Data'!$D6:AZ6) -> 0.9784688733 | BE15: =PRODUCT('2012IAR JMale Data'!$D6:BA6) -> 0.9772389379 | BF15: =PRODUCT('2012IAR JMale Data'!$D6:BB6) -> 0.9759450736 | BG15: =PRODUCT('2012IAR JMale Data'!$D6:BC6) -> 0.9745319051 | BH15: =PRODUCT('2012IAR JMale Data'!$D6:BD6) -> 0.9730866743 | BI15: =PRODUCT('2012IAR JMale Data'!$D6:BE6) -> 0.9715414126 | BJ15: =PRODUCT('2012IAR JMale Data'!$D6:BF6) -> 0.9699820887 | BK15: =PRODUCT('2012IAR JMale Data'!$D6:BG6) -> 0.9683156594 | BL15: =PRODUCT('2012IAR JMale Data'!$D6:BH6) -> 0.9666249803 | BM15: =PRODUCT('2012IAR JMale Data'!$D6:BI6) -> 0.9648019256 | BN15: =PRODUCT('2012IAR JMale Data'!$D6:BJ6) -> 0.9629427523 | BO15: =PRODUCT('2012IAR JMale Data'!$D6:BK6) -> 0.9609311649 | BP15: =PRODUCT('2012IAR JMale Data'!$D6:BL6) -> 0.9587527339 | BQ15: =PRODUCT('2012IAR JMale Data'!$D6:BM6) -> 0.9563999547 | BR15: =PRODUCT('2012IAR JMale Data'!$D6:BN6) -> 0.9538674076 | BS15: =PRODUCT('2012IAR JMale Data'!$D6:BO6) -> 0.9511441162 | BT15: =PRODUCT('2012IAR JMale Data'!$D6:BP6) -> 0.9482136412 | BU15: =PRODUCT('2012IAR JMale Data'!$D6:BQ6) -> 0.9451784093 | BV15: =PRODUCT('2012IAR JMale Data'!$D6:BR6) -> 0.9420148972 | BW15: =PRODUCT('2012IAR JMale Data'!$D6:BS6) -> 0.9386924106 | BX15: =PRODUCT('2012IAR JMale Data'!$D6:BT6) -> 0.9351779462 | BY15: =PRODUCT('2012IAR JMale Data'!$D6:BU6) -> 0.9314344289 | BZ15: =PRODUCT('2012IAR JMale Data'!$D6:BV6) -> 0.9274190151 | CA15: =PRODUCT('2012IAR JMale Data'!$D6:BW6) -> 0.9230824038 | CB15: =PRODUCT('2012IAR JMale Data'!$D6:BX6) -> 0.9183719143 | CC15: =PRODUCT('2012IAR JMale Data'!$D6:BY6) -> 0.9132345418 | CD15: =PRODUCT('2012IAR JMale Data'!$D6:BZ6) -> 0.9076190626 | CE15: =PRODUCT('2012IAR JMale Data'!$D6:CA6) -> 0.9014744815 | CF15: =PRODUCT('2012IAR JMale Data'!$D6:CB6) -> 0.894745876 | CG15: =PRODUCT('2012IAR JMale Data'!$D6:CC6) -> 0.8873758542 | CH15: =PRODUCT('2012IAR JMale Data'!$D6:CD6) -> 0.8793033961 | CI15: =PRODUCT('2012IAR JMale Data'!$D6:CE6) -> 0.8704488109 | CJ15: =PRODUCT('2012IAR JMale Data'!$D6:CF6) -> 0.8598728578 | CK15: =PRODUCT('2012IAR JMale Data'!$D6:CG6) -> 0.8472817396 | CL15: =PRODUCT('2012IAR JMale Data'!$D6:CH6) -> 0.8335354406 | CM15: =PRODUCT('2012IAR JMale Data'!$D6:CI6) -> 0.817244824 | CN15: =PRODUCT('2012IAR JMale Data'!$D6:CJ6) -> 0.7979276081 | CO15: =PRODUCT('2012IAR JMale Data'!$D6:CK6) -> 0.7750007541 | CP15: =PRODUCT('2012IAR JMale Data'!$D6:CL6) -> 0.7478121776 | CQ15: =PRODUCT('2012IAR JMale Data'!$D6:CM6) -> 0.718391751 | CR15: =PRODUCT('2012IAR JMale Data'!$D6:CN6) -> 0.6837983146 | CS15: =PRODUCT('2012IAR JMale Data'!$D6:CO6) -> 0.6435472106 | CT15: =PRODUCT('2012IAR JMale Data'!$D6:CP6) -> 0.6014418472 | CU15: =PRODUCT('2012IAR JMale Data'!$D6:CQ6) -> 0.5537318713 | CV15: =PRODUCT('2012IAR JMale Data'!$D6:CR6) -> 0.5006001908 | CW15: =PRODUCT('2012IAR JMale Data'!$D6:CS6) -> 0.4477743556 | CX15: =PRODUCT('2012IAR JMale Data'!$D6:CT6) -> 0.3908604439 | CY15: =PRODUCT('2012IAR JMale Data'!$D6:CU6) -> 0.3381576034 | CZ15: =PRODUCT('2012IAR JMale Data'!$D6:CV6) -> 0.2837338424 | DA15: =PRODUCT('2012IAR JMale Data'!$D6:CW6) -> 0.2344416131 | DB15: =PRODUCT('2012IAR JMale Data'!$D6:CX6) -> 0.186196108 | DC15: =PRODUCT('2012IAR JMale Data'!$D6:CY6) -> 0.1451746849 | DD15: =PRODUCT('2012IAR JMale Data'!$D6:CZ6) -> 0.1107106502 | DE15: =PRODUCT('2012IAR JMale Data'!$D6:DA6) -> 0.07950397497 | DF15: =PRODUCT('2012IAR JMale Data'!$D6:DB6) -> 0.05552859727 | DG15: =PRODUCT('2012IAR JMale Data'!$D6:DC6) -> 0.03574892222 | DH15: =PRODUCT('2012IAR JMale Data'!$D6:DD6) -> 0.02216433178 | DI15: =PRODUCT('2012IAR JMale Data'!$D6:DE6) -> 0.01329859907 | DJ15: =PRODUCT('2012IAR JMale Data'!$D6:DF6) -> 0.00797915944 | DK15: =PRODUCT('2012IAR JMale Data'!$D6:DG6) -> 0.004787495664 | DL15: =PRODUCT('2012IAR JMale Data'!$D6:DH6) -> 0.002872497398 | DM15: =PRODUCT('2012IAR JMale Data'!$D6:DI6) -> 0.001723498439 | DN15: =PRODUCT('2012IAR JMale Data'!$D6:DJ6) -> 0.001034099063 | DO15: =PRODUCT('2012IAR JMale Data'!$D6:DK6) -> 0.0006204594381 | DP15: =PRODUCT('2012IAR JMale Data'!$D6:DL6) -> 0.0003722756628 | DQ15: =PRODUCT('2012IAR JMale Data'!$D6:DM6) -> 0.0002233653977 | DR15: =PRODUCT('2012IAR JMale Data'!$D6:DN6) -> 0.0001340192386 | DS15: =PRODUCT('2012IAR JMale Data'!$D6:DO6) -> 8.041154317e-05 | DT15: =PRODUCT('2012IAR JMale Data'!$D6:DP6) -> 4.82469259e-05 | DU15: =PRODUCT('2012IAR JMale Data'!$D6:DQ6) -> 2.894815554e-05 | DV15: =PRODUCT('2012IAR JMale Data'!$D6:DR6) -> 1.736889333e-05 | DW15: =PRODUCT('2012IAR JMale Data'!$D6:DS6) -> 0
A16: 2 | B16: 24.02 | C16: 24.02 | I16: =PRODUCT('2012IAR JMale Data'!$E7:E7) -> 0.999725 | J16: =PRODUCT('2012IAR JMale Data'!$E7:F7) -> 0.9994980624 | K16: =PRODUCT('2012IAR JMale Data'!$E7:G7) -> 0.9993271483 | L16: =PRODUCT('2012IAR JMale Data'!$E7:H7) -> 0.9991642579 | M16: =PRODUCT('2012IAR JMale Data'!$E7:I7) -> 0.99900639 | N16: =PRODUCT('2012IAR JMale Data'!$E7:J7) -> 0.99885554 | O16: =PRODUCT('2012IAR JMale Data'!$E7:K7) -> 0.9987206945 | P16: =PRODUCT('2012IAR JMale Data'!$E7:L7) -> 0.998600848 | Q16: =PRODUCT('2012IAR JMale Data'!$E7:M7) -> 0.9984969935 | R16: =PRODUCT('2012IAR JMale Data'!$E7:N7) -> 0.9983961453 | S16: =PRODUCT('2012IAR JMale Data'!$E7:O7) -> 0.9982773362 | T16: =PRODUCT('2012IAR JMale Data'!$E7:P7) -> 0.9981265963 | U16: =PRODUCT('2012IAR JMale Data'!$E7:Q7) -> 0.9979379504 | V16: =PRODUCT('2012IAR JMale Data'!$E7:R7) -> 0.9977154102 | W16: =PRODUCT('2012IAR JMale Data'!$E7:S7) -> 0.9974609928 | X16: =PRODUCT('2012IAR JMale Data'!$E7:T7) -> 0.9971797088 | Y16: =PRODUCT('2012IAR JMale Data'!$E7:U7) -> 0.9968745718 | Z16: =PRODUCT('2012IAR JMale Data'!$E7:V7) -> 0.9965495907 | AA16: =PRODUCT('2012IAR JMale Data'!$E7:W7) -> 0.9962057811 | AB16: =PRODUCT('2012IAR JMale Data'!$E7:X7) -> 0.9958411698 | AC16: =PRODUCT('2012IAR JMale Data'!$E7:Y7) -> 0.9954557793 | AD16: =PRODUCT('2012IAR JMale Data'!$E7:Z7) -> 0.9950426651 | AE16: =PRODUCT('2012IAR JMale Data'!$E7:AA7) -> 0.9946008662 | AF16: =PRODUCT('2012IAR JMale Data'!$E7:AB7) -> 0.9941254469 | AG16: =PRODUCT('2012IAR JMale Data'!$E7:AC7) -> 0.9936134723 | AH16: =PRODUCT('2012IAR JMale Data'!$E7:AD7) -> 0.9930818891 | AI16: =PRODUCT('2012IAR JMale Data'!$E7:AE7) -> 0.9925386733 | AJ16: =PRODUCT('2012IAR JMale Data'!$E7:AF7) -> 0.9919888069 | AK16: =PRODUCT('2012IAR JMale Data'!$E7:AG7) -> 0.9914342852 | AL16: =PRODUCT('2012IAR JMale Data'!$E7:AH7) -> 0.9908780905 | AM16: =PRODUCT('2012IAR JMale Data'!$E7:AI7) -> 0.9903251806 | AN16: =PRODUCT('2012IAR JMale Data'!$E7:AJ7) -> 0.9897765404 | AO16: =PRODUCT('2012IAR JMale Data'!$E7:AK7) -> 0.9892341429 | AP16: =PRODUCT('2012IAR JMale Data'!$E7:AL7) -> 0.9886969887 | AQ16: =PRODUCT('2012IAR JMale Data'!$E7:AM7) -> 0.9881660584 | AR16: =PRODUCT('2012IAR JMale Data'!$E7:AN7) -> 0.9876403541 | AS16: =PRODUCT('2012IAR JMale Data'!$E7:AO7) -> 0.9871208553 | AT16: =PRODUCT('2012IAR JMale Data'!$E7:AP7) -> 0.9865759646 | AU16: =PRODUCT('2012IAR JMale Data'!$E7:AQ7) -> 0.985997831 | AV16: =PRODUCT('2012IAR JMale Data'!$E7:AR7) -> 0.9853805964 | AW16: =PRODUCT('2012IAR JMale Data'!$E7:AS7) -> 0.9847223622 | AX16: =PRODUCT('2012IAR JMale Data'!$E7:AT7) -> 0.9840251787 | AY16: =PRODUCT('2012IAR JMale Data'!$E7:AU7) -> 0.9832881439 | AZ16: =PRODUCT('2012IAR JMale Data'!$E7:AV7) -> 0.982510363 | BA16: =PRODUCT('2012IAR JMale Data'!$E7:AW7) -> 0.9816781767 | BB16: =PRODUCT('2012IAR JMale Data'!$E7:AX7) -> 0.9807701244 | BC16: =PRODUCT('2012IAR JMale Data'!$E7:AY7) -> 0.979764835 | BD16: =PRODUCT('2012IAR JMale Data'!$E7:AZ7) -> 0.9786479031 | BE16: =PRODUCT('2012IAR JMale Data'!$E7:BA7) -> 0.9774050202 | BF16: =PRODUCT('2012IAR JMale Data'!$E7:BB7) -> 0.9760962749 | BG16: =PRODUCT('2012IAR JMale Data'!$E7:BC7) -> 0.97466727 | BH16: =PRODUCT('2012IAR JMale Data'!$E7:BD7) -> 0.9732042944 | BI16: =PRODUCT('2012IAR JMale Data'!$E7:BE7) -> 0.9716403551 | BJ16: =PRODUCT('2012IAR JMale Data'!$E7:BF7) -> 0.9700604679 | BK16: =PRODUCT('2012IAR JMale Data'!$E7:BG7) -> 0.9683715926 | BL16: =PRODUCT('2012IAR JMale Data'!$E7:BH7) -> 0.9666566065 | BM16: =PRODUCT('2012IAR JMale Data'!$E7:BI7) -> 0.9648073924 | BN16: =PRODUCT('2012IAR JMale Data'!$E7:BJ7) -> 0.9629192644 | BO16: =PRODUCT('2012IAR JMale Data'!$E7:BK7) -> 0.9608769126 | BP16: =PRODUCT('2012IAR JMale Data'!$E7:BL7) -> 0.9586659348 | BQ16: =PRODUCT('2012IAR JMale Data'!$E7:BM7) -> 0.956277898 | BR16: =PRODUCT('2012IAR JMale Data'!$E7:BN7) -> 0.953707423 | BS16: =PRODUCT('2012IAR JMale Data'!$E7:BO7) -> 0.9509435789 | BT16: =PRODUCT('2012IAR JMale Data'!$E7:BP7) -> 0.9479690274 | BU16: =PRODUCT('2012IAR JMale Data'!$E7:BQ7) -> 0.944889076 | BV16: =PRODUCT('2012IAR JMale Data'!$E7:BR7) -> 0.9416783429 | BW16: =PRODUCT('2012IAR JMale Data'!$E7:BS7) -> 0.9383071344 | BX16: =PRODUCT('2012IAR JMale Data'!$E7:BT7) -> 0.934740629 | BY16: =PRODUCT('2012IAR JMale Data'!$E7:BU7) -> 0.9309418431 | BZ16: =PRODUCT('2012IAR JMale Data'!$E7:BV7) -> 0.9268671107 | CA16: =PRODUCT('2012IAR JMale Data'!$E7:BW7) -> 0.9224672725 | CB16: =PRODUCT('2012IAR JMale Data'!$E7:BX7) -> 0.9176879696 | CC16: =PRODUCT('2012IAR JMale Data'!$E7:BY7) -> 0.9124764196 | CD16: =PRODUCT('2012IAR JMale Data'!$E7:BZ7) -> 0.9067807418 | CE16: =PRODUCT('2012IAR JMale Data'!$E7:CA7) -> 0.9005484377 | CF16: =PRODUCT('2012IAR JMale Data'!$E7:CB7) -> 0.8937249822 | CG16: =PRODUCT('2012IAR JMale Data'!$E7:CC7) -> 0.8862507602 | CH16: =PRODUCT('2012IAR JMale Data'!$E7:CD7) -> 0.8780653482 | CI16: =PRODUCT('2012IAR JMale Data'!$E7:CE7) -> 0.869088008 | CJ16: =PRODUCT('2012IAR JMale Data'!$E7:CF7) -> 0.8583791056 | CK16: =PRODUCT('2012IAR JMale Data'!$E7:CG7) -> 0.8456441932 | CL16: =PRODUCT('2012IAR JMale Data'!$E7:CH7) -> 0.8317434939 | CM16: =PRODUCT('2012IAR JMale Data'!$E7:CI7) -> 0.8152907759 | CN16: =PRODUCT('2012IAR JMale Data'!$E7:CJ7) -> 0.7958053264 | CO16: =PRODUCT('2012IAR JMale Data'!$E7:CK7) -> 0.7727078726 | CP16: =PRODUCT('2012IAR JMale Data'!$E7:CL7) -> 0.7453532412 | CQ16: =PRODUCT('2012IAR JMale Data'!$E7:CM7) -> 0.7157627175 | CR16: =PRODUCT('2012IAR JMale Data'!$E7:CN7) -> 0.6810181637 | CS16: =PRODUCT('2012IAR JMale Data'!$E7:CO7) -> 0.6406480879 | CT16: =PRODUCT('2012IAR JMale Data'!$E7:CP7) -> 0.5984370667 | CU16: =PRODUCT('2012IAR JMale Data'!$E7:CQ7) -> 0.5506787966 | CV16: =PRODUCT('2012IAR JMale Data'!$E7:CR7) -> 0.4975746375 | CW16: =PRODUCT('2012IAR JMale Data'!$E7:CS7) -> 0.4448038618 | CX16: =PRODUCT('2012IAR JMale Data'!$E7:CT7) -> 0.388040217 | CY16: =PRODUCT('2012IAR JMale Data'!$E7:CU7) -> 0.3355073324 | CZ16: =PRODUCT('2012IAR JMale Data'!$E7:CV7) -> 0.2813473902 | DA16: =PRODUCT('2012IAR JMale Data'!$E7:CW7) -> 0.2323228888 | DB16: =PRODUCT('2012IAR JMale Data'!$E7:CX7) -> 0.1844176768 | DC16: =PRODUCT('2012IAR JMale Data'!$E7:CY7) -> 0.1437065526 | DD16: =PRODUCT('2012IAR JMale Data'!$E7:CZ7) -> 0.1095226438 | DE16: =PRODUCT('2012IAR JMale Data'!$E7:DA7) -> 0.07861984415 | DF16: =PRODUCT('2012IAR JMale Data'!$E7:DB7) -> 0.05488734352 | DG16: =PRODUCT('2012IAR JMale Data'!$E7:DC7) -> 0.03533608754 | DH16: =PRODUCT('2012IAR JMale Data'!$E7:DD7) -> 0.02190837428 | DI16: =PRODUCT('2012IAR JMale Data'!$E7:DE7) -> 0.01314502457 | DJ16: =PRODUCT('2012IAR JMale Data'!$E7:DF7) -> 0.00788701474 | DK16: =PRODUCT('2012IAR JMale Data'!$E7:DG7) -> 0.004732208844 | DL16: =PRODUCT('2012IAR JMale Data'!$E7:DH7) -> 0.002839325306 | DM16: =PRODUCT('2012IAR JMale Data'!$E7:DI7) -> 0.001703595184 | DN16: =PRODUCT('2012IAR JMale Data'!$E7:DJ7) -> 0.00102215711 | DO16: =PRODUCT('2012IAR JMale Data'!$E7:DK7) -> 0.0006132942662 | DP16: =PRODUCT('2012IAR JMale Data'!$E7:DL7) -> 0.0003679765597 | DQ16: =PRODUCT('2012IAR JMale Data'!$E7:DM7) -> 0.0002207859358 | DR16: =PRODUCT('2012IAR JMale Data'!$E7:DN7) -> 0.0001324715615 | DS16: =PRODUCT('2012IAR JMale Data'!$E7:DO7) -> 7.94829369e-05 | DT16: =PRODUCT('2012IAR JMale Data'!$E7:DP7) -> 4.768976214e-05 | DU16: =PRODUCT('2012IAR JMale Data'!$E7:DQ7) -> 2.861385728e-05 | DV16: =PRODUCT('2012IAR JMale Data'!$E7:DR7) -> 1.716831437e-05 | DW16: =PRODUCT('2012IAR JMale Data'!$E7:DS7) -> 0
A17: 3 | B17: 23.98 | C17: 23.98 | J17: =PRODUCT('2012IAR JMale Data'!$F8:F8) -> 0.999771 | K17: =PRODUCT('2012IAR JMale Data'!$F8:G8) -> 0.9995990394 | L17: =PRODUCT('2012IAR JMale Data'!$F8:H8) -> 0.9994341055 | M17: =PRODUCT('2012IAR JMale Data'!$F8:I8) -> 0.9992741961 | N17: =PRODUCT('2012IAR JMale Data'!$F8:J8) -> 0.9991213071 | O17: =PRODUCT('2012IAR JMale Data'!$F8:K8) -> 0.9989854266 | P17: =PRODUCT('2012IAR JMale Data'!$F8:L8) -> 0.9988645494 | Q17: =PRODUCT('2012IAR JMale Data'!$F8:M8) -> 0.9987596686 | R17: =PRODUCT('2012IAR JMale Data'!$F8:N8) -> 0.9986577951 | S17: =PRODUCT('2012IAR JMale Data'!$F8:O8) -> 0.9985369575 | T17: =PRODUCT('2012IAR JMale Data'!$F8:P8) -> 0.9983841814 | U17: =PRODUCT('2012IAR JMale Data'!$F8:Q8) -> 0.99819349 | V17: =PRODUCT('2012IAR JMale Data'!$F8:R8) -> 0.9979688965 | W17: =PRODUCT('2012IAR JMale Data'!$F8:S8) -> 0.9977124185 | X17: =PRODUCT('2012IAR JMale Data'!$F8:T8) -> 0.9974280704 | Y17: =PRODUCT('2012IAR JMale Data'!$F8:U8) -> 0.9971198652 | Z17: =PRODUCT('2012IAR JMale Data'!$F8:V8) -> 0.9967908156 | AA17: =PRODUCT('2012IAR JMale Data'!$F8:W8) -> 0.9964429356 | AB17: =PRODUCT('2012IAR JMale Data'!$F8:X8) -> 0.9960742517 | AC17: =PRODUCT('2012IAR JMale Data'!$F8:Y8) -> 0.9956847867 | AD17: =PRODUCT('2012IAR JMale Data'!$F8:Z8) -> 0.9952665991 | AE17: =PRODUCT('2012IAR JMale Data'!$F8:AA8) -> 0.9948197244 | AF17: =PRODUCT('2012IAR JMale Data'!$F8:AB8) -> 0.9943392264 | AG17: =PRODUCT('2012IAR JMale Data'!$F8:AC8) -> 0.9938221701 | AH17: =PRODUCT('2012IAR JMale Data'!$F8:AD8) -> 0.9932845123 | AI17: =PRODUCT('2012IAR JMale Data'!$F8:AE8) -> 0.9927362192 | AJ17: =PRODUCT('2012IAR JMale Data'!$F8:AF8) -> 0.9921802869 | AK17: =PRODUCT('2012IAR JMale Data'!$F8:AG8) -> 0.9916197051 | AL17: =PRODUCT('2012IAR JMale Data'!$F8:AH8) -> 0.9910574567 | AM17: =PRODUCT('2012IAR JMale Data'!$F8:AI8) -> 0.9904994913 | AN17: =PRODUCT('2012IAR JMale Data'!$F8:AJ8) -> 0.9899458021 | AO17: =PRODUCT('2012IAR JMale Data'!$F8:AK8) -> 0.9893973722 | AP17: =PRODUCT('2012IAR JMale Data'!$F8:AL8) -> 0.9888551824 | AQ17: =PRODUCT('2012IAR JMale Data'!$F8:AM8) -> 0.988318234 | AR17: =PRODUCT('2012IAR JMale Data'!$F8:AN8) -> 0.9877875071 | AS17: =PRODUCT('2012IAR JMale Data'!$F8:AO8) -> 0.9872620042 | AT17: =PRODUCT('2012IAR JMale Data'!$F8:AP8) -> 0.9867120992 | AU17: =PRODUCT('2012IAR JMale Data'!$F8:AQ8) -> 0.9861279657 | AV17: =PRODUCT('2012IAR JMale Data'!$F8:AR8) -> 0.9855047328 | AW17: =PRODUCT('2012IAR JMale Data'!$F8:AS8) -> 0.9848395171 | AX17: =PRODUCT('2012IAR JMale Data'!$F8:AT8) -> 0.9841353569 | AY17: =PRODUCT('2012IAR JMale Data'!$F8:AU8) -> 0.9833913505 | AZ17: =PRODUCT('2012IAR JMale Data'!$F8:AV8) -> 0.9826056208 | BA17: =PRODUCT('2012IAR JMale Data'!$F8:AW8) -> 0.9817645104 | BB17: =PRODUCT('2012IAR JMale Data'!$F8:AX8) -> 0.9808475424 | BC17: =PRODUCT('2012IAR JMale Data'!$F8:AY8) -> 0.9798323652 | BD17: =PRODUCT('2012IAR JMale Data'!$F8:AZ8) -> 0.9787035983 | BE17: =PRODUCT('2012IAR JMale Data'!$F8:BA8) -> 0.9774479216 | BF17: =PRODUCT('2012IAR JMale Data'!$F8:BB8) -> 0.9761244571 | BG17: =PRODUCT('2012IAR JMale Data'!$F8:BC8) -> 0.9746797929 | BH17: =PRODUCT('2012IAR JMale Data'!$F8:BD8) -> 0.9731982796 | BI17: =PRODUCT('2012IAR JMale Data'!$F8:BE8) -> 0.971614886 | BJ17: =PRODUCT('2012IAR JMale Data'!$F8:BF8) -> 0.9700136647 | BK17: =PRODUCT('2012IAR JMale Data'!$F8:BG8) -> 0.9683025606 | BL17: =PRODUCT('2012IAR JMale Data'!$F8:BH8) -> 0.9665634892 | BM17: =PRODUCT('2012IAR JMale Data'!$F8:BI8) -> 0.964688356 | BN17: =PRODUCT('2012IAR JMale Data'!$F8:BJ8) -> 0.9627715202 | BO17: =PRODUCT('2012IAR JMale Data'!$F8:BK8) -> 0.9606986731 | BP17: =PRODUCT('2012IAR JMale Data'!$F8:BL8) -> 0.9584535203 | BQ17: =PRODUCT('2012IAR JMale Data'!$F8:BM8) -> 0.9560295914 | BR17: =PRODUCT('2012IAR JMale Data'!$F8:BN8) -> 0.9534205866 | BS17: =PRODUCT('2012IAR JMale Data'!$F8:BO8) -> 0.9506146699 | BT17: =PRODUCT('2012IAR JMale Data'!$F8:BP8) -> 0.9475955177 | BU17: =PRODUCT('2012IAR JMale Data'!$F8:BQ8) -> 0.9444694001 | BV17: =PRODUCT('2012IAR JMale Data'!$F8:BR8) -> 0.9412109806 | BW17: =PRODUCT('2012IAR JMale Data'!$F8:BS8) -> 0.9377896787 | BX17: =PRODUCT('2012IAR JMale Data'!$F8:BT8) -> 0.9341707483 | BY17: =PRODUCT('2012IAR JMale Data'!$F8:BU8) -> 0.9303163598 | BZ17: =PRODUCT('2012IAR JMale Data'!$F8:BV8) -> 0.9261829642 | CA17: =PRODUCT('2012IAR JMale Data'!$F8:BW8) -> 0.9217187624 | CB17: =PRODUCT('2012IAR JMale Data'!$F8:BX8) -> 0.9168705217 | CC17: =PRODUCT('2012IAR JMale Data'!$F8:BY8) -> 0.9115847631 | CD17: =PRODUCT('2012IAR JMale Data'!$F8:BZ8) -> 0.9058080505 | CE17: =PRODUCT('2012IAR JMale Data'!$F8:CA8) -> 0.8994873219 | CF17: =PRODUCT('2012IAR JMale Data'!$F8:CB8) -> 0.8925675659 | CG17: =PRODUCT('2012IAR JMale Data'!$F8:CC8) -> 0.8849896673 | CH17: =PRODUCT('2012IAR JMale Data'!$F8:CD8) -> 0.8766920042 | CI17: =PRODUCT('2012IAR JMale Data'!$F8:CE8) -> 0.8675928179 | CJ17: =PRODUCT('2012IAR JMale Data'!$F8:CF8) -> 0.8567505104 | CK17: =PRODUCT('2012IAR JMale Data'!$F8:CG8) -> 0.8438726935 | CL17: =PRODUCT('2012IAR JMale Data'!$F8:CH8) -> 0.8298188376 | CM17: =PRODUCT('2012IAR JMale Data'!$F8:CI8) -> 0.8132050347 | CN17: =PRODUCT('2012IAR JMale Data'!$F8:CJ8) -> 0.7935531218 | CO17: =PRODUCT('2012IAR JMale Data'!$F8:CK8) -> 0.770288525 | CP17: =PRODUCT('2012IAR JMale Data'!$F8:CL8) -> 0.7427722783 | CQ17: =PRODUCT('2012IAR JMale Data'!$F8:CM8) -> 0.7130168208 | CR17: =PRODUCT('2012IAR JMale Data'!$F8:CN8) -> 0.6781267687 | CS17: =PRODUCT('2012IAR JMale Data'!$F8:CO8) -> 0.637644635 | CT17: =PRODUCT('2012IAR JMale Data'!$F8:CP8) -> 0.5953350005 | CU17: =PRODUCT('2012IAR JMale Data'!$F8:CQ8) -> 0.5475379347 | CV17: =PRODUCT('2012IAR JMale Data'!$F8:CR8) -> 0.4944711056 | CW17: =PRODUCT('2012IAR JMale Data'!$F8:CS8) -> 0.4417659249 | CX17: =PRODUCT('2012IAR JMale Data'!$F8:CT8) -> 0.3851637823 | CY17: =PRODUCT('2012IAR JMale Data'!$F8:CU8) -> 0.3328111655 | CZ17: =PRODUCT('2012IAR JMale Data'!$F8:CV8) -> 0.2789250441 | DA17: =PRODUCT('2012IAR JMale Data'!$F8:CW8) -> 0.2301761984 | DB17: =PRODUCT('2012IAR JMale Data'!$F8:CX8) -> 0.1826183432 | DC17: =PRODUCT('2012IAR JMale Data'!$F8:CY8) -> 0.1422237135 | DD17: =PRODUCT('2012IAR JMale Data'!$F8:CZ8) -> 0.1083246914 | DE17: =PRODUCT('2012IAR JMale Data'!$F8:DA8) -> 0.07772935724 | DF17: =PRODUCT('2012IAR JMale Data'!$F8:DB8) -> 0.05424218828 | DG17: =PRODUCT('2012IAR JMale Data'!$F8:DC8) -> 0.03492074112 | DH17: =PRODUCT('2012IAR JMale Data'!$F8:DD8) -> 0.02165085949 | DI17: =PRODUCT('2012IAR JMale Data'!$F8:DE8) -> 0.0129905157 | DJ17: =PRODUCT('2012IAR JMale Data'!$F8:DF8) -> 0.007794309417 | DK17: =PRODUCT('2012IAR JMale Data'!$F8:DG8) -> 0.00467658565 | DL17: =PRODUCT('2012IAR JMale Data'!$F8:DH8) -> 0.00280595139 | DM17: =PRODUCT('2012IAR JMale Data'!$F8:DI8) -> 0.001683570834 | DN17: =PRODUCT('2012IAR JMale Data'!$F8:DJ8) -> 0.001010142501 | DO17: =PRODUCT('2012IAR JMale Data'!$F8:DK8) -> 0.0006060855003 | DP17: =PRODUCT('2012IAR JMale Data'!$F8:DL8) -> 0.0003636513002 | DQ17: =PRODUCT('2012IAR JMale Data'!$F8:DM8) -> 0.0002181907801 | DR17: =PRODUCT('2012IAR JMale Data'!$F8:DN8) -> 0.0001309144681 | DS17: =PRODUCT('2012IAR JMale Data'!$F8:DO8) -> 7.854868084e-05 | DT17: =PRODUCT('2012IAR JMale Data'!$F8:DP8) -> 4.71292085e-05 | DU17: =PRODUCT('2012IAR JMale Data'!$F8:DQ8) -> 2.82775251e-05 | DV17: =PRODUCT('2012IAR JMale Data'!$F8:DR8) -> 1.696651506e-05 | DW17: =PRODUCT('2012IAR JMale Data'!$F8:DS8) -> 0
A18: 4 | B18: 23.94 | C18: 23.94 | K18: =PRODUCT('2012IAR JMale Data'!$G9:G9) -> 0.999826 | L18: =PRODUCT('2012IAR JMale Data'!$G9:H9) -> 0.9996600289 | M18: =PRODUCT('2012IAR JMale Data'!$G9:I9) -> 0.999498084 | N18: =PRODUCT('2012IAR JMale Data'!$G9:J9) -> 0.9993441613 | O18: =PRODUCT('2012IAR JMale Data'!$G9:K9) -> 0.9992072511 | P18: =PRODUCT('2012IAR JMale Data'!$G9:L9) -> 0.9990843486 | Q18: =PRODUCT('2012IAR JMale Data'!$G9:M9) -> 0.9989784457 | R18: =PRODUCT('2012IAR JMale Data'!$G9:N9) -> 0.9988755509 | S18: =PRODUCT('2012IAR JMale Data'!$G9:O9) -> 0.9987536881 | T18: =PRODUCT('2012IAR JMale Data'!$G9:P9) -> 0.99859988 | U18: =PRODUCT('2012IAR JMale Data'!$G9:Q9) -> 0.9984071502 | V18: =PRODUCT('2012IAR JMale Data'!$G9:R9) -> 0.9981805118 | W18: =PRODUCT('2012IAR JMale Data'!$G9:S9) -> 0.9979209849 | X18: =PRODUCT('2012IAR JMale Data'!$G9:T9) -> 0.9976335836 | Y18: =PRODUCT('2012IAR JMale Data'!$G9:U9) -> 0.997322322 | Z18: =PRODUCT('2012IAR JMale Data'!$G9:V9) -> 0.9969902136 | AA18: =PRODUCT('2012IAR JMale Data'!$G9:W9) -> 0.9966382761 | AB18: =PRODUCT('2012IAR JMale Data'!$G9:X9) -> 0.99626653 | AC18: =PRODUCT('2012IAR JMale Data'!$G9:Y9) -> 0.9958730047 | AD18: =PRODUCT('2012IAR JMale Data'!$G9:Z9) -> 0.9954507546 | AE18: =PRODUCT('2012IAR JMale Data'!$G9:AA9) -> 0.9949998154 | AF18: =PRODUCT('2012IAR JMale Data'!$G9:AB9) -> 0.9945152505 | AG18: =PRODUCT('2012IAR JMale Data'!$G9:AC9) -> 0.99399313 | AH18: =PRODUCT('2012IAR JMale Data'!$G9:AD9) -> 0.9934504097 | AI18: =PRODUCT('2012IAR JMale Data'!$G9:AE9) -> 0.9928960644 | AJ18: =PRODUCT('2012IAR JMale Data'!$G9:AF9) -> 0.9923350781 | AK18: =PRODUCT('2012IAR JMale Data'!$G9:AG9) -> 0.9917684548 | AL18: =PRODUCT('2012IAR JMale Data'!$G9:AH9) -> 0.9912001714 | AM18: =PRODUCT('2012IAR JMale Data'!$G9:AI9) -> 0.9906361785 | AN18: =PRODUCT('2012IAR JMale Data'!$G9:AJ9) -> 0.9900764691 | AO18: =PRODUCT('2012IAR JMale Data'!$G9:AK9) -> 0.9895230164 | AP18: =PRODUCT('2012IAR JMale Data'!$G9:AL9) -> 0.9889748206 | AQ18: =PRODUCT('2012IAR JMale Data'!$G9:AM9) -> 0.9884328624 | AR18: =PRODUCT('2012IAR JMale Data'!$G9:AN9) -> 0.9878961434 | AS18: =PRODUCT('2012IAR JMale Data'!$G9:AO9) -> 0.9873656431 | AT18: =PRODUCT('2012IAR JMale Data'!$G9:AP9) -> 0.9868097563 | AU18: =PRODUCT('2012IAR JMale Data'!$G9:AQ9) -> 0.986219644 | AV18: =PRODUCT('2012IAR JMale Data'!$G9:AR9) -> 0.9855904359 | AW18: =PRODUCT('2012IAR JMale Data'!$G9:AS9) -> 0.9849182632 | AX18: =PRODUCT('2012IAR JMale Data'!$G9:AT9) -> 0.9842071522 | AY18: =PRODUCT('2012IAR JMale Data'!$G9:AU9) -> 0.983455218 | AZ18: =PRODUCT('2012IAR JMale Data'!$G9:AV9) -> 0.9826615696 | BA18: =PRODUCT('2012IAR JMale Data'!$G9:AW9) -> 0.98181255 | BB18: =PRODUCT('2012IAR JMale Data'!$G9:AX9) -> 0.980885719 | BC18: =PRODUCT('2012IAR JMale Data'!$G9:AY9) -> 0.9798597125 | BD18: =PRODUCT('2012IAR JMale Data'!$G9:AZ9) -> 0.9787191558 | BE18: =PRODUCT('2012IAR JMale Data'!$G9:BA9) -> 0.9774507358 | BF18: =PRODUCT('2012IAR JMale Data'!$G9:BB9) -> 0.9761126057 | BG18: =PRODUCT('2012IAR JMale Data'!$G9:BC9) -> 0.9746513652 | BH18: =PRODUCT('2012IAR JMale Data'!$G9:BD9) -> 0.9731523514 | BI18: =PRODUCT('2012IAR JMale Data'!$G9:BE9) -> 0.9715505426 | BJ18: =PRODUCT('2012IAR JMale Data'!$G9:BF9) -> 0.9699280532 | BK18: =PRODUCT('2012IAR JMale Data'!$G9:BG9) -> 0.9681947918 | BL18: =PRODUCT('2012IAR JMale Data'!$G9:BH9) -> 0.966431709 | BM18: =PRODUCT('2012IAR JMale Data'!$G9:BI9) -> 0.9645297714 | BN18: =PRODUCT('2012IAR JMale Data'!$G9:BJ9) -> 0.9625843149 | BO18: =PRODUCT('2012IAR JMale Data'!$G9:BK9) -> 0.9604801056 | BP18: =PRODUCT('2012IAR JMale Data'!$G9:BL9) -> 0.9582018468 | BQ18: =PRODUCT('2012IAR JMale Data'!$G9:BM9) -> 0.9557411844 | BR18: =PRODUCT('2012IAR JMale Data'!$G9:BN9) -> 0.9530928256 | BS18: =PRODUCT('2012IAR JMale Data'!$G9:BO9) -> 0.9502459373 | BT18: =PRODUCT('2012IAR JMale Data'!$G9:BP9) -> 0.9471823444 | BU18: =PRODUCT('2012IAR JMale Data'!$G9:BQ9) -> 0.9440102308 | BV18: =PRODUCT('2012IAR JMale Data'!$G9:BR9) -> 0.9407043069 | BW18: =PRODUCT('2012IAR JMale Data'!$G9:BS9) -> 0.937233108 | BX18: =PRODUCT('2012IAR JMale Data'!$G9:BT9) -> 0.9335610287 | BY18: =PRODUCT('2012IAR JMale Data'!$G9:BU9) -> 0.9296512751 | BZ18: =PRODUCT('2012IAR JMale Data'!$G9:BV9) -> 0.9254576182 | CA18: =PRODUCT('2012IAR JMale Data'!$G9:BW9) -> 0.9209293541 | CB18: =PRODUCT('2012IAR JMale Data'!$G9:BX9) -> 0.9160115913 | CC18: =PRODUCT('2012IAR JMale Data'!$G9:BY9) -> 0.9106501755 | CD18: =PRODUCT('2012IAR JMale Data'!$G9:BZ9) -> 0.9047910523 | CE18: =PRODUCT('2012IAR JMale Data'!$G9:CA9) -> 0.8983815125 | CF18: =PRODUCT('2012IAR JMale Data'!$G9:CB9) -> 0.8913651528 | CG18: =PRODUCT('2012IAR JMale Data'!$G9:CC9) -> 0.8836824766 | CH18: =PRODUCT('2012IAR JMale Data'!$G9:CD9) -> 0.8752707031 | CI18: =PRODUCT('2012IAR JMale Data'!$G9:CE9) -> 0.8660479757 | CJ18: =PRODUCT('2012IAR JMale Data'!$G9:CF9) -> 0.8550708176 | CK18: =PRODUCT('2012IAR JMale Data'!$G9:CG9) -> 0.8420489441 | CL18: =PRODUCT('2012IAR JMale Data'!$G9:CH9) -> 0.8278402102 | CM18: =PRODUCT('2012IAR JMale Data'!$G9:CI9) -> 0.8110640284 | CN18: =PRODUCT('2012IAR JMale Data'!$G9:CJ9) -> 0.7912464899 | CO18: =PRODUCT('2012IAR JMale Data'!$G9:CK9) -> 0.7678153076 | CP18: =PRODUCT('2012IAR JMale Data'!$G9:CL9) -> 0.7401378692 | CQ18: =PRODUCT('2012IAR JMale Data'!$G9:CM9) -> 0.710218536 | CR18: =PRODUCT('2012IAR JMale Data'!$G9:CN9) -> 0.675184876 | CS18: =PRODUCT('2012IAR JMale Data'!$G9:CO9) -> 0.6345947869 | CT18: =PRODUCT('2012IAR JMale Data'!$G9:CP9) -> 0.5921911632 | CU18: =PRODUCT('2012IAR JMale Data'!$G9:CQ9) -> 0.5443592908 | CV18: =PRODUCT('2012IAR JMale Data'!$G9:CR9) -> 0.4913354297 | CW18: =PRODUCT('2012IAR JMale Data'!$G9:CS9) -> 0.4387016131 | CX18: =PRODUCT('2012IAR JMale Data'!$G9:CT9) -> 0.3822661602 | CY18: =PRODUCT('2012IAR JMale Data'!$G9:CU9) -> 0.3300986796 | CZ18: =PRODUCT('2012IAR JMale Data'!$G9:CV9) -> 0.276490654 | DA18: =PRODUCT('2012IAR JMale Data'!$G9:CW9) -> 0.2280218424 | DB18: =PRODUCT('2012IAR JMale Data'!$G9:CX9) -> 0.1808147084 | DC18: =PRODUCT('2012IAR JMale Data'!$G9:CY9) -> 0.1407387556 | DD18: =PRODUCT('2012IAR JMale Data'!$G9:CZ9) -> 0.1071264001 | DE18: =PRODUCT('2012IAR JMale Data'!$G9:DA9) -> 0.07683919574 | DF18: =PRODUCT('2012IAR JMale Data'!$G9:DB9) -> 0.05359772104 | DG18: =PRODUCT('2012IAR JMale Data'!$G9:DC9) -> 0.03450583762 | DH18: =PRODUCT('2012IAR JMale Data'!$G9:DD9) -> 0.02139361933 | DI18: =PRODUCT('2012IAR JMale Data'!$G9:DE9) -> 0.0128361716 | DJ18: =PRODUCT('2012IAR JMale Data'!$G9:DF9) -> 0.007701702957 | DK18: =PRODUCT('2012IAR JMale Data'!$G9:DG9) -> 0.004621021774 | DL18: =PRODUCT('2012IAR JMale Data'!$G9:DH9) -> 0.002772613065 | DM18: =PRODUCT('2012IAR JMale Data'!$G9:DI9) -> 0.001663567839 | DN18: =PRODUCT('2012IAR JMale Data'!$G9:DJ9) -> 0.0009981407032 | DO18: =PRODUCT('2012IAR JMale Data'!$G9:DK9) -> 0.0005988844219 | DP18: =PRODUCT('2012IAR JMale Data'!$G9:DL9) -> 0.0003593306532 | DQ18: =PRODUCT('2012IAR JMale Data'!$G9:DM9) -> 0.0002155983919 | DR18: =PRODUCT('2012IAR JMale Data'!$G9:DN9) -> 0.0001293590351 | DS18: =PRODUCT('2012IAR JMale Data'!$G9:DO9) -> 7.761542108e-05 | DT18: =PRODUCT('2012IAR JMale Data'!$G9:DP9) -> 4.656925265e-05 | DU18: =PRODUCT('2012IAR JMale Data'!$G9:DQ9) -> 2.794155159e-05 | DV18: =PRODUCT('2012IAR JMale Data'!$G9:DR9) -> 1.676493095e-05 | DW18: =PRODUCT('2012IAR JMale Data'!$G9:DS9) -> 0
A19: 5 | B19: 23.9 | C19: 23.9 | L19: =PRODUCT('2012IAR JMale Data'!$H10:H10) -> 0.999832 | M19: =PRODUCT('2012IAR JMale Data'!$H10:I10) -> 0.9996690274 | N19: =PRODUCT('2012IAR JMale Data'!$H10:J10) -> 0.999513079 | O19: =PRODUCT('2012IAR JMale Data'!$H10:K10) -> 0.9993741467 | P19: =PRODUCT('2012IAR JMale Data'!$H10:L10) -> 0.9992502243 | Q19: =PRODUCT('2012IAR JMale Data'!$H10:M10) -> 0.9991433045 | R19: =PRODUCT('2012IAR JMale Data'!$H10:N10) -> 0.9990383945 | S19: =PRODUCT('2012IAR JMale Data'!$H10:O10) -> 0.9989155128 | T19: =PRODUCT('2012IAR JMale Data'!$H10:P10) -> 0.9987596819 | U19: =PRODUCT('2012IAR JMale Data'!$H10:Q10) -> 0.9985649238 | V19: =PRODUCT('2012IAR JMale Data'!$H10:R10) -> 0.9983352539 | W19: =PRODUCT('2012IAR JMale Data'!$H10:S10) -> 0.99807369 | X19: =PRODUCT('2012IAR JMale Data'!$H10:T10) -> 0.9977832506 | Y19: =PRODUCT('2012IAR JMale Data'!$H10:U10) -> 0.9974689489 | Z19: =PRODUCT('2012IAR JMale Data'!$H10:V10) -> 0.9971337993 | AA19: =PRODUCT('2012IAR JMale Data'!$H10:W10) -> 0.9967788197 | AB19: =PRODUCT('2012IAR JMale Data'!$H10:X10) -> 0.9964030341 | AC19: =PRODUCT('2012IAR JMale Data'!$H10:Y10) -> 0.9960054692 | AD19: =PRODUCT('2012IAR JMale Data'!$H10:Z10) -> 0.9955791789 | AE19: =PRODUCT('2012IAR JMale Data'!$H10:AA10) -> 0.9951232036 | AF19: =PRODUCT('2012IAR JMale Data'!$H10:AB10) -> 0.994633603 | AG19: =PRODUCT('2012IAR JMale Data'!$H10:AC10) -> 0.9941064472 | AH19: =PRODUCT('2012IAR JMale Data'!$H10:AD10) -> 0.9935577005 | AI19: =PRODUCT('2012IAR JMale Data'!$H10:AE10) -> 0.9929983275 | AJ19: =PRODUCT('2012IAR JMale Data'!$H10:AF10) -> 0.9924313254 | AK19: =PRODUCT('2012IAR JMale Data'!$H10:AG10) -> 0.991859685 | AL19: =PRODUCT('2012IAR JMale Data'!$H10:AH10) -> 0.9912863901 | AM19: =PRODUCT('2012IAR JMale Data'!$H10:AI10) -> 0.9907164004 | AN19: =PRODUCT('2012IAR JMale Data'!$H10:AJ10) -> 0.9901507013 | AO19: =PRODUCT('2012IAR JMale Data'!$H10:AK10) -> 0.9895912662 | AP19: =PRODUCT('2012IAR JMale Data'!$H10:AL10) -> 0.9890380847 | AQ19: =PRODUCT('2012IAR JMale Data'!$H10:AM10) -> 0.9884901576 | AR19: =PRODUCT('2012IAR JMale Data'!$H10:AN10) -> 0.987948465 | AS19: =PRODUCT('2012IAR JMale Data'!$H10:AO10) -> 0.987412009 | AT19: =PRODUCT('2012IAR JMale Data'!$H10:AP10) -> 0.9868511589 | AU19: =PRODUCT('2012IAR JMale Data'!$H10:AQ10) -> 0.9862551008 | AV19: =PRODUCT('2012IAR JMale Data'!$H10:AR10) -> 0.9856189663 | AW19: =PRODUCT('2012IAR JMale Data'!$H10:AS10) -> 0.9849398748 | AX19: =PRODUCT('2012IAR JMale Data'!$H10:AT10) -> 0.9842208687 | AY19: =PRODUCT('2012IAR JMale Data'!$H10:AU10) -> 0.9834610502 | AZ19: =PRODUCT('2012IAR JMale Data'!$H10:AV10) -> 0.9826595295 | BA19: =PRODUCT('2012IAR JMale Data'!$H10:AW10) -> 0.9818016677 | BB19: =PRODUCT('2012IAR JMale Data'!$H10:AX10) -> 0.9808660107 | BC19: =PRODUCT('2012IAR JMale Data'!$H10:AY10) -> 0.9798302162 | BD19: =PRODUCT('2012IAR JMale Data'!$H10:AZ10) -> 0.9786789157 | BE19: =PRODUCT('2012IAR JMale Data'!$H10:BA10) -> 0.977397825 | BF19: =PRODUCT('2012IAR JMale Data'!$H10:BB10) -> 0.9760451064 | BG19: =PRODUCT('2012IAR JMale Data'!$H10:BC10) -> 0.9745683501 | BH19: =PRODUCT('2012IAR JMale Data'!$H10:BD10) -> 0.9730509472 | BI19: =PRODUCT('2012IAR JMale Data'!$H10:BE10) -> 0.9714298443 | BJ19: =PRODUCT('2012IAR JMale Data'!$H10:BF10) -> 0.969786185 | BK19: =PRODUCT('2012IAR JMale Data'!$H10:BG10) -> 0.9680299023 | BL19: =PRODUCT('2012IAR JMale Data'!$H10:BH10) -> 0.966241951 | BM19: =PRODUCT('2012IAR JMale Data'!$H10:BI10) -> 0.9643133321 | BN19: =PRODUCT('2012IAR JMale Data'!$H10:BJ10) -> 0.9623384184 | BO19: =PRODUCT('2012IAR JMale Data'!$H10:BK10) -> 0.9602029894 | BP19: =PRODUCT('2012IAR JMale Data'!$H10:BL10) -> 0.9578908207 | BQ19: =PRODUCT('2012IAR JMale Data'!$H10:BM10) -> 0.9553935993 | BR19: =PRODUCT('2012IAR JMale Data'!$H10:BN10) -> 0.9527060771 | BS19: =PRODUCT('2012IAR JMale Data'!$H10:BO10) -> 0.9498165196 | BT19: =PRODUCT('2012IAR JMale Data'!$H10:BP10) -> 0.9467077701 | BU19: =PRODUCT('2012IAR JMale Data'!$H10:BQ10) -> 0.9434889637 | BV19: =PRODUCT('2012IAR JMale Data'!$H10:BR10) -> 0.9401339169 | BW19: =PRODUCT('2012IAR JMale Data'!$H10:BS10) -> 0.9366121753 | BX19: =PRODUCT('2012IAR JMale Data'!$H10:BT10) -> 0.9328872686 | BY19: =PRODUCT('2012IAR JMale Data'!$H10:BU10) -> 0.928920632 | BZ19: =PRODUCT('2012IAR JMale Data'!$H10:BV10) -> 0.9246661755 | CA19: =PRODUCT('2012IAR JMale Data'!$H10:BW10) -> 0.9200724339 | CB19: =PRODUCT('2012IAR JMale Data'!$H10:BX10) -> 0.9150847213 | CC19: =PRODUCT('2012IAR JMale Data'!$H10:BY10) -> 0.9096472878 | CD19: =PRODUCT('2012IAR JMale Data'!$H10:BZ10) -> 0.9037054718 | CE19: =PRODUCT('2012IAR JMale Data'!$H10:CA10) -> 0.897206022 | CF19: =PRODUCT('2012IAR JMale Data'!$H10:CB10) -> 0.8900920755 | CG19: =PRODUCT('2012IAR JMale Data'!$H10:CC10) -> 0.8823028797 | CH19: =PRODUCT('2012IAR JMale Data'!$H10:CD10) -> 0.8737763047 | CI19: =PRODUCT('2012IAR JMale Data'!$H10:CE10) -> 0.8644286458 | CJ19: =PRODUCT('2012IAR JMale Data'!$H10:CF10) -> 0.8533164155 | CK19: =PRODUCT('2012IAR JMale Data'!$H10:CG10) -> 0.8401497432 | CL19: =PRODUCT('2012IAR JMale Data'!$H10:CH10) -> 0.8257865432 | CM19: =PRODUCT('2012IAR JMale Data'!$H10:CI10) -> 0.8088488354 | CN19: =PRODUCT('2012IAR JMale Data'!$H10:CJ10) -> 0.7888654161 | CO19: =PRODUCT('2012IAR JMale Data'!$H10:CK10) -> 0.7652688738 | CP19: =PRODUCT('2012IAR JMale Data'!$H10:CL10) -> 0.7374329838 | CQ19: =PRODUCT('2012IAR JMale Data'!$H10:CM10) -> 0.7073523549 | CR19: =PRODUCT('2012IAR JMale Data'!$H10:CN10) -> 0.6721785517 | CS19: =PRODUCT('2012IAR JMale Data'!$H10:CO10) -> 0.63148419 | CT19: =PRODUCT('2012IAR JMale Data'!$H10:CP10) -> 0.5889903559 | CU19: =PRODUCT('2012IAR JMale Data'!$H10:CQ10) -> 0.5411301776 | CV19: =PRODUCT('2012IAR JMale Data'!$H10:CR10) -> 0.4881556977 | CW19: =PRODUCT('2012IAR JMale Data'!$H10:CS10) -> 0.4355993908 | CX19: =PRODUCT('2012IAR JMale Data'!$H10:CT10) -> 0.3793382447 | CY19: =PRODUCT('2012IAR JMale Data'!$H10:CU10) -> 0.3273624564 | CZ19: =PRODUCT('2012IAR JMale Data'!$H10:CV10) -> 0.2740390406 | DA19: =PRODUCT('2012IAR JMale Data'!$H10:CW10) -> 0.2258555782 | DB19: =PRODUCT('2012IAR JMale Data'!$H10:CX10) -> 0.1790031937 | DC19: =PRODUCT('2012IAR JMale Data'!$H10:CY10) -> 0.1392492694 | DD19: =PRODUCT('2012IAR JMale Data'!$H10:CZ10) -> 0.1059260837 | DE19: =PRODUCT('2012IAR JMale Data'!$H10:DA10) -> 0.07594826055 | DF19: =PRODUCT('2012IAR JMale Data'!$H10:DB10) -> 0.05295332976 | DG19: =PRODUCT('2012IAR JMale Data'!$H10:DC10) -> 0.03409098302 | DH19: =PRODUCT('2012IAR JMale Data'!$H10:DD10) -> 0.02113640948 | DI19: =PRODUCT('2012IAR JMale Data'!$H10:DE10) -> 0.01268184569 | DJ19: =PRODUCT('2012IAR JMale Data'!$H10:DF10) -> 0.007609107411 | DK19: =PRODUCT('2012IAR JMale Data'!$H10:DG10) -> 0.004565464447 | DL19: =PRODUCT('2012IAR JMale Data'!$H10:DH10) -> 0.002739278668 | DM19: =PRODUCT('2012IAR JMale Data'!$H10:DI10) -> 0.001643567201 | DN19: =PRODUCT('2012IAR JMale Data'!$H10:DJ10) -> 0.0009861403205 | DO19: =PRODUCT('2012IAR JMale Data'!$H10:DK10) -> 0.0005916841923 | DP19: =PRODUCT('2012IAR JMale Data'!$H10:DL10) -> 0.0003550105154 | DQ19: =PRODUCT('2012IAR JMale Data'!$H10:DM10) -> 0.0002130063092 | DR19: =PRODUCT('2012IAR JMale Data'!$H10:DN10) -> 0.0001278037855 | DS19: =PRODUCT('2012IAR JMale Data'!$H10:DO10) -> 7.668227132e-05 | DT19: =PRODUCT('2012IAR JMale Data'!$H10:DP10) -> 4.600936279e-05 | DU19: =PRODUCT('2012IAR JMale Data'!$H10:DQ10) -> 2.760561768e-05 | DV19: =PRODUCT('2012IAR JMale Data'!$H10:DR10) -> 1.656337061e-05 | DW19: =PRODUCT('2012IAR JMale Data'!$H10:DS10) -> 0
A20: 6 | B20: 23.86 | C20: 23.86 | M20: =PRODUCT('2012IAR JMale Data'!$I11:I11) -> 0.999835 | N20: =PRODUCT('2012IAR JMale Data'!$I11:J11) -> 0.9996780259 | O20: =PRODUCT('2012IAR JMale Data'!$I11:K11) -> 0.999538071 | P20: =PRODUCT('2012IAR JMale Data'!$I11:L11) -> 0.9994131287 | Q20: =PRODUCT('2012IAR JMale Data'!$I11:M11) -> 0.9993041927 | R20: =PRODUCT('2012IAR JMale Data'!$I11:N11) -> 0.9991982664 | S20: =PRODUCT('2012IAR JMale Data'!$I11:O11) -> 0.9990743659 | T20: =PRODUCT('2012IAR JMale Data'!$I11:P11) -> 0.9989165121 | U20: =PRODUCT('2012IAR JMale Data'!$I11:Q11) -> 0.9987197256 | V20: =PRODUCT('2012IAR JMale Data'!$I11:R11) -> 0.9984880226 | W20: =PRODUCT('2012IAR JMale Data'!$I11:S11) -> 0.9982234233 | X20: =PRODUCT('2012IAR JMale Data'!$I11:T11) -> 0.9979299456 | Y20: =PRODUCT('2012IAR JMale Data'!$I11:U11) -> 0.9976126038 | Z20: =PRODUCT('2012IAR JMale Data'!$I11:V11) -> 0.9972734156 | AA20: =PRODUCT('2012IAR JMale Data'!$I11:W11) -> 0.9969143971 | AB20: =PRODUCT('2012IAR JMale Data'!$I11:X11) -> 0.9965345727 | AC20: =PRODUCT('2012IAR JMale Data'!$I11:Y11) -> 0.9961329693 | AD20: =PRODUCT('2012IAR JMale Data'!$I11:Z11) -> 0.9957026399 | AE20: =PRODUCT('2012IAR JMale Data'!$I11:AA11) -> 0.9952426253 | AF20: =PRODUCT('2012IAR JMale Data'!$I11:AB11) -> 0.9947479897 | AG20: =PRODUCT('2012IAR JMale Data'!$I11:AC11) -> 0.9942148047 | AH20: =PRODUCT('2012IAR JMale Data'!$I11:AD11) -> 0.9936610271 | AI20: =PRODUCT('2012IAR JMale Data'!$I11:AE11) -> 0.993095634 | AJ20: =PRODUCT('2012IAR JMale Data'!$I11:AF11) -> 0.9925226178 | AK20: =PRODUCT('2012IAR JMale Data'!$I11:AG11) -> 0.9919449696 | AL20: =PRODUCT('2012IAR JMale Data'!$I11:AH11) -> 0.9913656738 | AM20: =PRODUCT('2012IAR JMale Data'!$I11:AI11) -> 0.9907896903 | AN20: =PRODUCT('2012IAR JMale Data'!$I11:AJ11) -> 0.9902189954 | AO20: =PRODUCT('2012IAR JMale Data'!$I11:AK11) -> 0.9896535804 | AP20: =PRODUCT('2012IAR JMale Data'!$I11:AL11) -> 0.9890944261 | AQ20: =PRODUCT('2012IAR JMale Data'!$I11:AM11) -> 0.9885415223 | AR20: =PRODUCT('2012IAR JMale Data'!$I11:AN11) -> 0.9879938703 | AS20: =PRODUCT('2012IAR JMale Data'!$I11:AO11) -> 0.9874524497 | AT20: =PRODUCT('2012IAR JMale Data'!$I11:AP11) -> 0.986885652 | AU20: =PRODUCT('2012IAR JMale Data'!$I11:AQ11) -> 0.9862836517 | AV20: =PRODUCT('2012IAR JMale Data'!$I11:AR11) -> 0.9856415811 | AW20: =PRODUCT('2012IAR JMale Data'!$I11:AS11) -> 0.9849555746 | AX20: =PRODUCT('2012IAR JMale Data'!$I11:AT11) -> 0.9842296623 | AY20: =PRODUCT('2012IAR JMale Data'!$I11:AU11) -> 0.9834629474 | AZ20: =PRODUCT('2012IAR JMale Data'!$I11:AV11) -> 0.9826525739 | BA20: =PRODUCT('2012IAR JMale Data'!$I11:AW11) -> 0.9817858743 | BB20: =PRODUCT('2012IAR JMale Data'!$I11:AX11) -> 0.9808404145 | BC20: =PRODUCT('2012IAR JMale Data'!$I11:AY11) -> 0.9797938578 | BD20: =PRODUCT('2012IAR JMale Data'!$I11:AZ11) -> 0.9786308425 | BE20: =PRODUCT('2012IAR JMale Data'!$I11:BA11) -> 0.9773370925 | BF20: =PRODUCT('2012IAR JMale Data'!$I11:BB11) -> 0.975969798 | BG20: =PRODUCT('2012IAR JMale Data'!$I11:BC11) -> 0.9744765642 | BH20: =PRODUCT('2012IAR JMale Data'!$I11:BD11) -> 0.9729407891 | BI20: =PRODUCT('2012IAR JMale Data'!$I11:BE11) -> 0.971299438 | BJ20: =PRODUCT('2012IAR JMale Data'!$I11:BF11) -> 0.9696346307 | BK20: =PRODUCT('2012IAR JMale Data'!$I11:BG11) -> 0.9678563208 | BL20: =PRODUCT('2012IAR JMale Data'!$I11:BH11) -> 0.9660435259 | BM20: =PRODUCT('2012IAR JMale Data'!$I11:BI11) -> 0.9640882538 | BN20: =PRODUCT('2012IAR JMale Data'!$I11:BJ11) -> 0.9620839144 | BO20: =PRODUCT('2012IAR JMale Data'!$I11:BK11) -> 0.9599163393 | BP20: =PRODUCT('2012IAR JMale Data'!$I11:BL11) -> 0.9575693439 | BQ20: =PRODUCT('2012IAR JMale Data'!$I11:BM11) -> 0.9550356154 | BR20: =PRODUCT('2012IAR JMale Data'!$I11:BN11) -> 0.9523080337 | BS20: =PRODUCT('2012IAR JMale Data'!$I11:BO11) -> 0.9493758772 | BT20: =PRODUCT('2012IAR JMale Data'!$I11:BP11) -> 0.9462211012 | BU20: =PRODUCT('2012IAR JMale Data'!$I11:BQ11) -> 0.9429547459 | BV20: =PRODUCT('2012IAR JMale Data'!$I11:BR11) -> 0.9395506793 | BW20: =PRODUCT('2012IAR JMale Data'!$I11:BS11) -> 0.9359775681 | BX20: =PRODUCT('2012IAR JMale Data'!$I11:BT11) -> 0.9321980907 | BY20: =PRODUCT('2012IAR JMale Data'!$I11:BU11) -> 0.9281737915 | BZ20: =PRODUCT('2012IAR JMale Data'!$I11:BV11) -> 0.9238577834 | CA20: =PRODUCT('2012IAR JMale Data'!$I11:BW11) -> 0.9191987686 | CB20: =PRODUCT('2012IAR JMale Data'!$I11:BX11) -> 0.9141394985 | CC20: =PRODUCT('2012IAR JMale Data'!$I11:BY11) -> 0.908624495 | CD20: =PRODUCT('2012IAR JMale Data'!$I11:BZ11) -> 0.9025994059 | CE20: =PRODUCT('2012IAR JMale Data'!$I11:CA11) -> 0.8960095277 | CF20: =PRODUCT('2012IAR JMale Data'!$I11:CB11) -> 0.888796651 | CG20: =PRODUCT('2012IAR JMale Data'!$I11:CC11) -> 0.8809005815 | CH20: =PRODUCT('2012IAR JMale Data'!$I11:CD11) -> 0.8722580659 | CI20: =PRODUCT('2012IAR JMale Data'!$I11:CE11) -> 0.8627844711 | CJ20: =PRODUCT('2012IAR JMale Data'!$I11:CF11) -> 0.8515363499 | CK20: =PRODUCT('2012IAR JMale Data'!$I11:CG11) -> 0.8382242822 | CL20: =PRODUCT('2012IAR JMale Data'!$I11:CH11) -> 0.8237053994 | CM20: =PRODUCT('2012IAR JMale Data'!$I11:CI11) -> 0.8066052753 | CN20: =PRODUCT('2012IAR JMale Data'!$I11:CJ11) -> 0.7864554689 | CO20: =PRODUCT('2012IAR JMale Data'!$I11:CK11) -> 0.7626935033 | CP20: =PRODUCT('2012IAR JMale Data'!$I11:CL11) -> 0.734699601 | CQ20: =PRODUCT('2012IAR JMale Data'!$I11:CM11) -> 0.704457896 | CR20: =PRODUCT('2012IAR JMale Data'!$I11:CN11) -> 0.6691455351 | CS20: =PRODUCT('2012IAR JMale Data'!$I11:CO11) -> 0.6283490701 | CT20: =PRODUCT('2012IAR JMale Data'!$I11:CP11) -> 0.585768367 | CU20: =PRODUCT('2012IAR JMale Data'!$I11:CQ11) -> 0.5378823888 | CV20: =PRODUCT('2012IAR JMale Data'!$I11:CR11) -> 0.4849617542 | CW20: =PRODUCT('2012IAR JMale Data'!$I11:CS11) -> 0.4324869525 | CX20: =PRODUCT('2012IAR JMale Data'!$I11:CT11) -> 0.376403342 | CY20: =PRODUCT('2012IAR JMale Data'!$I11:CU11) -> 0.324622287 | CZ20: =PRODUCT('2012IAR JMale Data'!$I11:CV11) -> 0.271586147 | DA20: =PRODUCT('2012IAR JMale Data'!$I11:CW11) -> 0.2236903005 | DB20: =PRODUCT('2012IAR JMale Data'!$I11:CX11) -> 0.1771942583 | DC20: =PRODUCT('2012IAR JMale Data'!$I11:CY11) -> 0.13776322 | DD20: =PRODUCT('2012IAR JMale Data'!$I11:CZ11) -> 0.1047295285 | DE20: =PRODUCT('2012IAR JMale Data'!$I11:DA11) -> 0.0750607004 | DF20: =PRODUCT('2012IAR JMale Data'!$I11:DB11) -> 0.05231167863 | DG20: =PRODUCT('2012IAR JMale Data'!$I11:DC11) -> 0.03367789252 | DH20: =PRODUCT('2012IAR JMale Data'!$I11:DD11) -> 0.02088029336 | DI20: =PRODUCT('2012IAR JMale Data'!$I11:DE11) -> 0.01252817602 | DJ20: =PRODUCT('2012IAR JMale Data'!$I11:DF11) -> 0.00751690561 | DK20: =PRODUCT('2012IAR JMale Data'!$I11:DG11) -> 0.004510143366 | DL20: =PRODUCT('2012IAR JMale Data'!$I11:DH11) -> 0.00270608602 | DM20: =PRODUCT('2012IAR JMale Data'!$I11:DI11) -> 0.001623651612 | DN20: =PRODUCT('2012IAR JMale Data'!$I11:DJ11) -> 0.000974190967 | DO20: =PRODUCT('2012IAR JMale Data'!$I11:DK11) -> 0.0005845145802 | DP20: =PRODUCT('2012IAR JMale Data'!$I11:DL11) -> 0.0003507087481 | DQ20: =PRODUCT('2012IAR JMale Data'!$I11:DM11) -> 0.0002104252489 | DR20: =PRODUCT('2012IAR JMale Data'!$I11:DN11) -> 0.0001262551493 | DS20: =PRODUCT('2012IAR JMale Data'!$I11:DO11) -> 7.57530896e-05 | DT20: =PRODUCT('2012IAR JMale Data'!$I11:DP11) -> 4.545185376e-05 | DU20: =PRODUCT('2012IAR JMale Data'!$I11:DQ11) -> 2.727111225e-05 | DV20: =PRODUCT('2012IAR JMale Data'!$I11:DR11) -> 1.636266735e-05 | DW20: =PRODUCT('2012IAR JMale Data'!$I11:DS11) -> 0
A21: 7 | B21: 23.81 | C21: 23.81 | N21: =PRODUCT('2012IAR JMale Data'!$J12:J12) -> 0.999841 | O21: =PRODUCT('2012IAR JMale Data'!$J12:K12) -> 0.9996990226 | P21: =PRODUCT('2012IAR JMale Data'!$J12:L12) -> 0.9995730605 | Q21: =PRODUCT('2012IAR JMale Data'!$J12:M12) -> 0.9994631075 | R21: =PRODUCT('2012IAR JMale Data'!$J12:N12) -> 0.9993561649 | S21: =PRODUCT('2012IAR JMale Data'!$J12:O12) -> 0.999230246 | T21: =PRODUCT('2012IAR JMale Data'!$J12:P12) -> 0.9990713684 | U21: =PRODUCT('2012IAR JMale Data'!$J12:Q12) -> 0.9988725532 | V21: =PRODUCT('2012IAR JMale Data'!$J12:R12) -> 0.998638817 | W21: =PRODUCT('2012IAR JMale Data'!$J12:S12) -> 0.9983711818 | X21: =PRODUCT('2012IAR JMale Data'!$J12:T12) -> 0.9980746656 | Y21: =PRODUCT('2012IAR JMale Data'!$J12:U12) -> 0.9977542836 | Z21: =PRODUCT('2012IAR JMale Data'!$J12:V12) -> 0.9974120539 | AA21: =PRODUCT('2012IAR JMale Data'!$J12:W12) -> 0.9970499933 | AB21: =PRODUCT('2012IAR JMale Data'!$J12:X12) -> 0.9966661291 | AC21: =PRODUCT('2012IAR JMale Data'!$J12:Y12) -> 0.996260486 | AD21: =PRODUCT('2012IAR JMale Data'!$J12:Z12) -> 0.9958251201 | AE21: =PRODUCT('2012IAR JMale Data'!$J12:AA12) -> 0.9953600698 | AF21: =PRODUCT('2012IAR JMale Data'!$J12:AB12) -> 0.9948603991 | AG21: =PRODUCT('2012IAR JMale Data'!$J12:AC12) -> 0.9943221796 | AH21: =PRODUCT('2012IAR JMale Data'!$J12:AD12) -> 0.9937623762 | AI21: =PRODUCT('2012IAR JMale Data'!$J12:AE12) -> 0.9931909628 | AJ21: =PRODUCT('2012IAR JMale Data'!$J12:AF12) -> 0.9926119325 | AK21: =PRODUCT('2012IAR JMale Data'!$J12:AG12) -> 0.9920282767 | AL21: =PRODUCT('2012IAR JMale Data'!$J12:AH12) -> 0.99144298 | AM21: =PRODUCT('2012IAR JMale Data'!$J12:AI12) -> 0.9908619944 | AN21: =PRODUCT('2012IAR JMale Data'!$J12:AJ12) -> 0.9902853127 | AO21: =PRODUCT('2012IAR JMale Data'!$J12:AK12) -> 0.9897149084 | AP21: =PRODUCT('2012IAR JMale Data'!$J12:AL12) -> 0.9891497812 | AQ21: =PRODUCT('2012IAR JMale Data'!$J12:AM12) -> 0.9885909116 | AR21: =PRODUCT('2012IAR JMale Data'!$J12:AN12) -> 0.9880382892 | AS21: =PRODUCT('2012IAR JMale Data'!$J12:AO12) -> 0.987490916 | AT21: =PRODUCT('2012IAR JMale Data'!$J12:AP12) -> 0.9869181713 | AU21: =PRODUCT('2012IAR JMale Data'!$J12:AQ12) -> 0.9863092428 | AV21: =PRODUCT('2012IAR JMale Data'!$J12:AR12) -> 0.9856602513 | AW21: =PRODUCT('2012IAR JMale Data'!$J12:AS12) -> 0.9849673321 | AX21: =PRODUCT('2012IAR JMale Data'!$J12:AT12) -> 0.9842345164 | AY21: =PRODUCT('2012IAR JMale Data'!$J12:AU12) -> 0.9834599239 | AZ21: =PRODUCT('2012IAR JMale Data'!$J12:AV12) -> 0.9826416852 | BA21: =PRODUCT('2012IAR JMale Data'!$J12:AW12) -> 0.9817661515 | BB21: =PRODUCT('2012IAR JMale Data'!$J12:AX12) -> 0.980810893 | BC21: =PRODUCT('2012IAR JMale Data'!$J12:AY12) -> 0.9797535789 | BD21: =PRODUCT('2012IAR JMale Data'!$J12:AZ12) -> 0.9785788543 | BE21: =PRODUCT('2012IAR JMale Data'!$J12:BA12) -> 0.9772724516 | BF21: =PRODUCT('2012IAR JMale Data'!$J12:BB12) -> 0.975889611 | BG21: =PRODUCT('2012IAR JMale Data'!$J12:BC12) -> 0.9743799098 | BH21: =PRODUCT('2012IAR JMale Data'!$J12:BD12) -> 0.9728257739 | BI21: =PRODUCT('2012IAR JMale Data'!$J12:BE12) -> 0.9711651603 | BJ21: =PRODUCT('2012IAR JMale Data'!$J12:BF12) -> 0.9694792175 | BK21: =PRODUCT('2012IAR JMale Data'!$J12:BG12) -> 0.9676769557 | BL21: =PRODUCT('2012IAR JMale Data'!$J12:BH12) -> 0.9658383695 | BM21: =PRODUCT('2012IAR JMale Data'!$J12:BI12) -> 0.9638555033 | BN21: =PRODUCT('2012IAR JMale Data'!$J12:BJ12) -> 0.9618217682 | BO21: =PRODUCT('2012IAR JMale Data'!$J12:BK12) -> 0.9596220818 | BP21: =PRODUCT('2012IAR JMale Data'!$J12:BL12) -> 0.9572402998 | BQ21: =PRODUCT('2012IAR JMale Data'!$J12:BM12) -> 0.9546681951 | BR21: =PRODUCT('2012IAR JMale Data'!$J12:BN12) -> 0.951900612 | BS21: =PRODUCT('2012IAR JMale Data'!$J12:BO12) -> 0.9489249707 | BT21: =PRODUCT('2012IAR JMale Data'!$J12:BP12) -> 0.9457232978 | BU21: =PRODUCT('2012IAR JMale Data'!$J12:BQ12) -> 0.9424094834 | BV21: =PRODUCT('2012IAR JMale Data'!$J12:BR12) -> 0.9389555526 | BW21: =PRODUCT('2012IAR JMale Data'!$J12:BS12) -> 0.9353302453 | BX21: =PRODUCT('2012IAR JMale Data'!$J12:BT12) -> 0.9314963266 | BY21: =PRODUCT('2012IAR JMale Data'!$J12:BU12) -> 0.9274135782 | BZ21: =PRODUCT('2012IAR JMale Data'!$J12:BV12) -> 0.9230361861 | CA21: =PRODUCT('2012IAR JMale Data'!$J12:BW12) -> 0.9183102408 | CB21: =PRODUCT('2012IAR JMale Data'!$J12:BX12) -> 0.9131796415 | CC21: =PRODUCT('2012IAR JMale Data'!$J12:BY12) -> 0.9075864162 | CD21: =PRODUCT('2012IAR JMale Data'!$J12:BZ12) -> 0.9014765444 | CE21: =PRODUCT('2012IAR JMale Data'!$J12:CA12) -> 0.8947948003 | CF21: =PRODUCT('2012IAR JMale Data'!$J12:CB12) -> 0.8874825372 | CG21: =PRODUCT('2012IAR JMale Data'!$J12:CC12) -> 0.8794783322 | CH21: =PRODUCT('2012IAR JMale Data'!$J12:CD12) -> 0.8707178485 | CI21: =PRODUCT('2012IAR JMale Data'!$J12:CE12) -> 0.8611173135 | CJ21: =PRODUCT('2012IAR JMale Data'!$J12:CF12) -> 0.8497316204 | CK21: =PRODUCT('2012IAR JMale Data'!$J12:CG12) -> 0.8362727213 | CL21: =PRODUCT('2012IAR JMale Data'!$J12:CH12) -> 0.8215969713 | CM21: =PRODUCT('2012IAR JMale Data'!$J12:CI12) -> 0.8043335757 | CN21: =PRODUCT('2012IAR JMale Data'!$J12:CJ12) -> 0.7840169139 | CO21: =PRODUCT('2012IAR JMale Data'!$J12:CK12) -> 0.7600895017 | CP21: =PRODUCT('2012IAR JMale Data'!$J12:CL12) -> 0.7319373068 | CQ21: =PRODUCT('2012IAR JMale Data'!$J12:CM12) -> 0.7015362907 | CR21: =PRODUCT('2012IAR JMale Data'!$J12:CN12) -> 0.6660869604 | CS21: =PRODUCT('2012IAR JMale Data'!$J12:CO12) -> 0.6251905532 | CT21: =PRODUCT('2012IAR JMale Data'!$J12:CP12) -> 0.5825250491 | CU21: =PRODUCT('2012IAR JMale Data'!$J12:CQ12) -> 0.534617024 | CV21: =PRODUCT('2012IAR JMale Data'!$J12:CR12) -> 0.4817530235 | CW21: =PRODUCT('2012IAR JMale Data'!$J12:CS12) -> 0.4293638274 | CX21: =PRODUCT('2012IAR JMale Data'!$J12:CT12) -> 0.3734615158 | CY21: =PRODUCT('2012IAR JMale Data'!$J12:CU12) -> 0.3218790113 | CZ21: =PRODUCT('2012IAR JMale Data'!$J12:CV12) -> 0.2691326977 | DA21: =PRODUCT('2012IAR JMale Data'!$J12:CW12) -> 0.2215266222 | DB21: =PRODUCT('2012IAR JMale Data'!$J12:CX12) -> 0.1753879434 | DC21: =PRODUCT('2012IAR JMale Data'!$J12:CY12) -> 0.1362806413 | DD21: =PRODUCT('2012IAR JMale Data'!$J12:CZ12) -> 0.1035370368 | DE21: =PRODUCT('2012IAR JMale Data'!$J12:DA12) -> 0.07417662511 | DF21: =PRODUCT('2012IAR JMale Data'!$J12:DB12) -> 0.05167306894 | DG21: =PRODUCT('2012IAR JMale Data'!$J12:DC12) -> 0.03326676007 | DH21: =PRODUCT('2012IAR JMale Data'!$J12:DD12) -> 0.02062539124 | DI21: =PRODUCT('2012IAR JMale Data'!$J12:DE12) -> 0.01237523475 | DJ21: =PRODUCT('2012IAR JMale Data'!$J12:DF12) -> 0.007425140848 | DK21: =PRODUCT('2012IAR JMale Data'!$J12:DG12) -> 0.004455084509 | DL21: =PRODUCT('2012IAR JMale Data'!$J12:DH12) -> 0.002673050705 | DM21: =PRODUCT('2012IAR JMale Data'!$J12:DI12) -> 0.001603830423 | DN21: =PRODUCT('2012IAR JMale Data'!$J12:DJ12) -> 0.0009622982538 | DO21: =PRODUCT('2012IAR JMale Data'!$J12:DK12) -> 0.0005773789523 | DP21: =PRODUCT('2012IAR JMale Data'!$J12:DL12) -> 0.0003464273714 | DQ21: =PRODUCT('2012IAR JMale Data'!$J12:DM12) -> 0.0002078564228 | DR21: =PRODUCT('2012IAR JMale Data'!$J12:DN12) -> 0.0001247138537 | DS21: =PRODUCT('2012IAR JMale Data'!$J12:DO12) -> 7.482831222e-05 | DT21: =PRODUCT('2012IAR JMale Data'!$J12:DP12) -> 4.489698733e-05 | DU21: =PRODUCT('2012IAR JMale Data'!$J12:DQ12) -> 2.69381924e-05 | DV21: =PRODUCT('2012IAR JMale Data'!$J12:DR12) -> 1.616291544e-05 | DW21: =PRODUCT('2012IAR JMale Data'!$J12:DS12) -> 0
A22: 8 | B22: 23.76 | C22: 23.76 | O22: =PRODUCT('2012IAR JMale Data'!$K13:K13) -> 0.999857 | P22: =PRODUCT('2012IAR JMale Data'!$K13:L13) -> 0.9997290183 | Q22: =PRODUCT('2012IAR JMale Data'!$K13:M13) -> 0.9996180484 | R22: =PRODUCT('2012IAR JMale Data'!$K13:N13) -> 0.9995100896 | S22: =PRODUCT('2012IAR JMale Data'!$K13:O13) -> 0.9993831519 | T22: =PRODUCT('2012IAR JMale Data'!$K13:P13) -> 0.9992222512 | U22: =PRODUCT('2012IAR JMale Data'!$K13:Q13) -> 0.9990214075 | V22: =PRODUCT('2012IAR JMale Data'!$K13:R13) -> 0.9987846394 | W22: =PRODUCT('2012IAR JMale Data'!$K13:S13) -> 0.9985149676 | X22: =PRODUCT('2012IAR JMale Data'!$K13:T13) -> 0.9982154131 | Y22: =PRODUCT('2012IAR JMale Data'!$K13:U13) -> 0.9978909931 | Z22: =PRODUCT('2012IAR JMale Data'!$K13:V13) -> 0.9975457228 | AA22: =PRODUCT('2012IAR JMale Data'!$K13:W13) -> 0.9971796235 | AB22: =PRODUCT('2012IAR JMale Data'!$K13:X13) -> 0.9967917206 | AC22: =PRODUCT('2012IAR JMale Data'!$K13:Y13) -> 0.9963820392 | AD22: =PRODUCT('2012IAR JMale Data'!$K13:Z13) -> 0.9959426348 | AE22: =PRODUCT('2012IAR JMale Data'!$K13:AA13) -> 0.9954725498 | AF22: =PRODUCT('2012IAR JMale Data'!$K13:AB13) -> 0.9949678452 | AG22: =PRODUCT('2012IAR JMale Data'!$K13:AC13) -> 0.9944235978 | AH22: =PRODUCT('2012IAR JMale Data'!$K13:AD13) -> 0.9938587652 | AI22: =PRODUCT('2012IAR JMale Data'!$K13:AE13) -> 0.9932813333 | AJ22: =PRODUCT('2012IAR JMale Data'!$K13:AF13) -> 0.9926962906 | AK22: =PRODUCT('2012IAR JMale Data'!$K13:AG13) -> 0.992106629 | AL22: =PRODUCT('2012IAR JMale Data'!$K13:AH13) -> 0.9915153334 | AM22: =PRODUCT('2012IAR JMale Data'!$K13:AI13) -> 0.9909283564 | AN22: =PRODUCT('2012IAR JMale Data'!$K13:AJ13) -> 0.9903456905 | AO22: =PRODUCT('2012IAR JMale Data'!$K13:AK13) -> 0.9897693093 | AP22: =PRODUCT('2012IAR JMale Data'!$K13:AL13) -> 0.9891992022 | AQ22: =PRODUCT('2012IAR JMale Data'!$K13:AM13) -> 0.9886343694 | AR22: =PRODUCT('2012IAR JMale Data'!$K13:AN13) -> 0.988075791 | AS22: =PRODUCT('2012IAR JMale Data'!$K13:AO13) -> 0.9875234566 | AT22: =PRODUCT('2012IAR JMale Data'!$K13:AP13) -> 0.9869447679 | AU22: =PRODUCT('2012IAR JMale Data'!$K13:AQ13) -> 0.9863299013 | AV22: =PRODUCT('2012IAR JMale Data'!$K13:AR13) -> 0.9856739919 | AW22: =PRODUCT('2012IAR JMale Data'!$K13:AS13) -> 0.9849741634 | AX22: =PRODUCT('2012IAR JMale Data'!$K13:AT13) -> 0.9842334628 | AY22: =PRODUCT('2012IAR JMale Data'!$K13:AU13) -> 0.9834509972 | AZ22: =PRODUCT('2012IAR JMale Data'!$K13:AV13) -> 0.9826248984 | BA22: =PRODUCT('2012IAR JMale Data'!$K13:AW13) -> 0.981740536 | BB22: =PRODUCT('2012IAR JMale Data'!$K13:AX13) -> 0.980775485 | BC22: =PRODUCT('2012IAR JMale Data'!$K13:AY13) -> 0.9797084013 | BD22: =PRODUCT('2012IAR JMale Data'!$K13:AZ13) -> 0.9785219744 | BE22: =PRODUCT('2012IAR JMale Data'!$K13:BA13) -> 0.9772019483 | BF22: =PRODUCT('2012IAR JMale Data'!$K13:BB13) -> 0.9758035723 | BG22: =PRODUCT('2012IAR JMale Data'!$K13:BC13) -> 0.9742774155 | BH22: =PRODUCT('2012IAR JMale Data'!$K13:BD13) -> 0.9727049318 | BI22: =PRODUCT('2012IAR JMale Data'!$K13:BE13) -> 0.9710240976 | BJ22: =PRODUCT('2012IAR JMale Data'!$K13:BF13) -> 0.9693160662 | BK22: =PRODUCT('2012IAR JMale Data'!$K13:BG13) -> 0.9674908441 | BL22: =PRODUCT('2012IAR JMale Data'!$K13:BH13) -> 0.9656264892 | BM22: =PRODUCT('2012IAR JMale Data'!$K13:BI13) -> 0.9636160549 | BN22: =PRODUCT('2012IAR JMale Data'!$K13:BJ13) -> 0.9615510257 | BO22: =PRODUCT('2012IAR JMale Data'!$K13:BK13) -> 0.9593183042 | BP22: =PRODUCT('2012IAR JMale Data'!$K13:BL13) -> 0.9569008221 | BQ22: =PRODUCT('2012IAR JMale Data'!$K13:BM13) -> 0.9542903966 | BR22: =PRODUCT('2012IAR JMale Data'!$K13:BN13) -> 0.9514809657 | BS22: =PRODUCT('2012IAR JMale Data'!$K13:BO13) -> 0.9484609651 | BT22: =PRODUCT('2012IAR JMale Data'!$K13:BP13) -> 0.9452124863 | BU22: =PRODUCT('2012IAR JMale Data'!$K13:BQ13) -> 0.9418494203 | BV22: =PRODUCT('2012IAR JMale Data'!$K13:BR13) -> 0.9383447986 | BW22: =PRODUCT('2012IAR JMale Data'!$K13:BS13) -> 0.934666487 | BX22: =PRODUCT('2012IAR JMale Data'!$K13:BT13) -> 0.9307764051 | BY22: =PRODUCT('2012IAR JMale Data'!$K13:BU13) -> 0.9266353808 | BZ22: =PRODUCT('2012IAR JMale Data'!$K13:BV13) -> 0.9221949441 | CA22: =PRODUCT('2012IAR JMale Data'!$K13:BW13) -> 0.9174013748 | CB22: =PRODUCT('2012IAR JMale Data'!$K13:BX13) -> 0.9121978742 | CC22: =PRODUCT('2012IAR JMale Data'!$K13:BY13) -> 0.9065258278 | CD22: =PRODUCT('2012IAR JMale Data'!$K13:BZ13) -> 0.9003297238 | CE22: =PRODUCT('2012IAR JMale Data'!$K13:CA13) -> 0.8935547426 | CF22: =PRODUCT('2012IAR JMale Data'!$K13:CB13) -> 0.8861409189 | CG22: =PRODUCT('2012IAR JMale Data'!$K13:CC13) -> 0.8780274126 | CH22: =PRODUCT('2012IAR JMale Data'!$K13:CD13) -> 0.8691487994 | CI22: =PRODUCT('2012IAR JMale Data'!$K13:CE13) -> 0.8594195478 | CJ22: =PRODUCT('2012IAR JMale Data'!$K13:CF13) -> 0.8478947316 | CK22: =PRODUCT('2012IAR JMale Data'!$K13:CG13) -> 0.834287717 | CL22: =PRODUCT('2012IAR JMale Data'!$K13:CH13) -> 0.8194540814 | CM22: =PRODUCT('2012IAR JMale Data'!$K13:CI13) -> 0.8020267514 | CN22: =PRODUCT('2012IAR JMale Data'!$K13:CJ13) -> 0.7815429882 | CO22: =PRODUCT('2012IAR JMale Data'!$K13:CK13) -> 0.757449581 | CP22: =PRODUCT('2012IAR JMale Data'!$K13:CL13) -> 0.7291406603 | CQ22: =PRODUCT('2012IAR JMale Data'!$K13:CM13) -> 0.6985801878 | CR22: =PRODUCT('2012IAR JMale Data'!$K13:CN13) -> 0.6629952116 | CS22: =PRODUCT('2012IAR JMale Data'!$K13:CO13) -> 0.6220015547 | CT22: =PRODUCT('2012IAR JMale Data'!$K13:CP13) -> 0.5792544979 | CU22: =PRODUCT('2012IAR JMale Data'!$K13:CQ13) -> 0.53132756 | CV22: =PRODUCT('2012IAR JMale Data'!$K13:CR13) -> 0.4785247584 | CW22: =PRODUCT('2012IAR JMale Data'!$K13:CS13) -> 0.4262248734 | CX22: =PRODUCT('2012IAR JMale Data'!$K13:CT13) -> 0.3705083318 | CY22: =PRODUCT('2012IAR JMale Data'!$K13:CU13) -> 0.3191280888 | CZ22: =PRODUCT('2012IAR JMale Data'!$K13:CV13) -> 0.2666752388 | DA22: =PRODUCT('2012IAR JMale Data'!$K13:CW13) -> 0.2193619846 | DB22: =PRODUCT('2012IAR JMale Data'!$K13:CX13) -> 0.1735826739 | DC22: =PRODUCT('2012IAR JMale Data'!$K13:CY13) -> 0.1348003122 | DD22: =PRODUCT('2012IAR JMale Data'!$K13:CZ13) -> 0.1023474066 | DE22: =PRODUCT('2012IAR JMale Data'!$K13:DA13) -> 0.07329537882 | DF22: =PRODUCT('2012IAR JMale Data'!$K13:DB13) -> 0.05103689159 | DG22: =PRODUCT('2012IAR JMale Data'!$K13:DC13) -> 0.03285719355 | DH22: =PRODUCT('2012IAR JMale Data'!$K13:DD13) -> 0.02037146 | DI22: =PRODUCT('2012IAR JMale Data'!$K13:DE13) -> 0.012222876 | DJ22: =PRODUCT('2012IAR JMale Data'!$K13:DF13) -> 0.0073337256 | DK22: =PRODUCT('2012IAR JMale Data'!$K13:DG13) -> 0.00440023536 | DL22: =PRODUCT('2012IAR JMale Data'!$K13:DH13) -> 0.002640141216 | DM22: =PRODUCT('2012IAR JMale Data'!$K13:DI13) -> 0.00158408473 | DN22: =PRODUCT('2012IAR JMale Data'!$K13:DJ13) -> 0.0009504508377 | DO22: =PRODUCT('2012IAR JMale Data'!$K13:DK13) -> 0.0005702705026 | DP22: =PRODUCT('2012IAR JMale Data'!$K13:DL13) -> 0.0003421623016 | DQ22: =PRODUCT('2012IAR JMale Data'!$K13:DM13) -> 0.000205297381 | DR22: =PRODUCT('2012IAR JMale Data'!$K13:DN13) -> 0.0001231784286 | DS22: =PRODUCT('2012IAR JMale Data'!$K13:DO13) -> 7.390705714e-05 | DT22: =PRODUCT('2012IAR JMale Data'!$K13:DP13) -> 4.434423429e-05 | DU22: =PRODUCT('2012IAR JMale Data'!$K13:DQ13) -> 2.660654057e-05 | DV22: =PRODUCT('2012IAR JMale Data'!$K13:DR13) -> 1.596392434e-05 | DW22: =PRODUCT('2012IAR JMale Data'!$K13:DS13) -> 0
A23: 9 | B23: 23.71 | C23: 23.71 | P23: =PRODUCT('2012IAR JMale Data'!$L14:L14) -> 0.999871 | Q23: =PRODUCT('2012IAR JMale Data'!$L14:M14) -> 0.9997590144 | R23: =PRODUCT('2012IAR JMale Data'!$L14:N14) -> 0.9996500407 | S23: =PRODUCT('2012IAR JMale Data'!$L14:O14) -> 0.9995220855 | T23: =PRODUCT('2012IAR JMale Data'!$L14:P14) -> 0.9993601629 | U23: =PRODUCT('2012IAR JMale Data'!$L14:Q14) -> 0.9991572928 | V23: =PRODUCT('2012IAR JMale Data'!$L14:R14) -> 0.9989184942 | W23: =PRODUCT('2012IAR JMale Data'!$L14:S14) -> 0.9986457895 | X23: =PRODUCT('2012IAR JMale Data'!$L14:T14) -> 0.9983431998 | Y23: =PRODUCT('2012IAR JMale Data'!$L14:U14) -> 0.9980157432 | Z23: =PRODUCT('2012IAR JMale Data'!$L14:V14) -> 0.9976664377 | AA23: =PRODUCT('2012IAR JMale Data'!$L14:W14) -> 0.9972963035 | AB23: =PRODUCT('2012IAR JMale Data'!$L14:X14) -> 0.996904366 | AC23: =PRODUCT('2012IAR JMale Data'!$L14:Y14) -> 0.9964906507 | AD23: =PRODUCT('2012IAR JMale Data'!$L14:Z14) -> 0.9960462159 | AE23: =PRODUCT('2012IAR JMale Data'!$L14:AA14) -> 0.9955720979 | AF23: =PRODUCT('2012IAR JMale Data'!$L14:AB14) -> 0.9950613694 | AG23: =PRODUCT('2012IAR JMale Data'!$L14:AC14) -> 0.9945120955 | AH23: =PRODUCT('2012IAR JMale Data'!$L14:AD14) -> 0.9939412456 | AI23: =PRODUCT('2012IAR JMale Data'!$L14:AE14) -> 0.9933578021 | AJ23: =PRODUCT('2012IAR JMale Data'!$L14:AF14) -> 0.9927667542 | AK23: =PRODUCT('2012IAR JMale Data'!$L14:AG14) -> 0.9921710941 | AL23: =PRODUCT('2012IAR JMale Data'!$L14:AH14) -> 0.9915738071 | AM23: =PRODUCT('2012IAR JMale Data'!$L14:AI14) -> 0.990980846 | AN23: =PRODUCT('2012IAR JMale Data'!$L14:AJ14) -> 0.9903922034 | AO23: =PRODUCT('2012IAR JMale Data'!$L14:AK14) -> 0.9898098528 | AP23: =PRODUCT('2012IAR JMale Data'!$L14:AL14) -> 0.9892337834 | AQ23: =PRODUCT('2012IAR JMale Data'!$L14:AM14) -> 0.9886639848 | AR23: =PRODUCT('2012IAR JMale Data'!$L14:AN14) -> 0.9880994576 | AS23: =PRODUCT('2012IAR JMale Data'!$L14:AO14) -> 0.9875411814 | AT23: =PRODUCT('2012IAR JMale Data'!$L14:AP14) -> 0.9869565571 | AU23: =PRODUCT('2012IAR JMale Data'!$L14:AQ14) -> 0.9863357614 | AV23: =PRODUCT('2012IAR JMale Data'!$L14:AR14) -> 0.9856739301 | AW23: =PRODUCT('2012IAR JMale Data'!$L14:AS14) -> 0.9849672019 | AX23: =PRODUCT('2012IAR JMale Data'!$L14:AT14) -> 0.9842186268 | AY23: =PRODUCT('2012IAR JMale Data'!$L14:AU14) -> 0.9834282992 | AZ23: =PRODUCT('2012IAR JMale Data'!$L14:AV14) -> 0.9825933686 | BA23: =PRODUCT('2012IAR JMale Data'!$L14:AW14) -> 0.9817001912 | BB23: =PRODUCT('2012IAR JMale Data'!$L14:AX14) -> 0.9807263447 | BC23: =PRODUCT('2012IAR JMale Data'!$L14:AY14) -> 0.9796485264 | BD23: =PRODUCT('2012IAR JMale Data'!$L14:AZ14) -> 0.9784494366 | BE23: =PRODUCT('2012IAR JMale Data'!$L14:BA14) -> 0.9771167885 | BF23: =PRODUCT('2012IAR JMale Data'!$L14:BB14) -> 0.9757029005 | BG23: =PRODUCT('2012IAR JMale Data'!$L14:BC14) -> 0.9741593385 | BH23: =PRODUCT('2012IAR JMale Data'!$L14:BD14) -> 0.9725675621 | BI23: =PRODUCT('2012IAR JMale Data'!$L14:BE14) -> 0.9708665415 | BJ23: =PRODUCT('2012IAR JMale Data'!$L14:BF14) -> 0.9691364573 | BK23: =PRODUCT('2012IAR JMale Data'!$L14:BG14) -> 0.9672873449 | BL23: =PRODUCT('2012IAR JMale Data'!$L14:BH14) -> 0.9653972655 | BM23: =PRODUCT('2012IAR JMale Data'!$L14:BI14) -> 0.9633593118 | BN23: =PRODUCT('2012IAR JMale Data'!$L14:BJ14) -> 0.9612640053 | BO23: =PRODUCT('2012IAR JMale Data'!$L14:BK14) -> 0.9589973448 | BP23: =PRODUCT('2012IAR JMale Data'!$L14:BL14) -> 0.9565442296 | BQ23: =PRODUCT('2012IAR JMale Data'!$L14:BM14) -> 0.9538955586 | BR23: =PRODUCT('2012IAR JMale Data'!$L14:BN14) -> 0.9510453187 | BS23: =PRODUCT('2012IAR JMale Data'!$L14:BO14) -> 0.9479810507 | BT23: =PRODUCT('2012IAR JMale Data'!$L14:BP14) -> 0.9446849206 | BU23: =PRODUCT('2012IAR JMale Data'!$L14:BQ14) -> 0.9412727186 | BV23: =PRODUCT('2012IAR JMale Data'!$L14:BR14) -> 0.9377175316 | BW23: =PRODUCT('2012IAR JMale Data'!$L14:BS14) -> 0.9339854158 | BX23: =PRODUCT('2012IAR JMale Data'!$L14:BT14) -> 0.9300393274 | BY23: =PRODUCT('2012IAR JMale Data'!$L14:BU14) -> 0.9258383398 | BZ23: =PRODUCT('2012IAR JMale Data'!$L14:BV14) -> 0.9213341362 | CA23: =PRODUCT('2012IAR JMale Data'!$L14:BW14) -> 0.916472256 | CB23: =PRODUCT('2012IAR JMale Data'!$L14:BX14) -> 0.9111942923 | CC23: =PRODUCT('2012IAR JMale Data'!$L14:BY14) -> 0.9054419227 | CD23: =PRODUCT('2012IAR JMale Data'!$L14:BZ14) -> 0.8991590612 | CE23: =PRODUCT('2012IAR JMale Data'!$L14:CA14) -> 0.892289486 | CF23: =PRODUCT('2012IAR JMale Data'!$L14:CB14) -> 0.8847737317 | CG23: =PRODUCT('2012IAR JMale Data'!$L14:CC14) -> 0.876548875 | CH23: =PRODUCT('2012IAR JMale Data'!$L14:CD14) -> 0.8675502243 | CI23: =PRODUCT('2012IAR JMale Data'!$L14:CE14) -> 0.857690516 | CJ23: =PRODUCT('2012IAR JMale Data'!$L14:CF14) -> 0.846025925 | CK23: =PRODUCT('2012IAR JMale Data'!$L14:CG14) -> 0.8322703895 | CL23: =PRODUCT('2012IAR JMale Data'!$L14:CH14) -> 0.8172770384 | CM23: =PRODUCT('2012IAR JMale Data'!$L14:CI14) -> 0.7996851501 | CN23: =PRODUCT('2012IAR JMale Data'!$L14:CJ14) -> 0.7790340808 | CO23: =PRODUCT('2012IAR JMale Data'!$L14:CK14) -> 0.7547757386 | CP23: =PRODUCT('2012IAR JMale Data'!$L14:CL14) -> 0.7263101264 | CQ23: =PRODUCT('2012IAR JMale Data'!$L14:CM14) -> 0.6955922922 | CR23: =PRODUCT('2012IAR JMale Data'!$L14:CN14) -> 0.6598743236 | CS23: =PRODUCT('2012IAR JMale Data'!$L14:CO14) -> 0.618786589 | CT23: =PRODUCT('2012IAR JMale Data'!$L14:CP14) -> 0.5759609879 | CU23: =PRODUCT('2012IAR JMale Data'!$L14:CQ14) -> 0.5280191472 | CV23: =PRODUCT('2012IAR JMale Data'!$L14:CR14) -> 0.4752816508 | CW23: =PRODUCT('2012IAR JMale Data'!$L14:CS14) -> 0.4230752885 | CX23: =PRODUCT('2012IAR JMale Data'!$L14:CT14) -> 0.3675483491 | CY23: =PRODUCT('2012IAR JMale Data'!$L14:CU14) -> 0.3163738574 | CZ23: =PRODUCT('2012IAR JMale Data'!$L14:CV14) -> 0.264217096 | DA23: =PRODUCT('2012IAR JMale Data'!$L14:CW14) -> 0.2171988711 | DB23: =PRODUCT('2012IAR JMale Data'!$L14:CX14) -> 0.171780198 | DC23: =PRODUCT('2012IAR JMale Data'!$L14:CY14) -> 0.1333237651 | DD23: =PRODUCT('2012IAR JMale Data'!$L14:CZ14) -> 0.1011620732 | DE23: =PRODUCT('2012IAR JMale Data'!$L14:DA14) -> 0.07241767941 | DF23: =PRODUCT('2012IAR JMale Data'!$L14:DB14) -> 0.05040371872 | DG23: =PRODUCT('2012IAR JMale Data'!$L14:DC14) -> 0.03244956128 | DH23: =PRODUCT('2012IAR JMale Data'!$L14:DD14) -> 0.020118728 | DI23: =PRODUCT('2012IAR JMale Data'!$L14:DE14) -> 0.0120712368 | DJ23: =PRODUCT('2012IAR JMale Data'!$L14:DF14) -> 0.007242742078 | DK23: =PRODUCT('2012IAR JMale Data'!$L14:DG14) -> 0.004345645247 | DL23: =PRODUCT('2012IAR JMale Data'!$L14:DH14) -> 0.002607387148 | DM23: =PRODUCT('2012IAR JMale Data'!$L14:DI14) -> 0.001564432289 | DN23: =PRODUCT('2012IAR JMale Data'!$L14:DJ14) -> 0.0009386593734 | DO23: =PRODUCT('2012IAR JMale Data'!$L14:DK14) -> 0.000563195624 | DP23: =PRODUCT('2012IAR JMale Data'!$L14:DL14) -> 0.0003379173744 | DQ23: =PRODUCT('2012IAR JMale Data'!$L14:DM14) -> 0.0002027504246 | DR23: =PRODUCT('2012IAR JMale Data'!$L14:DN14) -> 0.0001216502548 | DS23: =PRODUCT('2012IAR JMale Data'!$L14:DO14) -> 7.299015287e-05 | DT23: =PRODUCT('2012IAR JMale Data'!$L14:DP14) -> 4.379409172e-05 | DU23: =PRODUCT('2012IAR JMale Data'!$L14:DQ14) -> 2.627645503e-05 | DV23: =PRODUCT('2012IAR JMale Data'!$L14:DR14) -> 1.576587302e-05 | DW23: =PRODUCT('2012IAR JMale Data'!$L14:DS14) -> 0
A24: 10 | B24: 23.66 | C24: 23.66 | Q24: =PRODUCT('2012IAR JMale Data'!$M15:M15) -> 0.999887 | R24: =PRODUCT('2012IAR JMale Data'!$M15:N15) -> 0.9997770124 | S24: =PRODUCT('2012IAR JMale Data'!$M15:O15) -> 0.9996480412 | T24: =PRODUCT('2012IAR JMale Data'!$M15:P15) -> 0.9994840989 | U24: =PRODUCT('2012IAR JMale Data'!$M15:Q15) -> 0.9992792047 | V24: =PRODUCT('2012IAR JMale Data'!$M15:R15) -> 0.9990373791 | W24: =PRODUCT('2012IAR JMale Data'!$M15:S15) -> 0.9987616448 | X24: =PRODUCT('2012IAR JMale Data'!$M15:T15) -> 0.9984560237 | Y24: =PRODUCT('2012IAR JMale Data'!$M15:U15) -> 0.9981255348 | Z24: =PRODUCT('2012IAR JMale Data'!$M15:V15) -> 0.9977721983 | AA24: =PRODUCT('2012IAR JMale Data'!$M15:W15) -> 0.9973990315 | AB24: =PRODUCT('2012IAR JMale Data'!$M15:X15) -> 0.9970030641 | AC24: =PRODUCT('2012IAR JMale Data'!$M15:Y15) -> 0.9965853198 | AD24: =PRODUCT('2012IAR JMale Data'!$M15:Z15) -> 0.9961368565 | AE24: =PRODUCT('2012IAR JMale Data'!$M15:AA15) -> 0.9956577146 | AF24: =PRODUCT('2012IAR JMale Data'!$M15:AB15) -> 0.9951419639 | AG24: =PRODUCT('2012IAR JMale Data'!$M15:AC15) -> 0.9945866747 | AH24: =PRODUCT('2012IAR JMale Data'!$M15:AD15) -> 0.9940098144 | AI24: =PRODUCT('2012IAR JMale Data'!$M15:AE15) -> 0.9934203666 | AJ24: =PRODUCT('2012IAR JMale Data'!$M15:AF15) -> 0.992823321 | AK24: =PRODUCT('2012IAR JMale Data'!$M15:AG15) -> 0.99222167 | AL24: =PRODUCT('2012IAR JMale Data'!$M15:AH15) -> 0.9916183993 | AM24: =PRODUCT('2012IAR JMale Data'!$M15:AI15) -> 0.9910194618 | AN24: =PRODUCT('2012IAR JMale Data'!$M15:AJ15) -> 0.9904248501 | AO24: =PRODUCT('2012IAR JMale Data'!$M15:AK15) -> 0.9898365377 | AP24: =PRODUCT('2012IAR JMale Data'!$M15:AL15) -> 0.9892545138 | AQ24: =PRODUCT('2012IAR JMale Data'!$M15:AM15) -> 0.9886787677 | AR24: =PRODUCT('2012IAR JMale Data'!$M15:AN15) -> 0.9881092887 | AS24: =PRODUCT('2012IAR JMale Data'!$M15:AO15) -> 0.9875450783 | AT24: =PRODUCT('2012IAR JMale Data'!$M15:AP15) -> 0.9869545264 | AU24: =PRODUCT('2012IAR JMale Data'!$M15:AQ15) -> 0.9863278103 | AV24: =PRODUCT('2012IAR JMale Data'!$M15:AR15) -> 0.98565908 | AW24: =PRODUCT('2012IAR JMale Data'!$M15:AS15) -> 0.9849454628 | AX24: =PRODUCT('2012IAR JMale Data'!$M15:AT15) -> 0.9841900097 | AY24: =PRODUCT('2012IAR JMale Data'!$M15:AU15) -> 0.9833918316 | AZ24: =PRODUCT('2012IAR JMale Data'!$M15:AV15) -> 0.9825480814 | BA24: =PRODUCT('2012IAR JMale Data'!$M15:AW15) -> 0.9816461022 | BB24: =PRODUCT('2012IAR JMale Data'!$M15:AX15) -> 0.9806624928 | BC24: =PRODUCT('2012IAR JMale Data'!$M15:AY15) -> 0.9795729768 | BD24: =PRODUCT('2012IAR JMale Data'!$M15:AZ15) -> 0.9783622246 | BE24: =PRODUCT('2012IAR JMale Data'!$M15:BA15) -> 0.9770159982 | BF24: =PRODUCT('2012IAR JMale Data'!$M15:BB15) -> 0.9755866238 | BG24: =PRODUCT('2012IAR JMale Data'!$M15:BC15) -> 0.9740266608 | BH24: =PRODUCT('2012IAR JMale Data'!$M15:BD15) -> 0.9724156207 | BI24: =PRODUCT('2012IAR JMale Data'!$M15:BE15) -> 0.970694445 | BJ24: =PRODUCT('2012IAR JMale Data'!$M15:BF15) -> 0.9689413709 | BK24: =PRODUCT('2012IAR JMale Data'!$M15:BG15) -> 0.9670684072 | BL24: =PRODUCT('2012IAR JMale Data'!$M15:BH15) -> 0.9651516776 | BM24: =PRODUCT('2012IAR JMale Data'!$M15:BI15) -> 0.9630852879 | BN24: =PRODUCT('2012IAR JMale Data'!$M15:BJ15) -> 0.9609587955 | BO24: =PRODUCT('2012IAR JMale Data'!$M15:BK15) -> 0.9586582602 | BP24: =PRODUCT('2012IAR JMale Data'!$M15:BL15) -> 0.9561686247 | BQ24: =PRODUCT('2012IAR JMale Data'!$M15:BM15) -> 0.9534808347 | BR24: =PRODUCT('2012IAR JMale Data'!$M15:BN15) -> 0.9505879738 | BS24: =PRODUCT('2012IAR JMale Data'!$M15:BO15) -> 0.9474786006 | BT24: =PRODUCT('2012IAR JMale Data'!$M15:BP15) -> 0.9441340011 | BU24: =PRODUCT('2012IAR JMale Data'!$M15:BQ15) -> 0.9406718617 | BV24: =PRODUCT('2012IAR JMale Data'!$M15:BR15) -> 0.9370643851 | BW24: =PRODUCT('2012IAR JMale Data'!$M15:BS15) -> 0.933278645 | BX24: =PRODUCT('2012IAR JMale Data'!$M15:BT15) -> 0.9292758129 | BY24: =PRODUCT('2012IAR JMale Data'!$M15:BU15) -> 0.925014154 | BZ24: =PRODUCT('2012IAR JMale Data'!$M15:BV15) -> 0.9204455091 | CA24: =PRODUCT('2012IAR JMale Data'!$M15:BW15) -> 0.9155137621 | CB24: =PRODUCT('2012IAR JMale Data'!$M15:BX15) -> 0.9101616686 | CC24: =PRODUCT('2012IAR JMale Data'!$M15:BY15) -> 0.9043284425 | CD24: =PRODUCT('2012IAR JMale Data'!$M15:BZ15) -> 0.8979574486 | CE24: =PRODUCT('2012IAR JMale Data'!$M15:CA15) -> 0.8909928906 | CF24: =PRODUCT('2012IAR JMale Data'!$M15:CB15) -> 0.8833740104 | CG24: =PRODUCT('2012IAR JMale Data'!$M15:CC15) -> 0.8750376099 | CH24: =PRODUCT('2012IAR JMale Data'!$M15:CD15) -> 0.8659170929 | CI24: =PRODUCT('2012IAR JMale Data'!$M15:CE15) -> 0.8559261415 | CJ24: =PRODUCT('2012IAR JMale Data'!$M15:CF15) -> 0.8441203522 | CK24: =PRODUCT('2012IAR JMale Data'!$M15:CG15) -> 0.8302151576 | CL24: =PRODUCT('2012IAR JMale Data'!$M15:CH15) -> 0.8150620706 | CM24: =PRODUCT('2012IAR JMale Data'!$M15:CI15) -> 0.7973043133 | CN24: =PRODUCT('2012IAR JMale Data'!$M15:CJ15) -> 0.7764859003 | CO24: =PRODUCT('2012IAR JMale Data'!$M15:CK15) -> 0.7520630893 | CP24: =PRODUCT('2012IAR JMale Data'!$M15:CL15) -> 0.7234425764 | CQ24: =PRODUCT('2012IAR JMale Data'!$M15:CM15) -> 0.6925682176 | CR24: =PRODUCT('2012IAR JMale Data'!$M15:CN15) -> 0.6567188089 | CS24: =PRODUCT('2012IAR JMale Data'!$M15:CO15) -> 0.615539256 | CT24: =PRODUCT('2012IAR JMale Data'!$M15:CP15) -> 0.5726380165 | CU24: =PRODUCT('2012IAR JMale Data'!$M15:CQ15) -> 0.5246847363 | CV24: =PRODUCT('2012IAR JMale Data'!$M15:CR15) -> 0.4720168825 | CW24: =PRODUCT('2012IAR JMale Data'!$M15:CS15) -> 0.4199085788 | CX24: =PRODUCT('2012IAR JMale Data'!$M15:CT15) -> 0.3645759656 | CY24: =PRODUCT('2012IAR JMale Data'!$M15:CU15) -> 0.3136115268 | CZ24: =PRODUCT('2012IAR JMale Data'!$M15:CV15) -> 0.2617546064 | DA24: =PRODUCT('2012IAR JMale Data'!$M15:CW15) -> 0.2150345502 | DB24: =PRODUCT('2012IAR JMale Data'!$M15:CX15) -> 0.1699781459 | DC24: =PRODUCT('2012IAR JMale Data'!$M15:CY15) -> 0.1318488182 | DD24: =PRODUCT('2012IAR JMale Data'!$M15:CZ15) -> 0.09997911293 | DE24: =PRODUCT('2012IAR JMale Data'!$M15:DA15) -> 0.07154245376 | DF24: =PRODUCT('2012IAR JMale Data'!$M15:DB15) -> 0.0497728005 | DG24: =PRODUCT('2012IAR JMale Data'!$M15:DC15) -> 0.03204338055 | DH24: =PRODUCT('2012IAR JMale Data'!$M15:DD15) -> 0.01986689594 | DI24: =PRODUCT('2012IAR JMale Data'!$M15:DE15) -> 0.01192013757 | DJ24: =PRODUCT('2012IAR JMale Data'!$M15:DF15) -> 0.00715208254 | DK24: =PRODUCT('2012IAR JMale Data'!$M15:DG15) -> 0.004291249524 | DL24: =PRODUCT('2012IAR JMale Data'!$M15:DH15) -> 0.002574749714 | DM24: =PRODUCT('2012IAR JMale Data'!$M15:DI15) -> 0.001544849829 | DN24: =PRODUCT('2012IAR JMale Data'!$M15:DJ15) -> 0.0009269098972 | DO24: =PRODUCT('2012IAR JMale Data'!$M15:DK15) -> 0.0005561459383 | DP24: =PRODUCT('2012IAR JMale Data'!$M15:DL15) -> 0.000333687563 | DQ24: =PRODUCT('2012IAR JMale Data'!$M15:DM15) -> 0.0002002125378 | DR24: =PRODUCT('2012IAR JMale Data'!$M15:DN15) -> 0.0001201275227 | DS24: =PRODUCT('2012IAR JMale Data'!$M15:DO15) -> 7.20765136e-05 | DT24: =PRODUCT('2012IAR JMale Data'!$M15:DP15) -> 4.324590816e-05 | DU24: =PRODUCT('2012IAR JMale Data'!$M15:DQ15) -> 2.59475449e-05 | DV24: =PRODUCT('2012IAR JMale Data'!$M15:DR15) -> 1.556852694e-05 | DW24: =PRODUCT('2012IAR JMale Data'!$M15:DS15) -> 0
A25: 11 | B25: 23.6 | C25: 23.6 | R25: =PRODUCT('2012IAR JMale Data'!$N16:N16) -> 0.999889 | S25: =PRODUCT('2012IAR JMale Data'!$N16:O16) -> 0.9997580145 | T25: =PRODUCT('2012IAR JMale Data'!$N16:P16) -> 0.9995920547 | U25: =PRODUCT('2012IAR JMale Data'!$N16:Q16) -> 0.9993851392 | V25: =PRODUCT('2012IAR JMale Data'!$N16:R16) -> 0.9991412892 | W25: =PRODUCT('2012IAR JMale Data'!$N16:S16) -> 0.9988625288 | X25: =PRODUCT('2012IAR JMale Data'!$N16:T16) -> 0.9985538802 | Y25: =PRODUCT('2012IAR JMale Data'!$N16:U16) -> 0.9982193647 | Z25: =PRODUCT('2012IAR JMale Data'!$N16:V16) -> 0.9978630004 | AA25: =PRODUCT('2012IAR JMale Data'!$N16:W16) -> 0.9974858082 | AB25: =PRODUCT('2012IAR JMale Data'!$N16:X16) -> 0.9970858164 | AC25: =PRODUCT('2012IAR JMale Data'!$N16:Y16) -> 0.9966640491 | AD25: =PRODUCT('2012IAR JMale Data'!$N16:Z16) -> 0.9962105669 | AE25: =PRODUCT('2012IAR JMale Data'!$N16:AA16) -> 0.9957264086 | AF25: =PRODUCT('2012IAR JMale Data'!$N16:AB16) -> 0.9952056437 | AG25: =PRODUCT('2012IAR JMale Data'!$N16:AC16) -> 0.9946453429 | AH25: =PRODUCT('2012IAR JMale Data'!$N16:AD16) -> 0.9940624807 | AI25: =PRODUCT('2012IAR JMale Data'!$N16:AE16) -> 0.9934680314 | AJ25: =PRODUCT('2012IAR JMale Data'!$N16:AF16) -> 0.9928649963 | AK25: =PRODUCT('2012IAR JMale Data'!$N16:AG16) -> 0.9922573629 | AL25: =PRODUCT('2012IAR JMale Data'!$N16:AH16) -> 0.9916481169 | AM25: =PRODUCT('2012IAR JMale Data'!$N16:AI16) -> 0.9910422199 | AN25: =PRODUCT('2012IAR JMale Data'!$N16:AJ16) -> 0.9904416483 | AO25: =PRODUCT('2012IAR JMale Data'!$N16:AK16) -> 0.9898473833 | AP25: =PRODUCT('2012IAR JMale Data'!$N16:AL16) -> 0.9892594139 | AQ25: =PRODUCT('2012IAR JMale Data'!$N16:AM16) -> 0.9886777294 | AR25: =PRODUCT('2012IAR JMale Data'!$N16:AN16) -> 0.988102319 | AS25: =PRODUCT('2012IAR JMale Data'!$N16:AO16) -> 0.987533172 | AT25: =PRODUCT('2012IAR JMale Data'!$N16:AP16) -> 0.986936702 | AU25: =PRODUCT('2012IAR JMale Data'!$N16:AQ16) -> 0.9863030886 | AV25: =PRODUCT('2012IAR JMale Data'!$N16:AR16) -> 0.985627471 | AW25: =PRODUCT('2012IAR JMale Data'!$N16:AS16) -> 0.9849059917 | AX25: =PRODUCT('2012IAR JMale Data'!$N16:AT16) -> 0.9841426896 | AY25: =PRODUCT('2012IAR JMale Data'!$N16:AU16) -> 0.9833356926 | AZ25: =PRODUCT('2012IAR JMale Data'!$N16:AV16) -> 0.9824841238 | BA25: =PRODUCT('2012IAR JMale Data'!$N16:AW16) -> 0.9815733611 | BB25: =PRODUCT('2012IAR JMale Data'!$N16:AX16) -> 0.9805790273 | BC25: =PRODUCT('2012IAR JMale Data'!$N16:AY16) -> 0.9794788176 | BD25: =PRODUCT('2012IAR JMale Data'!$N16:AZ16) -> 0.978256428 | BE25: =PRODUCT('2012IAR JMale Data'!$N16:BA16) -> 0.9768966516 | BF25: =PRODUCT('2012IAR JMale Data'!$N16:BB16) -> 0.9754518214 | BG25: =PRODUCT('2012IAR JMale Data'!$N16:BC16) -> 0.9738745158 | BH25: =PRODUCT('2012IAR JMale Data'!$N16:BD16) -> 0.9722442499 | BI25: =PRODUCT('2012IAR JMale Data'!$N16:BE16) -> 0.9705019882 | BJ25: =PRODUCT('2012IAR JMale Data'!$N16:BF16) -> 0.9687259696 | BK25: =PRODUCT('2012IAR JMale Data'!$N16:BG16) -> 0.9668292041 | BL25: =PRODUCT('2012IAR JMale Data'!$N16:BH16) -> 0.9648858774 | BM25: =PRODUCT('2012IAR JMale Data'!$N16:BI16) -> 0.9627901453 | BN25: =PRODUCT('2012IAR JMale Data'!$N16:BJ16) -> 0.9606315698 | BO25: =PRODUCT('2012IAR JMale Data'!$N16:BK16) -> 0.9582972351 | BP25: =PRODUCT('2012IAR JMale Data'!$N16:BL16) -> 0.9557702053 | BQ25: =PRODUCT('2012IAR JMale Data'!$N16:BM16) -> 0.9530424371 | BR25: =PRODUCT('2012IAR JMale Data'!$N16:BN16) -> 0.9501070664 | BS25: =PRODUCT('2012IAR JMale Data'!$N16:BO16) -> 0.9469517608 | BT25: =PRODUCT('2012IAR JMale Data'!$N16:BP16) -> 0.9435578857 | BU25: =PRODUCT('2012IAR JMale Data'!$N16:BQ16) -> 0.9400450197 | BV25: =PRODUCT('2012IAR JMale Data'!$N16:BR16) -> 0.9363854244 | BW25: =PRODUCT('2012IAR JMale Data'!$N16:BS16) -> 0.9325443714 | BX25: =PRODUCT('2012IAR JMale Data'!$N16:BT16) -> 0.9284831407 | BY25: =PRODUCT('2012IAR JMale Data'!$N16:BU16) -> 0.9241601232 | BZ25: =PRODUCT('2012IAR JMale Data'!$N16:BV16) -> 0.9195263843 | CA25: =PRODUCT('2012IAR JMale Data'!$N16:BW16) -> 0.9145250803 | CB25: =PRODUCT('2012IAR JMale Data'!$N16:BX16) -> 0.9090964595 | CC25: =PRODUCT('2012IAR JMale Data'!$N16:BY16) -> 0.9031818779 | CD25: =PRODUCT('2012IAR JMale Data'!$N16:BZ16) -> 0.8967223211 | CE25: =PRODUCT('2012IAR JMale Data'!$N16:CA16) -> 0.8896615295 | CF25: =PRODUCT('2012IAR JMale Data'!$N16:CB16) -> 0.8819374881 | CG25: =PRODUCT('2012IAR JMale Data'!$N16:CC16) -> 0.8734876451 | CH25: =PRODUCT('2012IAR JMale Data'!$N16:CD16) -> 0.8642452723 | CI25: =PRODUCT('2012IAR JMale Data'!$N16:CE16) -> 0.8541223674 | CJ25: =PRODUCT('2012IAR JMale Data'!$N16:CF16) -> 0.8421740496 | CK25: =PRODUCT('2012IAR JMale Data'!$N16:CG16) -> 0.8281181647 | CL25: =PRODUCT('2012IAR JMale Data'!$N16:CH16) -> 0.8128046036 | CM25: =PRODUCT('2012IAR JMale Data'!$N16:CI16) -> 0.7948814493 | CN25: =PRODUCT('2012IAR JMale Data'!$N16:CJ16) -> 0.7738957842 | CO25: =PRODUCT('2012IAR JMale Data'!$N16:CK16) -> 0.7493083412 | CP25: =PRODUCT('2012IAR JMale Data'!$N16:CL16) -> 0.7205334023 | CQ25: =PRODUCT('2012IAR JMale Data'!$N16:CM16) -> 0.6895036313 | CR25: =PRODUCT('2012IAR JMale Data'!$N16:CN16) -> 0.6535246423 | CS25: =PRODUCT('2012IAR JMale Data'!$N16:CO16) -> 0.6122565217 | CT25: =PRODUCT('2012IAR JMale Data'!$N16:CP16) -> 0.569283461 | CU25: =PRODUCT('2012IAR JMale Data'!$N16:CQ16) -> 0.5213236065 | CV25: =PRODUCT('2012IAR JMale Data'!$N16:CR16) -> 0.4687298745 | CW25: =PRODUCT('2012IAR JMale Data'!$N16:CS16) -> 0.4167242949 | CX25: =PRODUCT('2012IAR JMale Data'!$N16:CT16) -> 0.3615908373 | CY25: =PRODUCT('2012IAR JMale Data'!$N16:CU16) -> 0.3108408401 | CZ25: =PRODUCT('2012IAR JMale Data'!$N16:CV16) -> 0.2592875759 | DA25: =PRODUCT('2012IAR JMale Data'!$N16:CW16) -> 0.2128686176 | DB25: =PRODUCT('2012IAR JMale Data'!$N16:CX16) -> 0.1681768514 | DC25: =PRODUCT('2012IAR JMale Data'!$N16:CY16) -> 0.1303759087 | DD25: =PRODUCT('2012IAR JMale Data'!$N16:CZ16) -> 0.09879912433 | DE25: =PRODUCT('2012IAR JMale Data'!$N16:DA16) -> 0.07066992684 | DF25: =PRODUCT('2012IAR JMale Data'!$N16:DB16) -> 0.04914429115 | DG25: =PRODUCT('2012IAR JMale Data'!$N16:DC16) -> 0.03163875063 | DH25: =PRODUCT('2012IAR JMale Data'!$N16:DD16) -> 0.01961602539 | DI25: =PRODUCT('2012IAR JMale Data'!$N16:DE16) -> 0.01176961523 | DJ25: =PRODUCT('2012IAR JMale Data'!$N16:DF16) -> 0.00706176914 | DK25: =PRODUCT('2012IAR JMale Data'!$N16:DG16) -> 0.004237061484 | DL25: =PRODUCT('2012IAR JMale Data'!$N16:DH16) -> 0.002542236891 | DM25: =PRODUCT('2012IAR JMale Data'!$N16:DI16) -> 0.001525342134 | DN25: =PRODUCT('2012IAR JMale Data'!$N16:DJ16) -> 0.0009152052806 | DO25: =PRODUCT('2012IAR JMale Data'!$N16:DK16) -> 0.0005491231684 | DP25: =PRODUCT('2012IAR JMale Data'!$N16:DL16) -> 0.000329473901 | DQ25: =PRODUCT('2012IAR JMale Data'!$N16:DM16) -> 0.0001976843406 | DR25: =PRODUCT('2012IAR JMale Data'!$N16:DN16) -> 0.0001186106044 | DS25: =PRODUCT('2012IAR JMale Data'!$N16:DO16) -> 7.116636262e-05 | DT25: =PRODUCT('2012IAR JMale Data'!$N16:DP16) -> 4.269981757e-05 | DU25: =PRODUCT('2012IAR JMale Data'!$N16:DQ16) -> 2.561989054e-05 | DV25: =PRODUCT('2012IAR JMale Data'!$N16:DR16) -> 1.537193433e-05 | DW25: =PRODUCT('2012IAR JMale Data'!$N16:DS16) -> 0
A26: 12 | B26: 23.54 | C26: 23.54 | S26: =PRODUCT('2012IAR JMale Data'!$O17:O17) -> 0.999868 | T26: =PRODUCT('2012IAR JMale Data'!$O17:P17) -> 0.999701022 | U26: =PRODUCT('2012IAR JMale Data'!$O17:Q17) -> 0.9994920845 | V26: =PRODUCT('2012IAR JMale Data'!$O17:R17) -> 0.9992462095 | W26: =PRODUCT('2012IAR JMale Data'!$O17:S17) -> 0.9989654213 | X26: =PRODUCT('2012IAR JMale Data'!$O17:T17) -> 0.9986537441 | Y26: =PRODUCT('2012IAR JMale Data'!$O17:U17) -> 0.9983161991 | Z26: =PRODUCT('2012IAR JMale Data'!$O17:V17) -> 0.997955807 | AA26: =PRODUCT('2012IAR JMale Data'!$O17:W17) -> 0.9975745878 | AB26: =PRODUCT('2012IAR JMale Data'!$O17:X17) -> 0.9971705701 | AC26: =PRODUCT('2012IAR JMale Data'!$O17:Y17) -> 0.9967437811 | AD26: =PRODUCT('2012IAR JMale Data'!$O17:Z17) -> 0.9962862757 | AE26: =PRODUCT('2012IAR JMale Data'!$O17:AA17) -> 0.9957970992 | AF26: =PRODUCT('2012IAR JMale Data'!$O17:AB17) -> 0.9952713183 | AG26: =PRODUCT('2012IAR JMale Data'!$O17:AC17) -> 0.9947050089 | AH26: =PRODUCT('2012IAR JMale Data'!$O17:AD17) -> 0.9941161436 | AI26: =PRODUCT('2012IAR JMale Data'!$O17:AE17) -> 0.9935147033 | AJ26: =PRODUCT('2012IAR JMale Data'!$O17:AF17) -> 0.9929056788 | AK26: =PRODUCT('2012IAR JMale Data'!$O17:AG17) -> 0.9922920631 | AL26: =PRODUCT('2012IAR JMale Data'!$O17:AH17) -> 0.991676842 | AM26: =PRODUCT('2012IAR JMale Data'!$O17:AI17) -> 0.9910649774 | AN26: =PRODUCT('2012IAR JMale Data'!$O17:AJ17) -> 0.9904584456 | AO26: =PRODUCT('2012IAR JMale Data'!$O17:AK17) -> 0.9898582278 | AP26: =PRODUCT('2012IAR JMale Data'!$O17:AL17) -> 0.9892643129 | AQ26: =PRODUCT('2012IAR JMale Data'!$O17:AM17) -> 0.9886766899 | AR26: =PRODUCT('2012IAR JMale Data'!$O17:AN17) -> 0.988095348 | AS26: =PRODUCT('2012IAR JMale Data'!$O17:AO17) -> 0.9875202765 | AT26: =PRODUCT('2012IAR JMale Data'!$O17:AP17) -> 0.9869178891 | AU26: =PRODUCT('2012IAR JMale Data'!$O17:AQ17) -> 0.9862783663 | AV26: =PRODUCT('2012IAR JMale Data'!$O17:AR17) -> 0.9855958617 | AW26: =PRODUCT('2012IAR JMale Data'!$O17:AS17) -> 0.9848675063 | AX26: =PRODUCT('2012IAR JMale Data'!$O17:AT17) -> 0.9840963551 | AY26: =PRODUCT('2012IAR JMale Data'!$O17:AU17) -> 0.9832815233 | AZ26: =PRODUCT('2012IAR JMale Data'!$O17:AV17) -> 0.982421152 | BA26: =PRODUCT('2012IAR JMale Data'!$O17:AW17) -> 0.9815006234 | BB26: =PRODUCT('2012IAR JMale Data'!$O17:AX17) -> 0.9804965482 | BC26: =PRODUCT('2012IAR JMale Data'!$O17:AY17) -> 0.9793856456 | BD26: =PRODUCT('2012IAR JMale Data'!$O17:AZ17) -> 0.9781506403 | BE26: =PRODUCT('2012IAR JMale Data'!$O17:BA17) -> 0.9767773168 | BF26: =PRODUCT('2012IAR JMale Data'!$O17:BB17) -> 0.9753170347 | BG26: =PRODUCT('2012IAR JMale Data'!$O17:BC17) -> 0.9737223914 | BH26: =PRODUCT('2012IAR JMale Data'!$O17:BD17) -> 0.9720729057 | BI26: =PRODUCT('2012IAR JMale Data'!$O17:BE17) -> 0.9703105375 | BJ26: =PRODUCT('2012IAR JMale Data'!$O17:BF17) -> 0.9685115817 | BK26: =PRODUCT('2012IAR JMale Data'!$O17:BG17) -> 0.9665900548 | BL26: =PRODUCT('2012IAR JMale Data'!$O17:BH17) -> 0.9646191776 | BM26: =PRODUCT('2012IAR JMale Data'!$O17:BI17) -> 0.9624941216 | BN26: =PRODUCT('2012IAR JMale Data'!$O17:BJ17) -> 0.960303485 | BO26: =PRODUCT('2012IAR JMale Data'!$O17:BK17) -> 0.9579344163 | BP26: =PRODUCT('2012IAR JMale Data'!$O17:BL17) -> 0.9553700258 | BQ26: =PRODUCT('2012IAR JMale Data'!$O17:BM17) -> 0.9526013635 | BR26: =PRODUCT('2012IAR JMale Data'!$O17:BN17) -> 0.949622579 | BS26: =PRODUCT('2012IAR JMale Data'!$O17:BO17) -> 0.9464214013 | BT26: =PRODUCT('2012IAR JMale Data'!$O17:BP17) -> 0.9429773739 | BU26: =PRODUCT('2012IAR JMale Data'!$O17:BQ17) -> 0.9394138624 | BV26: =PRODUCT('2012IAR JMale Data'!$O17:BR17) -> 0.9357003594 | BW26: =PRODUCT('2012IAR JMale Data'!$O17:BS17) -> 0.9318041031 | BX26: =PRODUCT('2012IAR JMale Data'!$O17:BT17) -> 0.9276845971 | BY26: =PRODUCT('2012IAR JMale Data'!$O17:BU17) -> 0.923299432 | BZ26: =PRODUCT('2012IAR JMale Data'!$O17:BV17) -> 0.9185989146 | CA26: =PRODUCT('2012IAR JMale Data'!$O17:BW17) -> 0.9135264114 | CB26: =PRODUCT('2012IAR JMale Data'!$O17:BX17) -> 0.9080215013 | CC26: =PRODUCT('2012IAR JMale Data'!$O17:BY17) -> 0.9020240192 | CD26: =PRODUCT('2012IAR JMale Data'!$O17:BZ17) -> 0.8954744228 | CE26: =PRODUCT('2012IAR JMale Data'!$O17:CA17) -> 0.8883160003 | CF26: =PRODUCT('2012IAR JMale Data'!$O17:CB17) -> 0.8804863831 | CG26: =PRODUCT('2012IAR JMale Data'!$O17:CC17) -> 0.871921892 | CH26: =PRODUCT('2012IAR JMale Data'!$O17:CD17) -> 0.8625548351 | CI26: =PRODUCT('2012IAR JMale Data'!$O17:CE17) -> 0.852297333 | CJ26: =PRODUCT('2012IAR JMale Data'!$O17:CF17) -> 0.8402049385 | CK26: =PRODUCT('2012IAR JMale Data'!$O17:CG17) -> 0.825997073 | CL26: =PRODUCT('2012IAR JMale Data'!$O17:CH17) -> 0.8105211918 | CM26: =PRODUCT('2012IAR JMale Data'!$O17:CI17) -> 0.7924311693 | CN26: =PRODUCT('2012IAR JMale Data'!$O17:CJ17) -> 0.7712772193 | CO26: =PRODUCT('2012IAR JMale Data'!$O17:CK17) -> 0.7465253907 | CP26: =PRODUCT('2012IAR JMale Data'!$O17:CL17) -> 0.7175975319 | CQ26: =PRODUCT('2012IAR JMale Data'!$O17:CM17) -> 0.6864136135 | CR26: =PRODUCT('2012IAR JMale Data'!$O17:CN17) -> 0.6503068846 | CS26: =PRODUCT('2012IAR JMale Data'!$O17:CO17) -> 0.6089519189 | CT26: =PRODUCT('2012IAR JMale Data'!$O17:CP17) -> 0.5659093704 | CU26: =PRODUCT('2012IAR JMale Data'!$O17:CQ17) -> 0.5179457217 | CV26: =PRODUCT('2012IAR JMale Data'!$O17:CR17) -> 0.4654306871 | CW26: =PRODUCT('2012IAR JMale Data'!$O17:CS17) -> 0.4135319074 | CX26: =PRODUCT('2012IAR JMale Data'!$O17:CT17) -> 0.3586012236 | CY26: =PRODUCT('2012IAR JMale Data'!$O17:CU17) -> 0.3080685736 | CZ26: =PRODUCT('2012IAR JMale Data'!$O17:CV17) -> 0.2568213663 | DA26: =PRODUCT('2012IAR JMale Data'!$O17:CW17) -> 0.2107054945 | DB26: =PRODUCT('2012IAR JMale Data'!$O17:CX17) -> 0.1663791689 | DC26: =PRODUCT('2012IAR JMale Data'!$O17:CY17) -> 0.1289074189 | DD26: =PRODUCT('2012IAR JMale Data'!$O17:CZ17) -> 0.09762377975 | DE26: =PRODUCT('2012IAR JMale Data'!$O17:DA17) -> 0.06980139301 | DF26: =PRODUCT('2012IAR JMale Data'!$O17:DB17) -> 0.04851901809 | DG26: =PRODUCT('2012IAR JMale Data'!$O17:DC17) -> 0.03123620421 | DH26: =PRODUCT('2012IAR JMale Data'!$O17:DD17) -> 0.01936644661 | DI26: =PRODUCT('2012IAR JMale Data'!$O17:DE17) -> 0.01161986797 | DJ26: =PRODUCT('2012IAR JMale Data'!$O17:DF17) -> 0.00697192078 | DK26: =PRODUCT('2012IAR JMale Data'!$O17:DG17) -> 0.004183152468 | DL26: =PRODUCT('2012IAR JMale Data'!$O17:DH17) -> 0.002509891481 | DM26: =PRODUCT('2012IAR JMale Data'!$O17:DI17) -> 0.001505934888 | DN26: =PRODUCT('2012IAR JMale Data'!$O17:DJ17) -> 0.000903560933 | DO26: =PRODUCT('2012IAR JMale Data'!$O17:DK17) -> 0.0005421365598 | DP26: =PRODUCT('2012IAR JMale Data'!$O17:DL17) -> 0.0003252819359 | DQ26: =PRODUCT('2012IAR JMale Data'!$O17:DM17) -> 0.0001951691615 | DR26: =PRODUCT('2012IAR JMale Data'!$O17:DN17) -> 0.0001171014969 | DS26: =PRODUCT('2012IAR JMale Data'!$O17:DO17) -> 7.026089815e-05 | DT26: =PRODUCT('2012IAR JMale Data'!$O17:DP17) -> 4.215653889e-05 | DU26: =PRODUCT('2012IAR JMale Data'!$O17:DQ17) -> 2.529392334e-05 | DV26: =PRODUCT('2012IAR JMale Data'!$O17:DR17) -> 1.5176354e-05 | DW26: =PRODUCT('2012IAR JMale Data'!$O17:DS17) -> 0
A27: 13 | B27: 23.48 | C27: 23.48 | T27: =PRODUCT('2012IAR JMale Data'!$P18:P18) -> 0.999831 | U27: =PRODUCT('2012IAR JMale Data'!$P18:Q18) -> 0.9996200357 | V27: =PRODUCT('2012IAR JMale Data'!$P18:R18) -> 0.9993711303 | W27: =PRODUCT('2012IAR JMale Data'!$P18:S18) -> 0.9990873089 | X27: =PRODUCT('2012IAR JMale Data'!$P18:T18) -> 0.9987725964 | Y27: =PRODUCT('2012IAR JMale Data'!$P18:U18) -> 0.9984320149 | Z27: =PRODUCT('2012IAR JMale Data'!$P18:V18) -> 0.9980685857 | AA27: =PRODUCT('2012IAR JMale Data'!$P18:W18) -> 0.9976833312 | AB27: =PRODUCT('2012IAR JMale Data'!$P18:X18) -> 0.9972752787 | AC27: =PRODUCT('2012IAR JMale Data'!$P18:Y18) -> 0.9968444558 | AD27: =PRODUCT('2012IAR JMale Data'!$P18:Z18) -> 0.99638192 | AE27: =PRODUCT('2012IAR JMale Data'!$P18:AA18) -> 0.9958877145 | AF27: =PRODUCT('2012IAR JMale Data'!$P18:AB18) -> 0.9953559105 | AG27: =PRODUCT('2012IAR JMale Data'!$P18:AC18) -> 0.9947835808 | AH27: =PRODUCT('2012IAR JMale Data'!$P18:AD18) -> 0.9941887003 | AI27: =PRODUCT('2012IAR JMale Data'!$P18:AE18) -> 0.993581251 | AJ27: =PRODUCT('2012IAR JMale Data'!$P18:AF18) -> 0.9929662242 | AK27: =PRODUCT('2012IAR JMale Data'!$P18:AG18) -> 0.9923456203 | AL27: =PRODUCT('2012IAR JMale Data'!$P18:AH18) -> 0.9917234196 | AM27: =PRODUCT('2012IAR JMale Data'!$P18:AI18) -> 0.9911055759 | AN27: =PRODUCT('2012IAR JMale Data'!$P18:AJ18) -> 0.9904930726 | AO27: =PRODUCT('2012IAR JMale Data'!$P18:AK18) -> 0.9898868909 | AP27: =PRODUCT('2012IAR JMale Data'!$P18:AL18) -> 0.9892870194 | AQ27: =PRODUCT('2012IAR JMale Data'!$P18:AM18) -> 0.9886934472 | AR27: =PRODUCT('2012IAR JMale Data'!$P18:AN18) -> 0.9881061633 | AS27: =PRODUCT('2012IAR JMale Data'!$P18:AO18) -> 0.9875251569 | AT27: =PRODUCT('2012IAR JMale Data'!$P18:AP18) -> 0.9869168414 | AU27: =PRODUCT('2012IAR JMale Data'!$P18:AQ18) -> 0.9862704108 | AV27: =PRODUCT('2012IAR JMale Data'!$P18:AR18) -> 0.9855810078 | AW27: =PRODUCT('2012IAR JMale Data'!$P18:AS18) -> 0.9848457644 | AX27: =PRODUCT('2012IAR JMale Data'!$P18:AT18) -> 0.9840667514 | AY27: =PRODUCT('2012IAR JMale Data'!$P18:AU18) -> 0.9832440716 | AZ27: =PRODUCT('2012IAR JMale Data'!$P18:AV18) -> 0.9823748838 | BA27: =PRODUCT('2012IAR JMale Data'!$P18:AW18) -> 0.9814455572 | BB27: =PRODUCT('2012IAR JMale Data'!$P18:AX18) -> 0.9804317239 | BC27: =PRODUCT('2012IAR JMale Data'!$P18:AY18) -> 0.9793091296 | BD27: =PRODUCT('2012IAR JMale Data'!$P18:AZ18) -> 0.9780614898 | BE27: =PRODUCT('2012IAR JMale Data'!$P18:BA18) -> 0.9766745986 | BF27: =PRODUCT('2012IAR JMale Data'!$P18:BB18) -> 0.9751978666 | BG27: =PRODUCT('2012IAR JMale Data'!$P18:BC18) -> 0.9735858645 | BH27: =PRODUCT('2012IAR JMale Data'!$P18:BD18) -> 0.9719161648 | BI27: =PRODUCT('2012IAR JMale Data'!$P18:BE18) -> 0.9701326986 | BJ27: =PRODUCT('2012IAR JMale Data'!$P18:BF18) -> 0.9683107894 | BK27: =PRODUCT('2012IAR JMale Data'!$P18:BG18) -> 0.9663644847 | BL27: =PRODUCT('2012IAR JMale Data'!$P18:BH18) -> 0.9643660429 | BM27: =PRODUCT('2012IAR JMale Data'!$P18:BI18) -> 0.9622116492 | BN27: =PRODUCT('2012IAR JMale Data'!$P18:BJ18) -> 0.9599879781 | BO27: =PRODUCT('2012IAR JMale Data'!$P18:BK18) -> 0.9575832082 | BP27: =PRODUCT('2012IAR JMale Data'!$P18:BL18) -> 0.954980497 | BQ27: =PRODUCT('2012IAR JMale Data'!$P18:BM18) -> 0.9521709444 | BR27: =PRODUCT('2012IAR JMale Data'!$P18:BN18) -> 0.9491478017 | BS27: =PRODUCT('2012IAR JMale Data'!$P18:BO18) -> 0.9458988687 | BT27: =PRODUCT('2012IAR JMale Data'!$P18:BP18) -> 0.9424047183 | BU27: =PRODUCT('2012IAR JMale Data'!$P18:BQ18) -> 0.9387887114 | BV27: =PRODUCT('2012IAR JMale Data'!$P18:BR18) -> 0.9350213523 | BW27: =PRODUCT('2012IAR JMale Data'!$P18:BS18) -> 0.931068082 | BX27: =PRODUCT('2012IAR JMale Data'!$P18:BT18) -> 0.9268894485 | BY27: =PRODUCT('2012IAR JMale Data'!$P18:BU18) -> 0.922441306 | BZ27: =PRODUCT('2012IAR JMale Data'!$P18:BV18) -> 0.9176741294 | CA27: =PRODUCT('2012IAR JMale Data'!$P18:BW18) -> 0.9125296482 | CB27: =PRODUCT('2012IAR JMale Data'!$P18:BX18) -> 0.9069467918 | CC27: =PRODUCT('2012IAR JMale Data'!$P18:BY18) -> 0.9008648066 | CD27: =PRODUCT('2012IAR JMale Data'!$P18:BZ18) -> 0.8942245321 | CE27: =PRODUCT('2012IAR JMale Data'!$P18:CA18) -> 0.8869670058 | CF27: =PRODUCT('2012IAR JMale Data'!$P18:CB18) -> 0.8790304251 | CG27: =PRODUCT('2012IAR JMale Data'!$P18:CC18) -> 0.8703499996 | CH27: =PRODUCT('2012IAR JMale Data'!$P18:CD18) -> 0.8608579625 | CI27: =PRODUCT('2012IAR JMale Data'!$P18:CE18) -> 0.8504648243 | CJ27: =PRODUCT('2012IAR JMale Data'!$P18:CF18) -> 0.838227486 | CK27: =PRODUCT('2012IAR JMale Data'!$P18:CG18) -> 0.8238661345 | CL27: =PRODUCT('2012IAR JMale Data'!$P18:CH18) -> 0.8082266836 | CM27: =PRODUCT('2012IAR JMale Data'!$P18:CI18) -> 0.7899688428 | CN27: =PRODUCT('2012IAR JMale Data'!$P18:CJ18) -> 0.7686460038 | CO27: =PRODUCT('2012IAR JMale Data'!$P18:CK18) -> 0.743729575 | CP27: =PRODUCT('2012IAR JMale Data'!$P18:CL18) -> 0.7146482611 | CQ27: =PRODUCT('2012IAR JMale Data'!$P18:CM18) -> 0.6833102202 | CR27: =PRODUCT('2012IAR JMale Data'!$P18:CN18) -> 0.6470770125 | CS27: =PRODUCT('2012IAR JMale Data'!$P18:CO18) -> 0.6056375535 | CT27: =PRODUCT('2012IAR JMale Data'!$P18:CP18) -> 0.5625276668 | CU27: =PRODUCT('2012IAR JMale Data'!$P18:CQ18) -> 0.5145631828 | CV27: =PRODUCT('2012IAR JMale Data'!$P18:CR18) -> 0.4621286799 | CW27: =PRODUCT('2012IAR JMale Data'!$P18:CS18) -> 0.410338843 | CX27: =PRODUCT('2012IAR JMale Data'!$P18:CT18) -> 0.3556131825 | CY27: =PRODUCT('2012IAR JMale Data'!$P18:CU18) -> 0.3053003182 | CZ27: =PRODUCT('2012IAR JMale Data'!$P18:CV18) -> 0.2543606548 | DA27: =PRODUCT('2012IAR JMale Data'!$P18:CW18) -> 0.2085492835 | DB27: =PRODUCT('2012IAR JMale Data'!$P18:CX18) -> 0.1645885544 | DC27: =PRODUCT('2012IAR JMale Data'!$P18:CY18) -> 0.1274458553 | DD27: =PRODUCT('2012IAR JMale Data'!$P18:CZ18) -> 0.09645484666 | DE27: =PRODUCT('2012IAR JMale Data'!$P18:DA18) -> 0.06893811155 | DF27: =PRODUCT('2012IAR JMale Data'!$P18:DB18) -> 0.04789785522 | DG27: =PRODUCT('2012IAR JMale Data'!$P18:DC18) -> 0.0308363039 | DH27: =PRODUCT('2012IAR JMale Data'!$P18:DD18) -> 0.01911850842 | DI27: =PRODUCT('2012IAR JMale Data'!$P18:DE18) -> 0.01147110505 | DJ27: =PRODUCT('2012IAR JMale Data'!$P18:DF18) -> 0.006882663031 | DK27: =PRODUCT('2012IAR JMale Data'!$P18:DG18) -> 0.004129597819 | DL27: =PRODUCT('2012IAR JMale Data'!$P18:DH18) -> 0.002477758691 | DM27: =PRODUCT('2012IAR JMale Data'!$P18:DI18) -> 0.001486655215 | DN27: =PRODUCT('2012IAR JMale Data'!$P18:DJ18) -> 0.0008919931288 | DO27: =PRODUCT('2012IAR JMale Data'!$P18:DK18) -> 0.0005351958773 | DP27: =PRODUCT('2012IAR JMale Data'!$P18:DL18) -> 0.0003211175264 | DQ27: =PRODUCT('2012IAR JMale Data'!$P18:DM18) -> 0.0001926705158 | DR27: =PRODUCT('2012IAR JMale Data'!$P18:DN18) -> 0.0001156023095 | DS27: =PRODUCT('2012IAR JMale Data'!$P18:DO18) -> 6.93613857e-05 | DT27: =PRODUCT('2012IAR JMale Data'!$P18:DP18) -> 4.161683142e-05 | DU27: =PRODUCT('2012IAR JMale Data'!$P18:DQ18) -> 2.497009885e-05 | DV27: =PRODUCT('2012IAR JMale Data'!$P18:DR18) -> 1.498205931e-05 | DW27: =PRODUCT('2012IAR JMale Data'!$P18:DS18) -> 0
A28: 14 | B28: 23.41 | C28: 23.41 | U28: =PRODUCT('2012IAR JMale Data'!$Q19:Q19) -> 0.999787 | V28: =PRODUCT('2012IAR JMale Data'!$Q19:R19) -> 0.9995360535 | W28: =PRODUCT('2012IAR JMale Data'!$Q19:S19) -> 0.9992491866 | X28: =PRODUCT('2012IAR JMale Data'!$Q19:T19) -> 0.9989314254 | Y28: =PRODUCT('2012IAR JMale Data'!$Q19:U19) -> 0.998586794 | Z28: =PRODUCT('2012IAR JMale Data'!$Q19:V19) -> 0.9982193141 | AA28: =PRODUCT('2012IAR JMale Data'!$Q19:W19) -> 0.9978300086 | AB28: =PRODUCT('2012IAR JMale Data'!$Q19:X19) -> 0.9974179048 | AC28: =PRODUCT('2012IAR JMale Data'!$Q19:Y19) -> 0.9969830306 | AD28: =PRODUCT('2012IAR JMale Data'!$Q19:Z19) -> 0.9965154455 | AE28: =PRODUCT('2012IAR JMale Data'!$Q19:AA19) -> 0.9960161913 | AF28: =PRODUCT('2012IAR JMale Data'!$Q19:AB19) -> 0.9954793386 | AG28: =PRODUCT('2012IAR JMale Data'!$Q19:AC19) -> 0.9949009651 | AH28: =PRODUCT('2012IAR JMale Data'!$Q19:AD19) -> 0.9943000449 | AI28: =PRODUCT('2012IAR JMale Data'!$Q19:AE19) -> 0.9936865617 | AJ28: =PRODUCT('2012IAR JMale Data'!$Q19:AF19) -> 0.9930655076 | AK28: =PRODUCT('2012IAR JMale Data'!$Q19:AG19) -> 0.9924388833 | AL28: =PRODUCT('2012IAR JMale Data'!$Q19:AH19) -> 0.9918106695 | AM28: =PRODUCT('2012IAR JMale Data'!$Q19:AI19) -> 0.9911868206 | AN28: =PRODUCT('2012IAR JMale Data'!$Q19:AJ19) -> 0.9905673288 | AO28: =PRODUCT('2012IAR JMale Data'!$Q19:AK19) -> 0.9899551582 | AP28: =PRODUCT('2012IAR JMale Data'!$Q19:AL19) -> 0.9893493057 | AQ28: =PRODUCT('2012IAR JMale Data'!$Q19:AM19) -> 0.98874976 | AR28: =PRODUCT('2012IAR JMale Data'!$Q19:AN19) -> 0.9881565101 | AS28: =PRODUCT('2012IAR JMale Data'!$Q19:AO19) -> 0.9875695452 | AT28: =PRODUCT('2012IAR JMale Data'!$Q19:AP19) -> 0.9869552769 | AU28: =PRODUCT('2012IAR JMale Data'!$Q19:AQ19) -> 0.9863028995 | AV28: =PRODUCT('2012IAR JMale Data'!$Q19:AR19) -> 0.9856065696 | AW28: =PRODUCT('2012IAR JMale Data'!$Q19:AS19) -> 0.9848634223 | AX28: =PRODUCT('2012IAR JMale Data'!$Q19:AT19) -> 0.9840765164 | AY28: =PRODUCT('2012IAR JMale Data'!$Q19:AU19) -> 0.9832449717 | AZ28: =PRODUCT('2012IAR JMale Data'!$Q19:AV19) -> 0.982366934 | BA28: =PRODUCT('2012IAR JMale Data'!$Q19:AW19) -> 0.9814277912 | BB28: =PRODUCT('2012IAR JMale Data'!$Q19:AX19) -> 0.9804031806 | BC28: =PRODUCT('2012IAR JMale Data'!$Q19:AY19) -> 0.9792698345 | BD28: =PRODUCT('2012IAR JMale Data'!$Q19:AZ19) -> 0.9780095142 | BE28: =PRODUCT('2012IAR JMale Data'!$Q19:BA19) -> 0.9766080266 | BF28: =PRODUCT('2012IAR JMale Data'!$Q19:BB19) -> 0.9751147929 | BG28: =PRODUCT('2012IAR JMale Data'!$Q19:BC19) -> 0.973484401 | BH28: =PRODUCT('2012IAR JMale Data'!$Q19:BD19) -> 0.9717954055 | BI28: =PRODUCT('2012IAR JMale Data'!$Q19:BE19) -> 0.9699898097 | BJ28: =PRODUCT('2012IAR JMale Data'!$Q19:BF19) -> 0.9681439191 | BK28: =PRODUCT('2012IAR JMale Data'!$Q19:BG19) -> 0.9661718099 | BL28: =PRODUCT('2012IAR JMale Data'!$Q19:BH19) -> 0.9641457476 | BM28: =PRODUCT('2012IAR JMale Data'!$Q19:BI19) -> 0.9619609934 | BN28: =PRODUCT('2012IAR JMale Data'!$Q19:BJ19) -> 0.9597042329 | BO28: =PRODUCT('2012IAR JMale Data'!$Q19:BK19) -> 0.957263705 | BP28: =PRODUCT('2012IAR JMale Data'!$Q19:BL19) -> 0.9546226144 | BQ28: =PRODUCT('2012IAR JMale Data'!$Q19:BM19) -> 0.9517721113 | BR28: =PRODUCT('2012IAR JMale Data'!$Q19:BN19) -> 0.9487045498 | BS28: =PRODUCT('2012IAR JMale Data'!$Q19:BO19) -> 0.9454078015 | BT28: =PRODUCT('2012IAR JMale Data'!$Q19:BP19) -> 0.9418625222 | BU28: =PRODUCT('2012IAR JMale Data'!$Q19:BQ19) -> 0.9381939677 | BV28: =PRODUCT('2012IAR JMale Data'!$Q19:BR19) -> 0.9343717655 | BW28: =PRODUCT('2012IAR JMale Data'!$Q19:BS19) -> 0.9303614419 | BX28: =PRODUCT('2012IAR JMale Data'!$Q19:BT19) -> 0.9261217848 | BY28: =PRODUCT('2012IAR JMale Data'!$Q19:BU19) -> 0.9216097194 | BZ28: =PRODUCT('2012IAR JMale Data'!$Q19:BV19) -> 0.9167740332 | CA28: =PRODUCT('2012IAR JMale Data'!$Q19:BW19) -> 0.9115557554 | CB28: =PRODUCT('2012IAR JMale Data'!$Q19:BX19) -> 0.9058940826 | CC28: =PRODUCT('2012IAR JMale Data'!$Q19:BY19) -> 0.8997267557 | CD28: =PRODUCT('2012IAR JMale Data'!$Q19:BZ19) -> 0.8929932007 | CE28: =PRODUCT('2012IAR JMale Data'!$Q19:CA19) -> 0.8856349367 | CF28: =PRODUCT('2012IAR JMale Data'!$Q19:CB19) -> 0.877589829 | CG28: =PRODUCT('2012IAR JMale Data'!$Q19:CC19) -> 0.8687911133 | CH28: =PRODUCT('2012IAR JMale Data'!$Q19:CD19) -> 0.8591718581 | CI28: =PRODUCT('2012IAR JMale Data'!$Q19:CE19) -> 0.8486409887 | CJ28: =PRODUCT('2012IAR JMale Data'!$Q19:CF19) -> 0.8362559221 | CK28: =PRODUCT('2012IAR JMale Data'!$Q19:CG19) -> 0.8217401918 | CL28: =PRODUCT('2012IAR JMale Data'!$Q19:CH19) -> 0.8059356627 | CM28: =PRODUCT('2012IAR JMale Data'!$Q19:CI19) -> 0.7875079437 | CN28: =PRODUCT('2012IAR JMale Data'!$Q19:CJ19) -> 0.7660152769 | CO28: =PRODUCT('2012IAR JMale Data'!$Q19:CK19) -> 0.7409328727 | CP28: =PRODUCT('2012IAR JMale Data'!$Q19:CL19) -> 0.7116978843 | CQ28: =PRODUCT('2012IAR JMale Data'!$Q19:CM19) -> 0.6802059647 | CR28: =PRODUCT('2012IAR JMale Data'!$Q19:CN19) -> 0.643846235 | CS28: =PRODUCT('2012IAR JMale Data'!$Q19:CO19) -> 0.6023233036 | CT28: =PRODUCT('2012IAR JMale Data'!$Q19:CP19) -> 0.5591469623 | CU28: =PRODUCT('2012IAR JMale Data'!$Q19:CQ19) -> 0.5111827767 | CV28: =PRODUCT('2012IAR JMale Data'!$Q19:CR19) -> 0.458831015 | CW28: =PRODUCT('2012IAR JMale Data'!$Q19:CS19) -> 0.4071524189 | CX28: =PRODUCT('2012IAR JMale Data'!$Q19:CT19) -> 0.3526338957 | CY28: =PRODUCT('2012IAR JMale Data'!$Q19:CU19) -> 0.3025422508 | CZ28: =PRODUCT('2012IAR JMale Data'!$Q19:CV19) -> 0.2519108975 | DA28: =PRODUCT('2012IAR JMale Data'!$Q19:CW19) -> 0.2064042015 | DB28: =PRODUCT('2012IAR JMale Data'!$Q19:CX19) -> 0.1628085381 | DC28: =PRODUCT('2012IAR JMale Data'!$Q19:CY19) -> 0.1259937831 | DD28: =PRODUCT('2012IAR JMale Data'!$Q19:CZ19) -> 0.09529451585 | DE28: =PRODUCT('2012IAR JMale Data'!$Q19:DA19) -> 0.06808154684 | DF28: =PRODUCT('2012IAR JMale Data'!$Q19:DB19) -> 0.04728195347 | DG28: =PRODUCT('2012IAR JMale Data'!$Q19:DC19) -> 0.03043979067 | DH28: =PRODUCT('2012IAR JMale Data'!$Q19:DD19) -> 0.01887267021 | DI28: =PRODUCT('2012IAR JMale Data'!$Q19:DE19) -> 0.01132360213 | DJ28: =PRODUCT('2012IAR JMale Data'!$Q19:DF19) -> 0.006794161277 | DK28: =PRODUCT('2012IAR JMale Data'!$Q19:DG19) -> 0.004076496766 | DL28: =PRODUCT('2012IAR JMale Data'!$Q19:DH19) -> 0.00244589806 | DM28: =PRODUCT('2012IAR JMale Data'!$Q19:DI19) -> 0.001467538836 | DN28: =PRODUCT('2012IAR JMale Data'!$Q19:DJ19) -> 0.0008805233015 | DO28: =PRODUCT('2012IAR JMale Data'!$Q19:DK19) -> 0.0005283139809 | DP28: =PRODUCT('2012IAR JMale Data'!$Q19:DL19) -> 0.0003169883886 | DQ28: =PRODUCT('2012IAR JMale Data'!$Q19:DM19) -> 0.0001901930331 | DR28: =PRODUCT('2012IAR JMale Data'!$Q19:DN19) -> 0.0001141158199 | DS28: =PRODUCT('2012IAR JMale Data'!$Q19:DO19) -> 6.846949193e-05 | DT28: =PRODUCT('2012IAR JMale Data'!$Q19:DP19) -> 4.108169516e-05 | DU28: =PRODUCT('2012IAR JMale Data'!$Q19:DQ19) -> 2.464901709e-05 | DV28: =PRODUCT('2012IAR JMale Data'!$Q19:DR19) -> 1.478941026e-05 | DW28: =PRODUCT('2012IAR JMale Data'!$Q19:DS19) -> 0
A29: 15 | B29: 23.35 | C29: 23.35 | V29: =PRODUCT('2012IAR JMale Data'!$R20:R20) -> 0.999746 | W29: =PRODUCT('2012IAR JMale Data'!$R20:S20) -> 0.9994560737 | X29: =PRODUCT('2012IAR JMale Data'!$R20:T20) -> 0.9991352483 | Y29: =PRODUCT('2012IAR JMale Data'!$R20:U20) -> 0.9987875492 | Z29: =PRODUCT('2012IAR JMale Data'!$R20:V20) -> 0.9984160002 | AA29: =PRODUCT('2012IAR JMale Data'!$R20:W20) -> 0.9980226243 | AB29: =PRODUCT('2012IAR JMale Data'!$R20:X20) -> 0.9976064489 | AC29: =PRODUCT('2012IAR JMale Data'!$R20:Y20) -> 0.9971665044 | AD29: =PRODUCT('2012IAR JMale Data'!$R20:Z20) -> 0.9966948447 | AE29: =PRODUCT('2012IAR JMale Data'!$R20:AA20) -> 0.9961905171 | AF29: =PRODUCT('2012IAR JMale Data'!$R20:AB20) -> 0.9956485895 | AG29: =PRODUCT('2012IAR JMale Data'!$R20:AC20) -> 0.9950651394 | AH29: =PRODUCT('2012IAR JMale Data'!$R20:AD20) -> 0.9944581496 | AI29: =PRODUCT('2012IAR JMale Data'!$R20:AE20) -> 0.9938386022 | AJ29: =PRODUCT('2012IAR JMale Data'!$R20:AF20) -> 0.9932104962 | AK29: =PRODUCT('2012IAR JMale Data'!$R20:AG20) -> 0.9925778211 | AL29: =PRODUCT('2012IAR JMale Data'!$R20:AH20) -> 0.9919435639 | AM29: =PRODUCT('2012IAR JMale Data'!$R20:AI20) -> 0.9913126878 | AN29: =PRODUCT('2012IAR JMale Data'!$R20:AJ20) -> 0.9906871695 | AO29: =PRODUCT('2012IAR JMale Data'!$R20:AK20) -> 0.99006799 | AP29: =PRODUCT('2012IAR JMale Data'!$R20:AL20) -> 0.989456128 | AQ29: =PRODUCT('2012IAR JMale Data'!$R20:AM20) -> 0.9888505808 | AR29: =PRODUCT('2012IAR JMale Data'!$R20:AN20) -> 0.9882513374 | AS29: =PRODUCT('2012IAR JMale Data'!$R20:AO20) -> 0.9876583866 | AT29: =PRODUCT('2012IAR JMale Data'!$R20:AP20) -> 0.9870371495 | AU29: =PRODUCT('2012IAR JMale Data'!$R20:AQ20) -> 0.9863778087 | AV29: =PRODUCT('2012IAR JMale Data'!$R20:AR20) -> 0.9856745213 | AW29: =PRODUCT('2012IAR JMale Data'!$R20:AS20) -> 0.9849234373 | AX29: =PRODUCT('2012IAR JMale Data'!$R20:AT20) -> 0.9841286041 | AY29: =PRODUCT('2012IAR JMale Data'!$R20:AU20) -> 0.9832891424 | AZ29: =PRODUCT('2012IAR JMale Data'!$R20:AV20) -> 0.9824022156 | BA29: =PRODUCT('2012IAR JMale Data'!$R20:AW20) -> 0.9814541974 | BB29: =PRODUCT('2012IAR JMale Data'!$R20:AX20) -> 0.9804197447 | BC29: =PRODUCT('2012IAR JMale Data'!$R20:AY20) -> 0.9792746144 | BD29: =PRODUCT('2012IAR JMale Data'!$R20:AZ20) -> 0.9780015574 | BE29: =PRODUCT('2012IAR JMale Data'!$R20:BA20) -> 0.9765863892 | BF29: =PRODUCT('2012IAR JMale Data'!$R20:BB20) -> 0.9750765866 | BG29: =PRODUCT('2012IAR JMale Data'!$R20:BC20) -> 0.9734287072 | BH29: =PRODUCT('2012IAR JMale Data'!$R20:BD20) -> 0.971718393 | BI29: =PRODUCT('2012IAR JMale Data'!$R20:BE20) -> 0.9698915624 | BJ29: =PRODUCT('2012IAR JMale Data'!$R20:BF20) -> 0.9680216115 | BK29: =PRODUCT('2012IAR JMale Data'!$R20:BG20) -> 0.9660236148 | BL29: =PRODUCT('2012IAR JMale Data'!$R20:BH20) -> 0.9639688826 | BM29: =PRODUCT('2012IAR JMale Data'!$R20:BI20) -> 0.9617536821 | BN29: =PRODUCT('2012IAR JMale Data'!$R20:BJ20) -> 0.9594627849 | BO29: =PRODUCT('2012IAR JMale Data'!$R20:BK20) -> 0.9569864114 | BP29: =PRODUCT('2012IAR JMale Data'!$R20:BL20) -> 0.9543058925 | BQ29: =PRODUCT('2012IAR JMale Data'!$R20:BM20) -> 0.951412437 | BR29: =PRODUCT('2012IAR JMale Data'!$R20:BN20) -> 0.9482994155 | BS29: =PRODUCT('2012IAR JMale Data'!$R20:BO20) -> 0.9449538152 | BT29: =PRODUCT('2012IAR JMale Data'!$R20:BP20) -> 0.941356376 | BU29: =PRODUCT('2012IAR JMale Data'!$R20:BQ20) -> 0.9376333115 | BV29: =PRODUCT('2012IAR JMale Data'!$R20:BR20) -> 0.9337552602 | BW29: =PRODUCT('2012IAR JMale Data'!$R20:BS20) -> 0.9296859547 | BX29: =PRODUCT('2012IAR JMale Data'!$R20:BT20) -> 0.9253852275 | BY29: =PRODUCT('2012IAR JMale Data'!$R20:BU20) -> 0.9208082722 | BZ29: =PRODUCT('2012IAR JMale Data'!$R20:BV20) -> 0.9159031265 | CA29: =PRODUCT('2012IAR JMale Data'!$R20:BW20) -> 0.9106110382 | CB29: =PRODUCT('2012IAR JMale Data'!$R20:BX20) -> 0.9048696356 | CC29: =PRODUCT('2012IAR JMale Data'!$R20:BY20) -> 0.8986151767 | CD29: =PRODUCT('2012IAR JMale Data'!$R20:BZ20) -> 0.8917874986 | CE29: =PRODUCT('2012IAR JMale Data'!$R20:CA20) -> 0.8843276962 | CF29: =PRODUCT('2012IAR JMale Data'!$R20:CB20) -> 0.8761715418 | CG29: =PRODUCT('2012IAR JMale Data'!$R20:CC20) -> 0.8672538679 | CH29: =PRODUCT('2012IAR JMale Data'!$R20:CD20) -> 0.8575050672 | CI29: =PRODUCT('2012IAR JMale Data'!$R20:CE20) -> 0.8468351316 | CJ29: =PRODUCT('2012IAR JMale Data'!$R20:CF20) -> 0.8343011248 | CK29: =PRODUCT('2012IAR JMale Data'!$R20:CG20) -> 0.8196282709 | CL29: =PRODUCT('2012IAR JMale Data'!$R20:CH20) -> 0.8036569945 | CM29: =PRODUCT('2012IAR JMale Data'!$R20:CI20) -> 0.7850587643 | CN29: =PRODUCT('2012IAR JMale Data'!$R20:CJ20) -> 0.7633942826 | CO29: =PRODUCT('2012IAR JMale Data'!$R20:CK20) -> 0.7381457801 | CP29: =PRODUCT('2012IAR JMale Data'!$R20:CL20) -> 0.7087557677 | CQ29: =PRODUCT('2012IAR JMale Data'!$R20:CM20) -> 0.677109114 | CR29: =PRODUCT('2012IAR JMale Data'!$R20:CN20) -> 0.6406230894 | CS29: =PRODUCT('2012IAR JMale Data'!$R20:CO20) -> 0.5990165416 | CT29: =PRODUCT('2012IAR JMale Data'!$R20:CP20) -> 0.5557747355 | CU29: =PRODUCT('2012IAR JMale Data'!$R20:CQ20) -> 0.5078119316 | CV29: =PRODUCT('2012IAR JMale Data'!$R20:CR20) -> 0.4555438651 | CW29: =PRODUCT('2012IAR JMale Data'!$R20:CS20) -> 0.4039776662 | CX29: =PRODUCT('2012IAR JMale Data'!$R20:CT20) -> 0.3496669087 | CY29: =PRODUCT('2012IAR JMale Data'!$R20:CU20) -> 0.2997974142 | CZ29: =PRODUCT('2012IAR JMale Data'!$R20:CV20) -> 0.2494743197 | DA29: =PRODUCT('2012IAR JMale Data'!$R20:CW20) -> 0.2042720677 | DB29: =PRODUCT('2012IAR JMale Data'!$R20:CX20) -> 0.1610403358 | DC29: =PRODUCT('2012IAR JMale Data'!$R20:CY20) -> 0.1245524607 | DD29: =PRODUCT('2012IAR JMale Data'!$R20:CZ20) -> 0.09414360018 | DE29: =PRODUCT('2012IAR JMale Data'!$R20:DA20) -> 0.06723246378 | DF29: =PRODUCT('2012IAR JMale Data'!$R20:DB20) -> 0.04667170064 | DG29: =PRODUCT('2012IAR JMale Data'!$R20:DC20) -> 0.03004691417 | DH29: =PRODUCT('2012IAR JMale Data'!$R20:DD20) -> 0.01862908678 | DI29: =PRODUCT('2012IAR JMale Data'!$R20:DE20) -> 0.01117745207 | DJ29: =PRODUCT('2012IAR JMale Data'!$R20:DF20) -> 0.006706471242 | DK29: =PRODUCT('2012IAR JMale Data'!$R20:DG20) -> 0.004023882745 | DL29: =PRODUCT('2012IAR JMale Data'!$R20:DH20) -> 0.002414329647 | DM29: =PRODUCT('2012IAR JMale Data'!$R20:DI20) -> 0.001448597788 | DN29: =PRODUCT('2012IAR JMale Data'!$R20:DJ20) -> 0.000869158673 | DO29: =PRODUCT('2012IAR JMale Data'!$R20:DK20) -> 0.0005214952038 | DP29: =PRODUCT('2012IAR JMale Data'!$R20:DL20) -> 0.0003128971223 | DQ29: =PRODUCT('2012IAR JMale Data'!$R20:DM20) -> 0.0001877382734 | DR29: =PRODUCT('2012IAR JMale Data'!$R20:DN20) -> 0.000112642964 | DS29: =PRODUCT('2012IAR JMale Data'!$R20:DO20) -> 6.758577841e-05 | DT29: =PRODUCT('2012IAR JMale Data'!$R20:DP20) -> 4.055146705e-05 | DU29: =PRODUCT('2012IAR JMale Data'!$R20:DQ20) -> 2.433088023e-05 | DV29: =PRODUCT('2012IAR JMale Data'!$R20:DR20) -> 1.459852814e-05 | DW29: =PRODUCT('2012IAR JMale Data'!$R20:DS20) -> 0
A30: 16 | B30: 23.28 | C30: 23.28 | W30: =PRODUCT('2012IAR JMale Data'!$S21:S21) -> 0.999707 | X30: =PRODUCT('2012IAR JMale Data'!$S21:T21) -> 0.9993820952 | Y30: =PRODUCT('2012IAR JMale Data'!$S21:U21) -> 0.9990303127 | Z30: =PRODUCT('2012IAR JMale Data'!$S21:V21) -> 0.9986546773 | AA30: =PRODUCT('2012IAR JMale Data'!$S21:W21) -> 0.9982572128 | AB30: =PRODUCT('2012IAR JMale Data'!$S21:X21) -> 0.9978369465 | AC30: =PRODUCT('2012IAR JMale Data'!$S21:Y21) -> 0.997392909 | AD30: =PRODUCT('2012IAR JMale Data'!$S21:Z21) -> 0.9969161552 | AE30: =PRODUCT('2012IAR JMale Data'!$S21:AA21) -> 0.9964067311 | AF30: =PRODUCT('2012IAR JMale Data'!$S21:AB21) -> 0.9958587074 | AG30: =PRODUCT('2012IAR JMale Data'!$S21:AC21) -> 0.995269159 | AH30: =PRODUCT('2012IAR JMale Data'!$S21:AD21) -> 0.9946560732 | AI30: =PRODUCT('2012IAR JMale Data'!$S21:AE21) -> 0.9940304345 | AJ30: =PRODUCT('2012IAR JMale Data'!$S21:AF21) -> 0.9933962431 | AK30: =PRODUCT('2012IAR JMale Data'!$S21:AG21) -> 0.9927564959 | AL30: =PRODUCT('2012IAR JMale Data'!$S21:AH21) -> 0.9921151753 | AM30: =PRODUCT('2012IAR JMale Data'!$S21:AI21) -> 0.9914782373 | AN30: =PRODUCT('2012IAR JMale Data'!$S21:AJ21) -> 0.9908466657 | AO30: =PRODUCT('2012IAR JMale Data'!$S21:AK21) -> 0.9902214414 | AP30: =PRODUCT('2012IAR JMale Data'!$S21:AL21) -> 0.989602553 | AQ30: =PRODUCT('2012IAR JMale Data'!$S21:AM21) -> 0.9889909786 | AR30: =PRODUCT('2012IAR JMale Data'!$S21:AN21) -> 0.9883857162 | AS30: =PRODUCT('2012IAR JMale Data'!$S21:AO21) -> 0.9877867544 | AT30: =PRODUCT('2012IAR JMale Data'!$S21:AP21) -> 0.9871595098 | AU30: =PRODUCT('2012IAR JMale Data'!$S21:AQ21) -> 0.9864931772 | AV30: =PRODUCT('2012IAR JMale Data'!$S21:AR21) -> 0.9857829021 | AW30: =PRODUCT('2012IAR JMale Data'!$S21:AS21) -> 0.985024835 | AX30: =PRODUCT('2012IAR JMale Data'!$S21:AT21) -> 0.9842220398 | AY30: =PRODUCT('2012IAR JMale Data'!$S21:AU21) -> 0.9833736404 | AZ30: =PRODUCT('2012IAR JMale Data'!$S21:AV21) -> 0.982477787 | BA30: =PRODUCT('2012IAR JMale Data'!$S21:AW21) -> 0.9815198712 | BB30: =PRODUCT('2012IAR JMale Data'!$S21:AX21) -> 0.9804745525 | BC30: =PRODUCT('2012IAR JMale Data'!$S21:AY21) -> 0.9793175925 | BD30: =PRODUCT('2012IAR JMale Data'!$S21:AZ21) -> 0.9780317485 | BE30: =PRODUCT('2012IAR JMale Data'!$S21:BA21) -> 0.9766018661 | BF30: =PRODUCT('2012IAR JMale Data'!$S21:BB21) -> 0.9750754374 | BG30: =PRODUCT('2012IAR JMale Data'!$S21:BC21) -> 0.9734090335 | BH30: =PRODUCT('2012IAR JMale Data'!$S21:BD21) -> 0.9716783122 | BI30: =PRODUCT('2012IAR JMale Data'!$S21:BE21) -> 0.9698292084 | BJ30: =PRODUCT('2012IAR JMale Data'!$S21:BF21) -> 0.9679351319 | BK30: =PRODUCT('2012IAR JMale Data'!$S21:BG21) -> 0.9659111796 | BL30: =PRODUCT('2012IAR JMale Data'!$S21:BH21) -> 0.9638277092 | BM30: =PRODUCT('2012IAR JMale Data'!$S21:BI21) -> 0.9615819906 | BN30: =PRODUCT('2012IAR JMale Data'!$S21:BJ21) -> 0.9592568853 | BO30: =PRODUCT('2012IAR JMale Data'!$S21:BK21) -> 0.956742673 | BP30: =PRODUCT('2012IAR JMale Data'!$S21:BL21) -> 0.9540216969 | BQ30: =PRODUCT('2012IAR JMale Data'!$S21:BM21) -> 0.9510852181 | BR30: =PRODUCT('2012IAR JMale Data'!$S21:BN21) -> 0.947925713 | BS30: =PRODUCT('2012IAR JMale Data'!$S21:BO21) -> 0.944531191 | BT30: =PRODUCT('2012IAR JMale Data'!$S21:BP21) -> 0.940880578 | BU30: =PRODUCT('2012IAR JMale Data'!$S21:BQ21) -> 0.9371029425 | BV30: =PRODUCT('2012IAR JMale Data'!$S21:BR21) -> 0.9331680472 | BW30: =PRODUCT('2012IAR JMale Data'!$S21:BS21) -> 0.9290397118 | BX30: =PRODUCT('2012IAR JMale Data'!$S21:BT21) -> 0.9246760122 | BY30: =PRODUCT('2012IAR JMale Data'!$S21:BU21) -> 0.920033214 | BZ30: =PRODUCT('2012IAR JMale Data'!$S21:BV21) -> 0.9150576744 | CA30: =PRODUCT('2012IAR JMale Data'!$S21:BW21) -> 0.909689946 | CB30: =PRODUCT('2012IAR JMale Data'!$S21:BX21) -> 0.9038670207 | CC30: =PRODUCT('2012IAR JMale Data'!$S21:BY21) -> 0.8975245858 | CD30: =PRODUCT('2012IAR JMale Data'!$S21:BZ21) -> 0.8906019787 | CE30: =PRODUCT('2012IAR JMale Data'!$S21:CA21) -> 0.8830389867 | CF30: =PRODUCT('2012IAR JMale Data'!$S21:CB21) -> 0.8747710926 | CG30: =PRODUCT('2012IAR JMale Data'!$S21:CC21) -> 0.8657320829 | CH30: =PRODUCT('2012IAR JMale Data'!$S21:CD21) -> 0.8558523484 | CI30: =PRODUCT('2012IAR JMale Data'!$S21:CE21) -> 0.8450403657 | CJ30: =PRODUCT('2012IAR JMale Data'!$S21:CF21) -> 0.8323554648 | CK30: =PRODUCT('2012IAR JMale Data'!$S21:CG21) -> 0.8175237227 | CL30: =PRODUCT('2012IAR JMale Data'!$S21:CH21) -> 0.8013833519 | CM30: =PRODUCT('2012IAR JMale Data'!$S21:CI21) -> 0.7826117482 | CN30: =PRODUCT('2012IAR JMale Data'!$S21:CJ21) -> 0.7607745326 | CO30: =PRODUCT('2012IAR JMale Data'!$S21:CK21) -> 0.7353578163 | CP30: =PRODUCT('2012IAR JMale Data'!$S21:CL21) -> 0.7058133453 | CQ30: =PRODUCT('2012IAR JMale Data'!$S21:CM21) -> 0.6740122192 | CR30: =PRODUCT('2012IAR JMale Data'!$S21:CN21) -> 0.6374005495 | CS30: =PRODUCT('2012IAR JMale Data'!$S21:CO21) -> 0.5957113665 | CT30: =PRODUCT('2012IAR JMale Data'!$S21:CP21) -> 0.5524049373 | CU30: =PRODUCT('2012IAR JMale Data'!$S21:CQ21) -> 0.5044451407 | CV30: =PRODUCT('2012IAR JMale Data'!$S21:CR21) -> 0.4522628131 | CW30: =PRODUCT('2012IAR JMale Data'!$S21:CS21) -> 0.4008106819 | CX30: =PRODUCT('2012IAR JMale Data'!$S21:CT21) -> 0.3467092561 | CY30: =PRODUCT('2012IAR JMale Data'!$S21:CU21) -> 0.2970629175 | CZ30: =PRODUCT('2012IAR JMale Data'!$S21:CV21) -> 0.2470488106 | DA30: =PRODUCT('2012IAR JMale Data'!$S21:CW21) -> 0.202151395 | DB30: =PRODUCT('2012IAR JMale Data'!$S21:CX21) -> 0.1592825637 | DC30: =PRODUCT('2012IAR JMale Data'!$S21:CY21) -> 0.1231206433 | DD30: =PRODUCT('2012IAR JMale Data'!$S21:CZ21) -> 0.09300102472 | DE30: =PRODUCT('2012IAR JMale Data'!$S21:DA21) -> 0.06638980451 | DF30: =PRODUCT('2012IAR JMale Data'!$S21:DB21) -> 0.04606642477 | DG30: =PRODUCT('2012IAR JMale Data'!$S21:DC21) -> 0.0296572418 | DH30: =PRODUCT('2012IAR JMale Data'!$S21:DD21) -> 0.01838748992 | DI30: =PRODUCT('2012IAR JMale Data'!$S21:DE21) -> 0.01103249395 | DJ30: =PRODUCT('2012IAR JMale Data'!$S21:DF21) -> 0.006619496371 | DK30: =PRODUCT('2012IAR JMale Data'!$S21:DG21) -> 0.003971697822 | DL30: =PRODUCT('2012IAR JMale Data'!$S21:DH21) -> 0.002383018693 | DM30: =PRODUCT('2012IAR JMale Data'!$S21:DI21) -> 0.001429811216 | DN30: =PRODUCT('2012IAR JMale Data'!$S21:DJ21) -> 0.0008578867296 | DO30: =PRODUCT('2012IAR JMale Data'!$S21:DK21) -> 0.0005147320378 | DP30: =PRODUCT('2012IAR JMale Data'!$S21:DL21) -> 0.0003088392227 | DQ30: =PRODUCT('2012IAR JMale Data'!$S21:DM21) -> 0.0001853035336 | DR30: =PRODUCT('2012IAR JMale Data'!$S21:DN21) -> 0.0001111821202 | DS30: =PRODUCT('2012IAR JMale Data'!$S21:DO21) -> 6.67092721e-05 | DT30: =PRODUCT('2012IAR JMale Data'!$S21:DP21) -> 4.002556326e-05 | DU30: =PRODUCT('2012IAR JMale Data'!$S21:DQ21) -> 2.401533796e-05 | DV30: =PRODUCT('2012IAR JMale Data'!$S21:DR21) -> 1.440920277e-05 | DW30: =PRODUCT('2012IAR JMale Data'!$S21:DS21) -> 0
A31: 17 | B31: 23.21 | C31: 23.21 | X31: =PRODUCT('2012IAR JMale Data'!$T22:T22) -> 0.999672 | Y31: =PRODUCT('2012IAR JMale Data'!$T22:U22) -> 0.9993171164 | Z31: =PRODUCT('2012IAR JMale Data'!$T22:V22) -> 0.9989383753 | AA31: =PRODUCT('2012IAR JMale Data'!$T22:W22) -> 0.998536802 | AB31: =PRODUCT('2012IAR JMale Data'!$T22:X22) -> 0.9981114253 | AC31: =PRODUCT('2012IAR JMale Data'!$T22:Y22) -> 0.9976622752 | AD31: =PRODUCT('2012IAR JMale Data'!$T22:Z22) -> 0.9971804043 | AE31: =PRODUCT('2012IAR JMale Data'!$T22:AA22) -> 0.9966658592 | AF31: =PRODUCT('2012IAR JMale Data'!$T22:AB22) -> 0.9961127097 | AG31: =PRODUCT('2012IAR JMale Data'!$T22:AC22) -> 0.9955170343 | AH31: =PRODUCT('2012IAR JMale Data'!$T22:AD22) -> 0.9948978227 | AI31: =PRODUCT('2012IAR JMale Data'!$T22:AE22) -> 0.9942650677 | AJ31: =PRODUCT('2012IAR JMale Data'!$T22:AF22) -> 0.993624761 | AK31: =PRODUCT('2012IAR JMale Data'!$T22:AG22) -> 0.9929789049 | AL31: =PRODUCT('2012IAR JMale Data'!$T22:AH22) -> 0.9923314826 | AM31: =PRODUCT('2012IAR JMale Data'!$T22:AI22) -> 0.9916884518 | AN31: =PRODUCT('2012IAR JMale Data'!$T22:AJ22) -> 0.9910498045 | AO31: =PRODUCT('2012IAR JMale Data'!$T22:AK22) -> 0.9904185057 | AP31: =PRODUCT('2012IAR JMale Data'!$T22:AL22) -> 0.9897935517 | AQ31: =PRODUCT('2012IAR JMale Data'!$T22:AM22) -> 0.9891749307 | AR31: =PRODUCT('2012IAR JMale Data'!$T22:AN22) -> 0.9885636206 | AS31: =PRODUCT('2012IAR JMale Data'!$T22:AO22) -> 0.9879586197 | AT31: =PRODUCT('2012IAR JMale Data'!$T22:AP22) -> 0.9873253382 | AU31: =PRODUCT('2012IAR JMale Data'!$T22:AQ22) -> 0.9866519823 | AV31: =PRODUCT('2012IAR JMale Data'!$T22:AR22) -> 0.9859336997 | AW31: =PRODUCT('2012IAR JMale Data'!$T22:AS22) -> 0.9851676292 | AX31: =PRODUCT('2012IAR JMale Data'!$T22:AT22) -> 0.9843568362 | AY31: =PRODUCT('2012IAR JMale Data'!$T22:AU22) -> 0.9834994614 | AZ31: =PRODUCT('2012IAR JMale Data'!$T22:AV22) -> 0.9825946419 | BA31: =PRODUCT('2012IAR JMale Data'!$T22:AW22) -> 0.9816267862 | BB31: =PRODUCT('2012IAR JMale Data'!$T22:AX22) -> 0.9805705558 | BC31: =PRODUCT('2012IAR JMale Data'!$T22:AY22) -> 0.9794026962 | BD31: =PRODUCT('2012IAR JMale Data'!$T22:AZ22) -> 0.9781040083 | BE31: =PRODUCT('2012IAR JMale Data'!$T22:BA22) -> 0.9766603267 | BF31: =PRODUCT('2012IAR JMale Data'!$T22:BB22) -> 0.9751172034 | BG31: =PRODUCT('2012IAR JMale Data'!$T22:BC22) -> 0.9734322009 | BH31: =PRODUCT('2012IAR JMale Data'!$T22:BD22) -> 0.9716809964 | BI31: =PRODUCT('2012IAR JMale Data'!$T22:BE22) -> 0.9698095388 | BJ31: =PRODUCT('2012IAR JMale Data'!$T22:BF22) -> 0.9678902857 | BK31: =PRODUCT('2012IAR JMale Data'!$T22:BG22) -> 0.9658402941 | BL31: =PRODUCT('2012IAR JMale Data'!$T22:BH22) -> 0.9637270355 | BM31: =PRODUCT('2012IAR JMale Data'!$T22:BI22) -> 0.9614497485 | BN31: =PRODUCT('2012IAR JMale Data'!$T22:BJ22) -> 0.9590893894 | BO31: =PRODUCT('2012IAR JMale Data'!$T22:BK22) -> 0.9565372525 | BP31: =PRODUCT('2012IAR JMale Data'!$T22:BL22) -> 0.9537757295 | BQ31: =PRODUCT('2012IAR JMale Data'!$T22:BM22) -> 0.9507951803 | BR31: =PRODUCT('2012IAR JMale Data'!$T22:BN22) -> 0.947589099 | BS31: =PRODUCT('2012IAR JMale Data'!$T22:BO22) -> 0.944143665 | BT31: =PRODUCT('2012IAR JMale Data'!$T22:BP22) -> 0.9404388453 | BU31: =PRODUCT('2012IAR JMale Data'!$T22:BQ22) -> 0.9366056165 | BV31: =PRODUCT('2012IAR JMale Data'!$T22:BR22) -> 0.9326128668 | BW31: =PRODUCT('2012IAR JMale Data'!$T22:BS22) -> 0.9284245024 | BX31: =PRODUCT('2012IAR JMale Data'!$T22:BT22) -> 0.9239977744 | BY31: =PRODUCT('2012IAR JMale Data'!$T22:BU22) -> 0.9192872337 | BZ31: =PRODUCT('2012IAR JMale Data'!$T22:BV22) -> 0.9142403468 | CA31: =PRODUCT('2012IAR JMale Data'!$T22:BW22) -> 0.9087951313 | CB31: =PRODUCT('2012IAR JMale Data'!$T22:BX22) -> 0.9028888717 | CC31: =PRODUCT('2012IAR JMale Data'!$T22:BY22) -> 0.8964566914 | CD31: =PRODUCT('2012IAR JMale Data'!$T22:BZ22) -> 0.8894365391 | CE31: =PRODUCT('2012IAR JMale Data'!$T22:CA22) -> 0.8817678172 | CF31: =PRODUCT('2012IAR JMale Data'!$T22:CB22) -> 0.8733857324 | CG31: =PRODUCT('2012IAR JMale Data'!$T22:CC22) -> 0.8642230426 | CH31: =PRODUCT('2012IAR JMale Data'!$T22:CD22) -> 0.8542101545 | CI31: =PRODUCT('2012IAR JMale Data'!$T22:CE22) -> 0.8432549092 | CJ31: =PRODUCT('2012IAR JMale Data'!$T22:CF22) -> 0.8304171965 | CK31: =PRODUCT('2012IAR JMale Data'!$T22:CG22) -> 0.8154256748 | CL31: =PRODUCT('2012IAR JMale Data'!$T22:CH22) -> 0.7991147151 | CM31: =PRODUCT('2012IAR JMale Data'!$T22:CI22) -> 0.7801693034 | CN31: =PRODUCT('2012IAR JMale Data'!$T22:CJ22) -> 0.7581583869 | CO31: =PRODUCT('2012IAR JMale Data'!$T22:CK22) -> 0.7325735739 | CP31: =PRODUCT('2012IAR JMale Data'!$T22:CL22) -> 0.7028735761 | CQ31: =PRODUCT('2012IAR JMale Data'!$T22:CM22) -> 0.6709167261 | CR31: =PRODUCT('2012IAR JMale Data'!$T22:CN22) -> 0.6341793389 | CS31: =PRODUCT('2012IAR JMale Data'!$T22:CO22) -> 0.5924084826 | CT31: =PRODUCT('2012IAR JMale Data'!$T22:CP22) -> 0.5490382576 | CU31: =PRODUCT('2012IAR JMale Data'!$T22:CQ22) -> 0.50108306 | CV31: =PRODUCT('2012IAR JMale Data'!$T22:CR22) -> 0.4489879597 | CW31: =PRODUCT('2012IAR JMale Data'!$T22:CS22) -> 0.3976520233 | CX31: =PRODUCT('2012IAR JMale Data'!$T22:CT22) -> 0.3437614258 | CY31: =PRODUCT('2012IAR JMale Data'!$T22:CU22) -> 0.2943395332 | CZ31: =PRODUCT('2012IAR JMale Data'!$T22:CV22) -> 0.2446350049 | DA31: =PRODUCT('2012IAR JMale Data'!$T22:CW22) -> 0.2000424469 | DB31: =PRODUCT('2012IAR JMale Data'!$T22:CX22) -> 0.1575358275 | DC31: =PRODUCT('2012IAR JMale Data'!$T22:CY22) -> 0.1216987897 | DD31: =PRODUCT('2012IAR JMale Data'!$T22:CZ22) -> 0.09186737391 | DE31: =PRODUCT('2012IAR JMale Data'!$T22:DA22) -> 0.06555426134 | DF31: =PRODUCT('2012IAR JMale Data'!$T22:DB22) -> 0.04546660014 | DG31: =PRODUCT('2012IAR JMale Data'!$T22:DC22) -> 0.02927107891 | DH31: =PRODUCT('2012IAR JMale Data'!$T22:DD22) -> 0.01814806892 | DI31: =PRODUCT('2012IAR JMale Data'!$T22:DE22) -> 0.01088884135 | DJ31: =PRODUCT('2012IAR JMale Data'!$T22:DF22) -> 0.006533304812 | DK31: =PRODUCT('2012IAR JMale Data'!$T22:DG22) -> 0.003919982887 | DL31: =PRODUCT('2012IAR JMale Data'!$T22:DH22) -> 0.002351989732 | DM31: =PRODUCT('2012IAR JMale Data'!$T22:DI22) -> 0.001411193839 | DN31: =PRODUCT('2012IAR JMale Data'!$T22:DJ22) -> 0.0008467163036 | DO31: =PRODUCT('2012IAR JMale Data'!$T22:DK22) -> 0.0005080297822 | DP31: =PRODUCT('2012IAR JMale Data'!$T22:DL22) -> 0.0003048178693 | DQ31: =PRODUCT('2012IAR JMale Data'!$T22:DM22) -> 0.0001828907216 | DR31: =PRODUCT('2012IAR JMale Data'!$T22:DN22) -> 0.0001097344329 | DS31: =PRODUCT('2012IAR JMale Data'!$T22:DO22) -> 6.584065977e-05 | DT31: =PRODUCT('2012IAR JMale Data'!$T22:DP22) -> 3.950439586e-05 | DU31: =PRODUCT('2012IAR JMale Data'!$T22:DQ22) -> 2.370263752e-05 | DV31: =PRODUCT('2012IAR JMale Data'!$T22:DR22) -> 1.422158251e-05 | DW31: =PRODUCT('2012IAR JMale Data'!$T22:DS22) -> 0
A32: 18 | B32: 23.14 | C32: 23.14 | Y32: =PRODUCT('2012IAR JMale Data'!$U23:U23) -> 0.999641 | Z32: =PRODUCT('2012IAR JMale Data'!$U23:V23) -> 0.9992581375 | AA32: =PRODUCT('2012IAR JMale Data'!$U23:W23) -> 0.9988524387 | AB32: =PRODUCT('2012IAR JMale Data'!$U23:X23) -> 0.9984229321 | AC32: =PRODUCT('2012IAR JMale Data'!$U23:Y23) -> 0.9979696481 | AD32: =PRODUCT('2012IAR JMale Data'!$U23:Z23) -> 0.9974826389 | AE32: =PRODUCT('2012IAR JMale Data'!$U23:AA23) -> 0.996961953 | AF32: =PRODUCT('2012IAR JMale Data'!$U23:AB23) -> 0.9964026574 | AG32: =PRODUCT('2012IAR JMale Data'!$U23:AC23) -> 0.9958008301 | AH32: =PRODUCT('2012IAR JMale Data'!$U23:AD23) -> 0.9951754672 | AI32: =PRODUCT('2012IAR JMale Data'!$U23:AE23) -> 0.9945365646 | AJ32: =PRODUCT('2012IAR JMale Data'!$U23:AF23) -> 0.9938891213 | AK32: =PRODUCT('2012IAR JMale Data'!$U23:AG23) -> 0.9932361361 | AL32: =PRODUCT('2012IAR JMale Data'!$U23:AH23) -> 0.9925815935 | AM32: =PRODUCT('2012IAR JMale Data'!$U23:AI23) -> 0.9919314526 | AN32: =PRODUCT('2012IAR JMale Data'!$U23:AJ23) -> 0.9912866971 | AO32: =PRODUCT('2012IAR JMale Data'!$U23:AK23) -> 0.9906483085 | AP32: =PRODUCT('2012IAR JMale Data'!$U23:AL23) -> 0.9900172655 | AQ32: =PRODUCT('2012IAR JMale Data'!$U23:AM23) -> 0.9893925646 | AR32: =PRODUCT('2012IAR JMale Data'!$U23:AN23) -> 0.9887741943 | AS32: =PRODUCT('2012IAR JMale Data'!$U23:AO23) -> 0.9881631318 | AT32: =PRODUCT('2012IAR JMale Data'!$U23:AP23) -> 0.9875228021 | AU32: =PRODUCT('2012IAR JMale Data'!$U23:AQ23) -> 0.9868423989 | AV32: =PRODUCT('2012IAR JMale Data'!$U23:AR23) -> 0.9861170697 | AW32: =PRODUCT('2012IAR JMale Data'!$U23:AS23) -> 0.9853429678 | AX32: =PRODUCT('2012IAR JMale Data'!$U23:AT23) -> 0.9845241478 | AY32: =PRODUCT('2012IAR JMale Data'!$U23:AU23) -> 0.9836587511 | AZ32: =PRODUCT('2012IAR JMale Data'!$U23:AV23) -> 0.9827449321 | BA32: =PRODUCT('2012IAR JMale Data'!$U23:AW23) -> 0.9817671009 | BB32: =PRODUCT('2012IAR JMale Data'!$U23:AX23) -> 0.9807009018 | BC32: =PRODUCT('2012IAR JMale Data'!$U23:AY23) -> 0.9795211187 | BD32: =PRODUCT('2012IAR JMale Data'!$U23:AZ23) -> 0.9782095399 | BE32: =PRODUCT('2012IAR JMale Data'!$U23:BA23) -> 0.9767510295 | BF32: =PRODUCT('2012IAR JMale Data'!$U23:BB23) -> 0.9751901813 | BG32: =PRODUCT('2012IAR JMale Data'!$U23:BC23) -> 0.9734865241 | BH32: =PRODUCT('2012IAR JMale Data'!$U23:BD23) -> 0.9717138051 | BI32: =PRODUCT('2012IAR JMale Data'!$U23:BE23) -> 0.9698189632 | BJ32: =PRODUCT('2012IAR JMale Data'!$U23:BF23) -> 0.9678744762 | BK32: =PRODUCT('2012IAR JMale Data'!$U23:BG23) -> 0.9657974175 | BL32: =PRODUCT('2012IAR JMale Data'!$U23:BH23) -> 0.9636543131 | BM32: =PRODUCT('2012IAR JMale Data'!$U23:BI23) -> 0.9613444337 | BN32: =PRODUCT('2012IAR JMale Data'!$U23:BJ23) -> 0.9589487633 | BO32: =PRODUCT('2012IAR JMale Data'!$U23:BK23) -> 0.9563586427 | BP32: =PRODUCT('2012IAR JMale Data'!$U23:BL23) -> 0.9535555556 | BQ32: =PRODUCT('2012IAR JMale Data'!$U23:BM23) -> 0.9505299238 | BR32: =PRODUCT('2012IAR JMale Data'!$U23:BN23) -> 0.9472753093 | BS32: =PRODUCT('2012IAR JMale Data'!$U23:BO23) -> 0.9437789162 | BT32: =PRODUCT('2012IAR JMale Data'!$U23:BP23) -> 0.9400189009 | BU32: =PRODUCT('2012IAR JMale Data'!$U23:BQ23) -> 0.9361291027 | BV32: =PRODUCT('2012IAR JMale Data'!$U23:BR23) -> 0.932077536 | BW32: =PRODUCT('2012IAR JMale Data'!$U23:BS23) -> 0.9278272624 | BX32: =PRODUCT('2012IAR JMale Data'!$U23:BT23) -> 0.9233356506 | BY32: =PRODUCT('2012IAR JMale Data'!$U23:BU23) -> 0.9185573886 | BZ32: =PRODUCT('2012IAR JMale Data'!$U23:BV23) -> 0.9134373498 | CA32: =PRODUCT('2012IAR JMale Data'!$U23:BW23) -> 0.9079147075 | CB32: =PRODUCT('2012IAR JMale Data'!$U23:BX23) -> 0.9019242863 | CC32: =PRODUCT('2012IAR JMale Data'!$U23:BY23) -> 0.8954015699 | CD32: =PRODUCT('2012IAR JMale Data'!$U23:BZ23) -> 0.8882831274 | CE32: =PRODUCT('2012IAR JMale Data'!$U23:CA23) -> 0.8805079852 | CF32: =PRODUCT('2012IAR JMale Data'!$U23:CB23) -> 0.8720110831 | CG32: =PRODUCT('2012IAR JMale Data'!$U23:CC23) -> 0.8627241651 | CH32: =PRODUCT('2012IAR JMale Data'!$U23:CD23) -> 0.8525768035 | CI32: =PRODUCT('2012IAR JMale Data'!$U23:CE23) -> 0.8414754009 | CJ32: =PRODUCT('2012IAR JMale Data'!$U23:CF23) -> 0.8284830207 | CK32: =PRODUCT('2012IAR JMale Data'!$U23:CG23) -> 0.8133292378 | CL32: =PRODUCT('2012IAR JMale Data'!$U23:CH23) -> 0.7968463074 | CM32: =PRODUCT('2012IAR JMale Data'!$U23:CI23) -> 0.7777251834 | CN32: =PRODUCT('2012IAR JMale Data'!$U23:CJ23) -> 0.7555390171 | CO32: =PRODUCT('2012IAR JMale Data'!$U23:CK23) -> 0.7297849587 | CP32: =PRODUCT('2012IAR JMale Data'!$U23:CL23) -> 0.699929456 | CQ32: =PRODUCT('2012IAR JMale Data'!$U23:CM23) -> 0.6678173925 | CR32: =PRODUCT('2012IAR JMale Data'!$U23:CN23) -> 0.6309545402 | CS32: =PRODUCT('2012IAR JMale Data'!$U23:CO23) -> 0.5891033256 | CT32: =PRODUCT('2012IAR JMale Data'!$U23:CP23) -> 0.5456710938 | CU32: =PRODUCT('2012IAR JMale Data'!$U23:CQ23) -> 0.4977224291 | CV32: =PRODUCT('2012IAR JMale Data'!$U23:CR23) -> 0.4457169057 | CW32: =PRODUCT('2012IAR JMale Data'!$U23:CS23) -> 0.3944986846 | CX32: =PRODUCT('2012IAR JMale Data'!$U23:CT23) -> 0.3408208266 | CY32: =PRODUCT('2012IAR JMale Data'!$U23:CU23) -> 0.2916247036 | CZ32: =PRODUCT('2012IAR JMale Data'!$U23:CV23) -> 0.2422304778 | DA32: =PRODUCT('2012IAR JMale Data'!$U23:CW23) -> 0.1979432373 | DB32: =PRODUCT('2012IAR JMale Data'!$U23:CX23) -> 0.1557985488 | DC32: =PRODUCT('2012IAR JMale Data'!$U23:CY23) -> 0.1202856718 | DD32: =PRODUCT('2012IAR JMale Data'!$U23:CZ23) -> 0.09074158623 | DE32: =PRODUCT('2012IAR JMale Data'!$U23:DA23) -> 0.06472488456 | DF32: =PRODUCT('2012IAR JMale Data'!$U23:DB23) -> 0.04487149709 | DG32: =PRODUCT('2012IAR JMale Data'!$U23:DC23) -> 0.02888795573 | DH32: =PRODUCT('2012IAR JMale Data'!$U23:DD23) -> 0.01791053255 | DI32: =PRODUCT('2012IAR JMale Data'!$U23:DE23) -> 0.01074631953 | DJ32: =PRODUCT('2012IAR JMale Data'!$U23:DF23) -> 0.006447791718 | DK32: =PRODUCT('2012IAR JMale Data'!$U23:DG23) -> 0.003868675031 | DL32: =PRODUCT('2012IAR JMale Data'!$U23:DH23) -> 0.002321205019 | DM32: =PRODUCT('2012IAR JMale Data'!$U23:DI23) -> 0.001392723011 | DN32: =PRODUCT('2012IAR JMale Data'!$U23:DJ23) -> 0.0008356338067 | DO32: =PRODUCT('2012IAR JMale Data'!$U23:DK23) -> 0.000501380284 | DP32: =PRODUCT('2012IAR JMale Data'!$U23:DL23) -> 0.0003008281704 | DQ32: =PRODUCT('2012IAR JMale Data'!$U23:DM23) -> 0.0001804969022 | DR32: =PRODUCT('2012IAR JMale Data'!$U23:DN23) -> 0.0001082981413 | DS32: =PRODUCT('2012IAR JMale Data'!$U23:DO23) -> 6.497888481e-05 | DT32: =PRODUCT('2012IAR JMale Data'!$U23:DP23) -> 3.898733089e-05 | DU32: =PRODUCT('2012IAR JMale Data'!$U23:DQ23) -> 2.339239853e-05 | DV32: =PRODUCT('2012IAR JMale Data'!$U23:DR23) -> 1.403543912e-05 | DW32: =PRODUCT('2012IAR JMale Data'!$U23:DS23) -> 0
A33: 19 | B33: 23.06 | C33: 23.06 | Z33: =PRODUCT('2012IAR JMale Data'!$V24:V24) -> 0.999613 | AA33: =PRODUCT('2012IAR JMale Data'!$V24:W24) -> 0.9992031587 | AB33: =PRODUCT('2012IAR JMale Data'!$V24:X24) -> 0.9987695045 | AC33: =PRODUCT('2012IAR JMale Data'!$V24:Y24) -> 0.9983110693 | AD33: =PRODUCT('2012IAR JMale Data'!$V24:Z24) -> 0.9978189019 | AE33: =PRODUCT('2012IAR JMale Data'!$V24:AA24) -> 0.9972930514 | AF33: =PRODUCT('2012IAR JMale Data'!$V24:AB24) -> 0.9967275862 | AG33: =PRODUCT('2012IAR JMale Data'!$V24:AC24) -> 0.9961185857 | AH33: =PRODUCT('2012IAR JMale Data'!$V24:AD24) -> 0.9954860504 | AI33: =PRODUCT('2012IAR JMale Data'!$V24:AE24) -> 0.9948399799 | AJ33: =PRODUCT('2012IAR JMale Data'!$V24:AF24) -> 0.99418637 | AK33: =PRODUCT('2012IAR JMale Data'!$V24:AG24) -> 0.9935272245 | AL33: =PRODUCT('2012IAR JMale Data'!$V24:AH24) -> 0.9928655354 | AM33: =PRODUCT('2012IAR JMale Data'!$V24:AI24) -> 0.9922082584 | AN33: =PRODUCT('2012IAR JMale Data'!$V24:AJ24) -> 0.9915563775 | AO33: =PRODUCT('2012IAR JMale Data'!$V24:AK24) -> 0.9909118659 | AP33: =PRODUCT('2012IAR JMale Data'!$V24:AL24) -> 0.9902737187 | AQ33: =PRODUCT('2012IAR JMale Data'!$V24:AM24) -> 0.9896429143 | AR33: =PRODUCT('2012IAR JMale Data'!$V24:AN24) -> 0.9890184496 | AS33: =PRODUCT('2012IAR JMale Data'!$V24:AO24) -> 0.9884003131 | AT33: =PRODUCT('2012IAR JMale Data'!$V24:AP24) -> 0.9877538993 | AU33: =PRODUCT('2012IAR JMale Data'!$V24:AQ24) -> 0.9870664226 | AV33: =PRODUCT('2012IAR JMale Data'!$V24:AR24) -> 0.9863340193 | AW33: =PRODUCT('2012IAR JMale Data'!$V24:AS24) -> 0.9855518564 | AX33: =PRODUCT('2012IAR JMale Data'!$V24:AT24) -> 0.9847239928 | AY33: =PRODUCT('2012IAR JMale Data'!$V24:AU24) -> 0.9838495579 | AZ33: =PRODUCT('2012IAR JMale Data'!$V24:AV24) -> 0.9829257232 | BA33: =PRODUCT('2012IAR JMale Data'!$V24:AW24) -> 0.9819378829 | BB33: =PRODUCT('2012IAR JMale Data'!$V24:AX24) -> 0.980860697 | BC33: =PRODUCT('2012IAR JMale Data'!$V24:AY24) -> 0.9796679704 | BD33: =PRODUCT('2012IAR JMale Data'!$V24:AZ24) -> 0.9783424796 | BE33: =PRODUCT('2012IAR JMale Data'!$V24:BA24) -> 0.9768690959 | BF33: =PRODUCT('2012IAR JMale Data'!$V24:BB24) -> 0.9752904754 | BG33: =PRODUCT('2012IAR JMale Data'!$V24:BC24) -> 0.9735671371 | BH33: =PRODUCT('2012IAR JMale Data'!$V24:BD24) -> 0.9717728529 | BI33: =PRODUCT('2012IAR JMale Data'!$V24:BE24) -> 0.969855545 | BJ33: =PRODUCT('2012IAR JMale Data'!$V24:BF24) -> 0.9678847986 | BK33: =PRODUCT('2012IAR JMale Data'!$V24:BG24) -> 0.9657796491 | BL33: =PRODUCT('2012IAR JMale Data'!$V24:BH24) -> 0.9636066449 | BM33: =PRODUCT('2012IAR JMale Data'!$V24:BI24) -> 0.9612641172 | BN33: =PRODUCT('2012IAR JMale Data'!$V24:BJ24) -> 0.958832119 | BO33: =PRODUCT('2012IAR JMale Data'!$V24:BK24) -> 0.9562030013 | BP33: =PRODUCT('2012IAR JMale Data'!$V24:BL24) -> 0.9533573412 | BQ33: =PRODUCT('2012IAR JMale Data'!$V24:BM24) -> 0.9502865772 | BR33: =PRODUCT('2012IAR JMale Data'!$V24:BN24) -> 0.946983381 | BS33: =PRODUCT('2012IAR JMale Data'!$V24:BO24) -> 0.9434340873 | BT33: =PRODUCT('2012IAR JMale Data'!$V24:BP24) -> 0.9396178964 | BU33: =PRODUCT('2012IAR JMale Data'!$V24:BQ24) -> 0.9356705616 | BV33: =PRODUCT('2012IAR JMale Data'!$V24:BR24) -> 0.9315592252 | BW33: =PRODUCT('2012IAR JMale Data'!$V24:BS24) -> 0.9272470375 | BX33: =PRODUCT('2012IAR JMale Data'!$V24:BT24) -> 0.9226905456 | BY33: =PRODUCT('2012IAR JMale Data'!$V24:BU24) -> 0.9178427295 | BZ33: =PRODUCT('2012IAR JMale Data'!$V24:BV24) -> 0.9126486575 | CA33: =PRODUCT('2012IAR JMale Data'!$V24:BW24) -> 0.90704682 | CB33: =PRODUCT('2012IAR JMale Data'!$V24:BX24) -> 0.9009714204 | CC33: =PRODUCT('2012IAR JMale Data'!$V24:BY24) -> 0.8943555873 | CD33: =PRODUCT('2012IAR JMale Data'!$V24:BZ24) -> 0.8871372433 | CE33: =PRODUCT('2012IAR JMale Data'!$V24:CA24) -> 0.8792541418 | CF33: =PRODUCT('2012IAR JMale Data'!$V24:CB24) -> 0.870640089 | CG33: =PRODUCT('2012IAR JMale Data'!$V24:CC24) -> 0.8612258577 | CH33: =PRODUCT('2012IAR JMale Data'!$V24:CD24) -> 0.8509419597 | CI33: =PRODUCT('2012IAR JMale Data'!$V24:CE24) -> 0.8396933579 | CJ33: =PRODUCT('2012IAR JMale Data'!$V24:CF24) -> 0.82654376 | CK33: =PRODUCT('2012IAR JMale Data'!$V24:CG24) -> 0.811226251 | CL33: =PRODUCT('2012IAR JMale Data'!$V24:CH24) -> 0.7945693424 | CM33: =PRODUCT('2012IAR JMale Data'!$V24:CI24) -> 0.7752716368 | CN33: =PRODUCT('2012IAR JMale Data'!$V24:CJ24) -> 0.7529097017 | CO33: =PRODUCT('2012IAR JMale Data'!$V24:CK24) -> 0.7269862677 | CP33: =PRODUCT('2012IAR JMale Data'!$V24:CL24) -> 0.6969748206 | CQ33: =PRODUCT('2012IAR JMale Data'!$V24:CM24) -> 0.6647083713 | CR33: =PRODUCT('2012IAR JMale Data'!$V24:CN24) -> 0.6277213387 | CS33: =PRODUCT('2012IAR JMale Data'!$V24:CO24) -> 0.5857908087 | CT33: =PRODUCT('2012IAR JMale Data'!$V24:CP24) -> 0.5422981843 | CU33: =PRODUCT('2012IAR JMale Data'!$V24:CQ24) -> 0.4943584825 | CV33: =PRODUCT('2012IAR JMale Data'!$V24:CR24) -> 0.4424449096 | CW33: =PRODUCT('2012IAR JMale Data'!$V24:CS24) -> 0.3913473894 | CX33: =PRODUCT('2012IAR JMale Data'!$V24:CT24) -> 0.3378842485 | CY33: =PRODUCT('2012IAR JMale Data'!$V24:CU24) -> 0.2889163738 | CZ33: =PRODUCT('2012IAR JMale Data'!$V24:CV24) -> 0.2398335267 | DA33: =PRODUCT('2012IAR JMale Data'!$V24:CW24) -> 0.1958526147 | DB33: =PRODUCT('2012IAR JMale Data'!$V24:CX24) -> 0.1540694179 | DC33: =PRODUCT('2012IAR JMale Data'!$V24:CY24) -> 0.1188804251 | DD33: =PRODUCT('2012IAR JMale Data'!$V24:CZ24) -> 0.08962300142 | DE33: =PRODUCT('2012IAR JMale Data'!$V24:DA24) -> 0.06390128963 | DF33: =PRODUCT('2012IAR JMale Data'!$V24:DB24) -> 0.04428090986 | DG33: =PRODUCT('2012IAR JMale Data'!$V24:DC24) -> 0.0285077398 | DH33: =PRODUCT('2012IAR JMale Data'!$V24:DD24) -> 0.01767479868 | DI33: =PRODUCT('2012IAR JMale Data'!$V24:DE24) -> 0.01060487921 | DJ33: =PRODUCT('2012IAR JMale Data'!$V24:DF24) -> 0.006362927524 | DK33: =PRODUCT('2012IAR JMale Data'!$V24:DG24) -> 0.003817756514 | DL33: =PRODUCT('2012IAR JMale Data'!$V24:DH24) -> 0.002290653909 | DM33: =PRODUCT('2012IAR JMale Data'!$V24:DI24) -> 0.001374392345 | DN33: =PRODUCT('2012IAR JMale Data'!$V24:DJ24) -> 0.0008246354071 | DO33: =PRODUCT('2012IAR JMale Data'!$V24:DK24) -> 0.0004947812443 | DP33: =PRODUCT('2012IAR JMale Data'!$V24:DL24) -> 0.0002968687466 | DQ33: =PRODUCT('2012IAR JMale Data'!$V24:DM24) -> 0.0001781212479 | DR33: =PRODUCT('2012IAR JMale Data'!$V24:DN24) -> 0.0001068727488 | DS33: =PRODUCT('2012IAR JMale Data'!$V24:DO24) -> 6.412364926e-05 | DT33: =PRODUCT('2012IAR JMale Data'!$V24:DP24) -> 3.847418955e-05 | DU33: =PRODUCT('2012IAR JMale Data'!$V24:DQ24) -> 2.308451373e-05 | DV33: =PRODUCT('2012IAR JMale Data'!$V24:DR24) -> 1.385070824e-05 | DW33: =PRODUCT('2012IAR JMale Data'!$V24:DS24) -> 0
A34: 20 | B34: 22.99 | C34: 22.99 | AA34: =PRODUCT('2012IAR JMale Data'!$W25:W25) -> 0.999586 | AB34: =PRODUCT('2012IAR JMale Data'!$W25:X25) -> 0.9991471817 | AC34: =PRODUCT('2012IAR JMale Data'!$W25:Y25) -> 0.9986835775 | AD34: =PRODUCT('2012IAR JMale Data'!$W25:Z25) -> 0.998186233 | AE34: =PRODUCT('2012IAR JMale Data'!$W25:AA25) -> 0.997655198 | AF34: =PRODUCT('2012IAR JMale Data'!$W25:AB25) -> 0.9970845392 | AG34: =PRODUCT('2012IAR JMale Data'!$W25:AC25) -> 0.996469338 | AH34: =PRODUCT('2012IAR JMale Data'!$W25:AD25) -> 0.9958306012 | AI34: =PRODUCT('2012IAR JMale Data'!$W25:AE25) -> 0.9951783321 | AJ34: =PRODUCT('2012IAR JMale Data'!$W25:AF25) -> 0.9945175337 | AK34: =PRODUCT('2012IAR JMale Data'!$W25:AG25) -> 0.993851207 | AL34: =PRODUCT('2012IAR JMale Data'!$W25:AH25) -> 0.993183339 | AM34: =PRODUCT('2012IAR JMale Data'!$W25:AI25) -> 0.9925198925 | AN34: =PRODUCT('2012IAR JMale Data'!$W25:AJ25) -> 0.9918618518 | AO34: =PRODUCT('2012IAR JMale Data'!$W25:AK25) -> 0.9912101986 | AP34: =PRODUCT('2012IAR JMale Data'!$W25:AL25) -> 0.9905659119 | AQ34: =PRODUCT('2012IAR JMale Data'!$W25:AM25) -> 0.9899279875 | AR34: =PRODUCT('2012IAR JMale Data'!$W25:AN25) -> 0.9892974034 | AS34: =PRODUCT('2012IAR JMale Data'!$W25:AO25) -> 0.9886731567 | AT34: =PRODUCT('2012IAR JMale Data'!$W25:AP25) -> 0.9880196437 | AU34: =PRODUCT('2012IAR JMale Data'!$W25:AQ25) -> 0.9873250659 | AV34: =PRODUCT('2012IAR JMale Data'!$W25:AR25) -> 0.9865845721 | AW34: =PRODUCT('2012IAR JMale Data'!$W25:AS25) -> 0.9857943179 | AX34: =PRODUCT('2012IAR JMale Data'!$W25:AT25) -> 0.9849583643 | AY34: =PRODUCT('2012IAR JMale Data'!$W25:AU25) -> 0.9840748567 | AZ34: =PRODUCT('2012IAR JMale Data'!$W25:AV25) -> 0.9831419537 | BA34: =PRODUCT('2012IAR JMale Data'!$W25:AW25) -> 0.9821440646 | BB34: =PRODUCT('2012IAR JMale Data'!$W25:AX25) -> 0.981055849 | BC34: =PRODUCT('2012IAR JMale Data'!$W25:AY25) -> 0.9798511124 | BD34: =PRODUCT('2012IAR JMale Data'!$W25:AZ25) -> 0.9785116559 | BE34: =PRODUCT('2012IAR JMale Data'!$W25:BA25) -> 0.9770223612 | BF34: =PRODUCT('2012IAR JMale Data'!$W25:BB25) -> 0.9754259067 | BG34: =PRODUCT('2012IAR JMale Data'!$W25:BC25) -> 0.973683796 | BH34: =PRODUCT('2012IAR JMale Data'!$W25:BD25) -> 0.971866902 | BI34: =PRODUCT('2012IAR JMale Data'!$W25:BE25) -> 0.9699260838 | BJ34: =PRODUCT('2012IAR JMale Data'!$W25:BF25) -> 0.9679299759 | BK34: =PRODUCT('2012IAR JMale Data'!$W25:BG25) -> 0.9657976262 | BL34: =PRODUCT('2012IAR JMale Data'!$W25:BH25) -> 0.963593676 | BM34: =PRODUCT('2012IAR JMale Data'!$W25:BI25) -> 0.961217454 | BN34: =PRODUCT('2012IAR JMale Data'!$W25:BJ25) -> 0.9587480864 | BO34: =PRODUCT('2012IAR JMale Data'!$W25:BK25) -> 0.9560789317 | BP34: =PRODUCT('2012IAR JMale Data'!$W25:BL25) -> 0.9531906172 | BQ34: =PRODUCT('2012IAR JMale Data'!$W25:BM25) -> 0.9500736839 | BR34: =PRODUCT('2012IAR JMale Data'!$W25:BN25) -> 0.9467208739 | BS34: =PRODUCT('2012IAR JMale Data'!$W25:BO25) -> 0.943118601 | BT34: =PRODUCT('2012IAR JMale Data'!$W25:BP25) -> 0.939246156 | BU34: =PRODUCT('2012IAR JMale Data'!$W25:BQ25) -> 0.9352402711 | BV34: =PRODUCT('2012IAR JMale Data'!$W25:BR25) -> 0.9310681643 | BW34: =PRODUCT('2012IAR JMale Data'!$W25:BS25) -> 0.9266921439 | BX34: =PRODUCT('2012IAR JMale Data'!$W25:BT25) -> 0.9220688768 | BY34: =PRODUCT('2012IAR JMale Data'!$W25:BU25) -> 0.9171505614 | BZ34: =PRODUCT('2012IAR JMale Data'!$W25:BV25) -> 0.9118815315 | CA34: =PRODUCT('2012IAR JMale Data'!$W25:BW25) -> 0.9061986857 | CB34: =PRODUCT('2012IAR JMale Data'!$W25:BX25) -> 0.9000365347 | CC34: =PRODUCT('2012IAR JMale Data'!$W25:BY25) -> 0.8933276624 | CD34: =PRODUCT('2012IAR JMale Data'!$W25:BZ25) -> 0.8860077355 | CE34: =PRODUCT('2012IAR JMale Data'!$W25:CA25) -> 0.8780141737 | CF34: =PRODUCT('2012IAR JMale Data'!$W25:CB25) -> 0.8692805667 | CG34: =PRODUCT('2012IAR JMale Data'!$W25:CC25) -> 0.8597384739 | CH34: =PRODUCT('2012IAR JMale Data'!$W25:CD25) -> 0.8493158644 | CI34: =PRODUCT('2012IAR JMale Data'!$W25:CE25) -> 0.8379180455 | CJ34: =PRODUCT('2012IAR JMale Data'!$W25:CF25) -> 0.8246102311 | CK34: =PRODUCT('2012IAR JMale Data'!$W25:CG25) -> 0.8091273494 | CL34: =PRODUCT('2012IAR JMale Data'!$W25:CH25) -> 0.7922950732 | CM34: =PRODUCT('2012IAR JMale Data'!$W25:CI25) -> 0.7728188757 | CN34: =PRODUCT('2012IAR JMale Data'!$W25:CJ25) -> 0.7502796132 | CO34: =PRODUCT('2012IAR JMale Data'!$W25:CK25) -> 0.7241856385 | CP34: =PRODUCT('2012IAR JMale Data'!$W25:CL25) -> 0.6940182374 | CQ34: =PRODUCT('2012IAR JMale Data'!$W25:CM25) -> 0.6615964814 | CR34: =PRODUCT('2012IAR JMale Data'!$W25:CN25) -> 0.62448555 | CS34: =PRODUCT('2012IAR JMale Data'!$W25:CO25) -> 0.5824770315 | CT34: =PRODUCT('2012IAR JMale Data'!$W25:CP25) -> 0.5389258063 | CU34: =PRODUCT('2012IAR JMale Data'!$W25:CQ25) -> 0.4909964397 | CV34: =PRODUCT('2012IAR JMale Data'!$W25:CR25) -> 0.4391766755 | CW34: =PRODUCT('2012IAR JMale Data'!$W25:CS25) -> 0.3882014388 | CX34: =PRODUCT('2012IAR JMale Data'!$W25:CT25) -> 0.3349553412 | CY34: =PRODUCT('2012IAR JMale Data'!$W25:CU25) -> 0.2862169944 | CZ34: =PRODUCT('2012IAR JMale Data'!$W25:CV25) -> 0.2374464772 | DA34: =PRODUCT('2012IAR JMale Data'!$W25:CW25) -> 0.1937724718 | DB34: =PRODUCT('2012IAR JMale Data'!$W25:CX25) -> 0.152350118 | DC34: =PRODUCT('2012IAR JMale Data'!$W25:CY25) -> 0.1174840318 | DD34: =PRODUCT('2012IAR JMale Data'!$W25:CZ25) -> 0.08851223455 | DE34: =PRODUCT('2012IAR JMale Data'!$W25:DA25) -> 0.06308390874 | DF34: =PRODUCT('2012IAR JMale Data'!$W25:DB25) -> 0.04369506939 | DG34: =PRODUCT('2012IAR JMale Data'!$W25:DC25) -> 0.02813057981 | DH34: =PRODUCT('2012IAR JMale Data'!$W25:DD25) -> 0.01744095948 | DI34: =PRODUCT('2012IAR JMale Data'!$W25:DE25) -> 0.01046457569 | DJ34: =PRODUCT('2012IAR JMale Data'!$W25:DF25) -> 0.006278745413 | DK34: =PRODUCT('2012IAR JMale Data'!$W25:DG25) -> 0.003767247248 | DL34: =PRODUCT('2012IAR JMale Data'!$W25:DH25) -> 0.002260348349 | DM34: =PRODUCT('2012IAR JMale Data'!$W25:DI25) -> 0.001356209009 | DN34: =PRODUCT('2012IAR JMale Data'!$W25:DJ25) -> 0.0008137254055 | DO34: =PRODUCT('2012IAR JMale Data'!$W25:DK25) -> 0.0004882352433 | DP34: =PRODUCT('2012IAR JMale Data'!$W25:DL25) -> 0.000292941146 | DQ34: =PRODUCT('2012IAR JMale Data'!$W25:DM25) -> 0.0001757646876 | DR34: =PRODUCT('2012IAR JMale Data'!$W25:DN25) -> 0.0001054588126 | DS34: =PRODUCT('2012IAR JMale Data'!$W25:DO25) -> 6.327528753e-05 | DT34: =PRODUCT('2012IAR JMale Data'!$W25:DP25) -> 3.796517252e-05 | DU34: =PRODUCT('2012IAR JMale Data'!$W25:DQ25) -> 2.277910351e-05 | DV34: =PRODUCT('2012IAR JMale Data'!$W25:DR25) -> 1.366746211e-05 | DW34: =PRODUCT('2012IAR JMale Data'!$W25:DS25) -> 0
A35: 21 | B35: 22.91 | C35: 22.91 | AB35: =PRODUCT('2012IAR JMale Data'!$X26:X26) -> 0.999557 | AC35: =PRODUCT('2012IAR JMale Data'!$X26:Y26) -> 0.9990892073 | AD35: =PRODUCT('2012IAR JMale Data'!$X26:Z26) -> 0.9985866655 | AE35: =PRODUCT('2012IAR JMale Data'!$X26:AA26) -> 0.9980494258 | AF35: =PRODUCT('2012IAR JMale Data'!$X26:AB26) -> 0.9974725533 | AG35: =PRODUCT('2012IAR JMale Data'!$X26:AC26) -> 0.9968511279 | AH35: =PRODUCT('2012IAR JMale Data'!$X26:AD26) -> 0.9962051683 | AI35: =PRODUCT('2012IAR JMale Data'!$X26:AE26) -> 0.9955456805 | AJ35: =PRODUCT('2012IAR JMale Data'!$X26:AF26) -> 0.9948776694 | AK35: =PRODUCT('2012IAR JMale Data'!$X26:AG26) -> 0.9942041372 | AL35: =PRODUCT('2012IAR JMale Data'!$X26:AH26) -> 0.9935290726 | AM35: =PRODUCT('2012IAR JMale Data'!$X26:AI26) -> 0.9928584404 | AN35: =PRODUCT('2012IAR JMale Data'!$X26:AJ26) -> 0.9921932253 | AO35: =PRODUCT('2012IAR JMale Data'!$X26:AK26) -> 0.9915354012 | AP35: =PRODUCT('2012IAR JMale Data'!$X26:AL26) -> 0.9908839624 | AQ35: =PRODUCT('2012IAR JMale Data'!$X26:AM26) -> 0.9902398878 | AR35: =PRODUCT('2012IAR JMale Data'!$X26:AN26) -> 0.9896021734 | AS35: =PRODUCT('2012IAR JMale Data'!$X26:AO26) -> 0.9889717968 | AT35: =PRODUCT('2012IAR JMale Data'!$X26:AP26) -> 0.9883111636 | AU35: =PRODUCT('2012IAR JMale Data'!$X26:AQ26) -> 0.9876094627 | AV35: =PRODUCT('2012IAR JMale Data'!$X26:AR26) -> 0.9868618423 | AW35: =PRODUCT('2012IAR JMale Data'!$X26:AS26) -> 0.9860634711 | AX35: =PRODUCT('2012IAR JMale Data'!$X26:AT26) -> 0.9852184147 | AY35: =PRODUCT('2012IAR JMale Data'!$X26:AU26) -> 0.9843258068 | AZ35: =PRODUCT('2012IAR JMale Data'!$X26:AV26) -> 0.9833828227 | BA35: =PRODUCT('2012IAR JMale Data'!$X26:AW26) -> 0.9823748553 | BB35: =PRODUCT('2012IAR JMale Data'!$X26:AX26) -> 0.9812745955 | BC35: =PRODUCT('2012IAR JMale Data'!$X26:AY26) -> 0.980057815 | BD35: =PRODUCT('2012IAR JMale Data'!$X26:AZ26) -> 0.9787053352 | BE35: =PRODUCT('2012IAR JMale Data'!$X26:BA26) -> 0.9772010651 | BF35: =PRODUCT('2012IAR JMale Data'!$X26:BB26) -> 0.9755867289 | BG35: =PRODUCT('2012IAR JMale Data'!$X26:BC26) -> 0.9738248193 | BH35: =PRODUCT('2012IAR JMale Data'!$X26:BD26) -> 0.971986238 | BI35: =PRODUCT('2012IAR JMale Data'!$X26:BE26) -> 0.9700208818 | BJ35: =PRODUCT('2012IAR JMale Data'!$X26:BF26) -> 0.9679983883 | BK35: =PRODUCT('2012IAR JMale Data'!$X26:BG26) -> 0.9658378159 | BL35: =PRODUCT('2012IAR JMale Data'!$X26:BH26) -> 0.9636019014 | BM35: =PRODUCT('2012IAR JMale Data'!$X26:BI26) -> 0.961191933 | BN35: =PRODUCT('2012IAR JMale Data'!$X26:BJ26) -> 0.9586851444 | BO35: =PRODUCT('2012IAR JMale Data'!$X26:BK26) -> 0.9559759002 | BP35: =PRODUCT('2012IAR JMale Data'!$X26:BL26) -> 0.9530439221 | BQ35: =PRODUCT('2012IAR JMale Data'!$X26:BM26) -> 0.9498798163 | BR35: =PRODUCT('2012IAR JMale Data'!$X26:BN26) -> 0.9464763969 | BS35: =PRODUCT('2012IAR JMale Data'!$X26:BO26) -> 0.9428201586 | BT35: =PRODUCT('2012IAR JMale Data'!$X26:BP26) -> 0.9388895414 | BU35: =PRODUCT('2012IAR JMale Data'!$X26:BQ26) -> 0.9348241497 | BV35: =PRODUCT('2012IAR JMale Data'!$X26:BR26) -> 0.9305903311 | BW35: =PRODUCT('2012IAR JMale Data'!$X26:BS26) -> 0.9261504846 | BX35: =PRODUCT('2012IAR JMale Data'!$X26:BT26) -> 0.9214595324 | BY35: =PRODUCT('2012IAR JMale Data'!$X26:BU26) -> 0.9164689076 | BZ35: =PRODUCT('2012IAR JMale Data'!$X26:BV26) -> 0.9111231444 | CA35: =PRODUCT('2012IAR JMale Data'!$X26:BW26) -> 0.9053584683 | CB35: =PRODUCT('2012IAR JMale Data'!$X26:BX26) -> 0.8991078734 | CC35: =PRODUCT('2012IAR JMale Data'!$X26:BY26) -> 0.8923034251 | CD35: =PRODUCT('2012IAR JMale Data'!$X26:BZ26) -> 0.8848803529 | CE35: =PRODUCT('2012IAR JMale Data'!$X26:CA26) -> 0.8767757337 | CF35: =PRODUCT('2012IAR JMale Data'!$X26:CB26) -> 0.8679220524 | CG35: =PRODUCT('2012IAR JMale Data'!$X26:CC26) -> 0.858249929 | CH35: =PRODUCT('2012IAR JMale Data'!$X26:CD26) -> 0.8476865889 | CI35: =PRODUCT('2012IAR JMale Data'!$X26:CE26) -> 0.8361377068 | CJ35: =PRODUCT('2012IAR JMale Data'!$X26:CF26) -> 0.8226692006 | CK35: =PRODUCT('2012IAR JMale Data'!$X26:CG26) -> 0.8070195644 | CL35: =PRODUCT('2012IAR JMale Data'!$X26:CH26) -> 0.7900100131 | CM35: =PRODUCT('2012IAR JMale Data'!$X26:CI26) -> 0.7703537739 | CN35: =PRODUCT('2012IAR JMale Data'!$X26:CJ26) -> 0.7476368115 | CO35: =PRODUCT('2012IAR JMale Data'!$X26:CK26) -> 0.7213723303 | CP35: =PRODUCT('2012IAR JMale Data'!$X26:CL26) -> 0.6910494444 | CQ35: =PRODUCT('2012IAR JMale Data'!$X26:CM26) -> 0.6584733736 | CR35: =PRODUCT('2012IAR JMale Data'!$X26:CN26) -> 0.6212399967 | CS35: =PRODUCT('2012IAR JMale Data'!$X26:CO26) -> 0.5791553356 | CT35: =PRODUCT('2012IAR JMale Data'!$X26:CP26) -> 0.5355472554 | CU35: =PRODUCT('2012IAR JMale Data'!$X26:CQ26) -> 0.4876307714 | CV35: =PRODUCT('2012IAR JMale Data'!$X26:CR26) -> 0.4359077755 | CW35: =PRODUCT('2012IAR JMale Data'!$X26:CS26) -> 0.3850578257 | CX35: =PRODUCT('2012IAR JMale Data'!$X26:CT26) -> 0.3320307424 | CY35: =PRODUCT('2012IAR JMale Data'!$X26:CU26) -> 0.2835237072 | CZ35: =PRODUCT('2012IAR JMale Data'!$X26:CV26) -> 0.2350666704 | DA35: =PRODUCT('2012IAR JMale Data'!$X26:CW26) -> 0.1917001607 | DB35: =PRODUCT('2012IAR JMale Data'!$X26:CX26) -> 0.150638753 | DC35: =PRODUCT('2012IAR JMale Data'!$X26:CY26) -> 0.116095178 | DD35: =PRODUCT('2012IAR JMale Data'!$X26:CZ26) -> 0.08740852392 | DE35: =PRODUCT('2012IAR JMale Data'!$X26:DA26) -> 0.06227210506 | DF35: =PRODUCT('2012IAR JMale Data'!$X26:DB26) -> 0.04311365603 | DG35: =PRODUCT('2012IAR JMale Data'!$X26:DC26) -> 0.02775626996 | DH35: =PRODUCT('2012IAR JMale Data'!$X26:DD26) -> 0.01720888737 | DI35: =PRODUCT('2012IAR JMale Data'!$X26:DE26) -> 0.01032533242 | DJ35: =PRODUCT('2012IAR JMale Data'!$X26:DF26) -> 0.006195199455 | DK35: =PRODUCT('2012IAR JMale Data'!$X26:DG26) -> 0.003717119673 | DL35: =PRODUCT('2012IAR JMale Data'!$X26:DH26) -> 0.002230271804 | DM35: =PRODUCT('2012IAR JMale Data'!$X26:DI26) -> 0.001338163082 | DN35: =PRODUCT('2012IAR JMale Data'!$X26:DJ26) -> 0.0008028978494 | DO35: =PRODUCT('2012IAR JMale Data'!$X26:DK26) -> 0.0004817387096 | DP35: =PRODUCT('2012IAR JMale Data'!$X26:DL26) -> 0.0002890432258 | DQ35: =PRODUCT('2012IAR JMale Data'!$X26:DM26) -> 0.0001734259355 | DR35: =PRODUCT('2012IAR JMale Data'!$X26:DN26) -> 0.0001040555613 | DS35: =PRODUCT('2012IAR JMale Data'!$X26:DO26) -> 6.243333677e-05 | DT35: =PRODUCT('2012IAR JMale Data'!$X26:DP26) -> 3.746000206e-05 | DU35: =PRODUCT('2012IAR JMale Data'!$X26:DQ26) -> 2.247600124e-05 | DV35: =PRODUCT('2012IAR JMale Data'!$X26:DR26) -> 1.348560074e-05 | DW35: =PRODUCT('2012IAR JMale Data'!$X26:DS26) -> 0
A36: 22 | B36: 22.83 | C36: 22.83 | AC36: =PRODUCT('2012IAR JMale Data'!$Y27:Y27) -> 0.999527 | AD36: =PRODUCT('2012IAR JMale Data'!$Y27:Z27) -> 0.9990192403 | AE36: =PRODUCT('2012IAR JMale Data'!$Y27:AA27) -> 0.9984767728 | AF36: =PRODUCT('2012IAR JMale Data'!$Y27:AB27) -> 0.9978936624 | AG36: =PRODUCT('2012IAR JMale Data'!$Y27:AC27) -> 0.9972659873 | AH36: =PRODUCT('2012IAR JMale Data'!$Y27:AD27) -> 0.9966137753 | AI36: =PRODUCT('2012IAR JMale Data'!$Y27:AE27) -> 0.9959480373 | AJ36: =PRODUCT('2012IAR JMale Data'!$Y27:AF27) -> 0.9952727846 | AK36: =PRODUCT('2012IAR JMale Data'!$Y27:AG27) -> 0.994592018 | AL36: =PRODUCT('2012IAR JMale Data'!$Y27:AH27) -> 0.9939097279 | AM36: =PRODUCT('2012IAR JMale Data'!$Y27:AI27) -> 0.9932318814 | AN36: =PRODUCT('2012IAR JMale Data'!$Y27:AJ27) -> 0.9925594634 | AO36: =PRODUCT('2012IAR JMale Data'!$Y27:AK27) -> 0.9918944486 | AP36: =PRODUCT('2012IAR JMale Data'!$Y27:AL27) -> 0.9912368226 | AQ36: =PRODUCT('2012IAR JMale Data'!$Y27:AM27) -> 0.99058558 | AR36: =PRODUCT('2012IAR JMale Data'!$Y27:AN27) -> 0.9899416994 | AS36: =PRODUCT('2012IAR JMale Data'!$Y27:AO27) -> 0.9893041769 | AT36: =PRODUCT('2012IAR JMale Data'!$Y27:AP27) -> 0.9886373859 | AU36: =PRODUCT('2012IAR JMale Data'!$Y27:AQ27) -> 0.9879285329 | AV36: =PRODUCT('2012IAR JMale Data'!$Y27:AR27) -> 0.9871727676 | AW36: =PRODUCT('2012IAR JMale Data'!$Y27:AS27) -> 0.9863662474 | AX36: =PRODUCT('2012IAR JMale Data'!$Y27:AT27) -> 0.9855120542 | AY36: =PRODUCT('2012IAR JMale Data'!$Y27:AU27) -> 0.9846103107 | AZ36: =PRODUCT('2012IAR JMale Data'!$Y27:AV27) -> 0.9836581925 | BA36: =PRODUCT('2012IAR JMale Data'!$Y27:AW27) -> 0.9826391226 | BB36: =PRODUCT('2012IAR JMale Data'!$Y27:AX27) -> 0.9815277578 | BC36: =PRODUCT('2012IAR JMale Data'!$Y27:AY27) -> 0.9802979035 | BD36: =PRODUCT('2012IAR JMale Data'!$Y27:AZ27) -> 0.9789313682 | BE36: =PRODUCT('2012IAR JMale Data'!$Y27:BA27) -> 0.9774120668 | BF36: =PRODUCT('2012IAR JMale Data'!$Y27:BB27) -> 0.9757797886 | BG36: =PRODUCT('2012IAR JMale Data'!$Y27:BC27) -> 0.9739980147 | BH36: =PRODUCT('2012IAR JMale Data'!$Y27:BD27) -> 0.9721367045 | BI36: =PRODUCT('2012IAR JMale Data'!$Y27:BE27) -> 0.9701477128 | BJ36: =PRODUCT('2012IAR JMale Data'!$Y27:BF27) -> 0.9680977907 | BK36: =PRODUCT('2012IAR JMale Data'!$Y27:BG27) -> 0.9659079535 | BL36: =PRODUCT('2012IAR JMale Data'!$Y27:BH27) -> 0.9636409675 | BM36: =PRODUCT('2012IAR JMale Data'!$Y27:BI27) -> 0.961197174 | BN36: =PRODUCT('2012IAR JMale Data'!$Y27:BJ27) -> 0.9586528851 | BO36: =PRODUCT('2012IAR JMale Data'!$Y27:BK27) -> 0.95590251 | BP36: =PRODUCT('2012IAR JMale Data'!$Y27:BL27) -> 0.9529258296 | BQ36: =PRODUCT('2012IAR JMale Data'!$Y27:BM27) -> 0.9497144695 | BR36: =PRODUCT('2012IAR JMale Data'!$Y27:BN27) -> 0.946260358 | BS36: =PRODUCT('2012IAR JMale Data'!$Y27:BO27) -> 0.9425500711 | BT36: =PRODUCT('2012IAR JMale Data'!$Y27:BP27) -> 0.9385611992 | BU36: =PRODUCT('2012IAR JMale Data'!$Y27:BQ27) -> 0.9344352842 | BV36: =PRODUCT('2012IAR JMale Data'!$Y27:BR27) -> 0.9301387508 | BW36: =PRODUCT('2012IAR JMale Data'!$Y27:BS27) -> 0.9256331586 | BX36: =PRODUCT('2012IAR JMale Data'!$Y27:BT27) -> 0.9208735529 | BY36: =PRODUCT('2012IAR JMale Data'!$Y27:BU27) -> 0.9158105902 | BZ36: =PRODUCT('2012IAR JMale Data'!$Y27:BV27) -> 0.9103880756 | CA36: =PRODUCT('2012IAR JMale Data'!$Y27:BW27) -> 0.904540653 | CB36: =PRODUCT('2012IAR JMale Data'!$Y27:BX27) -> 0.8982007276 | CC36: =PRODUCT('2012IAR JMale Data'!$Y27:BY27) -> 0.8912998514 | CD36: =PRODUCT('2012IAR JMale Data'!$Y27:BZ27) -> 0.8837728242 | CE36: =PRODUCT('2012IAR JMale Data'!$Y27:CA27) -> 0.8755546207 | CF36: =PRODUCT('2012IAR JMale Data'!$Y27:CB27) -> 0.8665784347 | CG36: =PRODUCT('2012IAR JMale Data'!$Y27:CC27) -> 0.8567739663 | CH36: =PRODUCT('2012IAR JMale Data'!$Y27:CD27) -> 0.8460685756 | CI36: =PRODUCT('2012IAR JMale Data'!$Y27:CE27) -> 0.834365755 | CJ36: =PRODUCT('2012IAR JMale Data'!$Y27:CF27) -> 0.8207355561 | CK36: =PRODUCT('2012IAR JMale Data'!$Y27:CG27) -> 0.804916699 | CL36: =PRODUCT('2012IAR JMale Data'!$Y27:CH27) -> 0.7877277029 | CM36: =PRODUCT('2012IAR JMale Data'!$Y27:CI27) -> 0.7678903561 | CN36: =PRODUCT('2012IAR JMale Data'!$Y27:CJ27) -> 0.7449941694 | CO36: =PRODUCT('2012IAR JMale Data'!$Y27:CK27) -> 0.7185580513 | CP36: =PRODUCT('2012IAR JMale Data'!$Y27:CL27) -> 0.6880789744 | CQ36: =PRODUCT('2012IAR JMale Data'!$Y27:CM27) -> 0.6553484338 | CR36: =PRODUCT('2012IAR JMale Data'!$Y27:CN27) -> 0.6179929177 | CS36: =PRODUCT('2012IAR JMale Data'!$Y27:CO27) -> 0.5758334408 | CT36: =PRODUCT('2012IAR JMale Data'!$Y27:CP27) -> 0.5321697185 | CU36: =PRODUCT('2012IAR JMale Data'!$Y27:CQ27) -> 0.4842680578 | CV36: =PRODUCT('2012IAR JMale Data'!$Y27:CR27) -> 0.43264363 | CW36: =PRODUCT('2012IAR JMale Data'!$Y27:CS27) -> 0.3819209235 | CX36: =PRODUCT('2012IAR JMale Data'!$Y27:CT27) -> 0.329114627 | CY36: =PRODUCT('2012IAR JMale Data'!$Y27:CU27) -> 0.2808404226 | CZ36: =PRODUCT('2012IAR JMale Data'!$Y27:CV27) -> 0.232697634 | DA36: =PRODUCT('2012IAR JMale Data'!$Y27:CW27) -> 0.1896390311 | DB36: =PRODUCT('2012IAR JMale Data'!$Y27:CX27) -> 0.1489377541 | DC36: =PRODUCT('2012IAR JMale Data'!$Y27:CY27) -> 0.1147158795 | DD36: =PRODUCT('2012IAR JMale Data'!$Y27:CZ27) -> 0.08631326018 | DE36: =PRODUCT('2012IAR JMale Data'!$Y27:DA27) -> 0.06146703879 | DF36: =PRODUCT('2012IAR JMale Data'!$Y27:DB27) -> 0.04253734219 | DG36: =PRODUCT('2012IAR JMale Data'!$Y27:DC27) -> 0.02738524314 | DH36: =PRODUCT('2012IAR JMale Data'!$Y27:DD27) -> 0.01697885075 | DI36: =PRODUCT('2012IAR JMale Data'!$Y27:DE27) -> 0.01018731045 | DJ36: =PRODUCT('2012IAR JMale Data'!$Y27:DF27) -> 0.006112386269 | DK36: =PRODUCT('2012IAR JMale Data'!$Y27:DG27) -> 0.003667431762 | DL36: =PRODUCT('2012IAR JMale Data'!$Y27:DH27) -> 0.002200459057 | DM36: =PRODUCT('2012IAR JMale Data'!$Y27:DI27) -> 0.001320275434 | DN36: =PRODUCT('2012IAR JMale Data'!$Y27:DJ27) -> 0.0007921652605 | DO36: =PRODUCT('2012IAR JMale Data'!$Y27:DK27) -> 0.0004752991563 | DP36: =PRODUCT('2012IAR JMale Data'!$Y27:DL27) -> 0.0002851794938 | DQ36: =PRODUCT('2012IAR JMale Data'!$Y27:DM27) -> 0.0001711076963 | DR36: =PRODUCT('2012IAR JMale Data'!$Y27:DN27) -> 0.0001026646178 | DS36: =PRODUCT('2012IAR JMale Data'!$Y27:DO27) -> 6.159877066e-05 | DT36: =PRODUCT('2012IAR JMale Data'!$Y27:DP27) -> 3.695926239e-05 | DU36: =PRODUCT('2012IAR JMale Data'!$Y27:DQ27) -> 2.217555744e-05 | DV36: =PRODUCT('2012IAR JMale Data'!$Y27:DR27) -> 1.330533446e-05 | DW36: =PRODUCT('2012IAR JMale Data'!$Y27:DS27) -> 0
A37: 23 | B37: 22.74 | C37: 22.74 | AD37: =PRODUCT('2012IAR JMale Data'!$Z28:Z28) -> 0.999487 | AE37: =PRODUCT('2012IAR JMale Data'!$Z28:AA28) -> 0.9989392811 | AF37: =PRODUCT('2012IAR JMale Data'!$Z28:AB28) -> 0.9983499069 | AG37: =PRODUCT('2012IAR JMale Data'!$Z28:AC28) -> 0.9977149564 | AH37: =PRODUCT('2012IAR JMale Data'!$Z28:AD28) -> 0.9970554668 | AI37: =PRODUCT('2012IAR JMale Data'!$Z28:AE28) -> 0.9963824544 | AJ37: =PRODUCT('2012IAR JMale Data'!$Z28:AF28) -> 0.9957009288 | AK37: =PRODUCT('2012IAR JMale Data'!$Z28:AG28) -> 0.9950128994 | AL37: =PRODUCT('2012IAR JMale Data'!$Z28:AH28) -> 0.9943233555 | AM37: =PRODUCT('2012IAR JMale Data'!$Z28:AI28) -> 0.9936382667 | AN37: =PRODUCT('2012IAR JMale Data'!$Z28:AJ28) -> 0.9929586181 | AO37: =PRODUCT('2012IAR JMale Data'!$Z28:AK28) -> 0.9922863852 | AP37: =PRODUCT('2012IAR JMale Data'!$Z28:AL28) -> 0.9916215533 | AQ37: =PRODUCT('2012IAR JMale Data'!$Z28:AM28) -> 0.9909641082 | AR37: =PRODUCT('2012IAR JMale Data'!$Z28:AN28) -> 0.9903130448 | AS37: =PRODUCT('2012IAR JMale Data'!$Z28:AO28) -> 0.9896693413 | AT37: =PRODUCT('2012IAR JMale Data'!$Z28:AP28) -> 0.9889953765 | AU37: =PRODUCT('2012IAR JMale Data'!$Z28:AQ28) -> 0.9882793438 | AV37: =PRODUCT('2012IAR JMale Data'!$Z28:AR28) -> 0.9875154039 | AW37: =PRODUCT('2012IAR JMale Data'!$Z28:AS28) -> 0.9867007037 | AX37: =PRODUCT('2012IAR JMale Data'!$Z28:AT28) -> 0.9858383273 | AY37: =PRODUCT('2012IAR JMale Data'!$Z28:AU28) -> 0.9849264268 | AZ37: =PRODUCT('2012IAR JMale Data'!$Z28:AV28) -> 0.9839641537 | BA37: =PRODUCT('2012IAR JMale Data'!$Z28:AW28) -> 0.9829349272 | BB37: =PRODUCT('2012IAR JMale Data'!$Z28:AX28) -> 0.9818124155 | BC37: =PRODUCT('2012IAR JMale Data'!$Z28:AY28) -> 0.980569441 | BD37: =PRODUCT('2012IAR JMale Data'!$Z28:AZ28) -> 0.9791887992 | BE37: =PRODUCT('2012IAR JMale Data'!$Z28:BA28) -> 0.9776534312 | BF37: =PRODUCT('2012IAR JMale Data'!$Z28:BB28) -> 0.9760021745 | BG37: =PRODUCT('2012IAR JMale Data'!$Z28:BC28) -> 0.9741994985 | BH37: =PRODUCT('2012IAR JMale Data'!$Z28:BD28) -> 0.9723144225 | BI37: =PRODUCT('2012IAR JMale Data'!$Z28:BE28) -> 0.9703007593 | BJ37: =PRODUCT('2012IAR JMale Data'!$Z28:BF28) -> 0.9682233454 | BK37: =PRODUCT('2012IAR JMale Data'!$Z28:BG28) -> 0.9660051457 | BL37: =PRODUCT('2012IAR JMale Data'!$Z28:BH28) -> 0.9637050874 | BM37: =PRODUCT('2012IAR JMale Data'!$Z28:BI28) -> 0.961226438 | BN37: =PRODUCT('2012IAR JMale Data'!$Z28:BJ28) -> 0.9586426613 | BO37: =PRODUCT('2012IAR JMale Data'!$Z28:BK28) -> 0.9558501352 | BP37: =PRODUCT('2012IAR JMale Data'!$Z28:BL28) -> 0.9528286929 | BQ37: =PRODUCT('2012IAR JMale Data'!$Z28:BM28) -> 0.9495681132 | BR37: =PRODUCT('2012IAR JMale Data'!$Z28:BN28) -> 0.9460613581 | BS37: =PRODUCT('2012IAR JMale Data'!$Z28:BO28) -> 0.9422950878 | BT37: =PRODUCT('2012IAR JMale Data'!$Z28:BP28) -> 0.9382460459 | BU37: =PRODUCT('2012IAR JMale Data'!$Z28:BQ28) -> 0.9340586538 | BV37: =PRODUCT('2012IAR JMale Data'!$Z28:BR28) -> 0.929698468 | BW37: =PRODUCT('2012IAR JMale Data'!$Z28:BS28) -> 0.9251262109 | BX37: =PRODUCT('2012IAR JMale Data'!$Z28:BT28) -> 0.9202961269 | BY37: =PRODUCT('2012IAR JMale Data'!$Z28:BU28) -> 0.915159034 | BZ37: =PRODUCT('2012IAR JMale Data'!$Z28:BV28) -> 0.9096570978 | CA37: =PRODUCT('2012IAR JMale Data'!$Z28:BW28) -> 0.9037252239 | CB37: =PRODUCT('2012IAR JMale Data'!$Z28:BX28) -> 0.8972943152 | CC37: =PRODUCT('2012IAR JMale Data'!$Z28:BY28) -> 0.8902954196 | CD37: =PRODUCT('2012IAR JMale Data'!$Z28:BZ28) -> 0.8826620266 | CE37: =PRODUCT('2012IAR JMale Data'!$Z28:CA28) -> 0.8743296971 | CF37: =PRODUCT('2012IAR JMale Data'!$Z28:CB28) -> 0.8652296736 | CG37: =PRODUCT('2012IAR JMale Data'!$Z28:CC28) -> 0.8552916456 | CH37: =PRODUCT('2012IAR JMale Data'!$Z28:CD28) -> 0.8444414158 | CI37: =PRODUCT('2012IAR JMale Data'!$Z28:CE28) -> 0.832582925 | CJ37: =PRODUCT('2012IAR JMale Data'!$Z28:CF28) -> 0.8187886911 | CK37: =PRODUCT('2012IAR JMale Data'!$Z28:CG28) -> 0.8027993855 | CL37: =PRODUCT('2012IAR JMale Data'!$Z28:CH28) -> 0.785430018 | CM37: =PRODUCT('2012IAR JMale Data'!$Z28:CI28) -> 0.7654101923 | CN37: =PRODUCT('2012IAR JMale Data'!$Z28:CJ28) -> 0.7423338404 | CO37: =PRODUCT('2012IAR JMale Data'!$Z28:CK28) -> 0.7157256262 | CP37: =PRODUCT('2012IAR JMale Data'!$Z28:CL28) -> 0.685091138 | CQ37: =PRODUCT('2012IAR JMale Data'!$Z28:CM28) -> 0.6522067633 | CR37: =PRODUCT('2012IAR JMale Data'!$Z28:CN28) -> 0.6147303105 | CS37: =PRODUCT('2012IAR JMale Data'!$Z28:CO28) -> 0.5724977234 | CT37: =PRODUCT('2012IAR JMale Data'!$Z28:CP28) -> 0.5287812248 | CU37: =PRODUCT('2012IAR JMale Data'!$Z28:CQ28) -> 0.480897441 | CV37: =PRODUCT('2012IAR JMale Data'!$Z28:CR28) -> 0.42937457 | CW37: =PRODUCT('2012IAR JMale Data'!$Z28:CS28) -> 0.3787822232 | CX37: =PRODUCT('2012IAR JMale Data'!$Z28:CT28) -> 0.3261992962 | CY37: =PRODUCT('2012IAR JMale Data'!$Z28:CU28) -> 0.2781605782 | CZ37: =PRODUCT('2012IAR JMale Data'!$Z28:CV28) -> 0.2303336484 | DA37: =PRODUCT('2012IAR JMale Data'!$Z28:CW28) -> 0.1875841839 | DB37: =PRODUCT('2012IAR JMale Data'!$Z28:CX28) -> 0.1472432673 | DC37: =PRODUCT('2012IAR JMale Data'!$Z28:CY28) -> 0.1133428609 | DD37: =PRODUCT('2012IAR JMale Data'!$Z28:CZ28) -> 0.08522397055 | DE37: =PRODUCT('2012IAR JMale Data'!$Z28:DA28) -> 0.06066668343 | DF37: =PRODUCT('2012IAR JMale Data'!$Z28:DB28) -> 0.04196478293 | DG37: =PRODUCT('2012IAR JMale Data'!$Z28:DC28) -> 0.0270166335 | DH37: =PRODUCT('2012IAR JMale Data'!$Z28:DD28) -> 0.01675031277 | DI37: =PRODUCT('2012IAR JMale Data'!$Z28:DE28) -> 0.01005018766 | DJ37: =PRODUCT('2012IAR JMale Data'!$Z28:DF28) -> 0.006030112597 | DK37: =PRODUCT('2012IAR JMale Data'!$Z28:DG28) -> 0.003618067558 | DL37: =PRODUCT('2012IAR JMale Data'!$Z28:DH28) -> 0.002170840535 | DM37: =PRODUCT('2012IAR JMale Data'!$Z28:DI28) -> 0.001302504321 | DN37: =PRODUCT('2012IAR JMale Data'!$Z28:DJ28) -> 0.0007815025925 | DO37: =PRODUCT('2012IAR JMale Data'!$Z28:DK28) -> 0.0004689015555 | DP37: =PRODUCT('2012IAR JMale Data'!$Z28:DL28) -> 0.0002813409333 | DQ37: =PRODUCT('2012IAR JMale Data'!$Z28:DM28) -> 0.00016880456 | DR37: =PRODUCT('2012IAR JMale Data'!$Z28:DN28) -> 0.000101282736 | DS37: =PRODUCT('2012IAR JMale Data'!$Z28:DO28) -> 6.076964159e-05 | DT37: =PRODUCT('2012IAR JMale Data'!$Z28:DP28) -> 3.646178496e-05 | DU37: =PRODUCT('2012IAR JMale Data'!$Z28:DQ28) -> 2.187707097e-05 | DV37: =PRODUCT('2012IAR JMale Data'!$Z28:DR28) -> 1.312624258e-05 | DW37: =PRODUCT('2012IAR JMale Data'!$Z28:DS28) -> 0
A38: 24 | B38: 22.65 | C38: 22.65 | AE38: =PRODUCT('2012IAR JMale Data'!$AA29:AA29) -> 0.999446 | AF38: =PRODUCT('2012IAR JMale Data'!$AA29:AB29) -> 0.9988503302 | AG38: =PRODUCT('2012IAR JMale Data'!$AA29:AC29) -> 0.9982090683 | AH38: =PRODUCT('2012IAR JMale Data'!$AA29:AD29) -> 0.9975422646 | AI38: =PRODUCT('2012IAR JMale Data'!$AA29:AE29) -> 0.9968619408 | AJ38: =PRODUCT('2012IAR JMale Data'!$AA29:AF29) -> 0.9961731092 | AK38: =PRODUCT('2012IAR JMale Data'!$AA29:AG29) -> 0.9954777804 | AL38: =PRODUCT('2012IAR JMale Data'!$AA29:AH29) -> 0.9947809459 | AM38: =PRODUCT('2012IAR JMale Data'!$AA29:AI29) -> 0.9940885784 | AN38: =PRODUCT('2012IAR JMale Data'!$AA29:AJ29) -> 0.9934016632 | AO38: =PRODUCT('2012IAR JMale Data'!$AA29:AK29) -> 0.9927221764 | AP38: =PRODUCT('2012IAR JMale Data'!$AA29:AL29) -> 0.9920501035 | AQ38: =PRODUCT('2012IAR JMale Data'!$AA29:AM29) -> 0.9913854299 | AR38: =PRODUCT('2012IAR JMale Data'!$AA29:AN29) -> 0.9907281414 | AS38: =PRODUCT('2012IAR JMale Data'!$AA29:AO29) -> 0.990077233 | AT38: =PRODUCT('2012IAR JMale Data'!$AA29:AP29) -> 0.9893960599 | AU38: =PRODUCT('2012IAR JMale Data'!$AA29:AQ29) -> 0.9886728114 | AV38: =PRODUCT('2012IAR JMale Data'!$AA29:AR29) -> 0.9879006579 | AW38: =PRODUCT('2012IAR JMale Data'!$AA29:AS29) -> 0.9870767487 | AX38: =PRODUCT('2012IAR JMale Data'!$AA29:AT29) -> 0.98620516 | AY38: =PRODUCT('2012IAR JMale Data'!$AA29:AU29) -> 0.9852840444 | AZ38: =PRODUCT('2012IAR JMale Data'!$AA29:AV29) -> 0.984311569 | BA38: =PRODUCT('2012IAR JMale Data'!$AA29:AW29) -> 0.9832711517 | BB38: =PRODUCT('2012IAR JMale Data'!$AA29:AX29) -> 0.9821364568 | BC38: =PRODUCT('2012IAR JMale Data'!$AA29:AY29) -> 0.9808812864 | BD38: =PRODUCT('2012IAR JMale Data'!$AA29:AZ29) -> 0.9794854923 | BE38: =PRODUCT('2012IAR JMale Data'!$AA29:BA29) -> 0.9779339873 | BF38: =PRODUCT('2012IAR JMale Data'!$AA29:BB29) -> 0.976263676 | BG38: =PRODUCT('2012IAR JMale Data'!$AA29:BC29) -> 0.9744409918 | BH38: =PRODUCT('2012IAR JMale Data'!$AA29:BD29) -> 0.9725330363 | BI38: =PRODUCT('2012IAR JMale Data'!$AA29:BE29) -> 0.970494607 | BJ38: =PRODUCT('2012IAR JMale Data'!$AA29:BF29) -> 0.9683896042 | BK38: =PRODUCT('2012IAR JMale Data'!$AA29:BG29) -> 0.9661410036 | BL38: =PRODUCT('2012IAR JMale Data'!$AA29:BH29) -> 0.9638077731 | BM38: =PRODUCT('2012IAR JMale Data'!$AA29:BI29) -> 0.9612931986 | BN38: =PRODUCT('2012IAR JMale Data'!$AA29:BJ29) -> 0.9586698294 | BO38: =PRODUCT('2012IAR JMale Data'!$AA29:BK29) -> 0.9558340841 | BP38: =PRODUCT('2012IAR JMale Data'!$AA29:BL29) -> 0.9527668125 | BQ38: =PRODUCT('2012IAR JMale Data'!$AA29:BM29) -> 0.9494569006 | BR38: =PRODUCT('2012IAR JMale Data'!$AA29:BN29) -> 0.9458973867 | BS38: =PRODUCT('2012IAR JMale Data'!$AA29:BO29) -> 0.9420740694 | BT38: =PRODUCT('2012IAR JMale Data'!$AA29:BP29) -> 0.9379647424 | BU38: =PRODUCT('2012IAR JMale Data'!$AA29:BQ29) -> 0.9337148241 | BV38: =PRODUCT('2012IAR JMale Data'!$AA29:BR29) -> 0.9292899496 | BW38: =PRODUCT('2012IAR JMale Data'!$AA29:BS29) -> 0.9246500048 | BX38: =PRODUCT('2012IAR JMale Data'!$AA29:BT29) -> 0.9197493598 | BY38: =PRODUCT('2012IAR JMale Data'!$AA29:BU29) -> 0.9145371402 | BZ38: =PRODUCT('2012IAR JMale Data'!$AA29:BV29) -> 0.90895572 | CA38: =PRODUCT('2012IAR JMale Data'!$AA29:BW29) -> 0.9029384332 | CB38: =PRODUCT('2012IAR JMale Data'!$AA29:BX29) -> 0.8964156059 | CC38: =PRODUCT('2012IAR JMale Data'!$AA29:BY29) -> 0.8893168907 | CD38: =PRODUCT('2012IAR JMale Data'!$AA29:BZ29) -> 0.8815753872 | CE38: =PRODUCT('2012IAR JMale Data'!$AA29:CA29) -> 0.8731263687 | CF38: =PRODUCT('2012IAR JMale Data'!$AA29:CB29) -> 0.8639009155 | CG38: =PRODUCT('2012IAR JMale Data'!$AA29:CC29) -> 0.8538269669 | CH38: =PRODUCT('2012IAR JMale Data'!$AA29:CD29) -> 0.8428305294 | CI38: =PRODUCT('2012IAR JMale Data'!$AA29:CE29) -> 0.8308151374 | CJ38: =PRODUCT('2012IAR JMale Data'!$AA29:CF29) -> 0.8168549506 | CK38: =PRODUCT('2012IAR JMale Data'!$AA29:CG29) -> 0.8006934754 | CL38: =PRODUCT('2012IAR JMale Data'!$AA29:CH29) -> 0.7831414737 | CM38: =PRODUCT('2012IAR JMale Data'!$AA29:CI29) -> 0.7629372069 | CN38: =PRODUCT('2012IAR JMale Data'!$AA29:CJ29) -> 0.739679829 | CO38: =PRODUCT('2012IAR JMale Data'!$AA29:CK29) -> 0.7128989812 | CP38: =PRODUCT('2012IAR JMale Data'!$AA29:CL29) -> 0.6821081613 | CQ38: =PRODUCT('2012IAR JMale Data'!$AA29:CM29) -> 0.6490695704 | CR38: =PRODUCT('2012IAR JMale Data'!$AA29:CN29) -> 0.6114728646 | CS38: =PRODUCT('2012IAR JMale Data'!$AA29:CO29) -> 0.569167503 | CT38: =PRODUCT('2012IAR JMale Data'!$AA29:CP29) -> 0.525398522 | CU38: =PRODUCT('2012IAR JMale Data'!$AA29:CQ29) -> 0.4775336658 | CV38: =PRODUCT('2012IAR JMale Data'!$AA29:CR29) -> 0.4261142733 | CW38: =PRODUCT('2012IAR JMale Data'!$AA29:CS29) -> 0.3756538211 | CX38: =PRODUCT('2012IAR JMale Data'!$AA29:CT29) -> 0.3232959428 | CY38: =PRODUCT('2012IAR JMale Data'!$AA29:CU29) -> 0.275493728 | CZ38: =PRODUCT('2012IAR JMale Data'!$AA29:CV29) -> 0.2279829061 | DA38: =PRODUCT('2012IAR JMale Data'!$AA29:CW29) -> 0.1855425203 | DB38: =PRODUCT('2012IAR JMale Data'!$AA29:CX29) -> 0.1455607047 | DC38: =PRODUCT('2012IAR JMale Data'!$AA29:CY29) -> 0.111980578 | DD38: =PRODUCT('2012IAR JMale Data'!$AA29:CZ29) -> 0.08414399797 | DE38: =PRODUCT('2012IAR JMale Data'!$AA29:DA29) -> 0.05987367148 | DF38: =PRODUCT('2012IAR JMale Data'!$AA29:DB29) -> 0.04139773419 | DG38: =PRODUCT('2012IAR JMale Data'!$AA29:DC29) -> 0.02665157149 | DH38: =PRODUCT('2012IAR JMale Data'!$AA29:DD29) -> 0.01652397432 | DI38: =PRODUCT('2012IAR JMale Data'!$AA29:DE29) -> 0.009914384593 | DJ38: =PRODUCT('2012IAR JMale Data'!$AA29:DF29) -> 0.005948630756 | DK38: =PRODUCT('2012IAR JMale Data'!$AA29:DG29) -> 0.003569178453 | DL38: =PRODUCT('2012IAR JMale Data'!$AA29:DH29) -> 0.002141507072 | DM38: =PRODUCT('2012IAR JMale Data'!$AA29:DI29) -> 0.001284904243 | DN38: =PRODUCT('2012IAR JMale Data'!$AA29:DJ29) -> 0.0007709425459 | DO38: =PRODUCT('2012IAR JMale Data'!$AA29:DK29) -> 0.0004625655276 | DP38: =PRODUCT('2012IAR JMale Data'!$AA29:DL29) -> 0.0002775393165 | DQ38: =PRODUCT('2012IAR JMale Data'!$AA29:DM29) -> 0.0001665235899 | DR38: =PRODUCT('2012IAR JMale Data'!$AA29:DN29) -> 9.991415395e-05 | DS38: =PRODUCT('2012IAR JMale Data'!$AA29:DO29) -> 5.994849237e-05 | DT38: =PRODUCT('2012IAR JMale Data'!$AA29:DP29) -> 3.596909542e-05 | DU38: =PRODUCT('2012IAR JMale Data'!$AA29:DQ29) -> 2.158145725e-05 | DV38: =PRODUCT('2012IAR JMale Data'!$AA29:DR29) -> 1.294887435e-05 | DW38: =PRODUCT('2012IAR JMale Data'!$AA29:DS29) -> 0
A39: 25 | B39: 22.56 | C39: 22.56 | AF39: =PRODUCT('2012IAR JMale Data'!$AB30:AB30) -> 0.999398 | AG39: =PRODUCT('2012IAR JMale Data'!$AB30:AC30) -> 0.9987503901 | AH39: =PRODUCT('2012IAR JMale Data'!$AB30:AD30) -> 0.9980772323 | AI39: =PRODUCT('2012IAR JMale Data'!$AB30:AE30) -> 0.9973895571 | AJ39: =PRODUCT('2012IAR JMale Data'!$AB30:AF30) -> 0.9966933792 | AK39: =PRODUCT('2012IAR JMale Data'!$AB30:AG30) -> 0.9959907104 | AL39: =PRODUCT('2012IAR JMale Data'!$AB30:AH30) -> 0.9952865449 | AM39: =PRODUCT('2012IAR JMale Data'!$AB30:AI30) -> 0.9945868585 | AN39: =PRODUCT('2012IAR JMale Data'!$AB30:AJ30) -> 0.9938926369 | AO39: =PRODUCT('2012IAR JMale Data'!$AB30:AK30) -> 0.9932058571 | AP39: =PRODUCT('2012IAR JMale Data'!$AB30:AL30) -> 0.9925265043 | AQ39: =PRODUCT('2012IAR JMale Data'!$AB30:AM30) -> 0.9918545638 | AR39: =PRODUCT('2012IAR JMale Data'!$AB30:AN30) -> 0.9911900213 | AS39: =PRODUCT('2012IAR JMale Data'!$AB30:AO30) -> 0.9905328623 | AT39: =PRODUCT('2012IAR JMale Data'!$AB30:AP30) -> 0.9898444419 | AU39: =PRODUCT('2012IAR JMale Data'!$AB30:AQ30) -> 0.9891129469 | AV39: =PRODUCT('2012IAR JMale Data'!$AB30:AR30) -> 0.9883335259 | AW39: =PRODUCT('2012IAR JMale Data'!$AB30:AS30) -> 0.9875013491 | AX39: =PRODUCT('2012IAR JMale Data'!$AB30:AT30) -> 0.9866204979 | AY39: =PRODUCT('2012IAR JMale Data'!$AB30:AU30) -> 0.9856901147 | AZ39: =PRODUCT('2012IAR JMale Data'!$AB30:AV30) -> 0.9847073817 | BA39: =PRODUCT('2012IAR JMale Data'!$AB30:AW30) -> 0.9836566989 | BB39: =PRODUCT('2012IAR JMale Data'!$AB30:AX30) -> 0.9825097552 | BC39: =PRODUCT('2012IAR JMale Data'!$AB30:AY30) -> 0.9812413351 | BD39: =PRODUCT('2012IAR JMale Data'!$AB30:AZ30) -> 0.9798312913 | BE39: =PRODUCT('2012IAR JMale Data'!$AB30:BA30) -> 0.9782635612 | BF39: =PRODUCT('2012IAR JMale Data'!$AB30:BB30) -> 0.9765741001 | BG39: =PRODUCT('2012IAR JMale Data'!$AB30:BC30) -> 0.9747303282 | BH39: =PRODUCT('2012IAR JMale Data'!$AB30:BD30) -> 0.9727984127 | BI39: =PRODUCT('2012IAR JMale Data'!$AB30:BE30) -> 0.9707341344 | BJ39: =PRODUCT('2012IAR JMale Data'!$AB30:BF30) -> 0.9686004608 | BK39: =PRODUCT('2012IAR JMale Data'!$AB30:BG30) -> 0.9663223125 | BL39: =PRODUCT('2012IAR JMale Data'!$AB30:BH30) -> 0.9639557892 | BM39: =PRODUCT('2012IAR JMale Data'!$AB30:BI30) -> 0.9614051622 | BN39: =PRODUCT('2012IAR JMale Data'!$AB30:BJ30) -> 0.9587420699 | BO39: =PRODUCT('2012IAR JMale Data'!$AB30:BK30) -> 0.9558629674 | BP39: =PRODUCT('2012IAR JMale Data'!$AB30:BL30) -> 0.9527487659 | BQ39: =PRODUCT('2012IAR JMale Data'!$AB30:BM30) -> 0.949388421 | BR39: =PRODUCT('2012IAR JMale Data'!$AB30:BN30) -> 0.9457750486 | BS39: =PRODUCT('2012IAR JMale Data'!$AB30:BO30) -> 0.9418945336 | BT39: =PRODUCT('2012IAR JMale Data'!$AB30:BP30) -> 0.9377238246 | BU39: =PRODUCT('2012IAR JMale Data'!$AB30:BQ30) -> 0.933410295 | BV39: =PRODUCT('2012IAR JMale Data'!$AB30:BR30) -> 0.9289196581 | BW39: =PRODUCT('2012IAR JMale Data'!$AB30:BS30) -> 0.9242109644 | BX39: =PRODUCT('2012IAR JMale Data'!$AB30:BT30) -> 0.9192377852 | BY39: =PRODUCT('2012IAR JMale Data'!$AB30:BU30) -> 0.9139494102 | BZ39: =PRODUCT('2012IAR JMale Data'!$AB30:BV30) -> 0.9082865796 | CA39: =PRODUCT('2012IAR JMale Data'!$AB30:BW30) -> 0.9021819855 | CB39: =PRODUCT('2012IAR JMale Data'!$AB30:BX30) -> 0.8955653828 | CC39: =PRODUCT('2012IAR JMale Data'!$AB30:BY30) -> 0.8883650372 | CD39: =PRODUCT('2012IAR JMale Data'!$AB30:BZ30) -> 0.8805145553 | CE39: =PRODUCT('2012IAR JMale Data'!$AB30:CA30) -> 0.8719471487 | CF39: =PRODUCT('2012IAR JMale Data'!$AB30:CB30) -> 0.8625937716 | CG39: =PRODUCT('2012IAR JMale Data'!$AB30:CC30) -> 0.852381524 | CH39: =PRODUCT('2012IAR JMale Data'!$AB30:CD30) -> 0.8412366356 | CI39: =PRODUCT('2012IAR JMale Data'!$AB30:CE30) -> 0.8290605765 | CJ39: =PRODUCT('2012IAR JMale Data'!$AB30:CF30) -> 0.8149317262 | CK39: =PRODUCT('2012IAR JMale Data'!$AB30:CG30) -> 0.7985956048 | CL39: =PRODUCT('2012IAR JMale Data'!$AB30:CH30) -> 0.7808587964 | CM39: =PRODUCT('2012IAR JMale Data'!$AB30:CI30) -> 0.7604690115 | CN39: =PRODUCT('2012IAR JMale Data'!$AB30:CJ30) -> 0.7370290752 | CO39: =PRODUCT('2012IAR JMale Data'!$AB30:CK30) -> 0.7100751848 | CP39: =PRODUCT('2012IAR JMale Data'!$AB30:CL30) -> 0.6791279781 | CQ39: =PRODUCT('2012IAR JMale Data'!$AB30:CM30) -> 0.645934919 | CR39: =PRODUCT('2012IAR JMale Data'!$AB30:CN30) -> 0.6082181332 | CS39: =PRODUCT('2012IAR JMale Data'!$AB30:CO30) -> 0.5658417512 | CT39: =PRODUCT('2012IAR JMale Data'!$AB30:CP30) -> 0.5220218343 | CU39: =PRODUCT('2012IAR JMale Data'!$AB30:CQ30) -> 0.4741774891 | CV39: =PRODUCT('2012IAR JMale Data'!$AB30:CR30) -> 0.4228629496 | CW39: =PRODUCT('2012IAR JMale Data'!$AB30:CS30) -> 0.3725359157 | CX39: =PRODUCT('2012IAR JMale Data'!$AB30:CT30) -> 0.3204039847 | CY39: =PRODUCT('2012IAR JMale Data'!$AB30:CU30) -> 0.2728390519 | CZ39: =PRODUCT('2012IAR JMale Data'!$AB30:CV30) -> 0.2256444441 | DA39: =PRODUCT('2012IAR JMale Data'!$AB30:CW30) -> 0.1835130161 | DB39: =PRODUCT('2012IAR JMale Data'!$AB30:CX30) -> 0.1438892527 | DC39: =PRODUCT('2012IAR JMale Data'!$AB30:CY30) -> 0.1106282447 | DD39: =PRODUCT('2012IAR JMale Data'!$AB30:CZ30) -> 0.08307274025 | DE39: =PRODUCT('2012IAR JMale Data'!$AB30:DA30) -> 0.05908739717 | DF39: =PRODUCT('2012IAR JMale Data'!$AB30:DB30) -> 0.04083583197 | DG39: =PRODUCT('2012IAR JMale Data'!$AB30:DC30) -> 0.02628982277 | DH39: =PRODUCT('2012IAR JMale Data'!$AB30:DD30) -> 0.01629969012 | DI39: =PRODUCT('2012IAR JMale Data'!$AB30:DE30) -> 0.009779814072 | DJ39: =PRODUCT('2012IAR JMale Data'!$AB30:DF30) -> 0.005867888443 | DK39: =PRODUCT('2012IAR JMale Data'!$AB30:DG30) -> 0.003520733066 | DL39: =PRODUCT('2012IAR JMale Data'!$AB30:DH30) -> 0.002112439839 | DM39: =PRODUCT('2012IAR JMale Data'!$AB30:DI30) -> 0.001267463904 | DN39: =PRODUCT('2012IAR JMale Data'!$AB30:DJ30) -> 0.0007604783422 | DO39: =PRODUCT('2012IAR JMale Data'!$AB30:DK30) -> 0.0004562870053 | DP39: =PRODUCT('2012IAR JMale Data'!$AB30:DL30) -> 0.0002737722032 | DQ39: =PRODUCT('2012IAR JMale Data'!$AB30:DM30) -> 0.0001642633219 | DR39: =PRODUCT('2012IAR JMale Data'!$AB30:DN30) -> 9.855799315e-05 | DS39: =PRODUCT('2012IAR JMale Data'!$AB30:DO30) -> 5.913479589e-05 | DT39: =PRODUCT('2012IAR JMale Data'!$AB30:DP30) -> 3.548087753e-05 | DU39: =PRODUCT('2012IAR JMale Data'!$AB30:DQ30) -> 2.128852652e-05 | DV39: =PRODUCT('2012IAR JMale Data'!$AB30:DR30) -> 1.277311591e-05 | DW39: =PRODUCT('2012IAR JMale Data'!$AB30:DS30) -> 0
A40: 26 | B40: 22.47 | C40: 22.47 | AG40: =PRODUCT('2012IAR JMale Data'!$AC31:AC31) -> 0.999345 | AH40: =PRODUCT('2012IAR JMale Data'!$AC31:AD31) -> 0.9986644461 | AI40: =PRODUCT('2012IAR JMale Data'!$AC31:AE31) -> 0.9979693756 | AJ40: =PRODUCT('2012IAR JMale Data'!$AC31:AF31) -> 0.9972658072 | AK40: =PRODUCT('2012IAR JMale Data'!$AC31:AG31) -> 0.9965557539 | AL40: =PRODUCT('2012IAR JMale Data'!$AC31:AH31) -> 0.9958442131 | AM40: =PRODUCT('2012IAR JMale Data'!$AC31:AI31) -> 0.9951371637 | AN40: =PRODUCT('2012IAR JMale Data'!$AC31:AJ31) -> 0.994435592 | AO40: =PRODUCT('2012IAR JMale Data'!$AC31:AK31) -> 0.993741476 | AP40: =PRODUCT('2012IAR JMale Data'!$AC31:AL31) -> 0.9930548006 | AQ40: =PRODUCT('2012IAR JMale Data'!$AC31:AM31) -> 0.9923755511 | AR40: =PRODUCT('2012IAR JMale Data'!$AC31:AN31) -> 0.9917037129 | AS40: =PRODUCT('2012IAR JMale Data'!$AC31:AO31) -> 0.9910392714 | AT40: =PRODUCT('2012IAR JMale Data'!$AC31:AP31) -> 0.9903435618 | AU40: =PRODUCT('2012IAR JMale Data'!$AC31:AQ31) -> 0.9896047655 | AV40: =PRODUCT('2012IAR JMale Data'!$AC31:AR31) -> 0.9888170402 | AW40: =PRODUCT('2012IAR JMale Data'!$AC31:AS31) -> 0.9879755569 | AX40: =PRODUCT('2012IAR JMale Data'!$AC31:AT31) -> 0.9870853909 | AY40: =PRODUCT('2012IAR JMale Data'!$AC31:AU31) -> 0.9861446985 | AZ40: =PRODUCT('2012IAR JMale Data'!$AC31:AV31) -> 0.9851516508 | BA40: =PRODUCT('2012IAR JMale Data'!$AC31:AW31) -> 0.9840896573 | BB40: =PRODUCT('2012IAR JMale Data'!$AC31:AX31) -> 0.9829313838 | BC40: =PRODUCT('2012IAR JMale Data'!$AC31:AY31) -> 0.9816496413 | BD40: =PRODUCT('2012IAR JMale Data'!$AC31:AZ31) -> 0.980224286 | BE40: =PRODUCT('2012IAR JMale Data'!$AC31:BA31) -> 0.9786402435 | BF40: =PRODUCT('2012IAR JMale Data'!$AC31:BB31) -> 0.9769315377 | BG40: =PRODUCT('2012IAR JMale Data'!$AC31:BC31) -> 0.9750665754 | BH40: =PRODUCT('2012IAR JMale Data'!$AC31:BD31) -> 0.9731105918 | BI40: =PRODUCT('2012IAR JMale Data'!$AC31:BE31) -> 0.9710213234 | BJ40: =PRODUCT('2012IAR JMale Data'!$AC31:BF31) -> 0.9688598299 | BK40: =PRODUCT('2012IAR JMale Data'!$AC31:BG31) -> 0.9665510369 | BL40: =PRODUCT('2012IAR JMale Data'!$AC31:BH31) -> 0.9641501242 | BM40: =PRODUCT('2012IAR JMale Data'!$AC31:BI31) -> 0.9615633094 | BN40: =PRODUCT('2012IAR JMale Data'!$AC31:BJ31) -> 0.9588593933 | BO40: =PRODUCT('2012IAR JMale Data'!$AC31:BK31) -> 0.9559367899 | BP40: =PRODUCT('2012IAR JMale Data'!$AC31:BL31) -> 0.952774551 | BQ40: =PRODUCT('2012IAR JMale Data'!$AC31:BM31) -> 0.9493636181 | BR40: =PRODUCT('2012IAR JMale Data'!$AC31:BN31) -> 0.9456952771 | BS40: =PRODUCT('2012IAR JMale Data'!$AC31:BO31) -> 0.9417555106 | BT40: =PRODUCT('2012IAR JMale Data'!$AC31:BP31) -> 0.9375213778 | BU40: =PRODUCT('2012IAR JMale Data'!$AC31:BQ31) -> 0.933143153 | BV40: =PRODUCT('2012IAR JMale Data'!$AC31:BR31) -> 0.9285856818 | BW40: =PRODUCT('2012IAR JMale Data'!$AC31:BS31) -> 0.9238071799 | BX40: =PRODUCT('2012IAR JMale Data'!$AC31:BT31) -> 0.9187604213 | BY40: =PRODUCT('2012IAR JMale Data'!$AC31:BU31) -> 0.9133939416 | BZ40: =PRODUCT('2012IAR JMale Data'!$AC31:BV31) -> 0.9076486938 | CA40: =PRODUCT('2012IAR JMale Data'!$AC31:BW31) -> 0.9014558067 | CB40: =PRODUCT('2012IAR JMale Data'!$AC31:BX31) -> 0.8947435668 | CC40: =PRODUCT('2012IAR JMale Data'!$AC31:BY31) -> 0.8874406698 | CD40: =PRODUCT('2012IAR JMale Data'!$AC31:BZ31) -> 0.8794785521 | CE40: =PRODUCT('2012IAR JMale Data'!$AC31:CA31) -> 0.870791063 | CF40: =PRODUCT('2012IAR JMale Data'!$AC31:CB31) -> 0.8613072775 | CG40: =PRODUCT('2012IAR JMale Data'!$AC31:CC31) -> 0.8509552253 | CH40: =PRODUCT('2012IAR JMale Data'!$AC31:CD31) -> 0.8396596457 | CI40: =PRODUCT('2012IAR JMale Data'!$AC31:CE31) -> 0.8273216868 | CJ40: =PRODUCT('2012IAR JMale Data'!$AC31:CF31) -> 0.8130222588 | CK40: =PRODUCT('2012IAR JMale Data'!$AC31:CG31) -> 0.7965097767 | CL40: =PRODUCT('2012IAR JMale Data'!$AC31:CH31) -> 0.7785859172 | CM40: =PRODUCT('2012IAR JMale Data'!$AC31:CI31) -> 0.75800867 | CN40: =PRODUCT('2012IAR JMale Data'!$AC31:CJ31) -> 0.7343845718 | CO40: =PRODUCT('2012IAR JMale Data'!$AC31:CK31) -> 0.7072556713 | CP40: =PRODUCT('2012IAR JMale Data'!$AC31:CL31) -> 0.6761512742 | CQ40: =PRODUCT('2012IAR JMale Data'!$AC31:CM31) -> 0.6428034933 | CR40: =PRODUCT('2012IAR JMale Data'!$AC31:CN31) -> 0.6049667941 | CS40: =PRODUCT('2012IAR JMale Data'!$AC31:CO31) -> 0.562519904 | CT40: =PRODUCT('2012IAR JMale Data'!$AC31:CP31) -> 0.5186501017 | CU40: =PRODUCT('2012IAR JMale Data'!$AC31:CQ31) -> 0.4708279691 | CV40: =PRODUCT('2012IAR JMale Data'!$AC31:CR31) -> 0.4196197775 | CW40: =PRODUCT('2012IAR JMale Data'!$AC31:CS31) -> 0.369427797 | CX40: =PRODUCT('2012IAR JMale Data'!$AC31:CT31) -> 0.3175231916 | CY40: =PRODUCT('2012IAR JMale Data'!$AC31:CU31) -> 0.2701966774 | CZ40: =PRODUCT('2012IAR JMale Data'!$AC31:CV31) -> 0.2233183644 | DA40: =PRODUCT('2012IAR JMale Data'!$AC31:CW31) -> 0.1814957478 | DB40: =PRODUCT('2012IAR JMale Data'!$AC31:CX31) -> 0.1422289613 | DC40: =PRODUCT('2012IAR JMale Data'!$AC31:CY31) -> 0.109285747 | DD40: =PRODUCT('2012IAR JMale Data'!$AC31:CZ31) -> 0.08200999171 | DE40: =PRODUCT('2012IAR JMale Data'!$AC31:DA31) -> 0.05830779195 | DF40: =PRODUCT('2012IAR JMale Data'!$AC31:DB31) -> 0.04027902268 | DG40: =PRODUCT('2012IAR JMale Data'!$AC31:DC31) -> 0.02593135285 | DH40: =PRODUCT('2012IAR JMale Data'!$AC31:DD31) -> 0.01607743876 | DI40: =PRODUCT('2012IAR JMale Data'!$AC31:DE31) -> 0.009646463259 | DJ40: =PRODUCT('2012IAR JMale Data'!$AC31:DF31) -> 0.005787877955 | DK40: =PRODUCT('2012IAR JMale Data'!$AC31:DG31) -> 0.003472726773 | DL40: =PRODUCT('2012IAR JMale Data'!$AC31:DH31) -> 0.002083636064 | DM40: =PRODUCT('2012IAR JMale Data'!$AC31:DI31) -> 0.001250181638 | DN40: =PRODUCT('2012IAR JMale Data'!$AC31:DJ31) -> 0.000750108983 | DO40: =PRODUCT('2012IAR JMale Data'!$AC31:DK31) -> 0.0004500653898 | DP40: =PRODUCT('2012IAR JMale Data'!$AC31:DL31) -> 0.0002700392339 | DQ40: =PRODUCT('2012IAR JMale Data'!$AC31:DM31) -> 0.0001620235403 | DR40: =PRODUCT('2012IAR JMale Data'!$AC31:DN31) -> 9.72141242e-05 | DS40: =PRODUCT('2012IAR JMale Data'!$AC31:DO31) -> 5.832847452e-05 | DT40: =PRODUCT('2012IAR JMale Data'!$AC31:DP31) -> 3.499708471e-05 | DU40: =PRODUCT('2012IAR JMale Data'!$AC31:DQ31) -> 2.099825083e-05 | DV40: =PRODUCT('2012IAR JMale Data'!$AC31:DR31) -> 1.25989505e-05 | DW40: =PRODUCT('2012IAR JMale Data'!$AC31:DS31) -> 0
A41: 27 | B41: 22.37 | C41: 22.37 | AH41: =PRODUCT('2012IAR JMale Data'!$AD32:AD32) -> 0.999312 | AI41: =PRODUCT('2012IAR JMale Data'!$AD32:AE32) -> 0.9986094837 | AJ41: =PRODUCT('2012IAR JMale Data'!$AD32:AF32) -> 0.9978974751 | AK41: =PRODUCT('2012IAR JMale Data'!$AD32:AG32) -> 0.9971799868 | AL41: =PRODUCT('2012IAR JMale Data'!$AD32:AH32) -> 0.99646102 | AM41: =PRODUCT('2012IAR JMale Data'!$AD32:AI32) -> 0.9957465575 | AN41: =PRODUCT('2012IAR JMale Data'!$AD32:AJ32) -> 0.9950375859 | AO41: =PRODUCT('2012IAR JMale Data'!$AD32:AK32) -> 0.9943360844 | AP41: =PRODUCT('2012IAR JMale Data'!$AD32:AL32) -> 0.9936420379 | AQ41: =PRODUCT('2012IAR JMale Data'!$AD32:AM32) -> 0.9929554312 | AR41: =PRODUCT('2012IAR JMale Data'!$AD32:AN32) -> 0.9922762497 | AS41: =PRODUCT('2012IAR JMale Data'!$AD32:AO32) -> 0.9916044787 | AT41: =PRODUCT('2012IAR JMale Data'!$AD32:AP32) -> 0.9909014311 | AU41: =PRODUCT('2012IAR JMale Data'!$AD32:AQ32) -> 0.9901542914 | AV41: =PRODUCT('2012IAR JMale Data'!$AD32:AR32) -> 0.9893582074 | AW41: =PRODUCT('2012IAR JMale Data'!$AD32:AS32) -> 0.9885083487 | AX41: =PRODUCT('2012IAR JMale Data'!$AD32:AT32) -> 0.9876088061 | AY41: =PRODUCT('2012IAR JMale Data'!$AD32:AU32) -> 0.9866577388 | AZ41: =PRODUCT('2012IAR JMale Data'!$AD32:AV32) -> 0.9856543079 | BA41: =PRODUCT('2012IAR JMale Data'!$AD32:AW32) -> 0.9845809303 | BB41: =PRODUCT('2012IAR JMale Data'!$AD32:AX32) -> 0.9834102636 | BC41: =PRODUCT('2012IAR JMale Data'!$AD32:AY32) -> 0.9821151123 | BD41: =PRODUCT('2012IAR JMale Data'!$AD32:AZ32) -> 0.9806753315 | BE41: =PRODUCT('2012IAR JMale Data'!$AD32:BA32) -> 0.9790748694 | BF41: =PRODUCT('2012IAR JMale Data'!$AD32:BB32) -> 0.9773468023 | BG41: =PRODUCT('2012IAR JMale Data'!$AD32:BC32) -> 0.9754605229 | BH41: =PRODUCT('2012IAR JMale Data'!$AD32:BD32) -> 0.9734803381 | BI41: =PRODUCT('2012IAR JMale Data'!$AD32:BE32) -> 0.9713649653 | BJ41: =PRODUCT('2012IAR JMale Data'!$AD32:BF32) -> 0.9691735659 | BK41: =PRODUCT('2012IAR JMale Data'!$AD32:BG32) -> 0.9668330118 | BL41: =PRODUCT('2012IAR JMale Data'!$AD32:BH32) -> 0.9643975594 | BM41: =PRODUCT('2012IAR JMale Data'!$AD32:BI32) -> 0.9617734336 | BN41: =PRODUCT('2012IAR JMale Data'!$AD32:BJ32) -> 0.9590275705 | BO41: =PRODUCT('2012IAR JMale Data'!$AD32:BK32) -> 0.9560593802 | BP41: =PRODUCT('2012IAR JMale Data'!$AD32:BL32) -> 0.9528489328 | BQ41: =PRODUCT('2012IAR JMale Data'!$AD32:BM32) -> 0.9493853269 | BR41: =PRODUCT('2012IAR JMale Data'!$AD32:BN32) -> 0.9456608883 | BS41: =PRODUCT('2012IAR JMale Data'!$AD32:BO32) -> 0.9416616884 | BT41: =PRODUCT('2012IAR JMale Data'!$AD32:BP32) -> 0.9373639444 | BU41: =PRODUCT('2012IAR JMale Data'!$AD32:BQ32) -> 0.932919902 | BV41: =PRODUCT('2012IAR JMale Data'!$AD32:BR32) -> 0.9282944851 | BW41: =PRODUCT('2012IAR JMale Data'!$AD32:BS32) -> 0.9234450747 | BX41: =PRODUCT('2012IAR JMale Data'!$AD32:BT32) -> 0.9183236483 | BY41: =PRODUCT('2012IAR JMale Data'!$AD32:BU32) -> 0.9128779891 | BZ41: =PRODUCT('2012IAR JMale Data'!$AD32:BV32) -> 0.9070483502 | CA41: =PRODUCT('2012IAR JMale Data'!$AD32:BW32) -> 0.9007652263 | CB41: =PRODUCT('2012IAR JMale Data'!$AD32:BX32) -> 0.893956342 | CC41: =PRODUCT('2012IAR JMale Data'!$AD32:BY32) -> 0.8865490197 | CD41: =PRODUCT('2012IAR JMale Data'!$AD32:BZ32) -> 0.8784743312 | CE41: =PRODUCT('2012IAR JMale Data'!$AD32:CA32) -> 0.8696649907 | CF41: =PRODUCT('2012IAR JMale Data'!$AD32:CB32) -> 0.8600491048 | CG41: =PRODUCT('2012IAR JMale Data'!$AD32:CC32) -> 0.8495547857 | CH41: =PRODUCT('2012IAR JMale Data'!$AD32:CD32) -> 0.8381061854 | CI41: =PRODUCT('2012IAR JMale Data'!$AD32:CE32) -> 0.8256033173 | CJ41: =PRODUCT('2012IAR JMale Data'!$AD32:CF32) -> 0.8111313168 | CK41: =PRODUCT('2012IAR JMale Data'!$AD32:CG32) -> 0.7944406677 | CL41: =PRODUCT('2012IAR JMale Data'!$AD32:CH32) -> 0.7763282149 | CM41: =PRODUCT('2012IAR JMale Data'!$AD32:CI32) -> 0.7555614351 | CN41: =PRODUCT('2012IAR JMale Data'!$AD32:CJ32) -> 0.7317514276 | CO41: =PRODUCT('2012IAR JMale Data'!$AD32:CK32) -> 0.7044468548 | CP41: =PRODUCT('2012IAR JMale Data'!$AD32:CL32) -> 0.6731849123 | CQ41: =PRODUCT('2012IAR JMale Data'!$AD32:CM32) -> 0.6396818456 | CR41: =PRODUCT('2012IAR JMale Data'!$AD32:CN32) -> 0.6017250439 | CS41: =PRODUCT('2012IAR JMale Data'!$AD32:CO32) -> 0.5592077541 | CT41: =PRODUCT('2012IAR JMale Data'!$AD32:CP32) -> 0.5152892547 | CU41: =PRODUCT('2012IAR JMale Data'!$AD32:CQ32) -> 0.4674899928 | CV41: =PRODUCT('2012IAR JMale Data'!$AD32:CR32) -> 0.4163891292 | CW41: =PRODUCT('2012IAR JMale Data'!$AD32:CS32) -> 0.36633291 | CX41: =PRODUCT('2012IAR JMale Data'!$AD32:CT32) -> 0.3146565244 | CY41: =PRODUCT('2012IAR JMale Data'!$AD32:CU32) -> 0.2675688049 | CZ41: =PRODUCT('2012IAR JMale Data'!$AD32:CV32) -> 0.221006749 | DA41: =PRODUCT('2012IAR JMale Data'!$AD32:CW32) -> 0.1794923993 | DB41: =PRODUCT('2012IAR JMale Data'!$AD32:CX32) -> 0.140581319 | DC41: =PRODUCT('2012IAR JMale Data'!$AD32:CY32) -> 0.1079545036 | DD41: =PRODUCT('2012IAR JMale Data'!$AD32:CZ32) -> 0.0809570254 | DE41: =PRODUCT('2012IAR JMale Data'!$AD32:DA32) -> 0.05753575317 | DF41: =PRODUCT('2012IAR JMale Data'!$AD32:DB32) -> 0.0397278622 | DG41: =PRODUCT('2012IAR JMale Data'!$AD32:DC32) -> 0.02557651959 | DH41: =PRODUCT('2012IAR JMale Data'!$AD32:DD32) -> 0.01585744215 | DI41: =PRODUCT('2012IAR JMale Data'!$AD32:DE32) -> 0.009514465288 | DJ41: =PRODUCT('2012IAR JMale Data'!$AD32:DF32) -> 0.005708679173 | DK41: =PRODUCT('2012IAR JMale Data'!$AD32:DG32) -> 0.003425207504 | DL41: =PRODUCT('2012IAR JMale Data'!$AD32:DH32) -> 0.002055124502 | DM41: =PRODUCT('2012IAR JMale Data'!$AD32:DI32) -> 0.001233074701 | DN41: =PRODUCT('2012IAR JMale Data'!$AD32:DJ32) -> 0.0007398448208 | DO41: =PRODUCT('2012IAR JMale Data'!$AD32:DK32) -> 0.0004439068925 | DP41: =PRODUCT('2012IAR JMale Data'!$AD32:DL32) -> 0.0002663441355 | DQ41: =PRODUCT('2012IAR JMale Data'!$AD32:DM32) -> 0.0001598064813 | DR41: =PRODUCT('2012IAR JMale Data'!$AD32:DN32) -> 9.588388878e-05 | DS41: =PRODUCT('2012IAR JMale Data'!$AD32:DO32) -> 5.753033327e-05 | DT41: =PRODUCT('2012IAR JMale Data'!$AD32:DP32) -> 3.451819996e-05 | DU41: =PRODUCT('2012IAR JMale Data'!$AD32:DQ32) -> 2.071091998e-05 | DV41: =PRODUCT('2012IAR JMale Data'!$AD32:DR32) -> 1.242655199e-05 | DW41: =PRODUCT('2012IAR JMale Data'!$AD32:DS32) -> 0
A42: 28 | B42: 22.27 | C42: 22.27 | AI42: =PRODUCT('2012IAR JMale Data'!$AE33:AE33) -> 0.99929 | AJ42: =PRODUCT('2012IAR JMale Data'!$AE33:AF33) -> 0.9985705112 | AK42: =PRODUCT('2012IAR JMale Data'!$AE33:AG33) -> 0.997845549 | AL42: =PRODUCT('2012IAR JMale Data'!$AE33:AH33) -> 0.9971181196 | AM42: =PRODUCT('2012IAR JMale Data'!$AE33:AI33) -> 0.9963962061 | AN42: =PRODUCT('2012IAR JMale Data'!$AE33:AJ33) -> 0.9956797972 | AO42: =PRODUCT('2012IAR JMale Data'!$AE33:AK33) -> 0.9949708732 | AP42: =PRODUCT('2012IAR JMale Data'!$AE33:AL33) -> 0.9942694187 | AQ42: =PRODUCT('2012IAR JMale Data'!$AE33:AM33) -> 0.9935754187 | AR42: =PRODUCT('2012IAR JMale Data'!$AE33:AN33) -> 0.9928888581 | AS42: =PRODUCT('2012IAR JMale Data'!$AE33:AO33) -> 0.9922097221 | AT42: =PRODUCT('2012IAR JMale Data'!$AE33:AP33) -> 0.9914992999 | AU42: =PRODUCT('2012IAR JMale Data'!$AE33:AQ33) -> 0.990744769 | AV42: =PRODUCT('2012IAR JMale Data'!$AE33:AR33) -> 0.9899392935 | AW42: =PRODUCT('2012IAR JMale Data'!$AE33:AS33) -> 0.9890800262 | AX42: =PRODUCT('2012IAR JMale Data'!$AE33:AT33) -> 0.9881710616 | AY42: =PRODUCT('2012IAR JMale Data'!$AE33:AU33) -> 0.9872105593 | AZ42: =PRODUCT('2012IAR JMale Data'!$AE33:AV33) -> 0.9861957069 | BA42: =PRODUCT('2012IAR JMale Data'!$AE33:AW33) -> 0.9851108916 | BB42: =PRODUCT('2012IAR JMale Data'!$AE33:AX33) -> 0.9839277734 | BC42: =PRODUCT('2012IAR JMale Data'!$AE33:AY33) -> 0.9826181656 | BD42: =PRODUCT('2012IAR JMale Data'!$AE33:AZ33) -> 0.9811629081 | BE42: =PRODUCT('2012IAR JMale Data'!$AE33:BA33) -> 0.9795449704 | BF42: =PRODUCT('2012IAR JMale Data'!$AE33:BB33) -> 0.9777964826 | BG42: =PRODUCT('2012IAR JMale Data'!$AE33:BC33) -> 0.9758878239 | BH42: =PRODUCT('2012IAR JMale Data'!$AE33:BD33) -> 0.9738823744 | BI42: =PRODUCT('2012IAR JMale Data'!$AE33:BE33) -> 0.9717398332 | BJ42: =PRODUCT('2012IAR JMale Data'!$AE33:BF33) -> 0.9695194077 | BK42: =PRODUCT('2012IAR JMale Data'!$AE33:BG33) -> 0.9671479632 | BL42: =PRODUCT('2012IAR JMale Data'!$AE33:BH33) -> 0.9646769002 | BM42: =PRODUCT('2012IAR JMale Data'!$AE33:BI33) -> 0.9620143919 | BN42: =PRODUCT('2012IAR JMale Data'!$AE33:BJ33) -> 0.9592255122 | BO42: =PRODUCT('2012IAR JMale Data'!$AE33:BK33) -> 0.9562116256 | BP42: =PRODUCT('2012IAR JMale Data'!$AE33:BL33) -> 0.9529519002 | BQ42: =PRODUCT('2012IAR JMale Data'!$AE33:BM33) -> 0.9494355077 | BR42: =PRODUCT('2012IAR JMale Data'!$AE33:BN33) -> 0.9456548555 | BS42: =PRODUCT('2012IAR JMale Data'!$AE33:BO33) -> 0.9415942136 | BT42: =PRODUCT('2012IAR JMale Data'!$AE33:BP33) -> 0.937230866 | BU42: =PRODUCT('2012IAR JMale Data'!$AE33:BQ33) -> 0.9327199738 | BV42: =PRODUCT('2012IAR JMale Data'!$AE33:BR33) -> 0.9280246615 | BW42: =PRODUCT('2012IAR JMale Data'!$AE33:BS33) -> 0.9231024187 | BX42: =PRODUCT('2012IAR JMale Data'!$AE33:BT33) -> 0.917905352 | BY42: =PRODUCT('2012IAR JMale Data'!$AE33:BU33) -> 0.9123795618 | BZ42: =PRODUCT('2012IAR JMale Data'!$AE33:BV33) -> 0.9064636928 | CA42: =PRODUCT('2012IAR JMale Data'!$AE33:BW33) -> 0.9000885336 | CB42: =PRODUCT('2012IAR JMale Data'!$AE33:BX33) -> 0.8931812542 | CC42: =PRODUCT('2012IAR JMale Data'!$AE33:BY33) -> 0.8856678135 | CD42: =PRODUCT('2012IAR JMale Data'!$AE33:BZ33) -> 0.8774780432 | CE42: =PRODUCT('2012IAR JMale Data'!$AE33:CA33) -> 0.8685444393 | CF42: =PRODUCT('2012IAR JMale Data'!$AE33:CB33) -> 0.8587950279 | CG42: =PRODUCT('2012IAR JMale Data'!$AE33:CC33) -> 0.8481562751 | CH42: =PRODUCT('2012IAR JMale Data'!$AE33:CD33) -> 0.8365526491 | CI42: =PRODUCT('2012IAR JMale Data'!$AE33:CE33) -> 0.8238830592 | CJ42: =PRODUCT('2012IAR JMale Data'!$AE33:CF33) -> 0.8092360662 | CK42: =PRODUCT('2012IAR JMale Data'!$AE33:CG33) -> 0.7923651127 | CL42: =PRODUCT('2012IAR JMale Data'!$AE33:CH33) -> 0.774062271 | CM42: =PRODUCT('2012IAR JMale Data'!$AE33:CI33) -> 0.753104535 | CN42: =PRODUCT('2012IAR JMale Data'!$AE33:CJ33) -> 0.7291083652 | CO42: =PRODUCT('2012IAR JMale Data'!$AE33:CK33) -> 0.7016275418 | CP42: =PRODUCT('2012IAR JMale Data'!$AE33:CL33) -> 0.6702079588 | CQ42: =PRODUCT('2012IAR JMale Data'!$AE33:CM33) -> 0.6365501152 | CR42: =PRODUCT('2012IAR JMale Data'!$AE33:CN33) -> 0.59847487 | CS42: =PRODUCT('2012IAR JMale Data'!$AE33:CO33) -> 0.5558891937 | CT42: =PRODUCT('2012IAR JMale Data'!$AE33:CP33) -> 0.5119233615 | CU42: =PRODUCT('2012IAR JMale Data'!$AE33:CQ33) -> 0.4641501615 | CV42: =PRODUCT('2012IAR JMale Data'!$AE33:CR33) -> 0.413159553 | CW42: =PRODUCT('2012IAR JMale Data'!$AE33:CS33) -> 0.363242029 | CX42: =PRODUCT('2012IAR JMale Data'!$AE33:CT33) -> 0.3117956972 | CY42: =PRODUCT('2012IAR JMale Data'!$AE33:CU33) -> 0.2649487055 | CZ42: =PRODUCT('2012IAR JMale Data'!$AE33:CV33) -> 0.2187040285 | DA42: =PRODUCT('2012IAR JMale Data'!$AE33:CW33) -> 0.1774986586 | DB42: =PRODUCT('2012IAR JMale Data'!$AE33:CX33) -> 0.1389425775 | DC42: =PRODUCT('2012IAR JMale Data'!$AE33:CY33) -> 0.1066314811 | DD42: =PRODUCT('2012IAR JMale Data'!$AE33:CZ33) -> 0.07991144467 | DE42: =PRODUCT('2012IAR JMale Data'!$AE33:DA33) -> 0.05676948985 | DF42: =PRODUCT('2012IAR JMale Data'!$AE33:DB33) -> 0.03918122327 | DG42: =PRODUCT('2012IAR JMale Data'!$AE33:DC33) -> 0.02522459728 | DH42: =PRODUCT('2012IAR JMale Data'!$AE33:DD33) -> 0.01563925031 | DI42: =PRODUCT('2012IAR JMale Data'!$AE33:DE33) -> 0.009383550186 | DJ42: =PRODUCT('2012IAR JMale Data'!$AE33:DF33) -> 0.005630130112 | DK42: =PRODUCT('2012IAR JMale Data'!$AE33:DG33) -> 0.003378078067 | DL42: =PRODUCT('2012IAR JMale Data'!$AE33:DH33) -> 0.00202684684 | DM42: =PRODUCT('2012IAR JMale Data'!$AE33:DI33) -> 0.001216108104 | DN42: =PRODUCT('2012IAR JMale Data'!$AE33:DJ33) -> 0.0007296648625 | DO42: =PRODUCT('2012IAR JMale Data'!$AE33:DK33) -> 0.0004377989175 | DP42: =PRODUCT('2012IAR JMale Data'!$AE33:DL33) -> 0.0002626793505 | DQ42: =PRODUCT('2012IAR JMale Data'!$AE33:DM33) -> 0.0001576076103 | DR42: =PRODUCT('2012IAR JMale Data'!$AE33:DN33) -> 9.456456618e-05 | DS42: =PRODUCT('2012IAR JMale Data'!$AE33:DO33) -> 5.673873971e-05 | DT42: =PRODUCT('2012IAR JMale Data'!$AE33:DP33) -> 3.404324382e-05 | DU42: =PRODUCT('2012IAR JMale Data'!$AE33:DQ33) -> 2.042594629e-05 | DV42: =PRODUCT('2012IAR JMale Data'!$AE33:DR33) -> 1.225556778e-05 | DW42: =PRODUCT('2012IAR JMale Data'!$AE33:DS33) -> 0
A43: 29 | B43: 22.16 | C43: 22.16 | AJ43: =PRODUCT('2012IAR JMale Data'!$AF34:AF34) -> 0.999273 | AK43: =PRODUCT('2012IAR JMale Data'!$AF34:AG34) -> 0.9985395336 | AL43: =PRODUCT('2012IAR JMale Data'!$AF34:AH34) -> 0.9978046085 | AM43: =PRODUCT('2012IAR JMale Data'!$AF34:AI34) -> 0.9970742155 | AN43: =PRODUCT('2012IAR JMale Data'!$AF34:AJ34) -> 0.9963503397 | AO43: =PRODUCT('2012IAR JMale Data'!$AF34:AK34) -> 0.9956339638 | AP43: =PRODUCT('2012IAR JMale Data'!$AF34:AL34) -> 0.9949250724 | AQ43: =PRODUCT('2012IAR JMale Data'!$AF34:AM34) -> 0.9942236502 | AR43: =PRODUCT('2012IAR JMale Data'!$AF34:AN34) -> 0.9935296821 | AS43: =PRODUCT('2012IAR JMale Data'!$AF34:AO34) -> 0.9928431531 | AT43: =PRODUCT('2012IAR JMale Data'!$AF34:AP34) -> 0.9921243347 | AU43: =PRODUCT('2012IAR JMale Data'!$AF34:AQ34) -> 0.991361391 | AV43: =PRODUCT('2012IAR JMale Data'!$AF34:AR34) -> 0.9905474833 | AW43: =PRODUCT('2012IAR JMale Data'!$AF34:AS34) -> 0.9896787732 | AX43: =PRODUCT('2012IAR JMale Data'!$AF34:AT34) -> 0.9887593616 | AY43: =PRODUCT('2012IAR JMale Data'!$AF34:AU34) -> 0.9877883999 | AZ43: =PRODUCT('2012IAR JMale Data'!$AF34:AV34) -> 0.9867630756 | BA43: =PRODUCT('2012IAR JMale Data'!$AF34:AW34) -> 0.9856667818 | BB43: =PRODUCT('2012IAR JMale Data'!$AF34:AX34) -> 0.984471168 | BC43: =PRODUCT('2012IAR JMale Data'!$AF34:AY34) -> 0.9831480387 | BD43: =PRODUCT('2012IAR JMale Data'!$AF34:AZ34) -> 0.9816772493 | BE43: =PRODUCT('2012IAR JMale Data'!$AF34:BA34) -> 0.980041775 | BF43: =PRODUCT('2012IAR JMale Data'!$AF34:BB34) -> 0.9782727996 | BG43: =PRODUCT('2012IAR JMale Data'!$AF34:BC34) -> 0.9763426673 | BH43: =PRODUCT('2012IAR JMale Data'!$AF34:BD34) -> 0.9743118746 | BI43: =PRODUCT('2012IAR JMale Data'!$AF34:BE34) -> 0.972142082 | BJ43: =PRODUCT('2012IAR JMale Data'!$AF34:BF34) -> 0.969890601 | BK43: =PRODUCT('2012IAR JMale Data'!$AF34:BG34) -> 0.9674862422 | BL43: =PRODUCT('2012IAR JMale Data'!$AF34:BH34) -> 0.9649794853 | BM43: =PRODUCT('2012IAR JMale Data'!$AF34:BI34) -> 0.9622785077 | BN43: =PRODUCT('2012IAR JMale Data'!$AF34:BJ34) -> 0.9594465221 | BO43: =PRODUCT('2012IAR JMale Data'!$AF34:BK34) -> 0.9563858877 | BP43: =PRODUCT('2012IAR JMale Data'!$AF34:BL34) -> 0.9530758361 | BQ43: =PRODUCT('2012IAR JMale Data'!$AF34:BM34) -> 0.949505614 | BR43: =PRODUCT('2012IAR JMale Data'!$AF34:BN34) -> 0.9456667629 | BS43: =PRODUCT('2012IAR JMale Data'!$AF34:BO34) -> 0.9415446014 | BT43: =PRODUCT('2012IAR JMale Data'!$AF34:BP34) -> 0.9371155756 | BU43: =PRODUCT('2012IAR JMale Data'!$AF34:BQ34) -> 0.9325358918 | BV43: =PRODUCT('2012IAR JMale Data'!$AF34:BR34) -> 0.9277697009 | BW43: =PRODUCT('2012IAR JMale Data'!$AF34:BS34) -> 0.9227745888 | BX43: =PRODUCT('2012IAR JMale Data'!$AF34:BT34) -> 0.9175000092 | BY43: =PRODUCT('2012IAR JMale Data'!$AF34:BU34) -> 0.9118922492 | BZ43: =PRODUCT('2012IAR JMale Data'!$AF34:BV34) -> 0.9058901744 | CA43: =PRODUCT('2012IAR JMale Data'!$AF34:BW34) -> 0.8994221186 | CB43: =PRODUCT('2012IAR JMale Data'!$AF34:BX34) -> 0.8924147208 | CC43: =PRODUCT('2012IAR JMale Data'!$AF34:BY34) -> 0.8847926067 | CD43: =PRODUCT('2012IAR JMale Data'!$AF34:BZ34) -> 0.8764861737 | CE43: =PRODUCT('2012IAR JMale Data'!$AF34:CA34) -> 0.8674268126 | CF43: =PRODUCT('2012IAR JMale Data'!$AF34:CB34) -> 0.8575416167 | CG43: =PRODUCT('2012IAR JMale Data'!$AF34:CC34) -> 0.8467563158 | CH43: =PRODUCT('2012IAR JMale Data'!$AF34:CD34) -> 0.8349948705 | CI43: =PRODUCT('2012IAR JMale Data'!$AF34:CE34) -> 0.8221559894 | CJ43: =PRODUCT('2012IAR JMale Data'!$AF34:CF34) -> 0.8073316948 | CK43: =PRODUCT('2012IAR JMale Data'!$AF34:CG34) -> 0.7902784274 | CL43: =PRODUCT('2012IAR JMale Data'!$AF34:CH34) -> 0.7717835413 | CM43: =PRODUCT('2012IAR JMale Data'!$AF34:CI34) -> 0.7506335852 | CN43: =PRODUCT('2012IAR JMale Data'!$AF34:CJ34) -> 0.7264496723 | CO43: =PRODUCT('2012IAR JMale Data'!$AF34:CK34) -> 0.6987930068 | CP43: =PRODUCT('2012IAR JMale Data'!$AF34:CL34) -> 0.6672159484 | CQ43: =PRODUCT('2012IAR JMale Data'!$AF34:CM34) -> 0.633404113 | CR43: =PRODUCT('2012IAR JMale Data'!$AF34:CN34) -> 0.5952111118 | CS43: =PRODUCT('2012IAR JMale Data'!$AF34:CO34) -> 0.5525588788 | CT43: =PRODUCT('2012IAR JMale Data'!$AF34:CP34) -> 0.5085481166 | CU43: =PRODUCT('2012IAR JMale Data'!$AF34:CQ34) -> 0.4608030767 | CV43: =PRODUCT('2012IAR JMale Data'!$AF34:CR34) -> 0.409925809 | CW43: =PRODUCT('2012IAR JMale Data'!$AF34:CS34) -> 0.3601501577 | CX43: =PRODUCT('2012IAR JMale Data'!$AF34:CT34) -> 0.3089371654 | CY43: =PRODUCT('2012IAR JMale Data'!$AF34:CU34) -> 0.2623333762 | CZ43: =PRODUCT('2012IAR JMale Data'!$AF34:CV34) -> 0.2164071967 | DA43: =PRODUCT('2012IAR JMale Data'!$AF34:CW34) -> 0.1755118631 | DB43: =PRODUCT('2012IAR JMale Data'!$AF34:CX34) -> 0.137311004 | DC43: =PRODUCT('2012IAR JMale Data'!$AF34:CY34) -> 0.1053153431 | DD43: =PRODUCT('2012IAR JMale Data'!$AF34:CZ34) -> 0.07887224019 | DE43: =PRODUCT('2012IAR JMale Data'!$AF34:DA34) -> 0.05600836084 | DF43: =PRODUCT('2012IAR JMale Data'!$AF34:DB34) -> 0.0386384879 | DG43: =PRODUCT('2012IAR JMale Data'!$AF34:DC34) -> 0.02487518804 | DH43: =PRODUCT('2012IAR JMale Data'!$AF34:DD34) -> 0.01542261658 | DI43: =PRODUCT('2012IAR JMale Data'!$AF34:DE34) -> 0.00925356995 | DJ43: =PRODUCT('2012IAR JMale Data'!$AF34:DF34) -> 0.00555214197 | DK43: =PRODUCT('2012IAR JMale Data'!$AF34:DG34) -> 0.003331285182 | DL43: =PRODUCT('2012IAR JMale Data'!$AF34:DH34) -> 0.001998771109 | DM43: =PRODUCT('2012IAR JMale Data'!$AF34:DI34) -> 0.001199262666 | DN43: =PRODUCT('2012IAR JMale Data'!$AF34:DJ34) -> 0.0007195575993 | DO43: =PRODUCT('2012IAR JMale Data'!$AF34:DK34) -> 0.0004317345596 | DP43: =PRODUCT('2012IAR JMale Data'!$AF34:DL34) -> 0.0002590407358 | DQ43: =PRODUCT('2012IAR JMale Data'!$AF34:DM34) -> 0.0001554244415 | DR43: =PRODUCT('2012IAR JMale Data'!$AF34:DN34) -> 9.325466487e-05 | DS43: =PRODUCT('2012IAR JMale Data'!$AF34:DO34) -> 5.595279892e-05 | DT43: =PRODUCT('2012IAR JMale Data'!$AF34:DP34) -> 3.357167935e-05 | DU43: =PRODUCT('2012IAR JMale Data'!$AF34:DQ34) -> 2.014300761e-05 | DV43: =PRODUCT('2012IAR JMale Data'!$AF34:DR34) -> 1.208580457e-05 | DW43: =PRODUCT('2012IAR JMale Data'!$AF34:DS34) -> 0
A44: 30 | B44: 22.05 | C44: 22.05 | AK44: =PRODUCT('2012IAR JMale Data'!$AG35:AG35) -> 0.999259 | AL44: =PRODUCT('2012IAR JMale Data'!$AG35:AH35) -> 0.9985165506 | AM44: =PRODUCT('2012IAR JMale Data'!$AG35:AI35) -> 0.9977786468 | AN44: =PRODUCT('2012IAR JMale Data'!$AG35:AJ35) -> 0.9970462773 | AO44: =PRODUCT('2012IAR JMale Data'!$AG35:AK35) -> 0.9963224217 | AP44: =PRODUCT('2012IAR JMale Data'!$AG35:AL35) -> 0.9956060659 | AQ44: =PRODUCT('2012IAR JMale Data'!$AG35:AM35) -> 0.9948971944 | AR44: =PRODUCT('2012IAR JMale Data'!$AG35:AN35) -> 0.9941957918 | AS44: =PRODUCT('2012IAR JMale Data'!$AG35:AO35) -> 0.9935018432 | AT44: =PRODUCT('2012IAR JMale Data'!$AG35:AP35) -> 0.9927755933 | AU44: =PRODUCT('2012IAR JMale Data'!$AG35:AQ35) -> 0.9920042067 | AV44: =PRODUCT('2012IAR JMale Data'!$AG35:AR35) -> 0.9911818352 | AW44: =PRODUCT('2012IAR JMale Data'!$AG35:AS35) -> 0.9903046393 | AX44: =PRODUCT('2012IAR JMale Data'!$AG35:AT35) -> 0.9893757335 | AY44: =PRODUCT('2012IAR JMale Data'!$AG35:AU35) -> 0.9883942728 | AZ44: =PRODUCT('2012IAR JMale Data'!$AG35:AV35) -> 0.9873584356 | BA44: =PRODUCT('2012IAR JMale Data'!$AG35:AW35) -> 0.9862506194 | BB44: =PRODUCT('2012IAR JMale Data'!$AG35:AX35) -> 0.9850414762 | BC44: =PRODUCT('2012IAR JMale Data'!$AG35:AY35) -> 0.9837037899 | BD44: =PRODUCT('2012IAR JMale Data'!$AG35:AZ35) -> 0.9822174134 | BE44: =PRODUCT('2012IAR JMale Data'!$AG35:BA35) -> 0.9805653237 | BF44: =PRODUCT('2012IAR JMale Data'!$AG35:BB35) -> 0.978775792 | BG44: =PRODUCT('2012IAR JMale Data'!$AG35:BC35) -> 0.9768231343 | BH44: =PRODUCT('2012IAR JMale Data'!$AG35:BD35) -> 0.9747669216 | BI44: =PRODUCT('2012IAR JMale Data'!$AG35:BE35) -> 0.972569797 | BJ44: =PRODUCT('2012IAR JMale Data'!$AG35:BF35) -> 0.9702881482 | BK44: =PRODUCT('2012IAR JMale Data'!$AG35:BG35) -> 0.9678517547 | BL44: =PRODUCT('2012IAR JMale Data'!$AG35:BH35) -> 0.9653082403 | BM44: =PRODUCT('2012IAR JMale Data'!$AG35:BI35) -> 0.9625677302 | BN44: =PRODUCT('2012IAR JMale Data'!$AG35:BJ35) -> 0.9596915778 | BO44: =PRODUCT('2012IAR JMale Data'!$AG35:BK35) -> 0.9565840965 | BP44: =PRODUCT('2012IAR JMale Data'!$AG35:BL35) -> 0.95322266 | BQ44: =PRODUCT('2012IAR JMale Data'!$AG35:BM35) -> 0.9495975542 | BR44: =PRODUCT('2012IAR JMale Data'!$AG35:BN35) -> 0.9456994562 | BS44: =PRODUCT('2012IAR JMale Data'!$AG35:BO35) -> 0.9415147361 | BT44: =PRODUCT('2012IAR JMale Data'!$AG35:BP35) -> 0.9370180618 | BU44: =PRODUCT('2012IAR JMale Data'!$AG35:BQ35) -> 0.9323695152 | BV44: =PRODUCT('2012IAR JMale Data'!$AG35:BR35) -> 0.9275323821 | BW44: =PRODUCT('2012IAR JMale Data'!$AG35:BS35) -> 0.9224624901 | BX44: =PRODUCT('2012IAR JMale Data'!$AG35:BT35) -> 0.9171094403 | BY44: =PRODUCT('2012IAR JMale Data'!$AG35:BU35) -> 0.9114187762 | BZ44: =PRODUCT('2012IAR JMale Data'!$AG35:BV35) -> 0.9053286759 | CA44: =PRODUCT('2012IAR JMale Data'!$AG35:BW35) -> 0.8987659484 | CB44: =PRODUCT('2012IAR JMale Data'!$AG35:BX35) -> 0.8916567097 | CC44: =PRODUCT('2012IAR JMale Data'!$AG35:BY35) -> 0.8839251544 | CD44: =PRODUCT('2012IAR JMale Data'!$AG35:BZ35) -> 0.8755004637 | CE44: =PRODUCT('2012IAR JMale Data'!$AG35:CA35) -> 0.8663129619 | CF44: =PRODUCT('2012IAR JMale Data'!$AG35:CB35) -> 0.8562905872 | CG44: =PRODUCT('2012IAR JMale Data'!$AG35:CC35) -> 0.845357469 | CH44: =PRODUCT('2012IAR JMale Data'!$AG35:CD35) -> 0.8334370833 | CI44: =PRODUCT('2012IAR JMale Data'!$AG35:CE35) -> 0.8204271305 | CJ44: =PRODUCT('2012IAR JMale Data'!$AG35:CF35) -> 0.8054239795 | CK44: =PRODUCT('2012IAR JMale Data'!$AG35:CG35) -> 0.7881871009 | CL44: =PRODUCT('2012IAR JMale Data'!$AG35:CH35) -> 0.7694976084 | CM44: =PRODUCT('2012IAR JMale Data'!$AG35:CI35) -> 0.7481540532 | CN44: =PRODUCT('2012IAR JMale Data'!$AG35:CJ35) -> 0.7237821868 | CO44: =PRODUCT('2012IAR JMale Data'!$AG35:CK35) -> 0.695948419 | CP44: =PRODUCT('2012IAR JMale Data'!$AG35:CL35) -> 0.664214563 | CQ44: =PRODUCT('2012IAR JMale Data'!$AG35:CM35) -> 0.6302492871 | CR44: =PRODUCT('2012IAR JMale Data'!$AG35:CN35) -> 0.5919402145 | CS44: =PRODUCT('2012IAR JMale Data'!$AG35:CO35) -> 0.5492234408 | CT44: =PRODUCT('2012IAR JMale Data'!$AG35:CP35) -> 0.5051702286 | CU44: =PRODUCT('2012IAR JMale Data'!$AG35:CQ35) -> 0.4574563954 | CV44: =PRODUCT('2012IAR JMale Data'!$AG35:CR35) -> 0.4066947465 | CW44: =PRODUCT('2012IAR JMale Data'!$AG35:CS35) -> 0.3570633464 | CX44: =PRODUCT('2012IAR JMale Data'!$AG35:CT35) -> 0.3060850554 | CY44: =PRODUCT('2012IAR JMale Data'!$AG35:CU35) -> 0.259726025 | CZ44: =PRODUCT('2012IAR JMale Data'!$AG35:CV35) -> 0.2141196934 | DA44: =PRODUCT('2012IAR JMale Data'!$AG35:CW35) -> 0.1735348044 | DB44: =PRODUCT('2012IAR JMale Data'!$AG35:CX35) -> 0.1356885989 | DC44: =PRODUCT('2012IAR JMale Data'!$AG35:CY35) -> 0.1040076177 | DD44: =PRODUCT('2012IAR JMale Data'!$AG35:CZ35) -> 0.07784054921 | DE44: =PRODUCT('2012IAR JMale Data'!$AG35:DA35) -> 0.05525316784 | DF44: =PRODUCT('2012IAR JMale Data'!$AG35:DB35) -> 0.03810037442 | DG44: =PRODUCT('2012IAR JMale Data'!$AG35:DC35) -> 0.02452875435 | DH44: =PRODUCT('2012IAR JMale Data'!$AG35:DD35) -> 0.0152078277 | DI44: =PRODUCT('2012IAR JMale Data'!$AG35:DE35) -> 0.009124696617 | DJ44: =PRODUCT('2012IAR JMale Data'!$AG35:DF35) -> 0.00547481797 | DK44: =PRODUCT('2012IAR JMale Data'!$AG35:DG35) -> 0.003284890782 | DL44: =PRODUCT('2012IAR JMale Data'!$AG35:DH35) -> 0.001970934469 | DM44: =PRODUCT('2012IAR JMale Data'!$AG35:DI35) -> 0.001182560682 | DN44: =PRODUCT('2012IAR JMale Data'!$AG35:DJ35) -> 0.0007095364089 | DO44: =PRODUCT('2012IAR JMale Data'!$AG35:DK35) -> 0.0004257218454 | DP44: =PRODUCT('2012IAR JMale Data'!$AG35:DL35) -> 0.0002554331072 | DQ44: =PRODUCT('2012IAR JMale Data'!$AG35:DM35) -> 0.0001532598643 | DR44: =PRODUCT('2012IAR JMale Data'!$AG35:DN35) -> 9.19559186e-05 | DS44: =PRODUCT('2012IAR JMale Data'!$AG35:DO35) -> 5.517355116e-05 | DT44: =PRODUCT('2012IAR JMale Data'!$AG35:DP35) -> 3.31041307e-05 | DU44: =PRODUCT('2012IAR JMale Data'!$AG35:DQ35) -> 1.986247842e-05 | DV44: =PRODUCT('2012IAR JMale Data'!$AG35:DR35) -> 1.191748705e-05 | DW44: =PRODUCT('2012IAR JMale Data'!$AG35:DS35) -> 0
A45: 31 | B45: 21.94 | C45: 21.94 | AL45: =PRODUCT('2012IAR JMale Data'!$AH36:AH36) -> 0.999249 | AM45: =PRODUCT('2012IAR JMale Data'!$AH36:AI36) -> 0.9985035602 | AN45: =PRODUCT('2012IAR JMale Data'!$AH36:AJ36) -> 0.9977636691 | AO45: =PRODUCT('2012IAR JMale Data'!$AH36:AK36) -> 0.9970313106 | AP45: =PRODUCT('2012IAR JMale Data'!$AH36:AL36) -> 0.9963074658 | AQ45: =PRODUCT('2012IAR JMale Data'!$AH36:AM36) -> 0.9955911208 | AR45: =PRODUCT('2012IAR JMale Data'!$AH36:AN36) -> 0.9948822599 | AS45: =PRODUCT('2012IAR JMale Data'!$AH36:AO36) -> 0.9941808679 | AT45: =PRODUCT('2012IAR JMale Data'!$AH36:AP36) -> 0.9934471624 | AU45: =PRODUCT('2012IAR JMale Data'!$AH36:AQ36) -> 0.9926673064 | AV45: =PRODUCT('2012IAR JMale Data'!$AH36:AR36) -> 0.9918364439 | AW45: =PRODUCT('2012IAR JMale Data'!$AH36:AS36) -> 0.9909497421 | AX45: =PRODUCT('2012IAR JMale Data'!$AH36:AT36) -> 0.9900103217 | AY45: =PRODUCT('2012IAR JMale Data'!$AH36:AU36) -> 0.9890183314 | AZ45: =PRODUCT('2012IAR JMale Data'!$AH36:AV36) -> 0.987970961 | BA45: =PRODUCT('2012IAR JMale Data'!$AH36:AW36) -> 0.9868506019 | BB45: =PRODUCT('2012IAR JMale Data'!$AH36:AX36) -> 0.9856288809 | BC45: =PRODUCT('2012IAR JMale Data'!$AH36:AY36) -> 0.9842775837 | BD45: =PRODUCT('2012IAR JMale Data'!$AH36:AZ36) -> 0.9827755761 | BE45: =PRODUCT('2012IAR JMale Data'!$AH36:BA36) -> 0.9811058404 | BF45: =PRODUCT('2012IAR JMale Data'!$AH36:BB36) -> 0.9792957001 | BG45: =PRODUCT('2012IAR JMale Data'!$AH36:BC36) -> 0.9773204607 | BH45: =PRODUCT('2012IAR JMale Data'!$AH36:BD36) -> 0.9752377908 | BI45: =PRODUCT('2012IAR JMale Data'!$AH36:BE36) -> 0.9730132734 | BJ45: =PRODUCT('2012IAR JMale Data'!$AH36:BF36) -> 0.9707004208 | BK45: =PRODUCT('2012IAR JMale Data'!$AH36:BG36) -> 0.9682309589 | BL45: =PRODUCT('2012IAR JMale Data'!$AH36:BH36) -> 0.9656506234 | BM45: =PRODUCT('2012IAR JMale Data'!$AH36:BI36) -> 0.9628705153 | BN45: =PRODUCT('2012IAR JMale Data'!$AH36:BJ36) -> 0.959950129 | BO45: =PRODUCT('2012IAR JMale Data'!$AH36:BK36) -> 0.956793813 | BP45: =PRODUCT('2012IAR JMale Data'!$AH36:BL36) -> 0.9533809295 | BQ45: =PRODUCT('2012IAR JMale Data'!$AH36:BM36) -> 0.9496999257 | BR45: =PRODUCT('2012IAR JMale Data'!$AH36:BN36) -> 0.9457425261 | BS45: =PRODUCT('2012IAR JMale Data'!$AH36:BO36) -> 0.9414933049 | BT45: =PRODUCT('2012IAR JMale Data'!$AH36:BP36) -> 0.9369280039 | BU45: =PRODUCT('2012IAR JMale Data'!$AH36:BQ36) -> 0.9322086975 | BV45: =PRODUCT('2012IAR JMale Data'!$AH36:BR36) -> 0.9272987543 | BW45: =PRODUCT('2012IAR JMale Data'!$AH36:BS36) -> 0.9221522462 | BX45: =PRODUCT('2012IAR JMale Data'!$AH36:BT36) -> 0.9167189252 | BY45: =PRODUCT('2012IAR JMale Data'!$AH36:BU36) -> 0.9109445127 | BZ45: =PRODUCT('2012IAR JMale Data'!$AH36:BV36) -> 0.9047646651 | CA45: =PRODUCT('2012IAR JMale Data'!$AH36:BW36) -> 0.898106502 | CB45: =PRODUCT('2012IAR JMale Data'!$AH36:BX36) -> 0.8908947067 | CC45: =PRODUCT('2012IAR JMale Data'!$AH36:BY36) -> 0.8830521606 | CD45: =PRODUCT('2012IAR JMale Data'!$AH36:BZ36) -> 0.8745077479 | CE45: =PRODUCT('2012IAR JMale Data'!$AH36:CA36) -> 0.8651916169 | CF45: =PRODUCT('2012IAR JMale Data'!$AH36:CB36) -> 0.8550290762 | CG45: =PRODUCT('2012IAR JMale Data'!$AH36:CC36) -> 0.8439453343 | CH45: =PRODUCT('2012IAR JMale Data'!$AH36:CD36) -> 0.8318634128 | CI45: =PRODUCT('2012IAR JMale Data'!$AH36:CE36) -> 0.8186808733 | CJ45: =PRODUCT('2012IAR JMale Data'!$AH36:CF36) -> 0.8034976179 | CK45: =PRODUCT('2012IAR JMale Data'!$AH36:CG36) -> 0.786075379 | CL45: =PRODUCT('2012IAR JMale Data'!$AH36:CH36) -> 0.7671907041 | CM45: =PRODUCT('2012IAR JMale Data'!$AH36:CI36) -> 0.7456525923 | CN45: =PRODUCT('2012IAR JMale Data'!$AH36:CJ36) -> 0.7210922872 | CO45: =PRODUCT('2012IAR JMale Data'!$AH36:CK36) -> 0.6930814573 | CP45: =PRODUCT('2012IAR JMale Data'!$AH36:CL36) -> 0.6611907002 | CQ45: =PRODUCT('2012IAR JMale Data'!$AH36:CM36) -> 0.6270732601 | CR45: =PRODUCT('2012IAR JMale Data'!$AH36:CN36) -> 0.5886499731 | CS45: =PRODUCT('2012IAR JMale Data'!$AH36:CO36) -> 0.5458710136 | CT45: =PRODUCT('2012IAR JMale Data'!$AH36:CP36) -> 0.5017777366 | CU45: =PRODUCT('2012IAR JMale Data'!$AH36:CQ36) -> 0.4540978126 | CV45: =PRODUCT('2012IAR JMale Data'!$AH36:CR36) -> 0.4034554622 | CW45: =PRODUCT('2012IAR JMale Data'!$AH36:CS36) -> 0.3539720532 | CX45: =PRODUCT('2012IAR JMale Data'!$AH36:CT36) -> 0.3032322832 | CY45: =PRODUCT('2012IAR JMale Data'!$AH36:CU36) -> 0.2571209628 | CZ45: =PRODUCT('2012IAR JMale Data'!$AH36:CV36) -> 0.2118360475 | DA45: =PRODUCT('2012IAR JMale Data'!$AH36:CW36) -> 0.171563261 | DB45: =PRODUCT('2012IAR JMale Data'!$AH36:CX36) -> 0.1340720563 | DC45: =PRODUCT('2012IAR JMale Data'!$AH36:CY36) -> 0.1027057646 | DD45: =PRODUCT('2012IAR JMale Data'!$AH36:CZ36) -> 0.07681446301 | DE45: =PRODUCT('2012IAR JMale Data'!$AH36:DA36) -> 0.05450255001 | DF45: =PRODUCT('2012IAR JMale Data'!$AH36:DB36) -> 0.03756582809 | DG45: =PRODUCT('2012IAR JMale Data'!$AH36:DC36) -> 0.02418461717 | DH45: =PRODUCT('2012IAR JMale Data'!$AH36:DD36) -> 0.01499446264 | DI45: =PRODUCT('2012IAR JMale Data'!$AH36:DE36) -> 0.008996677586 | DJ45: =PRODUCT('2012IAR JMale Data'!$AH36:DF36) -> 0.005398006552 | DK45: =PRODUCT('2012IAR JMale Data'!$AH36:DG36) -> 0.003238803931 | DL45: =PRODUCT('2012IAR JMale Data'!$AH36:DH36) -> 0.001943282359 | DM45: =PRODUCT('2012IAR JMale Data'!$AH36:DI36) -> 0.001165969415 | DN45: =PRODUCT('2012IAR JMale Data'!$AH36:DJ36) -> 0.0006995816491 | DO45: =PRODUCT('2012IAR JMale Data'!$AH36:DK36) -> 0.0004197489895 | DP45: =PRODUCT('2012IAR JMale Data'!$AH36:DL36) -> 0.0002518493937 | DQ45: =PRODUCT('2012IAR JMale Data'!$AH36:DM36) -> 0.0001511096362 | DR45: =PRODUCT('2012IAR JMale Data'!$AH36:DN36) -> 9.066578172e-05 | DS45: =PRODUCT('2012IAR JMale Data'!$AH36:DO36) -> 5.439946903e-05 | DT45: =PRODUCT('2012IAR JMale Data'!$AH36:DP36) -> 3.263968142e-05 | DU45: =PRODUCT('2012IAR JMale Data'!$AH36:DQ36) -> 1.958380885e-05 | DV45: =PRODUCT('2012IAR JMale Data'!$AH36:DR36) -> 1.175028531e-05 | DW45: =PRODUCT('2012IAR JMale Data'!$AH36:DS36) -> 0
